Workbook

Sheet YHTEENVETO
B1: YHTEENVETO SUOMENSARJAN LOHKOISTA 1945 – 2025
B3: RUNKOSARJA
C5: KAIKKI LOHKOT | G5: ITÄLOHKO | J5: LÄNSILOHKO | M5: ETELÄLOHKO | P5: POHJOISLOHKO | S5: KAAKKOISLOHKO | V5: KOILLISLOHKO | Y5: SISÄ-SUOMI | AB5: LOUNAISLOHKO | AE5: LAPIN LOHKO
B6: VUOSI | C6: JOUK | D6: OTT | E6: JUOK | F6: KA | G6: JOUK | H6: OTT | I6: JUOK | J6: JOUK | K6: OTT | L6: JUOK | M6: JOUK | N6: OTT | O6: JUOK | P6: JOUK | Q6: OTT | R6: JUOK | S6: JOUK | T6: OTT | U6: JUOK | V6: JOUK | W6: OTT | X6: JUOK | Y6: JOUK | Z6: OTT | AA6: JUOK | AB6: JOUK | AC6: OTT | AD6: JUOK | AE6: JOUK | AF6: OTT | AG6: JUOK | AH6: 1
B7: 1945 | C7: =PRODUCT(AH7) -> 32 | D7: =PRODUCT(AI7) -> 114 | E7: =PRODUCT(AJ7) -> 1299 | F7: =PRODUCT(E7/D7) -> 11.4 | G7: 9 | H7: 36 | I7: 352 | J7: 7 | K7: 21 | L7: 259 | P7: 9 | Q7: 36 | R7: 398 | S7: 7 | T7: 21 | U7: 290 | AH7: =PRODUCT(G7+J7+M7+P7+S7+V7+AB7) -> 32 | AI7: =PRODUCT(H7+K7+N7+Q7+T7+W7+AC7) -> 114 | AJ7: =PRODUCT(I7+L7+O7+R7+U7+X7+AD7) -> 1299 | AK7: =PRODUCT(AJ7/AI7) -> 11.4
B8: 1946 | C8: =PRODUCT(AH8) -> 34 | D8: =PRODUCT(AI8) -> 129 | E8: =PRODUCT(AJ8) -> 1772 | F8: =PRODUCT(E8/D8) -> 13.7 | G8: 9 | H8: 36 | I8: 507 | J8: 9 | K8: 36 | L8: 578 | P8: 9 | Q8: 36 | R8: 405 | V8: 7 | W8: 21 | X8: 282 | AH8: =PRODUCT(G8+J8+M8+P8+S8+V8+AB8) -> 34 | AI8: =PRODUCT(H8+K8+N8+Q8+T8+W8+AC8) -> 129 | AJ8: =PRODUCT(I8+L8+O8+R8+U8+X8+AD8) -> 1772 | AK8: =PRODUCT(AJ8/AI8) -> 13.7
B9: 1947 | C9: =PRODUCT(AH9) -> 32 | D9: =PRODUCT(AI9) -> 118 | E9: =PRODUCT(AJ9) -> 1494 | F9: =PRODUCT(E9/D9) -> 12.7 | G9: 9 | H9: 36 | I9: 427 | J9: 9 | K9: 36 | L9: 546 | P9: 9 | Q9: 36 | R9: 435 | V9: 5 | W9: 10 | X9: 86 | AH9: =PRODUCT(G9+J9+M9+P9+S9+V9+AB9) -> 32 | AI9: =PRODUCT(H9+K9+N9+Q9+T9+W9+AC9) -> 118 | AJ9: =PRODUCT(I9+L9+O9+R9+U9+X9+AD9) -> 1494 | AK9: =PRODUCT(AJ9/AI9) -> 12.7
B10: 1948 | C10: =PRODUCT(AH10) -> 44 | D10: =PRODUCT(AI10) -> 146 | E10: =PRODUCT(AJ10) -> 2241 | F10: =PRODUCT(E10/D10) -> 15.3 | G10: 9 | H10: 36 | I10: 623 | J10: 9 | K10: 36 | L10: 592 | P10: 15 | Q10: 49 | R10: 674 | V10: 11 | W10: 25 | X10: 352 | AH10: =PRODUCT(G10+J10+M10+P10+S10+V10+AB10) -> 44 | AI10: =PRODUCT(H10+K10+N10+Q10+T10+W10+AC10) -> 146 | AJ10: =PRODUCT(I10+L10+O10+R10+U10+X10+AD10) -> 2241 | AK10: =PRODUCT(AJ10/AI10) -> 15.3
B11: 1949 | C11: =PRODUCT(AH11) -> 77 | D11: =PRODUCT(AI11) -> 348 | E11: =PRODUCT(AJ11) -> 5154 | F11: =PRODUCT(E11/D11) -> 14.8 | G11: 8 | H11: 28 | I11: 448 | J11: 11 | K11: 55 | L11: 823 | M11: 13 | N11: 78 | O11: 1246 | P11: 9 | Q11: 36 | R11: 620 | S11: 11 | T11: 55 | U11: 949 | Y11: 9 | Z11: 36 | AA11: 205 | AB11: 10 | AC11: 45 | AD11: 602 | AE11: 6 | AF11: 15 | AG11: 261 | AH11: =PRODUCT(G11+J11+M11+P11+S11+V11+AB11+AE11+Y11) -> 77 | AI11: =PRODUCT(H11+K11+N11+Q11+T11+W11+AC11+AF11+Z11) -> 348 | AJ11: =PRODUCT(I11+L11+O11+R11+U11+X11+AD11+AG11+AA11) -> 5154 | AK11: =PRODUCT(AJ11/AI11) -> 14.8
B12: 1950 | C12: =PRODUCT(AH12) -> 76 | D12: =PRODUCT(AI12) -> 337 | E12: =PRODUCT(AJ12) -> 5645 | F12: =PRODUCT(E12/D12) -> 16.8 | G12: 9 | H12: 36 | I12: 683 | J12: 11 | K12: 55 | L12: 1071 | M12: 10 | N12: 45 | O12: 632 | P12: 9 | Q12: 36 | R12: 604 | S12: 11 | T12: 55 | U12: 873 | Y12: 10 | Z12: 45 | AA12: 806 | AB12: 11 | AC12: 55 | AD12: 823 | AE12: 5 | AF12: 10 | AG12: 153 | AH12: =PRODUCT(G12+J12+M12+P12+S12+V12+AB12+AE12+Y12) -> 76 | AI12: =PRODUCT(H12+K12+N12+Q12+T12+W12+AC12+AF12+Z12) -> 337 | AJ12: =PRODUCT(I12+L12+O12+R12+U12+X12+AD12+AG12+AA12) -> 5645 | AK12: =PRODUCT(AJ12/AI12) -> 16.8
B13: 1951 | C13: =PRODUCT(AH13) -> 79 | D13: =PRODUCT(AI13) -> 358 | E13: =PRODUCT(AJ13) -> 5842 | F13: =PRODUCT(E13/D13) -> 16.3 | G13: 9 | H13: 36 | I13: 569 | J13: 10 | K13: 45 | L13: 722 | M13: 11 | N13: 55 | O13: 841 | P13: 9 | Q13: 36 | R13: 568 | S13: 11 | T13: 55 | U13: 993 | Y13: 11 | Z13: 55 | AA13: 971 | AB13: 11 | AC13: 55 | AD13: 841 | AE13: 7 | AF13: 21 | AG13: 337 | AH13: =PRODUCT(G13+J13+M13+P13+S13+V13+AB13+AE13+Y13) -> 79 | AI13: =PRODUCT(H13+K13+N13+Q13+T13+W13+AC13+AF13+Z13) -> 358 | AJ13: =PRODUCT(I13+L13+O13+R13+U13+X13+AD13+AG13+AA13) -> 5842 | AK13: =PRODUCT(AJ13/AI13) -> 16.3
B14: 1952 | C14: =PRODUCT(AH14) -> 74 | D14: =PRODUCT(AI14) -> 315 | E14: =PRODUCT(AJ14) -> 4692 | F14: =PRODUCT(E14/D14) -> 14.9 | G14: 8 | H14: 28 | I14: 475 | J14: 9 | K14: 36 | L14: 572 | M14: 11 | N14: 55 | O14: 706 | P14: 9 | Q14: 36 | R14: 589 | S14: 10 | T14: 45 | U14: 747 | Y14: 10 | Z14: 45 | AA14: 709 | AB14: 11 | AC14: 55 | AD14: 692 | AE14: 6 | AF14: 15 | AG14: 202 | AH14: =PRODUCT(G14+J14+M14+P14+S14+V14+AB14+AE14+Y14) -> 74 | AI14: =PRODUCT(H14+K14+N14+Q14+T14+W14+AC14+AF14+Z14) -> 315 | AJ14: =PRODUCT(I14+L14+O14+R14+U14+X14+AD14+AG14+AA14) -> 4692 | AK14: =PRODUCT(AJ14/AI14) -> 14.9
B15: 1953 | C15: =PRODUCT(AH15) -> 74 | D15: =PRODUCT(AI15) -> 316 | E15: =PRODUCT(AJ15) -> 4218 | F15: =PRODUCT(E15/D15) -> 13.3 | G15: 9 | H15: 36 | I15: 514 | J15: 9 | K15: 36 | L15: 561 | M15: 11 | N15: 55 | O15: 575 | P15: 9 | Q15: 36 | R15: 617 | S15: 11 | T15: 55 | U15: 719 | Y15: 8 | Z15: 28 | AA15: 370 | AB15: 11 | AC15: 55 | AD15: 687 | AE15: 6 | AF15: 15 | AG15: 175 | AH15: =PRODUCT(G15+J15+M15+P15+S15+V15+AB15+AE15+Y15) -> 74 | AI15: =PRODUCT(H15+K15+N15+Q15+T15+W15+AC15+AF15+Z15) -> 316 | AJ15: =PRODUCT(I15+L15+O15+R15+U15+X15+AD15+AG15+AA15) -> 4218 | AK15: =PRODUCT(AJ15/AI15) -> 13.3
B16: 1954 | C16: =PRODUCT(AH16) -> 76 | D16: =PRODUCT(AI16) -> 330 | E16: =PRODUCT(AJ16) -> 4699 | F16: =PRODUCT(E16/D16) -> 14.2 | G16: 9 | H16: 36 | I16: 541 | J16: 9 | K16: 36 | L16: 413 | M16: 11 | N16: 55 | O16: 805 | P16: 9 | Q16: 36 | R16: 403 | S16: 11 | T16: 55 | U16: 860 | Y16: 9 | Z16: 36 | AA16: 511 | AB16: 11 | AC16: 55 | AD16: 808 | AE16: 7 | AF16: 21 | AG16: 358 | AH16: =PRODUCT(G16+J16+M16+P16+S16+V16+AB16+AE16+Y16) -> 76 | AI16: =PRODUCT(H16+K16+N16+Q16+T16+W16+AC16+AF16+Z16) -> 330 | AJ16: =PRODUCT(I16+L16+O16+R16+U16+X16+AD16+AG16+AA16) -> 4699 | AK16: =PRODUCT(AJ16/AI16) -> 14.2
B17: 1955 | C17: =PRODUCT(AH17) -> 72 | D17: =PRODUCT(AI17) -> 301 | E17: =PRODUCT(AJ17) -> 4187 | F17: =PRODUCT(E17/D17) -> 13.9 | G17: 9 | H17: 36 | I17: 524 | J17: 8 | K17: 28 | L17: 353 | M17: 11 | N17: 55 | O17: 638 | P17: 9 | Q17: 36 | R17: 399 | S17: 11 | T17: 55 | U17: 973 | Y17: 9 | Z17: 36 | AA17: 608 | AB17: 10 | AC17: 45 | AD17: 598 | AE17: 5 | AF17: 10 | AG17: 94 | AH17: =PRODUCT(G17+J17+M17+P17+S17+V17+AB17+AE17+Y17) -> 72 | AI17: =PRODUCT(H17+K17+N17+Q17+T17+W17+AC17+AF17+Z17) -> 301 | AJ17: =PRODUCT(I17+L17+O17+R17+U17+X17+AD17+AG17+AA17) -> 4187 | AK17: =PRODUCT(AJ17/AI17) -> 13.9
B18: 1956 | C18: =PRODUCT(AH18) -> 41 | D18: =PRODUCT(AI18) -> 193 | E18: =PRODUCT(AJ18) -> 2355 | F18: =PRODUCT(E18/D18) -> 12.2 | G18: 11 | H18: 55 | I18: 709 | J18: 11 | K18: 55 | L18: 555 | M18: 11 | N18: 55 | O18: 751 | P18: 8 | Q18: 28 | R18: 340 | AH18: =PRODUCT(G18+J18+M18+P18+S18+V18+AB18) -> 41 | AI18: =PRODUCT(H18+K18+N18+Q18+T18+W18+AC18) -> 193 | AJ18: =PRODUCT(I18+L18+O18+R18+U18+X18+AD18) -> 2355 | AK18: =PRODUCT(AJ18/AI18) -> 12.2
B19: 1957 | C19: =PRODUCT(AH19) -> 41 | D19: =PRODUCT(AI19) -> 193 | E19: =PRODUCT(AJ19) -> 3207 | F19: =PRODUCT(E19/D19) -> 16.6 | G19: 11 | H19: 55 | I19: 982 | J19: 11 | K19: 55 | L19: 676 | M19: 11 | N19: 55 | O19: 996 | P19: 8 | Q19: 28 | R19: 553 | AH19: =PRODUCT(G19+J19+M19+P19+S19+V19+AB19) -> 41 | AI19: =PRODUCT(H19+K19+N19+Q19+T19+W19+AC19) -> 193 | AJ19: =PRODUCT(I19+L19+O19+R19+U19+X19+AD19) -> 3207 | AK19: =PRODUCT(AJ19/AI19) -> 16.6
B20: 1958 | C20: =PRODUCT(AH20) -> 42 | D20: =PRODUCT(AI20) -> 201 | E20: =PRODUCT(AJ20) -> 3112 | F20: =PRODUCT(E20/D20) -> 15.5 | G20: 11 | H20: 55 | I20: 982 | J20: 11 | K20: 55 | L20: 747 | M20: 11 | N20: 55 | O20: 864 | P20: 9 | Q20: 36 | R20: 519 | AH20: =PRODUCT(G20+J20+M20+P20+S20+V20+AB20) -> 42 | AI20: =PRODUCT(H20+K20+N20+Q20+T20+W20+AC20) -> 201 | AJ20: =PRODUCT(I20+L20+O20+R20+U20+X20+AD20) -> 3112 | AK20: =PRODUCT(AJ20/AI20) -> 15.5
B21: 1959 | C21: =PRODUCT(AH21) -> 41 | D21: =PRODUCT(AI21) -> 191 | E21: =PRODUCT(AJ21) -> 2811 | F21: =PRODUCT(E21/D21) -> 14.7 | G21: 10 | H21: 45 | I21: 679 | J21: 11 | K21: 55 | L21: 724 | M21: 11 | N21: 55 | O21: 953 | P21: 9 | Q21: 36 | R21: 455 | AH21: =PRODUCT(G21+J21+M21+P21+S21+V21+AB21) -> 41 | AI21: =PRODUCT(H21+K21+N21+Q21+T21+W21+AC21) -> 191 | AJ21: =PRODUCT(I21+L21+O21+R21+U21+X21+AD21) -> 2811 | AK21: =PRODUCT(AJ21/AI21) -> 14.7
B22: 1960 | C22: =PRODUCT(AH22) -> 44 | D22: =PRODUCT(AI22) -> 220 | E22: =PRODUCT(AJ22) -> 3174 | F22: =PRODUCT(E22/D22) -> 14.4 | G22: 11 | H22: 55 | I22: 675 | J22: 11 | K22: 55 | L22: 836 | M22: 11 | N22: 55 | O22: 909 | P22: 11 | Q22: 55 | R22: 754 | AH22: =PRODUCT(G22+J22+M22+P22+S22+V22+AB22) -> 44 | AI22: =PRODUCT(H22+K22+N22+Q22+T22+W22+AC22) -> 220 | AJ22: =PRODUCT(I22+L22+O22+R22+U22+X22+AD22) -> 3174 | AK22: =PRODUCT(AJ22/AI22) -> 14.4
B23: 1961 | C23: =PRODUCT(AH23) -> 44 | D23: =PRODUCT(AI23) -> 220 | E23: =PRODUCT(AJ23) -> 3270 | F23: =PRODUCT(E23/D23) -> 14.9 | G23: 11 | H23: 55 | I23: 903 | J23: 11 | K23: 55 | L23: 691 | M23: 11 | N23: 55 | O23: 948 | P23: 11 | Q23: 55 | R23: 728 | AH23: =PRODUCT(G23+J23+M23+P23+S23+V23+AB23) -> 44 | AI23: =PRODUCT(H23+K23+N23+Q23+T23+W23+AC23) -> 220 | AJ23: =PRODUCT(I23+L23+O23+R23+U23+X23+AD23) -> 3270 | AK23: =PRODUCT(AJ23/AI23) -> 14.9
B24: 1962 | C24: =PRODUCT(AH24) -> 44 | D24: =PRODUCT(AI24) -> 220 | E24: =PRODUCT(AJ24) -> 3309 | F24: =PRODUCT(E24/D24) -> 15.0 | G24: 11 | H24: 55 | I24: 919 | J24: 11 | K24: 55 | L24: 744 | M24: 11 | N24: 55 | O24: 764 | P24: 11 | Q24: 55 | R24: 882 | AH24: =PRODUCT(G24+J24+M24+P24+S24+V24+AB24) -> 44 | AI24: =PRODUCT(H24+K24+N24+Q24+T24+W24+AC24) -> 220 | AJ24: =PRODUCT(I24+L24+O24+R24+U24+X24+AD24) -> 3309 | AK24: =PRODUCT(AJ24/AI24) -> 15.0
B25: 1963 | C25: =PRODUCT(AH25) -> 43 | D25: =PRODUCT(AI25) -> 210 | E25: =PRODUCT(AJ25) -> 3575 | F25: =PRODUCT(E25/D25) -> 17.0 | G25: 11 | H25: 55 | I25: 968 | J25: 10 | K25: 45 | L25: 711 | M25: 11 | N25: 55 | O25: 951 | P25: 11 | Q25: 55 | R25: 945 | AH25: =PRODUCT(G25+J25+M25+P25+S25+V25+AB25) -> 43 | AI25: =PRODUCT(H25+K25+N25+Q25+T25+W25+AC25) -> 210 | AJ25: =PRODUCT(I25+L25+O25+R25+U25+X25+AD25) -> 3575 | AK25: =PRODUCT(AJ25/AI25) -> 17.0
B26: 1964 | C26: =PRODUCT(AH26) -> 52 | D26: =PRODUCT(AI26) -> 312 | E26: =PRODUCT(AJ26) -> 5694 | F26: =PRODUCT(E26/D26) -> 18.3 | G26: 13 | H26: 78 | I26: 1484 | J26: 13 | K26: 78 | L26: 1262 | M26: 13 | N26: 78 | O26: 1552 | P26: 13 | Q26: 78 | R26: 1396 | AH26: =PRODUCT(G26+J26+M26+P26+S26+V26+AB26) -> 52 | AI26: =PRODUCT(H26+K26+N26+Q26+T26+W26+AC26) -> 312 | AJ26: =PRODUCT(I26+L26+O26+R26+U26+X26+AD26) -> 5694 | AK26: =PRODUCT(AJ26/AI26) -> 18.3
B27: 1965 | C27: =PRODUCT(AH27) -> 52 | D27: =PRODUCT(AI27) -> 312 | E27: =PRODUCT(AJ27) -> 6049 | F27: =PRODUCT(E27/D27) -> 19.4 | G27: 13 | H27: 78 | I27: 1555 | J27: 13 | K27: 78 | L27: 1494 | M27: 13 | N27: 78 | O27: 1372 | P27: 13 | Q27: 78 | R27: 1628 | AH27: =PRODUCT(G27+J27+M27+P27+S27+V27+AB27) -> 52 | AI27: =PRODUCT(H27+K27+N27+Q27+T27+W27+AC27) -> 312 | AJ27: =PRODUCT(I27+L27+O27+R27+U27+X27+AD27) -> 6049 | AK27: =PRODUCT(AJ27/AI27) -> 19.4
B28: 1966 | C28: =PRODUCT(AH28) -> 52 | D28: =PRODUCT(AI28) -> 312 | E28: =PRODUCT(AJ28) -> 6168 | F28: =PRODUCT(E28/D28) -> 19.8 | G28: 13 | H28: 78 | I28: 1685 | J28: 13 | K28: 78 | L28: 1442 | M28: 13 | N28: 78 | O28: 1507 | P28: 13 | Q28: 78 | R28: 1534 | AH28: =PRODUCT(G28+J28+M28+P28+S28+V28+AB28) -> 52 | AI28: =PRODUCT(H28+K28+N28+Q28+T28+W28+AC28) -> 312 | AJ28: =PRODUCT(I28+L28+O28+R28+U28+X28+AD28) -> 6168 | AK28: =PRODUCT(AJ28/AI28) -> 19.8
B29: 1967 | C29: =PRODUCT(AH29) -> 38 | D29: =PRODUCT(AI29) -> 217 | E29: =PRODUCT(AJ29) -> 4071 | F29: =PRODUCT(E29/D29) -> 18.8 | G29: 13 | H29: 78 | I29: 1382 | J29: 12 | K29: 61 | L29: 1233 | P29: 13 | Q29: 78 | R29: 1456 | AH29: =PRODUCT(G29+J29+M29+P29+S29+V29+AB29) -> 38 | AI29: =PRODUCT(H29+K29+N29+Q29+T29+W29+AC29) -> 217 | AJ29: =PRODUCT(I29+L29+O29+R29+U29+X29+AD29) -> 4071 | AK29: =PRODUCT(AJ29/AI29) -> 18.8
B30: 1968 | C30: =PRODUCT(AH30) -> 38 | D30: =PRODUCT(AI30) -> 222 | E30: =PRODUCT(AJ30) -> 3808 | F30: =PRODUCT(E30/D30) -> 17.2 | G30: 13 | H30: 78 | I30: 1338 | J30: 13 | K30: 78 | L30: 1280 | M30: 12 | N30: 66 | O30: 1190 | AH30: =PRODUCT(G30+J30+M30+P30+S30+V30+AB30) -> 38 | AI30: =PRODUCT(H30+K30+N30+Q30+T30+W30+AC30) -> 222 | AJ30: =PRODUCT(I30+L30+O30+R30+U30+X30+AD30) -> 3808 | AK30: =PRODUCT(AJ30/AI30) -> 17.2
B31: 1969 | C31: =PRODUCT(AH31) -> 30 | D31: =PRODUCT(AI31) -> 270 | E31: =PRODUCT(AJ31) -> 4836 | F31: =PRODUCT(E31/D31) -> 17.9 | G31: 10 | H31: 90 | I31: 1517 | J31: 10 | K31: 90 | L31: 1529 | M31: 10 | N31: 90 | O31: 1790 | AH31: =PRODUCT(G31+J31+M31+P31+S31+V31+AB31) -> 30 | AI31: =PRODUCT(H31+K31+N31+Q31+T31+W31+AC31) -> 270 | AJ31: =PRODUCT(I31+L31+O31+R31+U31+X31+AD31) -> 4836 | AK31: =PRODUCT(AJ31/AI31) -> 17.9
B32: 1970 | C32: =PRODUCT(AH32) -> 30 | D32: =PRODUCT(AI32) -> 270 | E32: =PRODUCT(AJ32) -> 4533 | F32: =PRODUCT(E32/D32) -> 16.8 | G32: 10 | H32: 90 | I32: 1377 | J32: 10 | K32: 90 | L32: 1396 | M32: 10 | N32: 90 | O32: 1760 | AH32: =PRODUCT(G32+J32+M32+P32+S32+V32+AB32) -> 30 | AI32: =PRODUCT(H32+K32+N32+Q32+T32+W32+AC32) -> 270 | AJ32: =PRODUCT(I32+L32+O32+R32+U32+X32+AD32) -> 4533 | AK32: =PRODUCT(AJ32/AI32) -> 16.8
B33: 1971 | C33: =PRODUCT(AH33) -> 30 | D33: =PRODUCT(AI33) -> 270 | E33: =PRODUCT(AJ33) -> 4482 | F33: =PRODUCT(E33/D33) -> 16.6 | G33: 10 | H33: 90 | I33: 1268 | J33: 10 | K33: 90 | L33: 1499 | M33: 10 | N33: 90 | O33: 1715 | AH33: =PRODUCT(G33+J33+M33+P33+S33+V33+AB33) -> 30 | AI33: =PRODUCT(H33+K33+N33+Q33+T33+W33+AC33) -> 270 | AJ33: =PRODUCT(I33+L33+O33+R33+U33+X33+AD33) -> 4482 | AK33: =PRODUCT(AJ33/AI33) -> 16.6
B34: 1972 | C34: =PRODUCT(AH34) -> 30 | D34: =PRODUCT(AI34) -> 270 | E34: =PRODUCT(AJ34) -> 4325 | F34: =PRODUCT(E34/D34) -> 16.0 | G34: 10 | H34: 90 | I34: 1366 | J34: 10 | K34: 90 | L34: 1327 | M34: 10 | N34: 90 | O34: 1632 | AH34: =PRODUCT(G34+J34+M34+P34+S34+V34+AB34) -> 30 | AI34: =PRODUCT(H34+K34+N34+Q34+T34+W34+AC34) -> 270 | AJ34: =PRODUCT(I34+L34+O34+R34+U34+X34+AD34) -> 4325 | AK34: =PRODUCT(AJ34/AI34) -> 16.0
B35: 1973 | C35: =PRODUCT(AH35) -> 30 | D35: =PRODUCT(AI35) -> 270 | E35: =PRODUCT(AJ35) -> 4656 | F35: =PRODUCT(E35/D35) -> 17.2 | G35: 10 | H35: 90 | I35: 1674 | J35: 10 | K35: 90 | L35: 1423 | M35: 10 | N35: 90 | O35: 1559 | AH35: =PRODUCT(G35+J35+M35+P35+S35+V35+AB35) -> 30 | AI35: =PRODUCT(H35+K35+N35+Q35+T35+W35+AC35) -> 270 | AJ35: =PRODUCT(I35+L35+O35+R35+U35+X35+AD35) -> 4656 | AK35: =PRODUCT(AJ35/AI35) -> 17.2
B36: 1974 | C36: =PRODUCT(AH36) -> 30 | D36: =PRODUCT(AI36) -> 270 | E36: =PRODUCT(AJ36) -> 3907 | F36: =PRODUCT(E36/D36) -> 14.5 | G36: 10 | H36: 90 | I36: 1347 | J36: 10 | K36: 90 | L36: 1220 | M36: 10 | N36: 90 | O36: 1340 | AH36: =PRODUCT(G36+J36+M36+P36+S36+V36+AB36) -> 30 | AI36: =PRODUCT(H36+K36+N36+Q36+T36+W36+AC36) -> 270 | AJ36: =PRODUCT(I36+L36+O36+R36+U36+X36+AD36) -> 3907 | AK36: =PRODUCT(AJ36/AI36) -> 14.5
B37: 1975 | C37: =PRODUCT(AH37) -> 30 | D37: =PRODUCT(AI37) -> 270 | E37: =PRODUCT(AJ37) -> 4325 | F37: =PRODUCT(E37/D37) -> 16.0 | G37: 10 | H37: 90 | I37: 1434 | J37: 10 | K37: 90 | L37: 1449 | M37: 10 | N37: 90 | O37: 1442 | AH37: =PRODUCT(G37+J37+M37+P37+S37+V37+AB37) -> 30 | AI37: =PRODUCT(H37+K37+N37+Q37+T37+W37+AC37) -> 270 | AJ37: =PRODUCT(I37+L37+O37+R37+U37+X37+AD37) -> 4325 | AK37: =PRODUCT(AJ37/AI37) -> 16.0
B38: 1976 | C38: =PRODUCT(AH38) -> 30 | D38: =PRODUCT(AI38) -> 270 | E38: =PRODUCT(AJ38) -> 4203 | F38: =PRODUCT(E38/D38) -> 15.6 | G38: 10 | H38: 90 | I38: 1481 | J38: 10 | K38: 90 | L38: 1411 | M38: 10 | N38: 90 | O38: 1311 | AH38: =PRODUCT(G38+J38+M38+P38+S38+V38+AB38) -> 30 | AI38: =PRODUCT(H38+K38+N38+Q38+T38+W38+AC38) -> 270 | AJ38: =PRODUCT(I38+L38+O38+R38+U38+X38+AD38) -> 4203 | AK38: =PRODUCT(AJ38/AI38) -> 15.6
B39: 1977 | C39: =PRODUCT(AH39) -> 30 | D39: =PRODUCT(AI39) -> 270 | E39: =PRODUCT(AJ39) -> 4081 | F39: =PRODUCT(E39/D39) -> 15.1 | G39: 10 | H39: 90 | I39: 1440 | J39: 10 | K39: 90 | L39: 1275 | M39: 10 | N39: 90 | O39: 1366 | AH39: =PRODUCT(G39+J39+M39+P39+S39+V39+AB39) -> 30 | AI39: =PRODUCT(H39+K39+N39+Q39+T39+W39+AC39) -> 270 | AJ39: =PRODUCT(I39+L39+O39+R39+U39+X39+AD39) -> 4081 | AK39: =PRODUCT(AJ39/AI39) -> 15.1
B40: 1978 | C40: =PRODUCT(AH40) -> 30 | D40: =PRODUCT(AI40) -> 270 | E40: =PRODUCT(AJ40) -> 4091 | F40: =PRODUCT(E40/D40) -> 15.2 | G40: 10 | H40: 90 | I40: 1397 | J40: 10 | K40: 90 | L40: 1379 | M40: 10 | N40: 90 | O40: 1315 | AH40: =PRODUCT(G40+J40+M40+P40+S40+V40+AB40) -> 30 | AI40: =PRODUCT(H40+K40+N40+Q40+T40+W40+AC40) -> 270 | AJ40: =PRODUCT(I40+L40+O40+R40+U40+X40+AD40) -> 4091 | AK40: =PRODUCT(AJ40/AI40) -> 15.2
B41: 1979 | C41: =PRODUCT(AH41) -> 30 | D41: =PRODUCT(AI41) -> 270 | E41: =PRODUCT(AJ41) -> 4129 | F41: =PRODUCT(E41/D41) -> 15.3 | G41: 10 | H41: 90 | I41: 1334 | J41: 10 | K41: 90 | L41: 1433 | M41: 10 | N41: 90 | O41: 1362 | AH41: =PRODUCT(G41+J41+M41+P41+S41+V41+AB41) -> 30 | AI41: =PRODUCT(H41+K41+N41+Q41+T41+W41+AC41) -> 270 | AJ41: =PRODUCT(I41+L41+O41+R41+U41+X41+AD41) -> 4129 | AK41: =PRODUCT(AJ41/AI41) -> 15.3
B42: 1980 | C42: =PRODUCT(AH42) -> 30 | D42: =PRODUCT(AI42) -> 270 | E42: =PRODUCT(AJ42) -> 4491 | F42: =PRODUCT(E42/D42) -> 16.6 | G42: 10 | H42: 90 | I42: 1589 | J42: 10 | K42: 90 | L42: 1470 | M42: 10 | N42: 90 | O42: 1432 | AH42: =PRODUCT(G42+J42+M42+P42+S42+V42+AB42) -> 30 | AI42: =PRODUCT(H42+K42+N42+Q42+T42+W42+AC42) -> 270 | AJ42: =PRODUCT(I42+L42+O42+R42+U42+X42+AD42) -> 4491 | AK42: =PRODUCT(AJ42/AI42) -> 16.6
B43: 1981 | C43: =PRODUCT(AH43) -> 30 | D43: =PRODUCT(AI43) -> 270 | E43: =PRODUCT(AJ43) -> 4271 | F43: =PRODUCT(E43/D43) -> 15.8 | G43: 10 | H43: 90 | I43: 1405 | J43: 10 | K43: 90 | L43: 1426 | M43: 10 | N43: 90 | O43: 1440 | AH43: =PRODUCT(G43+J43+M43+P43+S43+V43+AB43) -> 30 | AI43: =PRODUCT(H43+K43+N43+Q43+T43+W43+AC43) -> 270 | AJ43: =PRODUCT(I43+L43+O43+R43+U43+X43+AD43) -> 4271 | AK43: =PRODUCT(AJ43/AI43) -> 15.8
B44: 1982 | C44: =PRODUCT(AH44) -> 30 | D44: =PRODUCT(AI44) -> 270 | E44: =PRODUCT(AJ44) -> 4260 | F44: =PRODUCT(E44/D44) -> 15.8 | G44: 10 | H44: 90 | I44: 1525 | J44: 10 | K44: 90 | L44: 1349 | P44: 10 | Q44: 90 | R44: 1386 | AH44: =PRODUCT(G44+J44+M44+P44+S44+V44+AB44) -> 30 | AI44: =PRODUCT(H44+K44+N44+Q44+T44+W44+AC44) -> 270 | AJ44: =PRODUCT(I44+L44+O44+R44+U44+X44+AD44) -> 4260 | AK44: =PRODUCT(AJ44/AI44) -> 15.8
B45: 1983 | C45: =PRODUCT(AH45) -> 30 | D45: =PRODUCT(AI45) -> 270 | E45: =PRODUCT(AJ45) -> 4331 | F45: =PRODUCT(E45/D45) -> 16.0 | G45: 10 | H45: 90 | I45: 1496 | J45: 10 | K45: 90 | L45: 1321 | P45: 10 | Q45: 90 | R45: 1514 | AH45: =PRODUCT(G45+J45+M45+P45+S45+V45+AB45) -> 30 | AI45: =PRODUCT(H45+K45+N45+Q45+T45+W45+AC45) -> 270 | AJ45: =PRODUCT(I45+L45+O45+R45+U45+X45+AD45) -> 4331 | AK45: =PRODUCT(AJ45/AI45) -> 16.0
B46: 1984 | C46: =PRODUCT(AH46) -> 30 | D46: =PRODUCT(AI46) -> 270 | E46: =PRODUCT(AJ46) -> 4356 | F46: =PRODUCT(E46/D46) -> 16.1 | G46: 10 | H46: 90 | I46: 1490 | J46: 10 | K46: 90 | L46: 1280 | P46: 10 | Q46: 90 | R46: 1586 | AH46: =PRODUCT(G46+J46+M46+P46+S46+V46+AB46) -> 30 | AI46: =PRODUCT(H46+K46+N46+Q46+T46+W46+AC46) -> 270 | AJ46: =PRODUCT(I46+L46+O46+R46+U46+X46+AD46) -> 4356 | AK46: =PRODUCT(AJ46/AI46) -> 16.1
B47: 1985 | C47: =PRODUCT(AH47) -> 30 | D47: =PRODUCT(AI47) -> 270 | E47: =PRODUCT(AJ47) -> 4484 | F47: =PRODUCT(E47/D47) -> 16.6 | G47: 10 | H47: 90 | I47: 1513 | J47: 10 | K47: 90 | L47: 1332 | P47: 10 | Q47: 90 | R47: 1639 | AH47: =PRODUCT(G47+J47+M47+P47+S47+V47+AB47) -> 30 | AI47: =PRODUCT(H47+K47+N47+Q47+T47+W47+AC47) -> 270 | AJ47: =PRODUCT(I47+L47+O47+R47+U47+X47+AD47) -> 4484 | AK47: =PRODUCT(AJ47/AI47) -> 16.6
B48: 1986 | C48: =PRODUCT(AH48) -> 36 | D48: =PRODUCT(AI48) -> 396 | E48: =PRODUCT(AJ48) -> 6182 | F48: =PRODUCT(E48/D48) -> 15.6 | G48: 12 | H48: 132 | I48: 2326 | J48: 12 | K48: 132 | L48: 1729 | P48: 12 | Q48: 132 | R48: 2127 | AH48: =PRODUCT(G48+J48+M48+P48+S48+V48+AB48) -> 36 | AI48: =PRODUCT(H48+K48+N48+Q48+T48+W48+AC48) -> 396 | AJ48: =PRODUCT(I48+L48+O48+R48+U48+X48+AD48) -> 6182 | AK48: =PRODUCT(AJ48/AI48) -> 15.6
B49: 1987 | C49: =PRODUCT(AH49) -> 36 | D49: =PRODUCT(AI49) -> 396 | E49: =PRODUCT(AJ49) -> 6137 | F49: =PRODUCT(E49/D49) -> 15.5 | G49: 12 | H49: 132 | I49: 1997 | J49: 12 | K49: 132 | L49: 2077 | P49: 12 | Q49: 132 | R49: 2063 | AH49: =PRODUCT(G49+J49+M49+P49+S49+V49+AB49) -> 36 | AI49: =PRODUCT(H49+K49+N49+Q49+T49+W49+AC49) -> 396 | AJ49: =PRODUCT(I49+L49+O49+R49+U49+X49+AD49) -> 6137 | AK49: =PRODUCT(AJ49/AI49) -> 15.5
B50: 1988 | C50: =PRODUCT(AH50) -> 36 | D50: =PRODUCT(AI50) -> 396 | E50: =PRODUCT(AJ50) -> 6079 | F50: =PRODUCT(E50/D50) -> 15.4 | G50: 12 | H50: 132 | I50: 2260 | J50: 12 | K50: 132 | L50: 1939 | P50: 12 | Q50: 132 | R50: 1880 | AH50: =PRODUCT(G50+J50+M50+P50+S50+V50+AB50) -> 36 | AI50: =PRODUCT(H50+K50+N50+Q50+T50+W50+AC50) -> 396 | AJ50: =PRODUCT(I50+L50+O50+R50+U50+X50+AD50) -> 6079 | AK50: =PRODUCT(AJ50/AI50) -> 15.4
B51: 1989 | C51: =PRODUCT(AH51) -> 36 | D51: =PRODUCT(AI51) -> 396 | E51: =PRODUCT(AJ51) -> 6464 | F51: =PRODUCT(E51/D51) -> 16.3 | G51: 12 | H51: 132 | I51: 2343 | J51: 12 | K51: 132 | L51: 2096 | P51: 12 | Q51: 132 | R51: 2025 | AH51: =PRODUCT(G51+J51+M51+P51+S51+V51+AB51) -> 36 | AI51: =PRODUCT(H51+K51+N51+Q51+T51+W51+AC51) -> 396 | AJ51: =PRODUCT(I51+L51+O51+R51+U51+X51+AD51) -> 6464 | AK51: =PRODUCT(AJ51/AI51) -> 16.3
B52: 1990 | C52: =PRODUCT(AH52) -> 36 | D52: =PRODUCT(AI52) -> 396 | E52: =PRODUCT(AJ52) -> 6405 | F52: =PRODUCT(E52/D52) -> 16.2 | G52: 12 | H52: 132 | I52: 2052 | J52: 12 | K52: 132 | L52: 2069 | P52: 12 | Q52: 132 | R52: 2284 | AH52: =PRODUCT(G52+J52+M52+P52+S52+V52+AB52) -> 36 | AI52: =PRODUCT(H52+K52+N52+Q52+T52+W52+AC52) -> 396 | AJ52: =PRODUCT(I52+L52+O52+R52+U52+X52+AD52) -> 6405 | AK52: =PRODUCT(AJ52/AI52) -> 16.2
B53: 1991 | C53: =PRODUCT(AH53) -> 36 | D53: =PRODUCT(AI53) -> 396 | E53: =PRODUCT(AJ53) -> 6842 | F53: =PRODUCT(E53/D53) -> 17.3 | G53: 12 | H53: 132 | I53: 2322 | J53: 12 | K53: 132 | L53: 2101 | P53: 12 | Q53: 132 | R53: 2419 | AH53: =PRODUCT(G53+J53+M53+P53+S53+V53+AB53) -> 36 | AI53: =PRODUCT(H53+K53+N53+Q53+T53+W53+AC53) -> 396 | AJ53: =PRODUCT(I53+L53+O53+R53+U53+X53+AD53) -> 6842 | AK53: =PRODUCT(AJ53/AI53) -> 17.3
B54: 1992 | C54: =PRODUCT(AH54) -> 36 | D54: =PRODUCT(AI54) -> 396 | E54: =PRODUCT(AJ54) -> 6535 | F54: =PRODUCT(E54/D54) -> 16.5 | G54: 12 | H54: 132 | I54: 2415 | J54: 12 | K54: 132 | L54: 2059 | P54: 12 | Q54: 132 | R54: 2061 | AH54: =PRODUCT(G54+J54+M54+P54+S54+V54+AB54) -> 36 | AI54: =PRODUCT(H54+K54+N54+Q54+T54+W54+AC54) -> 396 | AJ54: =PRODUCT(I54+L54+O54+R54+U54+X54+AD54) -> 6535 | AK54: =PRODUCT(AJ54/AI54) -> 16.5
B55: 1993 | C55: =PRODUCT(AH55) -> 36 | D55: =PRODUCT(AI55) -> 396 | E55: =PRODUCT(AJ55) -> 6836 | F55: =PRODUCT(E55/D55) -> 17.3 | G55: 12 | H55: 132 | I55: 2392 | J55: 12 | K55: 132 | L55: 2214 | P55: 12 | Q55: 132 | R55: 2230 | AH55: =PRODUCT(G55+J55+M55+P55+S55+V55+AB55) -> 36 | AI55: =PRODUCT(H55+K55+N55+Q55+T55+W55+AC55) -> 396 | AJ55: =PRODUCT(I55+L55+O55+R55+U55+X55+AD55) -> 6836 | AK55: =PRODUCT(AJ55/AI55) -> 17.3
B56: 1994 | C56: =PRODUCT(AH56) -> 36 | D56: =PRODUCT(AI56) -> 396 | E56: =PRODUCT(AJ56) -> 6823 | F56: =PRODUCT(E56/D56) -> 17.2 | G56: 12 | H56: 132 | I56: 2262 | J56: 12 | K56: 132 | L56: 2392 | P56: 12 | Q56: 132 | R56: 2169 | AH56: =PRODUCT(G56+J56+M56+P56+S56+V56+AB56) -> 36 | AI56: =PRODUCT(H56+K56+N56+Q56+T56+W56+AC56) -> 396 | AJ56: =PRODUCT(I56+L56+O56+R56+U56+X56+AD56) -> 6823 | AK56: =PRODUCT(AJ56/AI56) -> 17.2
B57: 1995 | C57: =PRODUCT(AH57) -> 36 | D57: =PRODUCT(AI57) -> 396 | E57: =PRODUCT(AJ57) -> 5720 | F57: =PRODUCT(E57/D57) -> 14.4 | G57: 12 | H57: 132 | I57: 1811 | J57: 12 | K57: 132 | L57: 1941 | P57: 12 | Q57: 132 | R57: 1968 | AH57: =PRODUCT(G57+J57+M57+P57+S57+V57+AB57) -> 36 | AI57: =PRODUCT(H57+K57+N57+Q57+T57+W57+AC57) -> 396 | AJ57: =PRODUCT(I57+L57+O57+R57+U57+X57+AD57) -> 5720 | AK57: =PRODUCT(AJ57/AI57) -> 14.4
B58: 1996 | C58: =PRODUCT(AH58) -> 35 | D58: =PRODUCT(AI58) -> 396 | E58: =PRODUCT(AJ58) -> 5808 | F58: =PRODUCT(E58/D58) -> 14.7 | G58: 12 | H58: 132 | I58: 1770 | J58: 12 | K58: 132 | L58: 2243 | P58: 11 | Q58: 132 | R58: 1795 | AH58: =PRODUCT(G58+J58+M58+P58+S58+V58+AB58) -> 35 | AI58: =PRODUCT(H58+K58+N58+Q58+T58+W58+AC58) -> 396 | AJ58: =PRODUCT(I58+L58+O58+R58+U58+X58+AD58) -> 5808 | AK58: =PRODUCT(AJ58/AI58) -> 14.7
B59: 1997 | C59: =PRODUCT(AH59) -> 34 | D59: =PRODUCT(AI59) -> 354 | E59: =PRODUCT(AJ59) -> 5300 | F59: =PRODUCT(E59/D59) -> 15.0 | G59: 10 | H59: 90 | I59: 1370 | J59: 12 | K59: 132 | L59: 1995 | P59: 12 | Q59: 132 | R59: 1935 | AH59: =PRODUCT(G59+J59+M59+P59+S59+V59+AB59) -> 34 | AI59: =PRODUCT(H59+K59+N59+Q59+T59+W59+AC59) -> 354 | AJ59: =PRODUCT(I59+L59+O59+R59+U59+X59+AD59) -> 5300 | AK59: =PRODUCT(AJ59/AI59) -> 15.0
B60: 1998 | C60: =PRODUCT(AH60) -> 36 | D60: =PRODUCT(AI60) -> 396 | E60: =PRODUCT(AJ60) -> 5830 | F60: =PRODUCT(E60/D60) -> 14.7 | G60: 12 | H60: 132 | I60: 1957 | J60: 12 | K60: 132 | L60: 1900 | P60: 12 | Q60: 132 | R60: 1973 | AH60: =PRODUCT(G60+J60+M60+P60+S60+V60+AB60) -> 36 | AI60: =PRODUCT(H60+K60+N60+Q60+T60+W60+AC60) -> 396 | AJ60: =PRODUCT(I60+L60+O60+R60+U60+X60+AD60) -> 5830 | AK60: =PRODUCT(AJ60/AI60) -> 14.7
B61: 1999 | C61: =PRODUCT(AH61) -> 40 | D61: =PRODUCT(AI61) -> 360 | E61: =PRODUCT(AJ61) -> 6171 | F61: =PRODUCT(E61/D61) -> 17.1 | G61: 10 | H61: 90 | I61: 1435 | J61: 10 | K61: 90 | L61: 1539 | M61: 10 | N61: 90 | O61: 1697 | P61: 10 | Q61: 90 | R61: 1500 | AH61: =PRODUCT(G61+J61+M61+P61+S61+V61+AB61) -> 40 | AI61: =PRODUCT(H61+K61+N61+Q61+T61+W61+AC61) -> 360 | AJ61: =PRODUCT(I61+L61+O61+R61+U61+X61+AD61) -> 6171 | AK61: =PRODUCT(AJ61/AI61) -> 17.1
B62: 2000 | C62: =PRODUCT(AH62) -> 40 | D62: =PRODUCT(AI62) -> 360 | E62: =PRODUCT(AJ62) -> 6391 | F62: =PRODUCT(E62/D62) -> 17.8 | G62: 10 | H62: 90 | I62: 1502 | J62: 10 | K62: 90 | L62: 1678 | M62: 10 | N62: 90 | O62: 1561 | P62: 10 | Q62: 90 | R62: 1650 | AH62: =PRODUCT(G62+J62+M62+P62+S62+V62+AB62) -> 40 | AI62: =PRODUCT(H62+K62+N62+Q62+T62+W62+AC62) -> 360 | AJ62: =PRODUCT(I62+L62+O62+R62+U62+X62+AD62) -> 6391 | AK62: =PRODUCT(AJ62/AI62) -> 17.8
B63: 2001 | C63: =PRODUCT(AH63) -> 40 | D63: =PRODUCT(AI63) -> 360 | E63: =PRODUCT(AJ63) -> 6258 | F63: =PRODUCT(E63/D63) -> 17.4 | G63: 10 | H63: 90 | I63: 1573 | J63: 10 | K63: 90 | L63: 1673 | M63: 10 | N63: 90 | O63: 1317 | P63: 10 | Q63: 90 | R63: 1695 | AH63: =PRODUCT(G63+J63+M63+P63+S63+V63+AB63) -> 40 | AI63: =PRODUCT(H63+K63+N63+Q63+T63+W63+AC63) -> 360 | AJ63: =PRODUCT(I63+L63+O63+R63+U63+X63+AD63) -> 6258 | AK63: =PRODUCT(AJ63/AI63) -> 17.4
B64: 2002 | C64: =PRODUCT(AH64) -> 40 | D64: =PRODUCT(AI64) -> 360 | E64: =PRODUCT(AJ64) -> 5837 | F64: =PRODUCT(E64/D64) -> 16.2 | G64: 10 | H64: 90 | I64: 1455 | J64: 10 | K64: 90 | L64: 1535 | M64: 10 | N64: 90 | O64: 1332 | P64: 10 | Q64: 90 | R64: 1515 | AH64: =PRODUCT(G64+J64+M64+P64+S64+V64+AB64) -> 40 | AI64: =PRODUCT(H64+K64+N64+Q64+T64+W64+AC64) -> 360 | AJ64: =PRODUCT(I64+L64+O64+R64+U64+X64+AD64) -> 5837 | AK64: =PRODUCT(AJ64/AI64) -> 16.2
B65: 2003 | C65: =PRODUCT(AH65) -> 38 | D65: =PRODUCT(AI65) -> 324 | E65: =PRODUCT(AJ65) -> 5372 | F65: =PRODUCT(E65/D65) -> 16.6 | G65: 10 | H65: 90 | I65: 1444 | J65: 9 | K65: 72 | L65: 1241 | M65: 10 | N65: 90 | O65: 1465 | P65: 9 | Q65: 72 | R65: 1222 | AH65: =PRODUCT(G65+J65+M65+P65+S65+V65+AB65) -> 38 | AI65: =PRODUCT(H65+K65+N65+Q65+T65+W65+AC65) -> 324 | AJ65: =PRODUCT(I65+L65+O65+R65+U65+X65+AD65) -> 5372 | AK65: =PRODUCT(AJ65/AI65) -> 16.6
B66: 2004 | C66: =PRODUCT(AH66) -> 37 | D66: =PRODUCT(AI66) -> 306 | E66: =PRODUCT(AJ66) -> 5276 | F66: =PRODUCT(E66/D66) -> 17.2 | G66: 9 | H66: 72 | I66: 1167 | J66: 9 | K66: 72 | L66: 1283 | M66: 9 | N66: 72 | O66: 1217 | P66: 10 | Q66: 90 | R66: 1609 | AH66: =PRODUCT(G66+J66+M66+P66+S66+V66+AB66) -> 37 | AI66: =PRODUCT(H66+K66+N66+Q66+T66+W66+AC66) -> 306 | AJ66: =PRODUCT(I66+L66+O66+R66+U66+X66+AD66) -> 5276 | AK66: =PRODUCT(AJ66/AI66) -> 17.2
B67: 2005 | C67: =PRODUCT(AH67) -> 39 | D67: =PRODUCT(AI67) -> 342 | E67: =PRODUCT(AJ67) -> 6148 | F67: =PRODUCT(E67/D67) -> 18.0 | G67: 10 | H67: 90 | I67: 1337 | J67: 10 | K67: 90 | L67: 1838 | M67: 9 | N67: 72 | O67: 1486 | P67: 10 | Q67: 90 | R67: 1487 | AH67: =PRODUCT(G67+J67+M67+P67+S67+V67+AB67) -> 39 | AI67: =PRODUCT(H67+K67+N67+Q67+T67+W67+AC67) -> 342 | AJ67: =PRODUCT(I67+L67+O67+R67+U67+X67+AD67) -> 6148 | AK67: =PRODUCT(AJ67/AI67) -> 18.0
B68: 2006 | C68: =PRODUCT(AH68) -> 39 | D68: =PRODUCT(AI68) -> 342 | E68: =PRODUCT(AJ68) -> 6375 | F68: =PRODUCT(E68/D68) -> 18.6 | G68: 10 | H68: 90 | I68: 1646 | J68: 10 | K68: 90 | L68: 1821 | M68: 9 | N68: 72 | O68: 1373 | P68: 10 | Q68: 90 | R68: 1535 | AH68: =PRODUCT(G68+J68+M68+P68+S68+V68+AB68) -> 39 | AI68: =PRODUCT(H68+K68+N68+Q68+T68+W68+AC68) -> 342 | AJ68: =PRODUCT(I68+L68+O68+R68+U68+X68+AD68) -> 6375 | AK68: =PRODUCT(AJ68/AI68) -> 18.6
B69: 2007 | C69: =PRODUCT(AH69) -> 38 | D69: =PRODUCT(AI69) -> 324 | E69: =PRODUCT(AJ69) -> 6654 | F69: =PRODUCT(E69/D69) -> 20.5 | G69: 10 | H69: 90 | I69: 1805 | J69: 9 | K69: 72 | L69: 1463 | M69: 9 | N69: 72 | O69: 1729 | P69: 10 | Q69: 90 | R69: 1657 | AH69: =PRODUCT(G69+J69+M69+P69+S69+V69+AB69) -> 38 | AI69: =PRODUCT(H69+K69+N69+Q69+T69+W69+AC69) -> 324 | AJ69: =PRODUCT(I69+L69+O69+R69+U69+X69+AD69) -> 6654 | AK69: =PRODUCT(AJ69/AI69) -> 20.5
B70: 2008 | C70: =PRODUCT(AH70) -> 34 | D70: =PRODUCT(AI70) -> 265 | E70: =PRODUCT(AJ70) -> 4325 | F70: =PRODUCT(E70/D70) -> 16.3 | G70: 8 | H70: 61 | I70: 950 | J70: 9 | K70: 72 | L70: 1204 | M70: 10 | N70: 90 | O70: 1428 | P70: 7 | Q70: 42 | R70: 743 | AH70: =PRODUCT(G70+J70+M70+P70+S70+V70+AB70) -> 34 | AI70: =PRODUCT(H70+K70+N70+Q70+T70+W70+AC70) -> 265 | AJ70: =PRODUCT(I70+L70+O70+R70+U70+X70+AD70) -> 4325 | AK70: =PRODUCT(AJ70/AI70) -> 16.3
B71: 2009 | C71: =PRODUCT(AH71) -> 37 | D71: =PRODUCT(AI71) -> 316 | E71: =PRODUCT(AJ71) -> 5743 | F71: =PRODUCT(E71/D71) -> 18.2 | G71: 10 | H71: 90 | I71: 1673 | J71: 10 | K71: 90 | L71: 1729 | M71: 8 | N71: 64 | O71: 1288 | P71: 9 | Q71: 72 | R71: 1053 | AH71: =PRODUCT(G71+J71+M71+P71+S71+V71+AB71) -> 37 | AI71: =PRODUCT(H71+K71+N71+Q71+T71+W71+AC71) -> 316 | AJ71: =PRODUCT(I71+L71+O71+R71+U71+X71+AD71) -> 5743 | AK71: =PRODUCT(AJ71/AI71) -> 18.2
B72: 2010 | C72: =PRODUCT(AH72) -> 38 | D72: =PRODUCT(AI72) -> 324 | E72: =PRODUCT(AJ72) -> 6055 | F72: =PRODUCT(E72/D72) -> 18.7 | G72: 9 | H72: 72 | I72: 1451 | J72: 10 | K72: 90 | L72: 1748 | M72: 9 | N72: 72 | O72: 1407 | P72: 10 | Q72: 90 | R72: 1449 | AH72: =PRODUCT(G72+J72+M72+P72+S72+V72+AB72) -> 38 | AI72: =PRODUCT(H72+K72+N72+Q72+T72+W72+AC72) -> 324 | AJ72: =PRODUCT(I72+L72+O72+R72+U72+X72+AD72) -> 6055 | AK72: =PRODUCT(AJ72/AI72) -> 18.7
B73: 2011 | C73: =PRODUCT(AH73) -> 39 | D73: =PRODUCT(AI73) -> 342 | E73: =PRODUCT(AJ73) -> 6925 | F73: =PRODUCT(E73/D73) -> 20.2 | G73: 9 | H73: 72 | I73: 1431 | J73: 10 | K73: 90 | L73: 1840 | M73: 10 | N73: 90 | O73: 1911 | P73: 10 | Q73: 90 | R73: 1743 | AH73: =PRODUCT(G73+J73+M73+P73+S73+V73+AB73) -> 39 | AI73: =PRODUCT(H73+K73+N73+Q73+T73+W73+AC73) -> 342 | AJ73: =PRODUCT(I73+L73+O73+R73+U73+X73+AD73) -> 6925 | AK73: =PRODUCT(AJ73/AI73) -> 20.2
B74: 2012 | C74: =PRODUCT(AH74) -> 38 | D74: 324 | E74: 6128 | F74: 18.9 | G74: 9 | H74: 72 | I74: 1384 | J74: 9 | K74: 72 | L74: 1446 | M74: 10 | N74: 90 | O74: 1826 | P74: 10 | Q74: 90 | R74: 1472 | AH74: =PRODUCT(G74+J74+M74+P74+S74+V74+AB74) -> 38 | AI74: =PRODUCT(H74+K74+N74+Q74+T74+W74+AC74) -> 324 | AJ74: =PRODUCT(I74+L74+O74+R74+U74+X74+AD74) -> 6128 | AK74: =PRODUCT(AJ74/AI74) -> 18.9
B75: 2013 | C75: =PRODUCT(AH75) -> 39 | D75: 344 | E75: 6916 | F75: 20.1 | G75: 9 | H75: 72 | I75: 1152 | J75: 11 | K75: 110 | L75: 2208 | M75: 9 | N75: 72 | O75: 1645 | P75: 10 | Q75: 90 | R75: 1911 | AH75: =PRODUCT(G75+J75+M75+P75+S75+V75+AB75) -> 39 | AI75: =PRODUCT(H75+K75+N75+Q75+T75+W75+AC75) -> 344 | AJ75: =PRODUCT(I75+L75+O75+R75+U75+X75+AD75) -> 6916 | AK75: =PRODUCT(AJ75/AI75) -> 20.1
B76: 2014 | C76: =PRODUCT(AH76) -> 38 | D76: 318 | E76: 6522 | F76: 20.5 | G76: 8 | H76: 64 | I76: 1102 | J76: 11 | K76: 110 | L76: 2178 | M76: 10 | N76: 90 | O76: 1894 | P76: 9 | Q76: 72 | R76: 1348 | AH76: =PRODUCT(G76+J76+M76+P76+S76+V76+AB76) -> 38 | AI76: =PRODUCT(H76+K76+N76+Q76+T76+W76+AC76) -> 336 | AJ76: =PRODUCT(I76+L76+O76+R76+U76+X76+AD76) -> 6522 | AK76: =PRODUCT(AJ76/AI76) -> 19.4
B77: 2015 | C77: =PRODUCT(AH77) -> 38 | D77: 324 | E77: 5883 | F77: 18.2 | G77: 9 | H77: 72 | I77: 1355 | J77: 9 | K77: 72 | L77: 1355 | M77: 10 | N77: 90 | O77: 1563 | P77: 10 | Q77: 90 | R77: 1610 | AH77: =PRODUCT(G77+J77+M77+P77+S77+V77+AB77) -> 38 | AI77: =PRODUCT(H77+K77+N77+Q77+T77+W77+AC77) -> 324 | AJ77: =PRODUCT(I77+L77+O77+R77+U77+X77+AD77) -> 5883 | AK77: =PRODUCT(AJ77/AI77) -> 18.2
B78: 2016 | C78: =PRODUCT(AH78) -> 36 | D78: 298 | E78: 5777 | F78: 19.4 | G78: 8 | H78: 64 | I78: 1280 | J78: 9 | K78: 72 | L78: 1403 | M78: 9 | N78: 72 | O78: 1432 | P78: 10 | Q78: 90 | R78: 1662 | AH78: =PRODUCT(G78+J78+M78+P78+S78+V78+AB78) -> 36 | AI78: =PRODUCT(H78+K78+N78+Q78+T78+W78+AC78) -> 298 | AJ78: =PRODUCT(I78+L78+O78+R78+U78+X78+AD78) -> 5777 | AK78: =PRODUCT(AJ78/AI78) -> 19.4
B79: 2017 | C79: =PRODUCT(AH79) -> 33 | D79: 264 | E79: 5169 | F79: 19.6 | G79: 8 | H79: 64 | I79: 1374 | J79: 8 | K79: 64 | L79: 1068 | M79: 8 | N79: 64 | O79: 1325 | P79: 9 | Q79: 72 | R79: 1402 | AH79: =PRODUCT(G79+J79+M79+P79+S79+V79+AB79) -> 33 | AI79: =PRODUCT(H79+K79+N79+Q79+T79+W79+AC79) -> 264 | AJ79: =PRODUCT(I79+L79+O79+R79+U79+X79+AD79) -> 5169 | AK79: =PRODUCT(AJ79/AI79) -> 19.6
B80: 2018 | C80: =PRODUCT(AH80) -> 34 | D80: 256 | E80: 5755 | F80: 22.5 | G80: 8 | H80: 56 | I80: 980 | J80: 9 | K80: 72 | L80: 1726 | M80: 8 | N80: 56 | O80: 1255 | P80: 9 | Q80: 72 | R80: 1794 | AH80: =PRODUCT(G80+J80+M80+P80+S80+V80+AB80) -> 34 | AI80: =PRODUCT(H80+K80+N80+Q80+T80+W80+AC80) -> 256 | AJ80: =PRODUCT(I80+L80+O80+R80+U80+X80+AD80) -> 5755 | AK80: =PRODUCT(AJ80/AI80) -> 22.5
B81: 2019 | C81: =PRODUCT(AH81) -> 33 | D81: 264 | E81: 5757 | F81: 21.8 | G81: 8 | H81: 64 | I81: 1398 | J81: 8 | K81: 64 | L81: 1454 | M81: 8 | N81: 64 | O81: 1364 | P81: 9 | Q81: 72 | R81: 1541 | AH81: =PRODUCT(G81+J81+M81+P81+S81+V81+AB81) -> 33 | AI81: =PRODUCT(H81+K81+N81+Q81+T81+W81+AC81) -> 264 | AJ81: =PRODUCT(I81+L81+O81+R81+U81+X81+AD81) -> 5757 | AK81: =PRODUCT(AJ81/AI81) -> 21.8
B82: 2020 | C82: =PRODUCT(AH82) -> 36 | D82: 155 | E82: 2779 | F82: 17.9 | G82: 8 | H82: 32 | I82: 599 | J82: 9 | K82: 36 | L82: 659 | M82: 11 | N82: 55 | O82: 998 | P82: 8 | Q82: 32 | R82: 523 | AH82: =PRODUCT(G82+J82+M82+P82+S82+V82+AB82) -> 36 | AI82: =PRODUCT(H82+K82+N82+Q82+T82+W82+AC82) -> 155 | AJ82: =PRODUCT(I82+L82+O82+R82+U82+X82+AD82) -> 2779 | AK82: =PRODUCT(AJ82/AI82) -> 17.9
B83: 2021 | C83: =PRODUCT(AH83) -> 37 | D83: 297 | E83: 6174 | F83: 20.8 | G83: 8 | H83: 50 | I83: 1088 | J83: 9 | K83: 71 | L83: 1554 | M83: 10 | N83: 86 | O83: 1822 | P83: 10 | Q83: 90 | R83: 1710 | AH83: =PRODUCT(G83+J83+M83+P83+S83+V83+AB83) -> 37 | AI83: =PRODUCT(H83+K83+N83+Q83+T83+W83+AC83) -> 297 | AJ83: =PRODUCT(I83+L83+O83+R83+U83+X83+AD83) -> 6174 | AK83: =PRODUCT(AJ83/AI83) -> 20.8
B84: 2022 | C84: =PRODUCT(AH84) -> 36 | D84: 299 | E84: 5390 | F84: 18.0 | G84: 8 | H84: 56 | I84: 976 | J84: 8 | K84: 63 | L84: 1118 | M84: 10 | N84: 90 | O84: 1671 | P84: 10 | Q84: 90 | R84: 1625 | AH84: =PRODUCT(G84+J84+M84+P84+S84+V84+AB84) -> 36 | AI84: =PRODUCT(H84+K84+N84+Q84+T84+W84+AC84) -> 299 | AJ84: =PRODUCT(I84+L84+O84+R84+U84+X84+AD84) -> 5390 | AK84: =PRODUCT(AJ84/AI84) -> 18.0
B85: 2023 | C85: =PRODUCT(AH85) -> 34 | D85: 265 | E85: 5048 | F85: 19.0 | G85: 7 | H85: 49 | I85: 984 | J85: 9 | K85: 72 | L85: 1301 | M85: 9 | N85: 72 | O85: 1214 | P85: 9 | Q85: 72 | R85: 1549 | AH85: =PRODUCT(G85+J85+M85+P85+S85+V85+AB85) -> 34 | AI85: =PRODUCT(H85+K85+N85+Q85+T85+W85+AC85) -> 265 | AJ85: =PRODUCT(I85+L85+O85+R85+U85+X85+AD85) -> 5048 | AK85: =PRODUCT(AJ85/AI85) -> 19.0
B86: 2024 | C86: 37 | D86: 321 | E86: 6535 | F86: 20.4 | G86: 7 | H86: 49 | I86: 1008 | J86: 9 | K86: 72 | L86: 1425 | M86: 11 | N86: 110 | O86: 2269 | P86: 10 | Q86: 90 | R86: 1833 | AH86: 37 | AI86: 321 | AJ86: 6535 | AK86: 20.4
B87: 2025 | C87: =PRODUCT(AH87) -> 36 | D87: =PRODUCT(AI87) -> 290 | E87: =PRODUCT(AJ87) -> 5121 | F87: =PRODUCT(E87/D87) -> 17.7 | G87: 8 | H87: 56 | I87: 1089 | J87: 9 | K87: 72 | L87: 1164 | M87: 10 | N87: 90 | O87: 1609 | P87: 9 | Q87: 72 | R87: 1259 | AH87: =PRODUCT(G87+J87+M87+P87+S87+V87+AB87) -> 36 | AI87: =PRODUCT(H87+K87+N87+Q87+T87+W87+AC87) -> 290 | AJ87: =PRODUCT(I87+L87+O87+R87+U87+X87+AD87) -> 5121 | AK87: =PRODUCT(AJ87/AI87) -> 17.7
B88: =COUNT(B7:B87) -> 81 | C88: =PRODUCT(AH88) -> 3113 | D88: =PRODUCT(AI88) -> 23505 | E88: =PRODUCT(AJ88) -> 397292 | F88: =PRODUCT(AK88) -> 16.9 | G88: =SUM(G7:G87) -> 811 | H88: =SUM(H7:H87) -> 6311 | I88: =SUM(I7:I87) -> 106492 | J88: =SUM(J7:J87) -> 831 | K88: =SUM(K7:K87) -> 6589 | L88: =SUM(L7:L87) -> 109810 | M88: =SUM(M7:M87) -> 603 | N88: =SUM(N7:N87) -> 4463 | O88: =SUM(O7:O87) -> 78762 | P88: =SUM(P7:P87) -> 687 | Q88: =SUM(Q7:Q87) -> 5325 | R88: =SUM(R7:R87) -> 90053 | S88: =SUM(S7:S87) -> 83 | T88: =SUM(T7:T87) -> 396 | U88: =SUM(U7:U87) -> 6404 | V88: =SUM(V7:V87) -> 23 | W88: =SUM(W7:W87) -> 56 | X88: =SUM(X7:X87) -> 720 | Y88: =SUM(Y7:Y87) -> 66 | Z88: =SUM(Z7:Z87) -> 281 | AA88: =SUM(AA7:AA87) -> 4180 | AB88: =SUM(AB7:AB87) -> 75 | AC88: =SUM(AC7:AC87) -> 365 | AD88: =SUM(AD7:AD87) -> 5051 | AE88: =SUM(AE7:AE87) -> 42 | AF88: =SUM(AF7:AF87) -> 107 | AG88: =SUM(AG7:AG87) -> 1580 | AH88: =PRODUCT(G88+J88+M88+P88+S88+V88+AB88) -> 3113 | AI88: =PRODUCT(H88+K88+N88+Q88+T88+W88+AC88) -> 23505 | AJ88: =PRODUCT(I88+L88+O88+R88+U88+X88+AD88) -> 397292 | AK88: =PRODUCT(AJ88/AI88) -> 16.9
C89: KAIKKI LOHKOT | G89: ITÄLOHKO | J89: LÄNSILOHKO | M89: ETELÄLOHKO | P89: POHJOISLOHKO | S89: KAAKKOISLOHKO | V89: KOILLISLOHKO | Y89: SISÄ-SUOMI | AB89: LOUNAISLOHKO | AE89: LAPIN LOHKO | AI89: =PRODUCT(H89+K89+N89+Q89+T89+W89+AC89) -> 0 | AJ89: =PRODUCT(I89+L89+O89+R89+U89+X89+AD89) -> 0 | AK89: =PRODUCT(AJ89/AI89) -> 
B91: NOUSUKARSINNAT | H91: PUTOAMISKARSINNAT
B92: UUSINTAOTTELUT | H92: UUSINTAOTTELUT
B94: VUOSI | C94: JOUK | D94: OTT | E94: JUOK | F94: KA | H94: JOUK | I94: OTT | J94: JUOK | K94: KA
B95: 1945 | C95: 9 | D95: 11 | E95: 160 | F95: =PRODUCT(E95/D95) -> 14.5
B96: 1946 | C96: 8 | D96: 18 | E96: 220 | F96: =PRODUCT(E96/D96) -> 12.2
B97: 1947 | C97: 9 | D97: 13 | E97: 226 | F97: =PRODUCT(E97/D97) -> 17.4
B98: 1948 | C98: 5 | D98: 12 | E98: 193 | F98: =PRODUCT(E98/D98) -> 16.1
B99: 1949 | C99: 10 | D99: 21 | E99: 261 | F99: =PRODUCT(E99/D99) -> 12.4
B100: 1950 | C100: 11 | D100: 24 | E100: 291 | F100: =PRODUCT(E100/D100) -> 12.1
B101: 1951 | C101: 10 | D101: 24 | E101: 253 | F101: =PRODUCT(E101/D101) -> 10.5
B102: 1952 | C102: 10 | D102: 24 | E102: 272 | F102: =PRODUCT(E102/D102) -> 11.3
B103: 1953 | C103: 10 | D103: 21 | E103: 186 | F103: =PRODUCT(E103/D103) -> 8.9
B104: 1954 | C104: 10 | D104: 21 | E104: 232 | F104: =PRODUCT(E104/D104) -> 11.0
B105: 1955 | C105: 8 | D105: 18 | E105: 167 | F105: =PRODUCT(E105/D105) -> 9.3 | H105: 8
B106: 1961 | C106: 2 | D106: 1 | E106: 8 | F106: =PRODUCT(E106/D106) -> 8.0
B107: 1967 | C107: 2 | D107: 1 | E107: 19 | F107: =PRODUCT(E107/D107) -> 19.0
B108: 1968 | C108: 2 | D108: 1 | E108: 14 | F108: =PRODUCT(E108/D108) -> 14.0
B109: 1973 | C109: 2 | D109: 1 | E109: 7 | F109: =PRODUCT(E109/D109) -> 7.0
B110: 1980 | C110: 2 | D110: 1 | E110: 8 | F110: =PRODUCT(E110/D110) -> 8.0
B111: 1989 | H111: 3 | I111: 3 | J111: 69 | K111: =PRODUCT(J111/I111) -> 23.0
B112: 1991 | C112: 3 | D112: 3 | E112: 53 | F112: =PRODUCT(E112/D112) -> 17.7
B113: 1994 | C113: 12 | D113: 24 | E113: 401 | F113: =PRODUCT(E113/D113) -> 16.7 | H113: 12 | I113: 15 | J113: 207 | K113: =PRODUCT(J113/I113) -> 13.8
B114: 1995 | C114: 12 | D114: 21 | E114: 243 | F114: =PRODUCT(E114/D114) -> 11.6 | H114: 12 | I114: 14 | J114: 169 | K114: =PRODUCT(J114/I114) -> 12.1
B115: 1996 | C115: 12 | D115: 21 | E115: 329 | F115: =PRODUCT(E115/D115) -> 15.7 | H115: 12 | I115: 13 | J115: 234 | K115: =PRODUCT(J115/I115) -> 18.0
B116: 1997 | C116: 12 | D116: 21 | E116: 245 | F116: =PRODUCT(E116/D116) -> 11.7 | H116: 10 | I116: 11 | J116: 136 | K116: =PRODUCT(J116/I116) -> 12.4
B117: 1998 | C117: 12 | D117: 20 | E117: 232 | F117: =PRODUCT(E117/D117) -> 11.6 | H117: 3 | I117: 3 | J117: 49 | K117: =PRODUCT(J117/I117) -> 16.3
B118: 1999 | C118: 4 | D118: 6 | E118: 59 | F118: =PRODUCT(E118/D118) -> 9.8
B119: 2000 | C119: 16 | D119: 37 | E119: 517 | F119: =PRODUCT(E119/D119) -> 14.0
B120: 2001 | C120: 16 | D120: 38 | E120: 581 | F120: =PRODUCT(E120/D120) -> 15.3
B121: 2002 | C121: 16 | D121: 27 | E121: 395 | F121: =PRODUCT(E121/D121) -> 14.6
B122: 2003 | C122: 16 | D122: 28 | E122: 392 | F122: =PRODUCT(E122/D122) -> 14.0
B123: 2004 | C123: 16 | D123: 27 | E123: 444 | F123: =PRODUCT(E123/D123) -> 16.4
B124: 2005 | C124: 8 | D124: 12 | E124: 178 | F124: =PRODUCT(E124/D124) -> 14.8
B125: 2006 | C125: 16 | D125: 34 | E125: 579 | F125: =PRODUCT(E125/D125) -> 17.0
B126: 2007 | C126: 16 | D126: 34 | E126: 588 | F126: =PRODUCT(E126/D126) -> 17.3
B127: 2008 | C127: 16 | D127: 31 | E127: 379 | F127: =PRODUCT(E127/D127) -> 12.2
B128: 2009 | C128: 16 | D128: 29 | E128: 451 | F128: =PRODUCT(E128/D128) -> 15.6 | H128: 1 | I128: 1 | J128: 16 | K128: =PRODUCT(J128/I128) -> 16.0
B129: 2010 | C129: 16 | D129: 29 | E129: 439 | F129: =PRODUCT(E129/D129) -> 15.1
B130: 2011 | C130: 16 | D130: 29 | E130: 479 | F130: =PRODUCT(E130/D130) -> 16.5 | H130: 4 | I130: 4 | J130: 61 | K130: =PRODUCT(J130/I130) -> 15.3
B131: 2012 | C131: 16 | D131: 38 | E131: 576 | F131: 15.2
B132: 2013 | C132: 16 | D132: 31 | E132: 464 | F132: 15.0
B133: 2014 | C133: 16 | D133: 33 | E133: 583 | F133: 17.7
B134: 2015 | C134: 16 | D134: 36 | E134: 627 | F134: =PRODUCT(E134/D134) -> 17.4
B135: 2016 | C135: 16 | D135: 33 | E135: 581 | F135: 17.6
B136: 2017 | C136: 16 | D136: 33 | E136: 603 | F136: 18.3
B137: 2018 | C137: 16 | D137: 34 | E137: 707 | F137: 20.8
B138: 2019 | C138: 16 | D138: 31 | E138: 520 | F138: 16.8
B139: 2020 | C139: 8 | D139: 12 | E139: 217 | F139: 18.1
B140: 2021 | C140: 13 | D140: 25 | E140: 354 | F140: 14.2
B141: 2022 | C141: 16 | D141: 33 | E141: 483 | F141: 14.6
B142: 2023 | C142: 16 | D142: 32 | E142: 523 | F142: 16.3
B143: 2024 | C143: 16 | D143: 27 | E143: 478 | F143: 17.7
B144: 2025 | C144: 16 | D144: 33 | E144: 459 | F144: 13.9
B145: =COUNT(B95:B144) -> 50 | C145: =SUM(C95:C144) -> 574 | D145: =SUM(D95:D144) -> 1114 | E145: =SUM(E95:E144) -> 16676 | F145: =PRODUCT(E145/D145) -> 15.0 | H145: =SUM(H95:H144) -> 65 | I145: =SUM(I95:I144) -> 64 | J145: =SUM(J95:J144) -> 941 | K145: =PRODUCT(J145/I145) -> 14.7
B148: YLEISÖMÄÄRÄT
B149: VUOSI | C149: OTT | D149: YHT | E149: KA
B150: 1945 | C150: 125 | E150: =PRODUCT(D150/C150) -> 0
B151: 1946 | C151: 147 | E151: =PRODUCT(D151/C151) -> 0
B152: 1947 | C152: 131 | E152: =PRODUCT(D152/C152) -> 0
B153: 1948 | C153: 158 | E153: =PRODUCT(D153/C153) -> 0
B154: 1949 | C154: 318 | E154: =PRODUCT(D154/C154) -> 0
B155: 1950 | C155: 306 | E155: =PRODUCT(D155/C155) -> 0
B156: 1951 | C156: 306 | E156: =PRODUCT(D156/C156) -> 0
B157: 1952 | C157: 279 | E157: =PRODUCT(D157/C157) -> 0
B158: 1953 | C158: 294 | E158: =PRODUCT(D158/C158) -> 0
B159: 1954 | C159: 294 | E159: =PRODUCT(D159/C159) -> 0
B160: 1955 | C160: 279 | E160: =PRODUCT(D160/C160) -> 0
B161: 1956 | C161: 193 | E161: =PRODUCT(D161/C161) -> 0
B162: 1957 | C162: 193 | E162: =PRODUCT(D162/C162) -> 0
B163: 1958 | C163: 201 | E163: =PRODUCT(D163/C163) -> 0
B164: 1959 | C164: 191 | E164: =PRODUCT(D164/C164) -> 0
B165: 1960 | C165: 220 | E165: =PRODUCT(D165/C165) -> 0
B166: 1961 | C166: 221 | E166: =PRODUCT(D166/C166) -> 0
B167: 1962 | C167: 220 | E167: =PRODUCT(D167/C167) -> 0
B168: 1963 | C168: 210 | E168: =PRODUCT(D168/C168) -> 0
B169: 1964 | C169: 312 | E169: =PRODUCT(D169/C169) -> 0
B170: 1965 | C170: 312 | E170: =PRODUCT(D170/C170) -> 0
B171: 1966 | C171: 312 | E171: =PRODUCT(D171/C171) -> 0
B172: 1967 | C172: 218 | E172: =PRODUCT(D172/C172) -> 0
B173: 1968 | C173: 235 | E173: =PRODUCT(D173/C173) -> 0
B174: 1969 | C174: 270 | E174: =PRODUCT(D174/C174) -> 0
B175: 1970 | C175: 270 | E175: =PRODUCT(D175/C175) -> 0
B176: 1971 | C176: 270 | E176: =PRODUCT(D176/C176) -> 0
B177: 1972 | C177: 270 | E177: =PRODUCT(D177/C177) -> 0
B178: 1973 | C178: 271 | E178: =PRODUCT(D178/C178) -> 0
B179: 1974 | C179: 270 | E179: =PRODUCT(D179/C179) -> 0
B180: 1975 | C180: 270 | E180: =PRODUCT(D180/C180) -> 0
B181: 1976 | C181: 270 | E181: =PRODUCT(D181/C181) -> 0
B182: 1977 | C182: 270 | E182: =PRODUCT(D182/C182) -> 0
B183: 1978 | C183: 270 | E183: =PRODUCT(D183/C183) -> 0
B184: 1979 | C184: 270 | E184: =PRODUCT(D184/C184) -> 0
B185: 1980 | C185: 271 | E185: =PRODUCT(D185/C185) -> 0
B186: 1981 | C186: 270 | E186: =PRODUCT(D186/C186) -> 0
B187: 1982 | C187: 270 | E187: =PRODUCT(D187/C187) -> 0
B188: 1983 | C188: 270 | E188: =PRODUCT(D188/C188) -> 0
B189: 1984 | C189: 270 | E189: =PRODUCT(D189/C189) -> 0
B190: 1985 | C190: 270 | D190: 53916 | E190: =PRODUCT(D190/C190) -> 200
B191: 1986 | C191: 396 | D191: 63658 | E191: =PRODUCT(D191/C191) -> 161
B192: 1987 | C192: 396 | D192: 71829 | E192: =PRODUCT(D192/C192) -> 181
B193: 1988 | C193: 396 | D193: 73445 | E193: =PRODUCT(D193/C193) -> 185
B194: 1989 | C194: 399 | E194: =PRODUCT(D194/C194) -> 0
B195: 1990 | C195: 396 | E195: =PRODUCT(D195/C195) -> 0
B196: 1991 | C196: 399 | E196: =PRODUCT(D196/C196) -> 0
B197: 1992 | C197: 396 | E197: =PRODUCT(D197/C197) -> 0
B198: 1993 | C198: 396 | E198: =PRODUCT(D198/C198) -> 0
B199: 1994 | C199: 435 | E199: =PRODUCT(D199/C199) -> 0
B200: 1995 | C200: 431 | E200: =PRODUCT(D200/C200) -> 0
B201: 1996 | C201: 430 | E201: =PRODUCT(D201/C201) -> 0
B202: 1997 | C202: 386 | E202: =PRODUCT(D202/C202) -> 0
B203: 1998 | C203: 419 | E203: =PRODUCT(D203/C203) -> 0
B204: 1999 | C204: 366 | E204: =PRODUCT(D204/C204) -> 0
B205: 2000 | C205: 397 | E205: =PRODUCT(D205/C205) -> 0
B206: 2001 | C206: 398 | D206: 51542 | E206: =PRODUCT(D206/C206) -> 130
... 25 more rows

Sheet 1945-1955
B1: SUOMENSARJA 1945 - 1955 | V1: PELAAJAT
B2: Vuosina 1945-1955 pelattiin runkosarjojen jälkeen moniosaisia nousumarkkinoita.
B3: Vinolla merkityt joukkueet putosivat suomensarjasta.
B5: KAAKKOISLOHKO 1945 | C5: O | D5: V | E5: T | F5: H | G5: TJ | H5: - | I5: AJ | J5: PIST | O5: SUOMI-SARJAN POHJOINEN ITÄSARJA | V5: Jyväskylän Kiri | W5: Pieksämäen Palloilijat | X5: Savonlinnan Riento | Y5: Kuopion Kopparit | Z5: Mikkelin Ajo | AA5: Siilinjärven Ponnistus | AB5: Warkauden Urheilijat
A6: 1 | B6: Jyväskylän Kiri | C6: 6 | D6: 6 | E6: 0 | F6: 0 | G6: 56 | H6: - | I6: 18 | J6: 12 | K6: su | L6: 22 | M6: 7 | N6: 1945 | O6: Kuopion Kopparit | P6: - | Q6: Jyväskylän Kiri | R6: 1 | S6: - | T6: 13 | V6: Yrjö Korhonen | W6: Jouko Pessa | X6: Aulis Käyhkö | Y6: Veikko Häyhä | Z6: X Hakola | AA6: Väinö Heikkinen | AB6: X Laukkanen
A7: 2 | B7: Pieksämäen Palloilijat | C7: 6 | D7: 5 | E7: 0 | F7: 1 | G7: 68 | H7: - | I7: 31 | J7: 10 | K7: su | L7: 22 | M7: 7 | N7: 1945 | O7: Mikkelin Ajo | P7: - | Q7: Pieksämäen Palloilijat | R7: 4 | S7: - | T7: 31 | V7: Paavo Koivisto | W7: Arvo Mikkonen | X7: Paavo Hukkanen | Y7: Viljo Jokinen | Z7: X Hyötyläinen | AA7: Pekka Hämäläinen | AB7: X Asikainen
A8: 3 | B8: Savonlinnan Riento | C8: 6 | D8: 3 | E8: 0 | F8: 3 | G8: 35 | H8: - | I8: 35 | J8: 6 | K8: su | L8: 29 | M8: 7 | N8: 1945 | O8: Jyväskylän Kiri | P8: - | Q8: Siilinjärven Ponnistus | R8: 10 | S8: - | T8: 0 | U8: 300 | V8: Erkki Immonen | W8: Jaakko Vauhkonen | X8: Toivo Turunen | Y8: Jorma Tapanainen | Z8: X Uosukainen | AA8: Pentti Lappeteläinen | AB8: X Laitinen
A9: 4 | B9: Kuopion Kopparit | C9: 6 | D9: 3 | E9: 0 | F9: 3 | G9: 30 | H9: - | I9: 34 | J9: 6 | K9: su | L9: 29 | M9: 7 | N9: 1945 | O9: Pieksämäen Palloilijat | P9: - | Q9: Kuopion Kopparit | R9: 7 | S9: - | T9: 3 | V9: Yrjö Reiko | W9: Jukka Puusaari | X9: Tuomas Glad | Y9: Paavo Lajunen | Z9: X Särkkä | AA9: Erkki Holopainen | AB9: X Toivanen
A10: 5 | B10: Mikkelin Ajo | C10: 6 | D10: 3 | E10: 0 | F10: 3 | G10: 46 | H10: - | I10: 62 | J10: 6 | K10: su | L10: 29 | M10: 7 | N10: 1945 | O10: Warkauden Urheilijat | P10: - | Q10: Mikkelin Ajo | R10: 7 | S10: - | T10: 10 | V10: Jouko Holopainen | W10: Tauno Suominen | X10: Einari Wennevirta | Y10: Kalevi Rissanen | Z10: X Väisänen | AA10: Väinö Paldanius | AB10: X Kuokkanen
A11: 6 | B11: Siilinjärven Ponnistus | C11: 6 | D11: 1 | E11: 0 | F11: 5 | G11: 32 | H11: - | I11: 66 | J11: 2 | K11: ke | L11: 1 | M11: 8 | N11: 1945 | O11: Savonlinnan Riento | P11: - | Q11: Warkauden Urheilijat | R11: 9 | S11: - | T11: 3 | V11: Heikki Viljanen | W11: Veikko Poikola | X11: Oiva Porvali | Y11: Martti Utriainen | Z11: Martti Hakola | AA11: Erkki Krogerus | AB11: X Viinikainen
A12: 7 | B12: Warkauden Urheilijat | C12: 6 | D12: 0 | E12: 0 | F12: 6 | G12: 23 | H12: - | I12: 44 | J12: 0 | K12: su | L12: 5 | M12: 8 | N12: 1945 | O12: Mikkelin Ajo | P12: - | Q12: Jyväskylän Kiri | R12: 6 | S12: - | T12: 12 | U12: 400 | V12: Niilo Räisänen | W12: Kauko Halonen | X12: X Mattila | Y12: Aito Kolsi | AA12: Jouko Tuhkanen | AB12: X Reponen
D13: =SUM(D6:D12) -> 21 | E13: =SUM(E6:E12) -> 0 | F13: =SUM(F6:F12) -> 21 | G13: =SUM(G6:G12) -> 290 | H13: - | I13: =SUM(I6:I12) -> 290 | J13: =SUM(J6:J12) -> 42 | K13: su | L13: 5 | M13: 8 | N13: 1945 | O13: Pieksämäen Palloilijat | P13: - | Q13: Savonlinnan Riento | R13: 8 | S13: - | T13: 4 | V13: Olli Fredrikson | W13: Erkki Vanhanen | X13: Otto Mustasalo | Y13: Eino Heikkinen | AA13: Osmo Hentunen
K14: su | L14: 5 | M14: 8 | N14: 1945 | O14: Siilinjärven Ponnistus | P14: - | Q14: Warkauden Urheilijat | R14: 11 | S14: - | T14: 4 | V14: Viljo Pyykkö | W14: Siinto Heltimoinen | X14: Pekka Mustasalo | Y14: Ville Kinnaslampi | AA14: Jorma Karvonen
B15: Jyväskylän Kiri mestaruussarjan karsintojen ykkösmarkkinoille | K15: su | L15: 12 | M15: 8 | N15: 1945 | O15: Jyväskylän Kiri | P15: - | Q15: Savonlinnan Riento | R15: 9 | S15: - | T15: 5 | V15: Eero Koivisto | W15: Erkki Ollikainen | Y15: Toivo Hirvinen
B16: Pieksämäen Palloilijat mestaruussarjan karsintojen kakkosmarkkinoille | K16: su | L16: 12 | M16: 8 | N16: 1945 | O16: Kuopion Kopparit | P16: - | Q16: Mikkelin Ajo | R16: 2 | S16: - | T16: 6 | U16: 300 | V16: Mustonen | Y16: Vesa Laakkonen
K17: su | L17: 12 | M17: 8 | N17: 1945 | O17: Siilinjärven Ponnistus | P17: - | Q17: Pieksämäen Palloilijat | R17: 9 | S17: - | T17: 15 | V17: P Holopainen | Y17: Väinö Suvioja
K18: su | L18: 19 | M18: 8 | N18: 1945 | O18: Pieksämäen Palloilijat | P18: - | Q18: Jyväskylän Kiri | R18: 3 | S18: - | T18: 8 | V18: X Ranta | Y18: Tapani Hietanen
K19: su | L19: 19 | M19: 8 | N19: 1945 | O19: Savonlinnan Riento | P19: - | Q19: Siilinjärven Ponnistus | R19: 9 | S19: - | T19: 5 | V19: Tuovinen
K20: su | L20: 19 | M20: 8 | N20: 1945 | O20: Warkauden Urheilijat | P20: - | Q20: Kuopion Kopparit | R20: 3 | S20: - | T20: 6
K21: su | L21: 26 | M21: 8 | N21: 1945 | O21: Jyväskylän Kiri | P21: - | Q21: Warkauden Urheilijat | R21: 4 | S21: - | T21: 3
K22: su | L22: 26 | M22: 8 | N22: 1945 | O22: Kuopion Kopparit | P22: - | Q22: Savonlinnan Riento | R22: 7 | S22: - | T22: 2 | U22: 80
K23: su | L23: 26 | M23: 8 | N23: 1945 | O23: Mikkelin Ajo | P23: - | Q23: Siilinjärven Ponnistus | R23: 17 | S23: - | T23: 4
K24: su | L24: 2 | M24: 9 | N24: 1945 | O24: Savonlinnan Riento | P24: - | Q24: Mikkelin Ajo | R24: 6 | S24: - | T24: 3
K25: su | L25: 2 | M25: 9 | N25: 1945 | O25: Siilinjärven Ponnistus | P25: - | Q25: Kuopion Kopparit | R25: 3 | S25: - | T25: 11
K26: su | L26: 2 | M26: 9 | N26: 1945 | O26: Warkauden Urheilijat | P26: - | Q26: Pieksämäen Palloilijat | R26: 3 | S26: - | T26: 4
Q27: Yhteensä | R27: =SUM(R6:R26) -> 138 | S27: - | T27: =SUM(T6:T26) -> 152
M28: =COUNT(R6:R26) -> 21 | Q28: Keskiarvo | R28: =PRODUCT(R27/M28) -> 6.6 | S28: - | T28: =PRODUCT(T27/M28) -> 7.2
B30: POHJOISLOHKO 1945 | C30: O | D30: V | E30: T | F30: H | G30: TJ | H30: - | I30: AJ | J30: PIST | O30: SUOMI-SARJAN POHJOISSARJA | V30: Seinäjoen Maila-Jussit | W30: Alajärven Ankkurit | X30: Paavolan Kisa | Y30: Ylihärmän Junkkarit | Z30: Ilmajoen Kisailijat | AA30: Kauhajoen Karhu | AB30: Oulun Pyrintö | AC30: Ylistaron Kilpa-Veljet | AD30: Vaasan Maila
A31: 1 | B31: Seinäjoen Maila-Jussit | C31: 8 | D31: 8 | E31: 0 | F31: 0 | G31: 65 | H31: - | I31: 16 | J31: 16 | K31: su | L31: 15 | M31: 7 | N31: 1945 | O31: Ylihärmän Junkkarit | P31: - | Q31: Ylistaron Kilpa-Veljet | R31: 8 | S31: - | T31: 3 | V31: Yrjö Antila | W31: Juhani Peltomäki | X31: Kalevi Vähämaa | Y31: Mikko Panula | Z31: K Arvas | AA31: Olavi Rautakoura | AB31: Aarno Mustonen | AC31: M Nyrhinen | AD31: Saulus Ojajärvi
A32: 2 | B32: Alajärven Ankkurit | C32: 8 | D32: 6 | E32: 1 | F32: 1 | G32: 62 | H32: - | I32: 22 | J32: 13 | K32: la | L32: 21 | M32: 7 | N32: 1945 | O32: Paavolan Kisa | P32: - | Q32: Vaasan Maila | R32: 11 | S32: - | T32: 3 | V32: Pentti Harju | W32: Juha Bergroth | X32: Antti Leinonen | Y32: Lauri Kurki | Z32: Matti Fossi | AA32: S Kujanpää | AB32: O Sko | AC32: M Koivusalo | AD32: X Salmi
A33: 3 | B33: Paavolan Kisa | C33: 8 | D33: 4 | E33: 1 | F33: 3 | G33: 46 | H33: - | I33: 35 | J33: 9 | K33: su | L33: 22 | M33: 7 | N33: 1945 | O33: Ilmajoen Kisailijat | P33: - | Q33: Alajärven Ankkurit | R33: 1 | S33: - | T33: 1 | U33: 300 | V33: Kalevi Jokela | W33: Heikki Joensuu | X33: Yrjö Kostet | Y33: Väinö Kangas | Z33: Paavo Mäntylä | AA33: V Kujanpää | AB33: Veikko Leppilampi | AC33: N Sariola | AD33: X Hirvi
A34: 4 | B34: Ylihärmän Junkkarit | C34: 8 | D34: 4 | E34: 0 | F34: 4 | G34: 55 | H34: - | I34: 48 | J34: 8 | K34: su | L34: 22 | M34: 7 | N34: 1945 | O34: Oulun Pyrintö | P34: - | Q34: Vaasan Maila | R34: 2 | S34: - | T34: 2 | V34: Erkki Kurikka | W34: Erkki Aalto | X34: Jorma Kallinen | Z34: Aarne Koskimäki | AA34: Paavo Talvitie | AB34: E Pasanen | AC34: K Kupari | AD34: X Heikkilä
A35: 5 | B35: Ilmajoen Kisailijat | C35: 8 | D35: 3 | E35: 2 | F35: 3 | G35: 41 | H35: - | I35: 50 | J35: 8 | K35: su | L35: 22 | M35: 7 | N35: 1945 | O35: Kauhajoen Karhu | P35: - | Q35: Ylihärmän Junkkarit | R35: 6 | S35: - | T35: 3 | V35: Olavi Kurikka | W35: Erkki Rantala | X35: Eino Mainio | Z35: Erkki Kullas | AA35: Taavi Kuutti | AB35: Pauli Lukkarinen | AC35: J Hirvilammi | AD35: X Harju
A36: 6 | B36: Kauhajoen Karhu | C36: 8 | D36: 3 | E36: 1 | F36: 4 | G36: 49 | H36: - | I36: 42 | J36: 7 | K36: ke | L36: 25 | M36: 7 | N36: 1945 | O36: Kauhajoen Karhu | P36: - | Q36: Ilmajoen Kisailijat | R36: 5 | S36: - | T36: 3 | V36: Olli Kuusisto | W36: Anton Tallbacka | X36: Urpo Heinonen | Z36: Helmer Laine | AA36: T Talvitie | AB36: P Koukkari | AC36: Tauno Nyrhinen | AD36: X Nokso-Koivisto
A37: 7 | B37: Oulun Pyrintö | C37: 8 | D37: 2 | E37: 1 | F37: 5 | G37: 30 | H37: - | I37: 42 | J37: 5 | K37: su | L37: 29 | M37: 7 | N37: 1945 | O37: Alajärven Ankkurit | P37: - | Q37: Kauhajoen Karhu | R37: 8 | S37: - | T37: 4 | U37: 450 | V37: Unto Luhtanen | W37: Oiva Nuolikoski | X37: Tauno Turula | Z37: Reino Laine | AA37: Ylivakkuri | AB37: Toivo Lukkarinen | AC37: P Koski
A38: 8 | B38: Ylistaron Kilpa-Veljet | C38: 8 | D38: 2 | E38: 0 | F38: 6 | G38: 26 | H38: - | I38: 61 | J38: 4 | K38: su | L38: 29 | M38: 7 | N38: 1945 | O38: Vaasan Maila | P38: - | Q38: Ylihärmän Junkkarit | R38: 3 | S38: - | T38: 14 | V38: Pentti Nyrhinen | W38: Jussi Vesala | X38: Eino Aho | Z38: Veikko Pirilä | AB38: Valde Risteli | AC38: X Koivusalo
A39: 9 | B39: Vaasan Maila | C39: 8 | D39: 0 | E39: 2 | F39: 6 | G39: 24 | H39: - | I39: 82 | J39: 2 | K39: su | L39: 29 | M39: 7 | N39: 1945 | O39: Ylistaron Kilpa-Veljet | P39: - | Q39: Oulun Pyrintö | R39: 4 | S39: - | T39: 1 | U39: 300 | V39: Sulo Opas | W39: Einar Aalto | X39: Viljo Castren | Z39: Arvo Rahko | AB39: Aimo Miilumäki
C40: =SUM(C31:C39) -> 72 | D40: =SUM(D31:D39) -> 32 | E40: =SUM(E31:E39) -> 8 | F40: =SUM(F31:F39) -> 32 | G40: =SUM(G31:G39) -> 398 | H40: - | I40: =SUM(I31:I39) -> 398 | J40: =SUM(J31:J39) -> 72 | K40: to | L40: 2 | M40: 8 | N40: 1945 | O40: Seinäjoen Maila-Jussit | P40: - | Q40: Kauhajoen Karhu | R40: 5 | S40: - | T40: 2 | V40: K Rauhala | Z40: Jaakko Rahko | AB40: Pentti Kamppila
K41: la | L41: 4 | M41: 8 | N41: 1945 | O41: Paavolan Kisa | P41: - | Q41: Seinäjoen Maila-Jussit | R41: 4 | S41: - | T41: 7 | U41: 1000 | V41: Arvo Salo | Z41: Erkki Röyskö | AB41: R Virho
B42: Seinäjoen Maila-Jussit mestaruussarjan karsintojen ykkösmarkkinoille | K42: su | L42: 5 | M42: 8 | N42: 1945 | O42: Alajärven Ankkurit | P42: - | Q42: Ylihärmän Junkkarit | R42: 9 | S42: - | T42: 1 | V42: X Viitala | Z42: Pentti Röyskö | AB42: Kaino Aho
B43: Alajärven Ankkurit mestaruussarjan karsintojen kakkosmarkkinoille | K43: su | L43: 5 | M43: 8 | N43: 1945 | O43: Oulun Pyrintö | P43: - | Q43: Seinäjoen Maila-Jussit | R43: 3 | S43: - | T43: 6 | Z43: Rauni Saarenpää
K44: to | L44: 9 | M44: 8 | N44: 1945 | O44: Ilmajoen Kisailijat | P44: - | Q44: Vaasan Maila | R44: 8 | S44: - | T44: 3
K45: la | L45: 11 | M45: 8 | N45: 1945 | O45: Ylihärmän Junkkarit | P45: - | Q45: Oulun Pyrintö | R45: 5 | S45: - | T45: 6
K46: la | L46: 11 | M46: 8 | N46: 1945 | O46: Ylistaron Kilpa-Veljet | P46: - | Q46: Paavolan Kisa | R46: 1 | S46: - | T46: 5 | U46: 250
K47: su | L47: 12 | M47: 8 | N47: 1945 | O47: Ilmajoen Kisailijat | P47: - | Q47: Oulun Pyrintö | R47: 6 | S47: - | T47: 2 | U47: 200
K48: su | L48: 12 | M48: 8 | N48: 1945 | O48: Kauhajoen Karhu | P48: - | Q48: Paavolan Kisa | R48: 3 | S48: - | T48: 9
K49: su | L49: 12 | M49: 8 | N49: 1945 | O49: Seinäjoen Maila-Jussit | P49: - | Q49: Alajärven Ankkurit | R49: 9 | S49: - | T49: 2 | U49: 800
K50: su | L50: 12 | M50: 8 | N50: 1945 | O50: Vaasan Maila | P50: - | Q50: Ylistaron Kilpa-Veljet | R50: 6 | S50: - | T50: 8
K51: ke | L51: 15 | M51: 8 | N51: 1945 | O51: Ylistaron Kilpa-Veljet | P51: - | Q51: Seinäjoen Maila-Jussit | R51: 0 | S51: - | T51: 3 | U51: 100
K52: su | L52: 19 | M52: 8 | N52: 1945 | O52: Alajärven Ankkurit | P52: - | Q52: Ylistaron Kilpa-Veljet | R52: 9 | S52: - | T52: 1 | U52: 500
K53: su | L53: 19 | M53: 8 | N53: 1945 | O53: Oulun Pyrintö | P53: - | Q53: Kauhajoen Karhu | R53: 5 | S53: - | T53: 3
K54: su | L54: 19 | M54: 8 | N54: 1945 | O54: Vaasan Maila | P54: - | Q54: Seinäjoen Maila-Jussit | R54: 3 | S54: - | T54: 14
K55: su | L55: 19 | M55: 8 | N55: 1945 | O55: Ylihärmän Junkkarit | P55: - | Q55: Ilmajoen Kisailijat | R55: 18 | S55: - | T55: 12 | U55: 300
K56: ke | L56: 22 | M56: 8 | N56: 1945 | O56: Paavolan Kisa | P56: - | Q56: Oulun Pyrintö | R56: 9 | S56: - | T56: 8
K57: la | L57: 25 | M57: 8 | N57: 1945 | O57: Ylihärmän Junkkarit | P57: - | Q57: Paavolan Kisa | R57: 5 | S57: - | T57: 2 | U57: 400
K58: su | L58: 26 | M58: 8 | N58: 1945 | O58: Alajärven Ankkurit | P58: - | Q58: Vaasan Maila | R58: 22 | S58: - | T58: 1
K59: su | L59: 26 | M59: 8 | N59: 1945 | O59: Ilmajoen Kisailijat | P59: - | Q59: Paavolan Kisa | R59: 4 | S59: - | T59: 4 | U59: 200
K60: su | L60: 26 | M60: 8 | N60: 1945 | O60: Kauhajoen Karhu | P60: - | Q60: Ylistaron Kilpa-Veljet | R60: 23 | S60: - | T60: 6
K61: to | L61: 30 | M61: 8 | N61: 1945 | O61: Seinäjoen Maila-Jussit | P61: - | Q61: Ilmajoen Kisailijat | R61: 14 | S61: - | T61: 1 | U61: 400
K62: la | L62: 1 | M62: 9 | N62: 1945 | O62: Oulun Pyrintö | P62: - | Q62: Alajärven Ankkurit | R62: 3 | S62: - | T62: 7
K63: su | L63: 2 | M63: 9 | N63: 1945 | O63: Paavolan Kisa | P63: - | Q63: Alajärven Ankkurit | R63: 2 | S63: - | T63: 4 | U63: 100
K64: su | L64: 2 | M64: 9 | N64: 1945 | O64: Seinäjoen Maila-Jussit | P64: - | Q64: Ylihärmän Junkkarit | R64: 7 | S64: - | T64: 1 | U64: 100
K65: su | L65: 2 | M65: 9 | N65: 1945 | O65: Vaasan Maila | P65: - | Q65: Kauhajoen Karhu | R65: 3 | S65: - | T65: 3
K66: su | L66: 2 | M66: 9 | N66: 1945 | O66: Ylistaron Kilpa-Veljet | P66: - | Q66: Ilmajoen Kisailijat | R66: 3 | S66: - | T66: 6
Q67: Yhteensä | R67: =SUM(R31:R66) -> 237 | S67: - | T67: =SUM(T31:T66) -> 161
M68: =COUNT(R31:R66) -> 36 | Q68: Keskiarvo | R68: =PRODUCT(R67/M68) -> 6.6 | S68: - | T68: =PRODUCT(T67/M68) -> 4.5
B70: ITÄLOHKO 1945 | C70: O | D70: V | E70: T | F70: H | G70: TJ | H70: - | I70: AJ | J70: PIST | O70: SUOMI-SARJAN ETELÄINEN ITÄSARJA | V70: Kouvolan Pallonlyöjät | W70: Lahden Mailaveikot | X70: Tainionkosken Urheilijat | Y70: Lappeenrannan Urheilumiehet | Z70: Kotkan Pojat | AA70: Vuoksenniskan Urheilijat | AB70: Jääsken Kirijät | AC70: Lahden Koripalloilijat | AD70: Etelä-Saimaan Kisa
A71: 1 | B71: Kouvolan Pallonlyöjät | C71: 8 | D71: 8 | E71: 0 | F71: 0 | G71: 42 | H71: - | I71: 11 | J71: 16 | K71: su | L71: 15 | M71: 7 | N71: 1945 | O71: Etelä-Saimaan Kisa | P71: - | Q71: Kouvolan Pallonlyöjät | R71: 1 | S71: - | T71: 2 | U71: 150 | V71: Paavo Alava | W71: Aleksander Semeri | X71: Pentti Seivo | Y71: Seppo Karvinen | Z71: Arvo Laitinen | AA71: Kauko Evälahti | AB71: Ahti Pajunen | AC71: Risto Mäkinen | AD71: Lauri Pasi
A72: 2 | B72: Lahden Mailaveikot | C72: 8 | D72: 7 | E72: 0 | F72: 1 | G72: 73 | H72: - | I72: 14 | J72: 14 | K72: su | L72: 22 | M72: 7 | N72: 1945 | O72: Lappeenrannan Urheilumiehet | P72: - | Q72: Jääsken Kirijät | R72: 12 | S72: - | T72: 3 | V72: Eero Häkkinen | W72: Erkki Alhava | X72: Veikko Viika | Y72: P Raatikainen | Z72: O Koski | AA72: Pauli Hämäläinen | AB72: Heino Hanski | AC72: X Uusitalo | AD72: Toivo Tuukkanen
A73: 3 | B73: Tainionkosken Urheilijat | C73: 8 | D73: 5 | E73: 0 | F73: 3 | G73: 62 | H73: - | I73: 27 | J73: 10 | K73: su | L73: 29 | M73: 7 | N73: 1945 | O73: Jääsken Kirijät | P73: - | Q73: Etelä-Saimaan Kisa | R73: 20 | S73: - | T73: 6 | V73: Tapio Immonen | W73: Nikolai Semeri | X73: Paavo Kytösalmi | Y73: Kaapo Aapro | Z73: X Wickström | AA73: X Karhela | AB73: Olli Hanski | AC73: Eero Pellonpää | AD73: X Cronström
A74: 4 | B74: Lappeenrannan Urheilumiehet | C74: 8 | D74: 5 | E74: 0 | F74: 3 | G74: 38 | H74: - | I74: 30 | J74: 10 | K74: su | L74: 29 | M74: 7 | N74: 1945 | O74: Kotkan Pojat | P74: - | Q74: Kouvolan Pallonlyöjät | R74: 4 | S74: - | T74: 8 | V74: Erkki Kiuru | W74: Vilho Kokkonen | X74: Uuno Käkönen | Z74: X Lehtonen | AA74: Pentti Koskinen | AB74: Masa Tuuha | AC74: X Ahti | AD74: X Ovaska
A75: 5 | B75: Kotkan Pojat | C75: 8 | D75: 3 | E75: 1 | F75: 4 | G75: 29 | H75: - | I75: 40 | J75: 7 | K75: ke | L75: 1 | M75: 8 | N75: 1945 | O75: Lahden Koripalloilijat | P75: - | Q75: Lappeenrannan Urheilumiehet | R75: 13 | S75: - | T75: 7 | U75: 300 | V75: Oiva Kiuru | W75: Lauri Ritvola | X75: R Hakulinen | Z75: X Söderström | AA75: X Leiniäinen | AB75: Unto Hanski | AC75: M Huotari | AD75: X Paloheimo
A76: 6 | B76: Vuoksenniskan Urheilijat | C76: 8 | D76: 2 | E76: 1 | F76: 5 | G76: 28 | H76: - | I76: 49 | J76: 5 | K76: su | L76: 5 | M76: 8 | N76: 1945 | O76: Kotkan Pojat | P76: - | Q76: Vuoksenniskan Urheilijat | R76: 2 | S76: - | T76: 2 | V76: Pauli Kiuru | W76: Pertti Ahonen | X76: Pentti Piepponen | AA76: X Lukkarinen | AB76: Väinö Suikkari | AC76: I Huotari
A77: 7 | B77: Jääsken Kirijät | C77: 8 | D77: 2 | E77: 0 | F77: 6 | G77: 41 | H77: - | I77: 64 | J77: 4 | K77: su | L77: 5 | M77: 8 | N77: 1945 | O77: Kouvolan Pallonlyöjät | P77: - | Q77: Jääsken Kirijät | R77: 7 | S77: - | T77: 2 | V77: Pentti Kiuru | W77: Juha Broman | X77: Erkki Kanerva | AA77: Ensio Oinonen | AC77: X Heikkinen
A78: 8 | B78: Lahden Koripalloilijat | C78: 8 | D78: 2 | E78: 0 | F78: 6 | G78: 25 | H78: - | I78: 49 | J78: 4 | K78: su | L78: 5 | M78: 8 | N78: 1945 | O78: Lahden Mailaveikot | P78: - | Q78: Tainionkosken Urheilijat | R78: 5 | S78: - | T78: 4 | V78: Ensio Kylmälä | W78: Olavi Sihvonen | X78: A Naukkarinen | AA78: Eero Rautiainen
A79: 9 | B79: Etelä-Saimaan Kisa | C79: 8 | D79: 1 | E79: 0 | F79: 7 | G79: 14 | H79: - | I79: 68 | J79: 2 | K79: to | L79: 9 | M79: 8 | N79: 1945 | O79: Etelä-Saimaan Kisa | P79: - | Q79: Tainionkosken Urheilijat | R79: 1 | S79: - | T79: 5 | V79: Reino Lahti | W79: Antti Ihamäki | X79: T Pajari | AA79: X Reijonen
C80: =SUM(C71:C79) -> 72 | D80: =SUM(D71:D79) -> 35 | E80: =SUM(E71:E79) -> 2 | F80: =SUM(F71:F79) -> 35 | G80: =SUM(G71:G79) -> 352 | H80: - | I80: =SUM(I71:I79) -> 352 | J80: =SUM(J71:J79) -> 72 | K80: su | L80: 12 | M80: 8 | N80: 1945 | O80: Jääsken Kirijät | P80: - | Q80: Lahden Mailaveikot | R80: 1 | S80: - | T80: 12 | U80: 400 | V80: Sakari Pekkarinen | W80: Tommi Nieminen | X80: V Pesonen | AA80: X Suutarinen
K81: su | L81: 12 | M81: 8 | N81: 1945 | O81: Lahden Koripalloilijat | P81: - | Q81: Vuoksenniskan Urheilijat | R81: 7 | S81: - | T81: 1 | V81: Jussi Sirkeä | W81: P Niemelä | X81: Yrjö Piepponen
B82: Kouvolan Pallonlyöjät mestaruussarjan karsintojen ykkösmarkkinoille | K82: su | L82: 12 | M82: 8 | N82: 1945 | O82: Lappeenrannan Urheilumiehet | P82: - | Q82: Kotkan Pojat | R82: 4 | S82: - | T82: 3 | V82: Kauko Viinikka | W82: Jarmo Suokas | X82: V Rummukainen
B83: Lahden Mailaveikot mestaruussarjan karsintojen kakkosmarkkinoille | K83: su | L83: 12 | M83: 8 | N83: 1945 | O83: Tainionkosken Urheilijat | P83: - | Q83: Kotkan Pojat | R83: 10 | S83: - | T83: 5 | W83: X Heikkinen
K84: to | L84: 16 | M84: 8 | N84: 1945 | O84: Tainionkosken Urheilijat | P84: - | Q84: Lappeenrannan Urheilumiehet | R84: 2 | S84: - | T84: 4 | W84: X Piepponen
K85: to | L85: 16 | M85: 8 | N85: 1945 | O85: Vuoksenniskan Urheilijat | P85: - | Q85: Jääsken Kirijät | R85: 11 | S85: - | T85: 4
K86: la | L86: 18 | M86: 8 | N86: 1945 | O86: Lappeenrannan Urheilumiehet | P86: - | Q86: Lahden Mailaveikot | R86: 2 | S86: - | T86: 5
K87: su | L87: 19 | M87: 8 | N87: 1945 | O87: Kotkan Pojat | P87: - | Q87: Etelä-Saimaan Kisa | R87: 3 | S87: - | T87: 0
K88: su | L88: 19 | M88: 8 | N88: 1945 | O88: Kouvolan Pallonlyöjät | P88: - | Q88: Tainionkosken Urheilijat | R88: 3 | S88: - | T88: 1 | U88: 250
K89: su | L89: 19 | M89: 8 | N89: 1945 | O89: Lahden Koripalloilijat | P89: - | Q89: Jääsken Kirijät | R89: 0 | S89: - | T89: 6 | U89: 100
K90: su | L90: 19 | M90: 8 | N90: 1945 | O90: Vuoksenniskan Urheilijat | P90: - | Q90: Lahden Mailaveikot | R90: 1 | S90: - | T90: 8
K91: ke | L91: 22 | M91: 8 | N91: 1945 | O91: Lahden Mailaveikot | P91: - | Q91: Lahden Koripalloilijat | R91: 5 | S91: - | T91: 1
K92: ke | L92: 22 | M92: 8 | N92: 1945 | O92: Lappeenrannan Urheilumiehet | P92: - | Q92: Vuoksenniskan Urheilijat | R92: 2 | S92: - | T92: 1
K93: su | L93: 26 | M93: 8 | N93: 1945 | O93: Jääsken Kirijät | P93: - | Q93: Kotkan Pojat | R93: 2 | S93: - | T93: 3
K94: su | L94: 26 | M94: 8 | N94: 1945 | O94: Kouvolan Pallonlyöjät | P94: - | Q94: Lappeenrannan Urheilumiehet | R94: 2 | S94: - | T94: 0
K95: su | L95: 26 | M95: 8 | N95: 1945 | O95: Lahden Mailaveikot | P95: - | Q95: Etelä-Saimaan Kisa | R95: 25 | S95: - | T95: 0
K96: su | L96: 26 | M96: 8 | N96: 1945 | O96: Tainionkosken Urheilijat | P96: - | Q96: Lahden Koripalloilijat | R96: 11 | S96: - | T96: 1
K97: to | L97: 30 | M97: 8 | N97: 1945 | O97: Lahden Koripalloilijat | P97: - | Q97: Kouvolan Pallonlyöjät | R97: 1 | S97: - | T97: 10
K98: to | L98: 30 | M98: 8 | N98: 1945 | O98: Vuoksenniskan Urheilijat | P98: - | Q98: Etelä-Saimaan Kisa | R98: 5 | S98: - | T98: 2
K99: su | L99: 2 | M99: 9 | N99: 1945 | O99: Kotkan Pojat | P99: - | Q99: Lahden Koripalloilijat | R99: 6 | S99: - | T99: 1
K100: su | L100: 2 | M100: 9 | N100: 1945 | O100: Tainionkosken Urheilijat | P100: - | Q100: Vuoksenniskan Urheilijat | R100: 16 | S100: - | T100: 5
K101: to | L101: 6 | M101: 9 | N101: 1945 | O101: Etelä-Saimaan Kisa | P101: - | Q101: Lappeenrannan Urheilumiehet | R101: 1 | S101: - | T101: 7
K102: to | L102: 6 | M102: 9 | N102: 1945 | O102: Kouvolan Pallonlyöjät | P102: - | Q102: Lahden Mailaveikot | R102: 2 | S102: - | T102: 0
K103: su | L103: 9 | M103: 9 | N103: 1945 | O103: Etelä-Saimaan Kisa | P103: - | Q103: Lahden Koripalloilijat | R103: 3 | S103: - | T103: 1
K104: su | L104: 9 | M104: 9 | N104: 1945 | O104: Jääsken Kirijät | P104: - | Q104: Tainionkosken Urheilijat | R104: 3 | S104: - | T104: 13
K105: su | L105: 9 | M105: 9 | N105: 1945 | O105: Lahden Mailaveikot | P105: - | Q105: Kotkan Pojat | R105: 13 | S105: - | T105: 3
K106: su | L106: 9 | M106: 9 | N106: 1945 | O106: Vuoksenniskan Urheilijat | P106: - | Q106: Kouvolan Pallonlyöjät | R106: 2 | S106: - | T106: 8
Q107: Yhteensä | R107: =SUM(R71:R106) -> 208 | S107: - | T107: =SUM(T71:T106) -> 144
M108: =COUNT(R71:R106) -> 36 | Q108: Keskiarvo | R108: =PRODUCT(R107/M108) -> 5.8 | S108: - | T108: =PRODUCT(T107/M108) -> 4.0
B110: LÄNSILOHKO 1945 | C110: O | D110: V | E110: T | F110: H | G110: TJ | H110: - | I110: AJ | J110: PIST | O110: SUOMI-SARJAN LÄNSISARJA | V110: Riihimäen Pallonlyöjät | W110: Helsingin Pallo-Toverit | X110: Hämeenlinnan Pallokerho | Y110: Keravan KooPee | Z110: Turun Urheiluliitto | AA110: Tampereen Pyrintö | AB110: Valkeakosken Haka
A111: 1 | B111: Riihimäen Pallonlyöjät | C111: 6 | D111: 4 | E111: 2 | F111: 0 | G111: 73 | H111: - | I111: 28 | J111: 10 | K111: su | L111: 15 | M111: 7 | N111: 1945 | O111: Keravan KooPee | P111: - | Q111: Riihimäen Pallonlyöjät | R111: 5 | S111: - | T111: 5 | V111: Klaus Karvonen | W111: Kalevi Ihalainen | X111: Keijo Kuusela | AA111: Esa Lahtinen | AB111: X Hannula
A112: 2 | B112: Helsingin Pallo-Toverit | C112: 6 | D112: 4 | E112: 2 | F112: 0 | G112: 56 | H112: - | I112: 26 | J112: 10 | K112: su | L112: 22 | M112: 7 | N112: 1945 | O112: Hämeenlinnan Pallokerho | P112: - | Q112: Turun Urheiluliitto | R112: 3 | S112: - | T112: 1 | U112: 200 | V112: Eino Raivio | W112: Kaarlo Haikarainen | X112: Eero Salisma | AA112: Elmer Meilahti | AB112: Kalevi Hirvonen
A113: 3 | B113: Hämeenlinnan Pallokerho | C113: 6 | D113: 4 | E113: 0 | F113: 2 | G113: 26 | H113: - | I113: 23 | J113: 8 | K113: su | L113: 22 | M113: 7 | N113: 1945 | O113: Riihimäen Pallonlyöjät | P113: - | Q113: Helsingin Pallo-Toverit | R113: 12 | S113: - | T113: 12 | U113: 500 | V113: Tapani Häti | W113: Martti Alopaeus | X113: Eino Tie | AB113: X Hurme
A114: 4 | B114: Keravan KooPee | C114: 6 | D114: 1 | E114: 3 | F114: 2 | G114: 19 | H114: - | I114: 23 | J114: 5 | K114: su | L114: 29 | M114: 7 | N114: 1945 | O114: Hämeenlinnan Pallokerho | P114: - | Q114: Riihimäen Pallonlyöjät | R114: 0 | S114: - | T114: 6 | V114: Ilmari Salonen | W114: Eino Pikkarainen | X114: Rafael Aalto | AB114: X Laaksonen
A115: 5 | B115: Turun Urheiluliitto | C115: 6 | D115: 1 | E115: 2 | F115: 3 | G115: 32 | H115: - | I115: 30 | J115: 4 | K115: su | L115: 29 | M115: 7 | N115: 1945 | O115: Tampereen Pyrintö | P115: - | Q115: Turun Urheiluliitto | R115: 5 | S115: - | T115: 4 | V115: Lauri Lehtola | W115: X Mäkinen | X115: Leonard Heinänen | AB115: X Laitinen
A116: 6 | B116: Tampereen Pyrintö | C116: 6 | D116: 2 | E116: 0 | F116: 4 | G116: 26 | H116: - | I116: 46 | J116: 4 | K116: su | L116: 5 | M116: 8 | N116: 1945 | O116: Tampereen Pyrintö | P116: - | Q116: Hämeenlinnan Pallokerho | R116: 3 | S116: - | T116: 8 | V116: Erik Ehrstedt | W116: Esko Salminen | X116: Esko Ikonen | AB116: X Peiponen
A117: 7 | B117: Valkeakosken Haka | C117: 6 | D117: 0 | E117: 1 | F117: 5 | G117: 27 | H117: - | I117: 83 | J117: 1 | K117: su | L117: 5 | M117: 8 | N117: 1945 | O117: Turun Urheiluliitto | P117: - | Q117: Valkeakosken Haka | R117: 12 | S117: - | T117: 4 | V117: Pentti Järvilehto | X117: Antti Juppala | AB117: Olli Suihko
C118: =SUM(C111:C117) -> 42 | D118: =SUM(D111:D117) -> 16 | E118: =SUM(E111:E117) -> 10 | F118: =SUM(F111:F117) -> 16 | G118: =SUM(G111:G117) -> 259 | H118: - | I118: =SUM(I111:I117) -> 259 | J118: =SUM(J111:J117) -> 42 | K118: ke | L118: 8 | M118: 8 | N118: 1945 | O118: Valkeakosken Haka | P118: - | Q118: Tampereen Pyrintö | R118: 6 | S118: - | T118: 11 | V118: Alpo Paasikivi | X118: V Leino | AB118: X Seppä
K119: su | L119: 12 | M119: 8 | N119: 1945 | O119: Tampereen Pyrintö | P119: - | Q119: Riihimäen Pallonlyöjät | R119: 1 | S119: - | T119: 10 | V119: Martti Hallberg | X119: X Salmisaari | AB119: X Uosukainen
B120: Uusintaottelu: PT - RPL 11 - 7 | K120: su | L120: 12 | M120: 8 | N120: 1945 | O120: Valkeakosken Haka | P120: - | Q120: Keravan KooPee | R120: 4 | S120: - | T120: 4 | V120: Olavi Tikander | X120: X Sarasalmi | AB120: Verneri Meriö
B121: Helsingin Pallo-Toverit mestaruussarjan karsintojen ykkösmarkkinoille | K121: su | L121: 19 | M121: 8 | N121: 1945 | O121: Hämeenlinnan Pallokerho | P121: - | Q121: Valkeakosken Haka | R121: 9 | S121: - | T121: 6 | V121: Oiva Valtonen | X121: X Vennala
B122: Riihimäen Pallonlyöjät mestaruussarjan karsintojen kakkosmarkkinoille | K122: su | L122: 19 | M122: 8 | N122: 1945 | O122: Helsingin Pallo-Toverit | P122: - | Q122: Tampereen Pyrintö | R122: 13 | S122: - | T122: 2 | U122: 400 | X122: X Vihervuori
K123: su | L123: 19 | M123: 8 | N123: 1945 | O123: Riihimäen Pallonlyöjät | P123: - | Q123: Turun Urheiluliitto | R123: 10 | S123: - | T123: 7 | X123: Mauri Visuri
K124: su | L124: 26 | M124: 8 | N124: 1945 | O124: Keravan KooPee | P124: - | Q124: Hämeenlinnan Pallokerho | R124: 2 | S124: - | T124: 5 | X124: X Toivonen
K125: su | L125: 26 | M125: 8 | N125: 1945 | O125: Valkeakosken Haka | P125: - | Q125: Helsingin Pallo-Toverit | R125: 4 | S125: - | T125: 17
K126: to | L126: 30 | M126: 8 | N126: 1945 | O126: Helsingin Pallo-Toverit | P126: - | Q126: Keravan KooPee | R126: 3 | S126: - | T126: 1
K127: su | L127: 2 | M127: 9 | N127: 1945 | O127: Helsingin Pallo-Toverit | P127: - | Q127: Hämeenlinnan Pallokerho | R127: 5 | S127: - | T127: 1
K128: su | L128: 2 | M128: 9 | N128: 1945 | O128: Riihimäen Pallonlyöjät | P128: - | Q128: Valkeakosken Haka | R128: 30 | S128: - | T128: 3
K129: su | L129: 2 | M129: 9 | N129: 1945 | O129: Turun Urheiluliitto | P129: - | Q129: Keravan KooPee | R129: 2 | S129: - | T129: 2
K130: su | L130: 9 | M130: 9 | N130: 1945 | O130: Keravan KooPee | P130: - | Q130: Tampereen Pyrintö | R130: 5 | S130: - | T130: 4
K131: su | L131: 9 | M131: 9 | N131: 1945 | O131: Turun Urheiluliitto | P131: - | Q131: Helsingin Pallo-Toverit | R131: 6 | S131: - | T131: 6
Q132: Yhteensä | R132: =SUM(R111:R131) -> 140 | S132: - | T132: =SUM(T111:T131) -> 119
M133: =COUNT(R111:R131) -> 21 | Q133: Keskiarvo | R133: =PRODUCT(R132/M133) -> 6.7 | S133: - | T133: =PRODUCT(T132/M133) -> 5.7
B136: SM-KARSINNAT 1945 | C136: OTT | D136: V | E136: T | F136: H | G136: TJ | I136: AJ | J136: PIST | O136: YKKÖSMARKKINAT, JYVÄSKYLÄ
A137: 1 | B137: Jyväskylän Kiri | C137: 3 | D137: 3 | E137: 0 | F137: 0 | G137: 21 | H137: - | I137: 11 | J137: 6 | K137: la | L137: 22 | M137: 9 | N137: 1945 | O137: Jyväskylän Kiri | P137: - | Q137: Helsingin Pallo-Toverit | R137: 10 | S137: - | T137: 7 | U137: 200
A138: 2 | B138: Seinäjoen Maila-Jussit | C138: 3 | D138: 2 | E138: 0 | F138: 1 | G138: 21 | H138: - | I138: 12 | J138: 4 | K138: la | L138: 22 | M138: 9 | N138: 1945 | O138: Seinäjoen Maila-Jussit | P138: - | Q138: Kouvolan Pallonlyöjät | R138: 9 | S138: - | T138: 5
A139: 3 | B139: Kouvolan Pallonlyöjät | C139: 3 | D139: 0 | E139: 1 | F139: 2 | G139: 11 | H139: - | I139: 19 | J139: 1 | K139: su | L139: 23 | M139: 9 | N139: 1945 | O139: Seinäjoen Maila-Jussit | P139: - | Q139: Helsingin Pallo-Toverit | R139: 11 | S139: - | T139: 3
A140: 4 | B140: Helsingin Pallo-Toverit | C140: 3 | D140: 0 | E140: 1 | F140: 2 | G140: 13 | H140: - | I140: 24 | J140: 1 | K140: su | L140: 23 | M140: 9 | N140: 1945 | O140: Jyväskylän Kiri | P140: - | Q140: Kouvolan Pallonlyöjät | R140: 7 | S140: - | T140: 3
C141: =SUM(C137:C140) -> 12 | D141: =SUM(D137:D140) -> 5 | E141: =SUM(E137:E140) -> 2 | F141: =SUM(F137:F140) -> 5 | G141: =SUM(G137:G140) -> 66 | H141: - | I141: =SUM(I137:I140) -> 66 | J141: =SUM(J137:J140) -> 12 | K141: su | L141: 23 | M141: 9 | N141: 1945 | O141: Helsingin Pallo-Toverit | P141: - | Q141: Kouvolan Pallonlyöjät | R141: 3 | S141: - | T141: 3
K142: su | L142: 23 | M142: 9 | N142: 1945 | O142: Jyväskylän Kiri | P142: - | Q142: Seinäjoen Maila-Jussit | R142: 4 | S142: - | T142: 1 | U142: 350
B143: Jyväskylän Kiri mestaruussarjaan, muut kolmosmarkkinoille | Q143: Yhteensä | R143: =SUM(R136:R142) -> 44 | S143: - | T143: =SUM(T136:T142) -> 22
M144: =COUNT(R136:R142) -> 6 | Q144: Keskiarvo | R144: =PRODUCT(R143/M144) -> 7.3 | S144: - | T144: =PRODUCT(T143/M144) -> 3.7
B147: SM-KARSINNAT 1945 | C147: OTT | D147: V | E147: T | F147: H | G147: TJ | I147: AJ | J147: PIST | O147: KAKKOSMARKKINAT, PIEKSÄMÄKI
A148: 1 | B148: Riihimäen Pallonlyöjät | C148: 3 | D148: 2 | E148: 1 | F148: 0 | G148: 28 | H148: - | I148: 11 | J148: 5 | K148: la | L148: 22 | M148: 9 | N148: 1945 | O148: Lahden Mailaveikot | P148: - | Q148: Alajärven Ankkurit | R148: 1 | S148: - | T148: 1
A149: 2 | B149: Lahden Mailaveikot | C149: 3 | D149: 1 | E149: 2 | F149: 0 | G149: 17 | H149: - | I149: 9 | J149: 4 | K149: la | L149: 22 | M149: 9 | N149: 1945 | O149: Riihimäen Pallonlyöjät | P149: - | Q149: Pieksämäen Palloilijat | R149: 11 | S149: - | T149: 0
A150: 3 | B150: Pieksämäen Palloilijat | C150: 3 | D150: 1 | E150: 0 | F150: 2 | G150: 7 | H150: - | I150: 22 | J150: 2 | K150: su | L150: 23 | M150: 9 | N150: 1945 | O150: Riihimäen Pallonlyöjät | P150: - | Q150: Alajärven Ankkurit | R150: 11 | S150: - | T150: 5
A151: 4 | B151: Alajärven Ankkurit | C151: 3 | D151: 0 | E151: 1 | F151: 2 | G151: 7 | H151: - | I151: 17 | J151: 1 | K151: su | L151: 23 | M151: 9 | N151: 1945 | O151: Lahden Mailaveikot | P151: - | Q151: Pieksämäen Palloilijat | R151: 10 | S151: - | T151: 2
C152: =SUM(C148:C151) -> 12 | D152: =SUM(D148:D151) -> 4 | E152: =SUM(E148:E151) -> 4 | F152: =SUM(F148:F151) -> 4 | G152: =SUM(G148:G151) -> 59 | H152: - | I152: =SUM(I148:I151) -> 59 | J152: =SUM(J148:J151) -> 12 | K152: su | L152: 23 | M152: 9 | N152: 1945 | O152: Riihimäen Pallonlyöjät | P152: - | Q152: Lahden Mailaveikot | R152: 6 | S152: - | T152: 6
K153: su | L153: 23 | M153: 9 | N153: 1945 | O153: Pieksämäen Palloilijat | P153: - | Q153: Alajärven Ankkurit | R153: 5 | S153: - | T153: 1
B154: Riihimäen Pallonlyöjät ja Lahden Mailaveikot kolmosmarkkinoille | Q154: Yhteensä | R154: =SUM(R147:R153) -> 44 | S154: - | T154: =SUM(T147:T153) -> 15
M155: =COUNT(R147:R153) -> 6 | Q155: Keskiarvo | R155: =PRODUCT(R154/M155) -> 7.3 | S155: - | T155: =PRODUCT(T154/M155) -> 2.5
O158: KOLMOSMARKKINAT, LAHTI
B159: Lahden Maila-Veikot jatkoon | K159: su | L159: 30 | M159: 9 | N159: 1945 | O159: Lahden Mailaveikot | P159: - | Q159: Helsingin Pallo-Toverit | R159: 5 | S159: - | T159: 1
B160: Riihimäen Pallonlyöjät jatkoon | K160: su | L160: 30 | M160: 9 | N160: 1945 | O160: Riihimäen Pallonlyöjät | P160: - | Q160: Kouvolan Pallonlyöjät | R160: 3 | S160: - | T160: 1
B161: Riihimäen Pallonlyöjät jatkoon | K161: su | L161: 30 | M161: 9 | N161: 1945 | O161: Riihimäen Pallonlyöjät | P161: - | Q161: Lahden Mailaveikot | R161: 4 | S161: - | T161: 0
B163: Riihimäen Pallonlyöjät jaTampereen Pesä-Peikot mestaruussarjaan | K163: su | L163: 14 | M163: 10 | N163: 1945 | O163: Riihimäen Pallonlyöjät | P163: - | Q163: Myllykosken Kilpa-Veikot | R163: 2 | S163: - | T163: 1 | U163: 600
Q164: Yhteensä | R164: =SUM(R159:R163) -> 14 | S164: - | T164: =SUM(T159:T163) -> 3
M165: =COUNT(R159:R163) -> 4 | Q165: Keskiarvo | R165: =PRODUCT(R164/M165) -> 3.5 | S165: - | T165: =PRODUCT(T164/M165) -> 0.8
B168: KOILLISLOHKO 1946 | C168: O | D168: V | E168: T | F168: H | G168: TJ | H168: - | I168: AJ | J168: PIST | O168: SUOMEN SARJAN KOILLISSARJA | V168: Pankakosken Tehtaan Urheilijat | W168: Pieksämäen Palloilijat | X168: Kuopion Kopparit | Y168: Savonlinnan Pallokerho | Z168: Warkauden Urheilijat | AA168: Mikkelin Ajo | AB168: Siilinjärven Ponnistus
A169: 1 | B169: Pankakosken Tehtaan Urheilijat | C169: 6 | D169: 6 | E169: 0 | F169: 0 | G169: 69 | H169: - | I169: 19 | J169: 12 | K169: su | L169: 19 | M169: 5 | N169: 1946 | O169: Mikkelin Ajo | P169: - | Q169: Warkauden Urheilijat | R169: 8 | S169: - | T169: 1 | V169: Armas Haapalainen | W169: Jussi Halonen | X169: Tapani Hietanen | Y169: Tuomas Glad | Z169: Matti Kilpeläinen | AA169: X Seinali
A170: 2 | B170: Pieksämäen Palloilijat | C170: 6 | D170: 4 | E170: 0 | F170: 2 | G170: 54 | H170: - | I170: 20 | J170: 8 | K170: su | L170: 19 | M170: 5 | N170: 1946 | O170: Savonlinnan Pallokerho | P170: - | Q170: Kuopion Kopparit | R170: 10 | S170: - | T170: 8 | V170: Arvo Honkanen | W170: Kauko Halonen | X170: Toivo Hirvinen | Y170: Paavo Hukkanen | Z170: X Väätäinen | AA170: X Särkkä
A171: 3 | B171: Kuopion Kopparit | C171: 6 | D171: 4 | E171: 0 | F171: 2 | G171: 42 | H171: - | I171: 29 | J171: 8 | K171: su | L171: 26 | M171: 5 | N171: 1946 | O171: Pankakosken Tehtaan Urheilijat | P171: - | Q171: Mikkelin Ajo | R171: 17 | S171: - | T171: 0 | U171: 360 | V171: X Jokinen | W171: Kaiho Holopainen | X171: X Hukkinen | Y171: Aulis Käyhkö | Z171: X Tiilikainen | AA171: X Parkamaa
A172: 4 | B172: Savonlinnan Pallokerho | C172: 6 | D172: 3 | E172: 0 | F172: 3 | G172: 43 | H172: - | I172: 38 | J172: 6 | K172: su | L172: 26 | M172: 5 | N172: 1946 | O172: Pieksämäen Palloilijat | P172: - | Q172: Siilinjärven Ponnistus | R172: 15 | S172: - | T172: 5 | V172: X Karppanen | W172: Kalle Karppinen | X172: Matti Häyhä | Y172: X Mattila | Z172: X Turunen | AA172: X Hyötyläinen
A173: 5 | B173: Warkauden Urheilijat | C173: 6 | D173: 2 | E173: 0 | F173: 4 | G173: 36 | H173: - | I173: 54 | J173: 4 | K173: su | L173: 2 | M173: 6 | N173: 1946 | O173: Kuopion Kopparit | P173: - | Q173: Warkauden Urheilijat | R173: 3 | S173: - | T173: 2 | V173: Jorma Kärki | W173: Veikko Mustonen | X173: Viljo Jokinen | Y173: Otto Mustasalo | Z173: X Asikainen
A174: 6 | B174: Mikkelin Ajo | C174: 6 | D174: 1 | E174: 0 | F174: 5 | G174: 22 | H174: - | I174: 64 | J174: 2 | K174: su | L174: 2 | M174: 6 | N174: 1946 | O174: Siilinjärven Ponnistus | P174: - | Q174: Savonlinnan Pallokerho | R174: 3 | S174: - | T174: 16 | V174: Pentti Luoma | W174: Erkko Ollikainen | X174: X Järvinen | Y174: Pekka Mustasalo | Z174: X Hukka
A175: 7 | B175: Siilinjärven Ponnistus | C175: 6 | D175: 1 | E175: 0 | F175: 5 | G175: 16 | H175: - | I175: 58 | J175: 2 | K175: su | L175: 9 | M175: 6 | N175: 1946 | O175: Savonlinnan Pallokerho | P175: - | Q175: Pankakosken Tehtaan Urheilijat | R175: 3 | S175: - | T175: 7 | V175: Sulo Nevalainen | W175: Jukka Puusaari | X175: Aito Kolsi | Y175: Oiva Porvali | Z175: X Saarinen
C176: =SUM(C169:C175) -> 42 | D176: =SUM(D169:D175) -> 21 | E176: =SUM(E169:E175) -> 0 | F176: =SUM(F169:F175) -> 21 | G176: =SUM(G169:G175) -> 282 | H176: - | I176: =SUM(I169:I175) -> 282 | J176: =SUM(J169:J175) -> 42 | K176: su | L176: 9 | M176: 6 | N176: 1946 | O176: Siilinjärven Ponnistus | P176: - | Q176: Mikkelin Ajo | R176: 3 | S176: - | T176: 2 | V176: Olavi Pääkkönen | W176: Tauno Suominen | X176: Paavo Lajunen | Y176: Einari Wennevirta | Z176: X Laitinen
K177: ma | L177: 10 | M177: 6 | N177: 1946 | O177: Warkauden Urheilijat | P177: - | Q177: Pankakosken Tehtaan Urheilijat | R177: 4 | S177: - | T177: 22 | V177: Toivo Saastamoinen | W177: Erkki Vanhanen | X177: Yrjö Maksimainen | Y177: Toivo Turunen | Z177: X Miettinen
B178: Pankakosken Tehtaan Urheilijat mestaruussarjan karsintojen ykkösmarkkinoille | K178: su | L178: 16 | M178: 6 | N178: 1946 | O178: Kuopion Kopparit | P178: - | Q178: Pieksämäen Palloilijat | R178: 4 | S178: - | T178: 0 | U178: 100 | W178: Jaakko Vauhkonen | X178: Kalevi Rissanen
B179: Pieksämäen Palloilijat mestaruussarjan karsintojen kakkosmarkkinoille | K179: su | L179: 4 | M179: 8 | N179: 1946 | O179: Pankakosken Tehtaan Urheilijat | P179: - | Q179: Pieksämäen Palloilijat | R179: 7 | S179: - | T179: 6 | U179: 300 | X179: Väinö Suvioja
K180: su | L180: 11 | M180: 8 | N180: 1946 | O180: Mikkelin Ajo | P180: - | Q180: Kuopion Kopparit | R180: 7 | S180: - | T180: 22 | X180: Jorma Tapanainen
K181: su | L181: 11 | M181: 8 | N181: 1946 | O181: Savonlinnan Pallokerho | P181: - | Q181: Pieksämäen Palloilijat | R181: 3 | S181: - | T181: 6 | X181: Martti Utriainen
K182: su | L182: 11 | M182: 8 | N182: 1946 | O182: Warkauden Urheilijat | P182: - | Q182: Siilinjärven Ponnistus | R182: 19 | S182: - | T182: 4 | X182: Eino Laukkanen
K183: su | L183: 25 | M183: 8 | N183: 1946 | O183: Siilinjärven Ponnistus | P183: - | Q183: Pankakosken Tehtaan Urheilijat | R183: 1 | S183: - | T183: 6 | X183: Aimo Vartiainen
K184: su | L184: 1 | M184: 9 | N184: 1946 | O184: Pieksämäen Palloilijat | P184: - | Q184: Mikkelin Ajo | R184: 16 | S184: - | T184: 1
K185: su | L185: 1 | M185: 9 | N185: 1946 | O185: Warkauden Urheilijat | P185: - | Q185: Savonlinnan Pallokerho | R185: 10 | S185: - | T185: 6
K186: su | L186: 8 | M186: 9 | N186: 1946 | O186: Kuopion Kopparit | P186: - | Q186: Siilinjärven Ponnistus | R186: luov.
K187: su | L187: 8 | M187: 9 | N187: 1946 | O187: Pieksämäen Palloilijat | P187: - | Q187: Warkauden Urheilijat | R187: 11 | S187: - | T187: 0
K188: su | L188: 15 | M188: 9 | N188: 1946 | O188: Mikkelin Ajo | P188: - | Q188: Savonlinnan Pallokerho | R188: 4 | S188: - | T188: 5
K189: su | L189: 15 | M189: 9 | N189: 1946 | O189: Pankakosken Tehtaan Urheilijat | P189: - | Q189: Kuopion Kopparit | R189: 10 | S189: - | T189: 5
Q190: Yhteensä | R190: =SUM(R169:R189) -> 158 | S190: - | T190: =SUM(T169:T189) -> 124
M191: =COUNT(R169:R189) -> 20 | Q191: Keskiarvo | R191: =PRODUCT(R190/M191) -> 7.9 | S191: - | T191: =PRODUCT(T190/M191) -> 6.2
B193: POHJOISLOHKO 1946 | C193: O | D193: V | E193: T | F193: H | G193: TJ | H193: - | I193: AJ | J193: PIST | O193: SUOMEN SARJAN POHJOISSARJA | V193: Kauhajoen Karhu | W193: Nurmon Jymy | X193: Alajärven Ankkurit | Y193: Ilmajoen Kisailijat | Z193: Paavolan Kisa | AA193: Ylihärmän Junkkarit | AB193: Oulun Pyrintö | AC193: Sotkamon Jymy | AD193: Haapajärven Kiilat
A194: 1 | B194: Kauhajoen Karhu | C194: 8 | D194: 6 | E194: 0 | F194: 2 | G194: 48 | H194: - | I194: 17 | J194: 12 | K194: su | L194: 19 | M194: 5 | N194: 1946 | O194: Ilmajoen Kisailijat | P194: - | Q194: Nurmon Jymy | R194: 12 | S194: - | T194: 2 | V194: Helge Harju | W194: Aukusti Haapamäki | X194: Einar Aalto | Y194: Toivo Ahonen | Z194: Eino Aho | AA194: Väinö Kangas | AB194: Kaino Aho | AC194: Olli Eronen | AD194: Pekka Eräntie
A195: 2 | B195: Nurmon Jymy | C195: 8 | D195: 5 | E195: 0 | F195: 3 | G195: 72 | H195: - | I195: 67 | J195: 10 | K195: su | L195: 26 | M195: 5 | N195: 1946 | O195: Alajärven Ankkurit | P195: - | Q195: Oulun Pyrintö | R195: 2 | S195: - | T195: 1 | U195: 500 | V195: Veikko Harju | W195: Paavo Hautamäki | X195: Erkki Aalto | Y195: Lasse Hämäläinen | Z195: Paavo Aho | AA195: Reino Kauppila | AB195: Asko Haikala | AC195: Yrjö Heinänen | AD195: Aaro Tiitto
A196: 3 | B196: Alajärven Ankkurit | C196: 8 | D196: 4 | E196: 1 | F196: 3 | G196: 54 | H196: - | I196: 32 | J196: 9 | K196: su | L196: 26 | M196: 5 | N196: 1946 | O196: Paavolan Kisa | P196: - | Q196: Kauhajoen Karhu | R196: 2 | S196: - | T196: 7 | U196: 800 | V196: Veikko Kuja-aro | W196: Pentti Ilomäki | X196: Heikki Joensuu | Y196: Volmar Keskimäki | Z196: Pauli Anttila | AA196: Väinö Kaustinen | AB196: Erkki Hedman | AC196: Kauko Korhonen | AD196: Kaarlo Savolainen
A197: 4 | B197: Ilmajoen Kisailijat | C197: 8 | D197: 4 | E197: 1 | F197: 3 | G197: 43 | H197: - | I197: 47 | J197: 9 | K197: su | L197: 26 | M197: 5 | N197: 1946 | O197: Ylihärmän Junkkarit | P197: - | Q197: Nurmon Jymy | R197: 12 | S197: - | T197: 11 | U197: 550 | V197: Iisakki Kujanpää | W197: Jussi Kitinoja | X197: Oiva Nuolikoski | Y197: Aarne Koskimäki | Z197: Viljo Castren | AA197: Matti Korpela | AB197: Pentti Kamppila | AC197: Martti A Korhonen | AD197: Jorma Eräntie
A198: 5 | B198: Paavolan Kisa | C198: 8 | D198: 3 | E198: 2 | F198: 3 | G198: 50 | H198: - | I198: 37 | J198: 8 | K198: to | L198: 30 | M198: 5 | N198: 1946 | O198: Oulun Pyrintö | P198: - | Q198: Paavolan Kisa | R198: 4 | S198: - | T198: 3 | U198: 618 | V198: Taavi Kuutti | W198: Eemil Kuusela | X198: Gunnar Peltomäki | Y198: Paavo Mäntylä | Z198: Urpo Heinonen | AA198: Lauri Kurki | AB198: Sakari Kettunen | AC198: Oiva Korhonen | AD198: Urho Mikkola
A199: 6 | B199: Ylihärmän Junkkarit | C199: 8 | D199: 4 | E199: 0 | F199: 4 | G199: 45 | H199: - | I199: 44 | J199: 8 | K199: to | L199: 30 | M199: 5 | N199: 1946 | O199: Sotkamon Jymy | P199: - | Q199: Ilmajoen Kisailijat | R199: 8 | S199: - | T199: 6 | V199: Aarne Koukkari | W199: Paavo Latikka | X199: Juhani Peltomäki | Y199: Orvo Poikkimäki | Z199: Jorma Kallinen | AA199: Veikko Kurki | AB199: Veikko Leppilampi | AC199: Tauno Korhonen | AD199: Erkki Haarala
A200: 7 | B200: Oulun Pyrintö | C200: 8 | D200: 4 | E200: 0 | F200: 4 | G200: 28 | H200: - | I200: 30 | J200: 8 | K200: su | L200: 2 | M200: 6 | N200: 1946 | O200: Nurmon Jymy | P200: - | Q200: Haapajärven Kiilat | R200: 12 | S200: - | T200: 5 | V200: Olavi Rautakoura | W200: Yrjö Latikka | X200: Erkki Rantala | Y200: Arvo Rahko | Z200: Yrjö Kostet | AA200: Pentti Mäki-Ikola | AB200: Toivo Lukkarinen | AC200: Unto Korhonen | AD200: Erkki Salonen
A201: 8 | B201: Sotkamon Jymy | C201: 8 | D201: 2 | E201: 1 | F201: 5 | G201: 40 | H201: - | I201: 75 | J201: 5 | K201: su | L201: 2 | M201: 6 | N201: 1946 | O201: Ylihärmän Junkkarit | P201: - | Q201: Kauhajoen Karhu | R201: 2 | S201: - | T201: 3 | V201: Toivo Saha | W201: Ahti Luukko | X201: Anton Tallbacka | Y201: Pentti Röyskö | Z201: Eino Mainio | AA201: Mikko Panula | AB201: Pauli Lukkarinen | AC201: Oiva Meriläinen | AD201: Kaarlo Luttinen
A202: 9 | B202: Haapajärven Kiilat | C202: 8 | D202: 1 | E202: 1 | F202: 6 | G202: 25 | H202: - | I202: 56 | J202: 3 | K202: su | L202: 9 | M202: 6 | N202: 1946 | O202: Alajärven Ankkurit | P202: - | Q202: Ilmajoen Kisailijat | R202: 16 | S202: - | T202: 3 | U202: 400 | V202: Unto Saha | W202: Väinö Martikkala | X202: Jussi Vesala | Y202: Unto Salovaara | Z202: Tauno Turula | AA202: Ilmari Piippo | AB202: Aimo Miilumäki | AC202: Veikko Mustonen | AD202: Pentti Mäki
C203: =SUM(C194:C202) -> 72 | D203: =SUM(D194:D202) -> 33 | E203: =SUM(E194:E202) -> 6 | F203: =SUM(F194:F202) -> 33 | G203: =SUM(G194:G202) -> 405 | H203: - | I203: =SUM(I194:I202) -> 405 | J203: =SUM(J194:J202) -> 72 | K203: su | L203: 9 | M203: 6 | N203: 1946 | O203: Paavolan Kisa | P203: - | Q203: Sotkamon Jymy | R203: 7 | S203: - | T203: 3 | V203: Pentti Talakoski | W203: Jouko Peltola | X203: Osmo Korkea-aho | Y203: Leo Mäntylä | Z203: Kalevi Vähämaa | AA203: Matti Riihikangas | AB203: Aarno Mustonen | AC203: Veikko Suvivuo
K204: ma | L204: 10 | M204: 6 | N204: 1946 | O204: Oulun Pyrintö | P204: - | Q204: Sotkamon Jymy | R204: 11 | S204: - | T204: 3 | V204: Lauri Panula | X204: Vesa Ojajärvi | AB204: Heikki Ollikainen
B205: Kauhajoen Karhu mestaruussarjan karsintojen ykkösmarkkinoille | K205: la | L205: 15 | M205: 6 | N205: 1946 | O205: Kauhajoen Karhu | P205: - | Q205: Oulun Pyrintö | R205: 6 | S205: - | T205: 0 | U205: 150 | AB205: Valde Risteli
B206: Nurmon Jymy mestaruussarjan karsintojen kakkosmarkkinoille | K206: su | L206: 16 | M206: 6 | N206: 1946 | O206: Haapajärven Kiilat | P206: - | Q206: Paavolan Kisa | R206: 4 | S206: - | T206: 10
K207: su | L207: 16 | M207: 6 | N207: 1946 | O207: Ilmajoen Kisailijat | P207: - | Q207: Ylihärmän Junkkarit | R207: 5 | S207: - | T207: 5
K208: su | L208: 16 | M208: 6 | N208: 1946 | O208: Kauhajoen Karhu | P208: - | Q208: Alajärven Ankkurit | R208: 2 | S208: - | T208: 1 | U208: 600
K209: su | L209: 16 | M209: 6 | N209: 1946 | O209: Nurmon Jymy | P209: - | Q209: Oulun Pyrintö | R209: 4 | S209: - | T209: 0
K210: su | L210: 16 | M210: 6 | N210: 1946 | O210: Sotkamon Jymy | P210: - | Q210: Alajärven Ankkurit | R210: 4 | S210: - | T210: 3 | U210: 800
K211: su | L211: 30 | M211: 6 | N211: 1946 | O211: Haapajärven Kiilat | P211: - | Q211: Ylihärmän Junkkarit | R211: 1 | S211: - | T211: 4
K212: su | L212: 4 | M212: 8 | N212: 1946 | O212: Alajärven Ankkurit | P212: - | Q212: Nurmon Jymy | R212: 18 | S212: - | T212: 9 | U212: 400
K213: su | L213: 4 | M213: 8 | N213: 1946 | O213: Sotkamon Jymy | P213: - | Q213: Haapajärven Kiilat | R213: 8 | S213: - | T213: 8
K214: la | L214: 10 | M214: 8 | N214: 1946 | O214: Oulun Pyrintö | P214: - | Q214: Ilmajoen Kisailijat | R214: 1 | S214: - | T214: 4
... 3182 more rows

Sheet 1956-1969
B1: SUOMENSARJA 1956 - 1969
B2: Vuosina 1956-1980 runkosarjojen voittajat nousivat SM-sarjaan.
B3: Vinolla merkityt joukkueet putosivat suomensarjasta.
B5: ITÄLOHKO 1956 | C5: O | D5: V | E5: T | F5: H | G5: TJ | H5: - | I5: AJ | J5: PIST | P5: ITÄLOHKO 1956 | X5: Hongikon Nuorisoseuran Urheilijat | AC5: Kuopion Kelta-Mustat | AH5: Nurmeksen Sepot | AM5: Höytiäisten Urheilijat | AR5: Jyväskylän Kiri-Veljet | AW5: Laukkalan Luja | BB5: Siilinjärven Ponnistus | BG5: Pieksämäen Palloilijat | BL5: Pankakosken Tehtaan Urheilijat | BQ5: Keljon Nuorisoseuran Urheilijat | BV5: Outokummun Partio
A6: 1 | B6: Hongikon Nuorisoseuran Urheilijat | C6: 10 | D6: 10 | E6: 0 | F6: 0 | G6: 123 | H6: - | I6: 31 | J6: 20 | L6: su | M6: 20 | N6: 5 | O6: 1956 | P6: Kuopion Kelta-Mustat | Q6: - | R6: Pieksämäen Palloilijat | S6: 6 | T6: - | U6: 4 | V6: 200 | X6: Arvo Aalto | AC6: Veikko Kauhanen | AH6: Lasse Haikonen | AM6: Paavo Kivinen | AR6: Aulis Ahonen | AW6: Jaakko Auvinen | BB6: Pekka Airaksinen | BG6: Jussi Halonen | BL6: Paavo Brandt | BQ6: Risto Honkonen | BV6: Martti Karppanen
A7: 2 | B7: Kuopion Kelta-Mustat | C7: 10 | D7: 7 | E7: 2 | F7: 1 | G7: 56 | H7: - | I7: 32 | J7: 16 | L7: su | M7: 20 | N7: 5 | O7: 1956 | P7: Nurmeksen Sepot | Q7: - | R7: Siilinjärven Ponnistus | S7: 4 | T7: - | U7: 4 | V7: 400 | X7: Tauno Hovila | AC7: Jukka Kilpiö | AH7: Teppo Hulkko | AM7: Olli Kurki | AR7: Eero Hautamäki | AW7: Pekka Auvinen | BB7: Johannes Alikoski | BG7: Mauri Junnola | BL7: Markku Karaksela | BQ7: Raimo Huovila | BV7: Risto Korhonen
A8: 3 | B8: Nurmeksen Sepot | C8: 10 | D8: 6 | E8: 3 | F8: 1 | G8: 64 | H8: - | I8: 49 | J8: 15 | L8: su | M8: 20 | N8: 5 | O8: 1956 | P8: Pankakosken Tehtaan Urheilijat | Q8: - | R8: Jyväskylän Kiri-Veljet | S8: 1 | T8: - | U8: 8 | X8: Ismo Maanola | AC8: Paavo Launonen | AH8: Veikko Jääskeläinen | AM8: Esa-Veikko Kurki | AR8: Leevi Jaatinen | AW8: Viljo Auvinen | BB8: Tapio Hirvonen | BG8: Jouko Kyytinen | BL8: Matti Kutvonen | BQ8: Paavo Kekarainen | BV8: Seppo Korhonen
A9: 4 | B9: Höytiäisten Urheilijat | C9: 10 | D9: 5 | E9: 2 | F9: 3 | G9: 49 | H9: - | I9: 36 | J9: 12 | L9: ma | M9: 21 | N9: 5 | O9: 1956 | P9: Outokummun Partio | Q9: - | R9: Höytiäisten Urheilijat | S9: 4 | T9: - | U9: 8 | X9: Osmo Oksala | AC9: Leevi Meilahti | AH9: Pauli Korhonen | AM9: Simo Käkelä | AR9: Unto Karmakallio | AW9: Kauko Marttila | BB9: Erkki Laitinen | BG9: Keijo Lindblom | BL9: Armas Laatikainen | BQ9: Martti Kolari | BV9: Ville Mustonen
A10: 5 | B10: Jyväskylän Kiri-Veljet | C10: 10 | D10: 5 | E10: 0 | F10: 5 | G10: 73 | H10: - | I10: 56 | J10: 10 | L10: la | M10: 26 | N10: 5 | O10: 1956 | P10: Jyväskylän Kiri-Veljet | Q10: - | R10: Outokummun Partio | S10: 11 | T10: - | U10: 4 | X10: Rainer Pohjonen | AC10: Sakari Partanen | AH10: Mauri Kärki | AM10: Kosti-Heikki Lahti | AR10: Kauno Kovanen | AW10: Kalle Niskanen | BB10: Raimo Paldanius | BG10: Esko Markkanen | BL10: Pentti Nevalainen | BQ10: Allan Oksanen | BV10: Veikko Niiranen
A11: 6 | B11: Laukkalan Luja | C11: 10 | D11: 4 | E11: 1 | F11: 5 | G11: 62 | H11: - | I11: 76 | J11: 9 | L11: su | M11: 27 | N11: 5 | O11: 1956 | P11: Hongikon Nuorisoseuran Urheilijat | Q11: - | R11: Pankakosken Tehtaan Urheilijat | S11: 16 | T11: - | U11: 3 | X11: Pentti Puttonen | AC11: Matti Piispanen | AH11: Kalevi Piironen | AM11: Raimo Mustonen | AR11: Pentti Närhi | AW11: Reino Nousiainen | BB11: Paavo Pitkänen | BG11: Niilo Nykänen | BL11: Reijo Nevalainen | BQ11: Reino Raesmaa | BV11: Kauko Palviainen
A12: 7 | B12: Siilinjärven Ponnistus | C12: 10 | D12: 3 | E12: 2 | F12: 5 | G12: 58 | H12: - | I12: 72 | J12: 8 | L12: su | M12: 27 | N12: 5 | O12: 1956 | P12: Höytiäisten Urheilijat | Q12: - | R12: Nurmeksen Sepot | S12: 1 | T12: - | U12: 2 | V12: 100 | X12: Veikko Puttonen | AC12: Lauri Reinikainen | AH12: Kyösti Piironen | AM12: Terho Niiranen | AR12: Juha Parviainen | AW12: Martti Tikkanen | BB12: Jouko Ruuskanen | BG12: Pauli Puusaari | BL12: Mauri Ovaskainen | BQ12: Antero Ristonmaa | BV12: Jouko Peltola
A13: 8 | B13: Pieksämäen Palloilijat | C13: 10 | D13: 4 | E13: 0 | F13: 6 | G13: 45 | H13: - | I13: 80 | J13: 8 | L13: su | M13: 27 | N13: 5 | O13: 1956 | P13: Laukkalan Luja | Q13: - | R13: Keljon Nuorisoseuran Urheilijat | S13: 21 | T13: - | U13: 13 | X13: Aarre Pöppönen | AC13: Raimo Sepponen | AH13: Veli Poutiainen | AM13: Hannu Närhi | AR13: Matti Pulli | AW13: Pentti Tikkanen | BB13: Jouko Tuhkanen | BG13: Pekka Puusaari | BL13: Mauri Pyykkö | BQ13: Erkki Routti | BV13: Heimo Pääkkönen
A14: 9 | B14: Pankakosken Tehtaan Urheilijat | C14: 10 | D14: 3 | E14: 0 | F14: 7 | G14: 70 | H14: - | I14: 87 | J14: 6 | L14: su | M14: 27 | N14: 5 | O14: 1956 | P14: Pieksämäen Palloilijat | Q14: - | R14: Outokummun Partio | S14: 8 | T14: - | U14: 5 | X14: Seppo Stendahl | AC14: Vesa Virtanen | AH14: Tuomo Sairanen | AM14: Arvo Pippola | AR14: Veikko Melkinen | AW14: Viljo Tikkanen | BB14: Antero Alikoski | BG14: Jorma Seppänen | BL14: Toivo Saastamoinen | BQ14: Risto Vertainen | BV14: Aulis Valtonen
A15: 10 | B15: Keljon Nuorisoseuran Urheilijat | C15: 10 | D15: 2 | E15: 0 | F15: 8 | G15: 59 | H15: - | I15: 101 | J15: 4 | L15: su | M15: 3 | N15: 6 | O15: 1956 | P15: Keljon Nuorisoseuran Urheilijat | Q15: - | R15: Kuopion Kelta-Mustat | S15: 1 | T15: - | U15: 5 | X15: Esa Toikkanen | AC15: Esko Hämäläinen | AH15: Pentti Sopanen | AM15: Matti Pippola | AR15: E Oksanen | AW15: Seppo Laukkanen | BB15: Jaakko Alikoski | BG15: Pentti Sohlberg | BL15: Kalevi Tuulenmäki | BQ15: Eero Häkkinen | BV15: Esa Viinanen
A16: 11 | B16: Outokummun Partio | C16: 10 | D16: 1 | E16: 0 | F16: 9 | G16: 50 | H16: - | I16: 89 | J16: 2 | L16: su | M16: 3 | N16: 6 | O16: 1956 | P16: Laukkalan Luja | Q16: - | R16: Nurmeksen Sepot | S16: 2 | T16: - | U16: 2 | V16: 200 | X16: Ville Markkanen | AC16: Toivo Manninen | AH16: Ilmari Tykkyläinen | AM16: Eero Pitkänen | AR16: Kari Rautiainen | BB16: P Kangas | BG16: Osmo Tamminen | BL16: Erkki Kuittinen | BQ16: Reijo Poutamo | BV16: Matti Vitikka
C17: =SUM(C6:C16) -> 110 | D17: =SUM(D6:D16) -> 50 | E17: =SUM(E6:E16) -> 10 | F17: =SUM(F6:F16) -> 50 | G17: =SUM(G6:G16) -> 709 | H17: - | I17: =SUM(I6:I16) -> 709 | J17: =SUM(J6:J16) -> 110 | L17: su | M17: 3 | N17: 6 | O17: 1956 | P17: Pankakosken Tehtaan Urheilijat | Q17: - | R17: Pieksämäen Palloilijat | S17: 5 | T17: - | U17: 6 | X17: Matti Kaakkolahti | AC17: Lauri Miettinen | AH17: Toivo Toivonen | AR17: P Rautiainen | BB17: Matti Tikkanen | BG17: Jaakko Vauhkonen | BL17: Jorma Nevalainen | BV17: Reijo Voutilainen
L18: su | M18: 3 | N18: 6 | O18: 1956 | P18: Siilinjärven Ponnistus | Q18: - | R18: Höytiäisten Urheilijat | S18: 7 | T18: - | U18: 7 | V18: 500 | AC18: Kimmo Nikkilä | AR18: Kalevi Uusi-Maahi | BG18: Seppo Koivisto | BL18: Heikki Ylikangas | BV18: Teemu Bruun
B19: Hongikon Nuorisoseuran Urheilijat mestaruussarjaan | L19: la | M19: 9 | N19: 6 | O19: 1956 | P19: Nurmeksen Sepot | Q19: - | R19: Hongikon Nuorisoseuran Urheilijat | S19: 1 | T19: - | U19: 13 | BG19: X Parkkinen | BV19: Voitto Kontkanen
L20: su | M20: 10 | N20: 6 | O20: 1956 | P20: Kuopion Kelta-Mustat | Q20: - | R20: Jyväskylän Kiri-Veljet | S20: 6 | T20: - | U20: 2 | BG20: Lauri Eliala | BV20: Juhani Turunen
L21: su | M21: 10 | N21: 6 | O21: 1956 | P21: Outokummun Partio | Q21: - | R21: Keljon Nuorisoseuran Urheilijat | S21: 5 | T21: - | U21: 11 | V21: 300 | BG21: X Katainen
L22: su | M22: 10 | N22: 6 | O22: 1956 | P22: Siilinjärven Ponnistus | Q22: - | R22: Hongikon Nuorisoseuran Urheilijat | S22: 1 | T22: - | U22: 6 | V22: 127 | BG22: X Karvonen
L23: la | M23: 16 | N23: 6 | O23: 1956 | P23: Pieksämäen Palloilijat | Q23: - | R23: Laukkalan Luja | S23: 2 | T23: - | U23: 16 | BG23: Jukka Puusaari
L24: su | M24: 17 | N24: 6 | O24: 1956 | P24: Hongikon Nuorisoseuran Urheilijat | Q24: - | R24: Kuopion Kelta-Mustat | S24: 11 | T24: - | U24: 3 | V24: 300
L25: su | M25: 17 | N25: 6 | O25: 1956 | P25: Höytiäisten Urheilijat | Q25: - | R25: Pankakosken Tehtaan Urheilijat | S25: 5 | T25: - | U25: 3
L26: su | M26: 17 | N26: 6 | O26: 1956 | P26: Jyväskylän Kiri-Veljet | Q26: - | R26: Laukkalan Luja | S26: 3 | T26: - | U26: 4
L27: su | M27: 17 | N27: 6 | O27: 1956 | P27: Keljon Nuorisoseuran Urheilijat | Q27: - | R27: Siilinjärven Ponnistus | S27: 6 | T27: - | U27: 4
L28: su | M28: 22 | N28: 7 | O28: 1956 | P28: Kuopion Kelta-Mustat | Q28: - | R28: Outokummun Partio | S28: 7 | T28: - | U28: 1
L29: su | M29: 22 | N29: 7 | O29: 1956 | P29: Siilinjärven Ponnistus | Q29: - | R29: Laukkalan Luja | S29: 7 | T29: - | U29: 4 | V29: 30
L30: to | M30: 26 | N30: 7 | O30: 1956 | P30: Nurmeksen Sepot | Q30: - | R30: Pankakosken Tehtaan Urheilijat | S30: 8 | T30: - | U30: 2
L31: su | M31: 29 | N31: 7 | O31: 1956 | P31: Jyväskylän Kiri-Veljet | Q31: - | R31: Hongikon Nuorisoseuran Urheilijat | S31: 6 | T31: - | U31: 11
L32: su | M32: 29 | N32: 7 | O32: 1956 | P32: Pieksämäen Palloilijat | Q32: - | R32: Keljon Nuorisoseuran Urheilijat | S32: 9 | T32: - | U32: 3 | V32: 200
L33: su | M33: 5 | N33: 8 | O33: 1956 | P33: Höytiäisten Urheilijat | Q33: - | R33: Kuopion Kelta-Mustat | S33: 0 | T33: - | U33: 0
L34: su | M34: 5 | N34: 8 | O34: 1956 | P34: Laukkalan Luja | Q34: - | R34: Hongikon Nuorisoseuran Urheilijat | S34: 2 | T34: - | U34: 7
L35: su | M35: 5 | N35: 8 | O35: 1956 | P35: Nurmeksen Sepot | Q35: - | R35: Pieksämäen Palloilijat | S35: 8 | T35: - | U35: 2 | V35: 400
L36: su | M36: 5 | N36: 8 | O36: 1956 | P36: Outokummun Partio | Q36: - | R36: Siilinjärven Ponnistus | S36: 8 | T36: - | U36: 3 | V36: 200
L37: su | M37: 5 | N37: 8 | O37: 1956 | P37: Pankakosken Tehtaan Urheilijat | Q37: - | R37: Keljon Nuorisoseuran Urheilijat | S37: 12 | T37: - | U37: 6
L38: su | M38: 12 | N38: 8 | O38: 1956 | P38: Hongikon Nuorisoseuran Urheilijat | Q38: - | R38: Höytiäisten Urheilijat | S38: 13 | T38: - | U38: 4
L39: su | M39: 12 | N39: 8 | O39: 1956 | P39: Keljon Nuorisoseuran Urheilijat | Q39: - | R39: Höytiäisten Urheilijat | S39: 1 | T39: - | U39: 5
L40: su | M40: 12 | N40: 8 | O40: 1956 | P40: Kuopion Kelta-Mustat | Q40: - | R40: Laukkalan Luja | S40: 12 | T40: - | U40: 2
L41: su | M41: 12 | N41: 8 | O41: 1956 | P41: Pieksämäen Palloilijat | Q41: - | R41: Siilinjärven Ponnistus | S41: 1 | T41: - | U41: 3
L42: la | M42: 18 | N42: 8 | O42: 1956 | P42: Keljon Nuorisoseuran Urheilijat | Q42: - | R42: Nurmeksen Sepot | S42: 9 | T42: - | U42: 12
L43: la | M43: 18 | N43: 8 | O43: 1956 | P43: Kuopion Kelta-Mustat | Q43: - | R43: Pankakosken Tehtaan Urheilijat | S43: 6 | T43: - | U43: 2
L44: su | M44: 19 | N44: 8 | O44: 1956 | P44: Höytiäisten Urheilijat | Q44: - | R44: Pieksämäen Palloilijat | S44: 10 | T44: - | U44: 2
L45: su | M45: 19 | N45: 8 | O45: 1956 | P45: Jyväskylän Kiri-Veljet | Q45: - | R45: Nurmeksen Sepot | S45: 7 | T45: - | U45: 12
L46: su | M46: 19 | N46: 8 | O46: 1956 | P46: Outokummun Partio | Q46: - | R46: Hongikon Nuorisoseuran Urheilijat | S46: 4 | T46: - | U46: 9
L47: su | M47: 19 | N47: 8 | O47: 1956 | P47: Siilinjärven Ponnistus | Q47: - | R47: Pankakosken Tehtaan Urheilijat | S47: 18 | T47: - | U47: 9
L48: su | M48: 26 | N48: 8 | O48: 1956 | P48: Hongikon Nuorisoseuran Urheilijat | Q48: - | R48: Pieksämäen Palloilijat | S48: 20 | T48: - | U48: 4
L49: su | M49: 26 | N49: 8 | O49: 1956 | P49: Keljon Nuorisoseuran Urheilijat | Q49: - | R49: Jyväskylän Kiri-Veljet | S49: 6 | T49: - | U49: 11
L50: su | M50: 26 | N50: 8 | O50: 1956 | P50: Laukkalan Luja | Q50: - | R50: Höytiäisten Urheilijat | S50: 1 | T50: - | U50: 8
L51: su | M51: 26 | N51: 8 | O51: 1956 | P51: Pankakosken Tehtaan Urheilijat | Q51: - | R51: Outokummun Partio | S51: 14 | T51: - | U51: 9
L52: su | M52: 26 | N52: 8 | O52: 1956 | P52: Siilinjärven Ponnistus | Q52: - | R52: Kuopion Kelta-Mustat | S52: 7 | T52: - | U52: 9
L53: to | M53: 30 | N53: 8 | O53: 1956 | P53: Hongikon Nuorisoseuran Urheilijat | Q53: - | R53: Keljon Nuorisoseuran Urheilijat | S53: 17 | T53: - | U53: 3
L54: la | M54: 1 | N54: 9 | O54: 1956 | P54: Höytiäisten Urheilijat | Q54: - | R54: Jyväskylän Kiri-Veljet | S54: 1 | T54: - | U54: 3
L55: su | M55: 2 | N55: 9 | O55: 1956 | P55: Laukkalan Luja | Q55: - | R55: Outokummun Partio | S55: 5 | T55: - | U55: 3
L56: su | M56: 2 | N56: 9 | O56: 1956 | P56: Nurmeksen Sepot | Q56: - | R56: Kuopion Kelta-Mustat | S56: 2 | T56: - | U56: 2 | V56: 500
L57: su | M57: 2 | N57: 9 | O57: 1956 | P57: Pieksämäen Palloilijat | Q57: - | R57: Jyväskylän Kiri-Veljet | S57: 7 | T57: - | U57: 4 | V57: 200
L58: su | M58: 16 | N58: 9 | O58: 1956 | P58: Jyväskylän Kiri-Veljet | Q58: - | R58: Siilinjärven Ponnistus | S58: 18 | T58: - | U58: 4
L59: su | M59: 16 | N59: 9 | O59: 1956 | P59: Outokummun Partio | Q59: - | R59: Nurmeksen Sepot | S59: 7 | T59: - | U59: 13 | V59: 300
L60: su | M60: 16 | N60: 9 | O60: 1956 | P60: Pankakosken Tehtaan Urheilijat | Q60: - | R60: Laukkalan Luja | S60: 19 | T60: - | U60: 5
R61: Yhteensä | S61: =SUM(S6:S60) -> 399 | T61: - | U61: =SUM(U6:U60) -> 310
N62: =COUNT(S6:S60) -> 55 | R62: Keskiarvo | S62: =PRODUCT(S61/N62) -> 7.3 | T62: - | U62: =PRODUCT(U61/N62) -> 5.6
B65: ETELÄLOHKO 1956 | C65: O | D65: V | E65: T | F65: H | G65: TJ | H65: - | I65: AJ | J65: PIST | P65: ETELÄLOHKO 1956 | X65: Katajanokan Haukat | AC65: Imatran Pallo-Veikot | AH65: Myllykosken Kilpa-Veikot | AM65: Lauritsalan Kisa | AR65: Lahden Pesä-Toverit | AW65: Riihimäen Pallonlyöjät | BB65: Keravan Toverit | BG65: Tervakosken Pato | BL65: Jääsken Kirijät | BQ65: Työväen Maila-Pojat 2 | BV65: Heinolan Isku
A66: 1 | B66: Katajanokan Haukat | C66: 10 | D66: 9 | E66: 0 | F66: 1 | G66: 129 | H66: - | I66: 34 | J66: 18 | L66: ma | M66: 21 | N66: 5 | O66: 1956 | P66: Lahden Pesä-Toverit | Q66: - | R66: Jääsken Kirijät | S66: 15 | T66: - | U66: 4 | X66: Eero Hätälä | AC66: Esko Heino | AH66: Timo Ahlgren | AM66: Tapani Hyyryläinen | AR66: Armas Hahl | AW66: Pekka Akila | BB66: Rauno Hassell | BG66: Reijo Peltola | BL66: Pekka Husu | BQ66: Pentti Acklen | BV66: Erkki Kalliokoski
A67: 2 | B67: Imatran Pallo-Veikot | C67: 10 | D67: 7 | E67: 1 | F67: 2 | G67: 92 | H67: - | I67: 38 | J67: 15 | L67: ma | M67: 21 | N67: 5 | O67: 1956 | P67: Imatran Pallo-Veikot | Q67: - | R67: Riihimäen Pallonlyöjät | S67: 11 | T67: - | U67: 0 | V67: 500 | X67: Erkki Jokinen | AC67: Oiva Hienonen | AH67: Reijo Linden | AM67: Pentti Kekola | AR67: Pentti Haikkala | AW67: Raimo Etelämäki | BB67: Tauno Hietanen | BG67: Eero Seitsonen | BL67: Pentti Hytönen | BQ67: Kalevi Heinänen | BV67: Helmer Lilja
A68: 3 | B68: Myllykosken Kilpa-Veikot | C68: 10 | D68: 7 | E68: 0 | F68: 3 | G68: 79 | H68: - | I68: 39 | J68: 14 | L68: ma | M68: 21 | N68: 5 | O68: 1956 | P68: Lauritsalan Kisa | Q68: - | R68: Myllykosken Kilpa-Veikot | S68: 1 | T68: - | U68: 4 | X68: Jussi Lappi | AC68: Erkki Huttunen | AH68: Jaakko Pokki | AM68: Hannu Kotonen | AR68: Pauli Helander | AW68: Kalevi Huovinen | BB68: Teuvo Hietanen | BG68: Henry Angervuo | BL68: Heikki Jantunen | BQ68: Erkki Hintikainen | BV68: Kari Määttä
A69: 4 | B69: Lauritsalan Kisa | C69: 10 | D69: 5 | E69: 2 | F69: 3 | G69: 68 | H69: - | I69: 52 | J69: 12 | L69: ma | M69: 21 | N69: 5 | O69: 1956 | P69: Työväen Maila-Pojat 2 | Q69: - | R69: Keravan Toverit | S69: 2 | T69: - | U69: 13 | X69: Yrjö Launonen | AC69: Oiva Huuskonen | AH69: Timo Raussi | AM69: Joel Kotonen | AR69: Yrjö Koho | AW69: Jorma Häkli | BB69: Anssi Jokinen | BG69: Leo Pihlajamäki | BL69: Erkki Korhonen | BQ69: Tauno Hintikainen | BV69: Hannu Pystynen
A70: 5 | B70: Lahden Pesä-Toverit | C70: 10 | D70: 5 | E70: 2 | F70: 3 | G70: 84 | H70: - | I70: 72 | J70: 12 | L70: su | M70: 27 | N70: 5 | O70: 1956 | P70: Katajanokan Haukat | Q70: - | R70: Lahden Pesä-Toverit | S70: 7 | T70: - | U70: 3 | X70: Pauli Lehto | AC70: Heikki Lappalainen | AH70: Antero Viherkenttä | AM70: Ossi Meilahti | AR70: Veikko Kokko | AW70: Tapani Häti | BB70: Aimo Koskinen | BG70: Kari Jokinen | BL70: Toivo Olkkonen | BQ70: Aake Leinonen | BV70: Seppo Salohonka
A71: 6 | B71: Riihimäen Pallonlyöjät | C71: 10 | D71: 5 | E71: 1 | F71: 4 | G71: 61 | H71: - | I71: 57 | J71: 11 | L71: su | M71: 27 | N71: 5 | O71: 1956 | P71: Jääsken Kirijät | Q71: - | R71: Tervakosken Pato | S71: 8 | T71: - | U71: 9 | X71: Nils Nikander | AC71: Lauri Oinonen | AH71: Osmo Kanttura | AM71: Lauri Pasi | AR71: Veli Korhonen | AW71: Aulis Juntto | BB71: Pekka Luukkonen | BG71: Uuri Ståhlhammar | BL71: Pentti Pajunen | BQ71: Erkki Paasonen | BV71: Veikko Salminen
A72: 7 | B72: Keravan Toverit | C72: 10 | D72: 4 | E72: 2 | F72: 4 | G72: 66 | H72: - | I72: 62 | J72: 10 | L72: su | M72: 27 | N72: 5 | O72: 1956 | P72: Heinolan Isku | Q72: - | R72: Imatran Pallo-Veikot | S72: 2 | T72: - | U72: 10 | V72: 200 | X72: Eino Ojanen | AC72: Pentti Oinonen | AH72: Pentti Kurhinen | AM72: Vilho Pekkonen | AR72: Esko Lahtinen | AW72: Osmo Kaipia | BB72: Matti Oksanen | BG72: Yrjö Luukkonen | BL72: Raimo Paasonen | BQ72: Reino Peltonen | BV72: Jaakko Mäkijärvi
A73: 8 | B73: Tervakosken Pato | C73: 10 | D73: 5 | E73: 0 | F73: 5 | G73: 69 | H73: - | I73: 73 | J73: 10 | L73: ma | M73: 28 | N73: 5 | O73: 1956 | P73: Lauritsalan Kisa | Q73: - | R73: Tervakosken Pato | S73: 11 | T73: - | U73: 14 | X73: Kyösti Rainila | AC73: Veijo Mölsä | AH73: Rauno Lampinen | AM73: Leevi Ryhänen | AR73: Erkki Nieminen | AW73: Jorma Kangas | BB73: Antti Pennanen | BG73: Paavo Selin | BL73: Kauko Salakka | BQ73: Tapio Pöyhönen | BV73: Ukko Kosunen
A74: 9 | B74: Jääsken Kirijät | C74: 10 | D74: 2 | E74: 0 | F74: 8 | G74: 40 | H74: - | I74: 80 | J74: 4 | L74: su | M74: 3 | N74: 6 | O74: 1956 | P74: Työväen Maila-Pojat 2 | Q74: - | R74: Jääsken Kirijät | S74: 11 | T74: - | U74: 0 | X74: Erkki Salmi | AC74: Ensio Purovaara | AH74: Kai Tapola | AM74: Pentti Smolander | AR74: Raimo Sallinen | AW74: Tuomo Marila | BB74: Erkki Raejärvi | BG74: Aarre Ventola | BL74: Unto Hanski | BQ74: Rainer Sohlman | BV74: Jouko Niemelä
A75: 10 | B75: Työväen Maila-Pojat 2 | C75: 10 | D75: 2 | E75: 0 | F75: 8 | G75: 38 | H75: - | I75: 130 | J75: 4 | L75: su | M75: 3 | N75: 6 | O75: 1956 | P75: Tervakosken Pato | Q75: - | R75: Heinolan Isku | S75: 10 | T75: - | U75: 4 | X75: Ismo Heikkinen | AC75: Lauri Tyyskä | AH75: Risto Tapola | AM75: Tauno Temonen | AR75: Jouko Salminen | AW75: Timo Päivölä | BB75: Erkki Ripatti | BG75: Pertti Pajunen | BL75: Väinö Suikkari | BQ75: Mikko Voutilainen | BV75: Hannu Virtanen
A76: 11 | B76: Heinolan Isku | C76: 10 | D76: 0 | E76: 0 | F76: 10 | G76: 25 | H76: - | I76: 114 | J76: 0 | L76: su | M76: 3 | N76: 6 | O76: 1956 | P76: Lahden Pesä-Toverit | Q76: - | R76: Myllykosken Kilpa-Veikot | S76: 8 | T76: - | U76: 7 | V76: 100 | X76: Aarno Onnela | AC76: Lauri Simanainen | AH76: Pekka Toikka | AM76: Timo Kotonen | AW76: Antero Salonen | BB76: Leo Salminen | BG76: Eero Pohjoiskoski | BL76: Markku Ahopalo | BQ76: Kalevi Äijälä
C77: =SUM(C66:C76) -> 110 | D77: =SUM(D66:D76) -> 51 | E77: =SUM(E66:E76) -> 8 | F77: =SUM(F66:F76) -> 51 | G77: =SUM(G66:G76) -> 751 | H77: - | I77: =SUM(I66:I76) -> 751 | J77: =SUM(J66:J76) -> 110 | L77: su | M77: 3 | N77: 6 | O77: 1956 | P77: Keravan Toverit | Q77: - | R77: Katajanokan Haukat | S77: 1 | T77: - | U77: 3 | X77: Raimo Sihvola | AC77: Pekka Virelä | AH77: Pekka Vauhkonen | AM77: Erkki Soini | AW77: Matti Lampinen | BL77: U Bryggare | BQ77: Olli Dahllund
L78: su | M78: 3 | N78: 6 | O78: 1956 | P78: Riihimäen Pallonlyöjät | Q78: - | R78: Lauritsalan Kisa | S78: 5 | T78: - | U78: 9 | V78: 350 | X78: X Siltanen | AM78: Heikki Talikka | AW78: Erkki Mäkinen | BL78: Heimo Jantunen | BQ78: Taisto Kekkonen
B79: Katajanokan Haukat mestaruussarjaan | L79: to | M79: 7 | N79: 6 | O79: 1956 | P79: Riihimäen Pallonlyöjät | Q79: - | R79: Katajanokan Haukat | S79: 4 | T79: - | U79: 9 | V79: 300 | X79: X Veikkanen | BL79: Heikki Pajunen | BQ79: Tuomo Ristola
L80: su | M80: 10 | N80: 6 | O80: 1956 | P80: Tervakosken Pato | Q80: - | R80: Työväen Maila-Pojat 2 | S80: 21 | T80: - | U80: 9 | V80: 150 | BL80: Alpo Piirainen | BQ80: Veikko Auersalmi
L81: su | M81: 10 | N81: 6 | O81: 1956 | P81: Jääsken Kirijät | Q81: - | R81: Heinolan Isku | S81: 9 | T81: - | U81: 1 | BL81: O Sintonen | BQ81: Kalevi Lehtonen
L82: su | M82: 10 | N82: 6 | O82: 1956 | P82: Katajanokan Haukat | Q82: - | R82: Imatran Pallo-Veikot | S82: 15 | T82: - | U82: 9 | V82: 300
L83: su | M83: 10 | N83: 6 | O83: 1956 | P83: Keravan Toverit | Q83: - | R83: Lahden Pesä-Toverit | S83: 9 | T83: - | U83: 10
L84: su | M84: 10 | N84: 6 | O84: 1956 | P84: Myllykosken Kilpa-Veikot | Q84: - | R84: Riihimäen Pallonlyöjät | S84: 7 | T84: - | U84: 0 | V84: 300
L85: su | M85: 17 | N85: 6 | O85: 1956 | P85: Heinolan Isku | Q85: - | R85: Lauritsalan Kisa | S85: 2 | T85: - | U85: 14 | V85: 200
L86: su | M86: 17 | N86: 6 | O86: 1956 | P86: Imatran Pallo-Veikot | Q86: - | R86: Työväen Maila-Pojat 2 | S86: 25 | T86: - | U86: 0
L87: su | M87: 17 | N87: 6 | O87: 1956 | P87: Myllykosken Kilpa-Veikot | Q87: - | R87: Keravan Toverit | S87: 18 | T87: - | U87: 4
L88: su | M88: 22 | N88: 7 | O88: 1956 | P88: Katajanokan Haukat | Q88: - | R88: Tervakosken Pato | S88: 16 | T88: - | U88: 0
L89: su | M89: 22 | N89: 7 | O89: 1956 | P89: Lahden Pesä-Toverit | Q89: - | R89: Työväen Maila-Pojat 2 | S89: 16 | T89: - | U89: 2
L90: su | M90: 22 | N90: 7 | O90: 1956 | P90: Imatran Pallo-Veikot | Q90: - | R90: Lauritsalan Kisa | S90: 1 | T90: - | U90: 2 | V90: 400
L91: su | M91: 29 | N91: 7 | O91: 1956 | P91: Riihimäen Pallonlyöjät | Q91: - | R91: Heinolan Isku | S91: 16 | T91: - | U91: 4 | V91: 300
L92: su | M92: 29 | N92: 7 | O92: 1956 | P92: Keravan Toverit | Q92: - | R92: Jääsken Kirijät | S92: 5 | T92: - | U92: 0
L93: su | M93: 29 | N93: 7 | O93: 1956 | P93: Lauritsalan Kisa | Q93: - | R93: Katajanokan Haukat | S93: 6 | T93: - | U93: 4 | V93: 300
L94: su | M94: 29 | N94: 7 | O94: 1956 | P94: Myllykosken Kilpa-Veikot | Q94: - | R94: Imatran Pallo-Veikot | S94: 3 | T94: - | U94: 5 | V94: 300
L95: su | M95: 5 | N95: 8 | O95: 1956 | P95: Imatran Pallo-Veikot | Q95: - | R95: Lahden Pesä-Toverit | S95: 11 | T95: - | U95: 11 | V95: 500
L96: su | M96: 5 | N96: 8 | O96: 1956 | P96: Työväen Maila-Pojat 2 | Q96: - | R96: Riihimäen Pallonlyöjät | S96: 0 | T96: - | U96: 6
L97: su | M97: 5 | N97: 8 | O97: 1956 | P97: Jääsken Kirijät | Q97: - | R97: Myllykosken Kilpa-Veikot | S97: 1 | T97: - | U97: 6
L98: su | M98: 5 | N98: 8 | O98: 1956 | P98: Heinolan Isku | Q98: - | R98: Keravan Toverit | S98: 6 | T98: - | U98: 13 | V98: 200
L99: su | M99: 12 | N99: 8 | O99: 1956 | P99: Keravan Toverit | Q99: - | R99: Lauritsalan Kisa | S99: 3 | T99: - | U99: 3
L100: su | M100: 12 | N100: 8 | O100: 1956 | P100: Tervakosken Pato | Q100: - | R100: Myllykosken Kilpa-Veikot | S100: 2 | T100: - | U100: 5
L101: to | M101: 16 | N101: 8 | O101: 1956 | P101: Katajanokan Haukat | Q101: - | R101: Työväen Maila-Pojat 2 | S101: 20 | T101: - | U101: 3
L102: to | M102: 16 | N102: 8 | O102: 1956 | P102: Tervakosken Pato | Q102: - | R102: Riihimäen Pallonlyöjät | S102: 2 | T102: - | U102: 3 | V102: 200
L103: to | M103: 16 | N103: 8 | O103: 1956 | P103: Jääsken Kirijät | Q103: - | R103: Imatran Pallo-Veikot | S103: 1 | T103: - | U103: 4
L104: su | M104: 19 | N104: 8 | O104: 1956 | P104: Katajanokan Haukat | Q104: - | R104: Heinolan Isku | S104: 21 | T104: - | U104: 3
L105: su | M105: 19 | N105: 8 | O105: 1956 | P105: Myllykosken Kilpa-Veikot | Q105: - | R105: Työväen Maila-Pojat 2 | S105: 19 | T105: - | U105: 1 | V105: 250
L106: su | M106: 19 | N106: 8 | O106: 1956 | P106: Riihimäen Pallonlyöjät | Q106: - | R106: Keravan Toverit | S106: 7 | T106: - | U106: 7
L107: su | M107: 19 | N107: 8 | O107: 1956 | P107: Lahden Pesä-Toverit | Q107: - | R107: Tervakosken Pato | S107: 5 | T107: - | U107: 9
L108: ti | M108: 21 | N108: 8 | O108: 1956 | P108: Heinolan Isku | Q108: - | R108: Lahden Pesä-Toverit | S108: 1 | T108: - | U108: 5 | V108: 100
L109: ke | M109: 22 | N109: 8 | O109: 1956 | P109: Keravan Toverit | Q109: - | R109: Tervakosken Pato | S109: 7 | T109: - | U109: 2
L110: su | M110: 26 | N110: 8 | O110: 1956 | P110: Lauritsalan Kisa | Q110: - | R110: Jääsken Kirijät | S110: 7 | T110: - | U110: 10
L111: su | M111: 26 | N111: 8 | O111: 1956 | P111: Myllykosken Kilpa-Veikot | Q111: - | R111: Heinolan Isku | S111: 8 | T111: - | U111: 0 | V111: 300
L112: su | M112: 26 | N112: 8 | O112: 1956 | P112: Riihimäen Pallonlyöjät | Q112: - | R112: Jääsken Kirijät | S112: 5 | T112: - | U112: 4
L113: su | M113: 2 | N113: 9 | O113: 1956 | P113: Katajanokan Haukat | Q113: - | R113: Myllykosken Kilpa-Veikot | S113: 17 | T113: - | U113: 2 | V113: 200
L114: su | M114: 2 | N114: 9 | O114: 1956 | P114: Imatran Pallo-Veikot | Q114: - | R114: Keravan Toverit | S114: 11 | T114: - | U114: 4 | V114: 300
L115: su | M115: 2 | N115: 9 | O115: 1956 | P115: Työväen Maila-Pojat 2 | Q115: - | R115: Lauritsalan Kisa | S115: 2 | T115: - | U115: 8
L116: su | M116: 2 | N116: 9 | O116: 1956 | P116: Lahden Pesä-Toverit | Q116: - | R116: Riihimäen Pallonlyöjät | S116: 4 | T116: - | U116: 15
L117: su | M117: 16 | N117: 9 | O117: 1956 | P117: Heinolan Isku | Q117: - | R117: Työväen Maila-Pojat 2 | S117: 2 | T117: - | U117: 8
L118: su | M118: 16 | N118: 9 | O118: 1956 | P118: Jääsken Kirijät | Q118: - | R118: Katajanokan Haukat | S118: 3 | T118: - | U118: 17
L119: su | M119: 16 | N119: 9 | O119: 1956 | P119: Lauritsalan Kisa | Q119: - | R119: Lahden Pesä-Toverit | S119: 7 | T119: - | U119: 7
L120: su | M120: 16 | N120: 9 | O120: 1956 | P120: Tervakosken Pato | Q120: - | R120: Imatran Pallo-Veikot | S120: 0 | T120: - | U120: 5
S121: =SUM(S66:S120) -> 437 | T121: - | U121: =SUM(U66:U120) -> 314
N122: =COUNT(S66:S120) -> 55 | R122: Keskiarvo | S122: =PRODUCT(S121/N122) -> 7.9 | T122: - | U122: =PRODUCT(U121/N122) -> 5.7
B125: LÄNSILOHKO 1956 | C125: O | D125: V | E125: T | F125: H | G125: TJ | H125: - | I125: AJ | J125: PIST | P125: LÄNSILOHKO 1956 | X125: Harjavallan Jymy | AC125: Seinäjoen Maila-Jussit | AH125: Loimaan Palloilijat | AM125: Alajärven Ankkurit | AR125: Ylistaron Kilpa-Veljet | AW125: Vaasan Maila | BB125: Loimaan Leisku | BG125: Kauhajoen Karhu | BL125: Toijalan Pallo-Veikot | BQ125: Nokian Urheilijat | BV125: Lännen Pallo, Turku
A126: 1 | B126: Harjavallan Jymy | C126: 10 | D126: 6 | E126: 1 | F126: 3 | G126: 64 | H126: - | I126: 35 | J126: 13 | L126: su | M126: 20 | N126: 5 | O126: 1956 | P126: Ylistaron Kilpa-Veljet | Q126: - | R126: Alajärven Ankkurit | S126: 9 | T126: - | U126: 5 | V126: 200 | X126: Eero Korhonen | AC126: Rauno Edelman | AH126: Esko Häyry | AM126: Juhani Harju | AR126: Olavi Kuntsi | AW126: Gustav Bergman | BB126: Veikko Harteela | BG126: Pentti Ala-Harja | BL126: Kalevi Alvi | BQ126: Martti Hallberg | BV126: Reijo Alamäki
A127: 2 | B127: Seinäjoen Maila-Jussit | C127: 10 | D127: 5 | E127: 3 | F127: 2 | G127: 58 | H127: - | I127: 35 | J127: 13 | L127: ma | M127: 21 | N127: 5 | O127: 1956 | P127: Lännen Pallo, Turku | Q127: - | R127: Toijalan Pallo-Veikot | S127: 5 | T127: - | U127: 1 | X127: Matti Korhonen | AC127: Valto Heikkilä | AH127: Matti Korpela | AM127: Matti Harju | AR127: Pentti Koski | AW127: Osmo Hannuksela | BB127: Heikki Kreivilä | BG127: Helge Harju | BL127: Ilpo Antila | BQ127: Yrjö Häyhä | BV127: Erik Jaakkola
A128: 3 | B128: Loimaan Palloilijat | C128: 10 | D128: 5 | E128: 3 | F128: 2 | G128: 51 | H128: - | I128: 29 | J128: 13 | L128: ma | M128: 21 | N128: 5 | O128: 1956 | P128: Loimaan Palloilijat | Q128: - | R128: Harjavallan Jymy | S128: 3 | T128: - | U128: 5 | X128: Toivo Krannila | AC128: Matti Koskela | AH128: Kauko Leino | AM128: Heikki Joensuu | AR128: X Kaakinen | AW128: Erkki Heikkilä | BB128: Pekka Laine | BG128: Toivo Jerkku | BL128: Mikko Halme | BQ128: Jorma Kankaanpää | BV128: Pauli Jousimo
A129: 4 | B129: Alajärven Ankkurit | C129: 10 | D129: 6 | E129: 1 | F129: 3 | G129: 48 | H129: - | I129: 43 | J129: 13 | L129: ma | M129: 21 | N129: 5 | O129: 1956 | P129: Vaasan Maila | Q129: - | R129: Seinäjoen Maila-Jussit | S129: 4 | T129: - | U129: 4 | V129: 300 | X129: Aimo Kukkonen | AC129: Ville Lehmus | AH129: Antti Nurminen | AM129: Voitto Joensuu | AR129: Mauno Nyrhinen | AW129: Mauno Hyytinen | BB129: Jussi Lehtiö | BG129: Matti Kallionpää | BL129: Reijo Helenius | BQ129: Pentti Leppänen | BV129: Rainer Lehto
A130: 5 | B130: Ylistaron Kilpa-Veljet | C130: 10 | D130: 5 | E130: 0 | F130: 5 | G130: 52 | H130: - | I130: 64 | J130: 10 | L130: su | M130: 27 | N130: 5 | O130: 1956 | P130: Kauhajoen Karhu | Q130: - | R130: Lännen Pallo, Turku | S130: 1 | T130: - | U130: 1 | V130: 300 | X130: Esa Normala | AC130: Martti Palolouma | AH130: Arto Ojala | AM130: Yrjö Joensuu | AR130: Antti Ristimäki | AW130: Keijo Lehmussaari | BB130: Heikki Lento | BG130: Matti Ketola | BL130: Mauno Kari | BQ130: Kauko Muola | BV130: Mauno Suonpää
A131: 6 | B131: Vaasan Maila | C131: 10 | D131: 4 | E131: 1 | F131: 5 | G131: 47 | H131: - | I131: 55 | J131: 9 | L131: su | M131: 27 | N131: 5 | O131: 1956 | P131: Loimaan Leisku | Q131: - | R131: Alajärven Ankkurit | S131: 2 | T131: - | U131: 0 | V131: 200 | X131: Matti Penttala | AC131: Jussi Ristilä | AH131: Pentti Päivölä | AM131: Toivo Kivipelto | AR131: Mikko Kitinoja | AW131: Pentti Linna | BB131: Pentti Manner | BG131: Taavi Kuutti | BL131: Pekka Kiijärvi | BQ131: Raimo Numminen | BV131: Pentti Suonpää
A132: 7 | B132: Loimaan Leisku | C132: 10 | D132: 4 | E132: 1 | F132: 5 | G132: 34 | H132: - | I132: 47 | J132: 9 | L132: su | M132: 27 | N132: 5 | O132: 1956 | P132: Nokian Urheilijat | Q132: - | R132: Loimaan Palloilijat | S132: 1 | T132: - | U132: 3 | X132: Yrjö Rimpinen | AC132: Reijo Salo | AH132: Martti Repo | AM132: Timo Murto | AR132: Antti Finnilä | AW132: Rolf Nyman | BB132: Pentti Rajala | BG132: Veikko Lipasti | BL132: Paavo Lehtonen | BQ132: Raimo Ojala | BV132: Eero Toiviainen
A133: 8 | B133: Kauhajoen Karhu | C133: 10 | D133: 3 | E133: 2 | F133: 5 | G133: 50 | H133: - | I133: 50 | J133: 8 | L133: su | M133: 27 | N133: 5 | O133: 1956 | P133: Toijalan Pallo-Veikot | Q133: - | R133: Ylistaron Kilpa-Veljet | S133: 5 | T133: - | U133: 4 | X133: Pentti Viljanen | AC133: Alvar Tammilehto | AH133: Veijo Salonen | AM133: Jouko Mäkelä | AR133: Heikki Keltto | AW133: Roy Rintala | BB133: Tarmo Tamminen | BG133: Pasi Marttila | BL133: Seppo Nieminen | BQ133: Esko Pälä | BV133: Paavo Hyyryläinen
A134: 9 | B134: Toijalan Pallo-Veikot | C134: 10 | D134: 4 | E134: 0 | F134: 6 | G134: 75 | H134: - | I134: 81 | J134: 8 | L134: su | M134: 3 | N134: 6 | O134: 1956 | P134: Loimaan Leisku | Q134: - | R134: Lännen Pallo, Turku | S134: 4 | T134: - | U134: 2 | X134: Eero Virtanen | AC134: Taisto Tikkanen | AH134: Olavi Vuolio | AM134: Juhani Peltomäki | AR134: Alpo Koski | AW134: Raimo Teppo | BB134: Martti Tikkakoski | BG134: Ossi Myllyniemi | BL134: Esko Nurmi | BQ134: Torsti Rautalin | BV134: Eero Kaukinen
A135: 10 | B135: Nokian Urheilijat | C135: 10 | D135: 4 | E135: 0 | F135: 6 | G135: 52 | H135: - | I135: 80 | J135: 8 | L135: su | M135: 3 | N135: 6 | O135: 1956 | P135: Nokian Urheilijat | Q135: - | R135: Kauhajoen Karhu | S135: 7 | T135: - | U135: 2 | AC135: Jussi Autio | AH135: Kauko Mäkelä | AM135: Martti Raivio | AR135: Aulis Hilmola | AW135: Esko Vuorinen | BG135: Toivo Saha | BL135: Pekka Rauko | BQ135: Usko Salonen
A136: 11 | B136: Lännen Pallo, Turku | C136: 10 | D136: 2 | E136: 2 | F136: 6 | G136: 24 | H136: - | I136: 36 | J136: 6 | L136: su | M136: 3 | N136: 6 | O136: 1956 | P136: Seinäjoen Maila-Jussit | Q136: - | R136: Toijalan Pallo-Veikot | S136: 11 | T136: - | U136: 8 | AC136: Anssi Kaminen | AH136: Eino Tamminen | AR136: Ilmari Loppi | AW136: Mauno Ihamäki | BG136: Aatto Koivu | BL136: Toivo Soljamo | BQ136: Harri Toman
C137: =SUM(C126:C136) -> 110 | D137: =SUM(D126:D136) -> 48 | E137: =SUM(E126:E136) -> 14 | F137: =SUM(F126:F136) -> 48 | G137: =SUM(G126:G136) -> 555 | H137: - | I137: =SUM(I126:I136) -> 555 | J137: =SUM(J126:J136) -> 110 | L137: su | M137: 3 | N137: 6 | O137: 1956 | P137: Ylistaron Kilpa-Veljet | Q137: - | R137: Harjavallan Jymy | S137: 8 | T137: - | U137: 3 | V137: 300 | AC137: Rauno Koivunen | AR137: X Myllykoski | BQ137: Lasse Alanen
L138: la | M138: 9 | N138: 6 | O138: 1956 | P138: Lännen Pallo, Turku | Q138: - | R138: Vaasan Maila | S138: 9 | T138: - | U138: 4 | V138: 200 | BQ138: Simo Seitsamo
B139: Harjavallan Jymy mestaruussarjaan | L139: su | M139: 10 | N139: 6 | O139: 1956 | P139: Alajärven Ankkurit | Q139: - | R139: Kauhajoen Karhu | S139: 12 | T139: - | U139: 9 | V139: 300
L140: su | M140: 10 | N140: 6 | O140: 1956 | P140: Harjavallan Jymy | Q140: - | R140: Loimaan Leisku | S140: 10 | T140: - | U140: 3
L141: su | M141: 10 | N141: 6 | O141: 1956 | P141: Loimaan Palloilijat | Q141: - | R141: Vaasan Maila | S141: 4 | T141: - | U141: 3 | V141: 500
L142: su | M142: 10 | N142: 6 | O142: 1956 | P142: Toijalan Pallo-Veikot | Q142: - | R142: Nokian Urheilijat | S142: 20 | T142: - | U142: 9
L143: su | M143: 10 | N143: 6 | O143: 1956 | P143: Seinäjoen Maila-Jussit | Q143: - | R143: Ylistaron Kilpa-Veljet | S143: 21 | T143: - | U143: 1
L144: su | M144: 17 | N144: 6 | O144: 1956 | P144: Alajärven Ankkurit | Q144: - | R144: Loimaan Palloilijat | S144: 3 | T144: - | U144: 3 | V144: 351
L145: su | M145: 17 | N145: 6 | O145: 1956 | P145: Harjavallan Jymy | Q145: - | R145: Seinäjoen Maila-Jussit | S145: 9 | T145: - | U145: 0 | V145: 400
L146: su | M146: 17 | N146: 6 | O146: 1956 | P146: Kauhajoen Karhu | Q146: - | R146: Loimaan Leisku | S146: 0 | T146: - | U146: 3 | V146: 300
L147: su | M147: 17 | N147: 6 | O147: 1956 | P147: Vaasan Maila | Q147: - | R147: Nokian Urheilijat | S147: 16 | T147: - | U147: 4
L148: su | M148: 22 | N148: 7 | O148: 1956 | P148: Toijalan Pallo-Veikot | Q148: - | R148: Vaasan Maila | S148: 10 | T148: - | U148: 7
L149: su | M149: 22 | N149: 7 | O149: 1956 | P149: Nokian Urheilijat | Q149: - | R149: Ylistaron Kilpa-Veljet | S149: 7 | T149: - | U149: 4
L150: su | M150: 22 | N150: 7 | O150: 1956 | P150: Seinäjoen Maila-Jussit | Q150: - | R150: Kauhajoen Karhu | S150: 3 | T150: - | U150: 0
L151: su | M151: 22 | N151: 7 | O151: 1956 | P151: Loimaan Leisku | Q151: - | R151: Loimaan Palloilijat | S151: 2 | T151: - | U151: 2
L152: su | M152: 22 | N152: 7 | O152: 1956 | P152: Lännen Pallo, Turku | Q152: - | R152: Harjavallan Jymy | S152: 3 | T152: - | U152: 8 | V152: 200
L153: la | M153: 28 | N153: 7 | O153: 1956 | P153: Nokian Urheilijat | Q153: - | R153: Alajärven Ankkurit | S153: 9 | T153: - | U153: 12
L154: su | M154: 29 | N154: 7 | O154: 1956 | P154: Loimaan Palloilijat | Q154: - | R154: Lännen Pallo, Turku | S154: 8 | T154: - | U154: 1
L155: su | M155: 29 | N155: 7 | O155: 1956 | P155: Vaasan Maila | Q155: - | R155: Loimaan Leisku | S155: 2 | T155: - | U155: 1
L156: su | M156: 29 | N156: 7 | O156: 1956 | P156: Harjavallan Jymy | Q156: - | R156: Alajärven Ankkurit | S156: 5 | T156: - | U156: 6 | V156: 300
L157: to | M157: 3 | N157: 8 | O157: 1956 | P157: Kauhajoen Karhu | Q157: - | R157: Toijalan Pallo-Veikot | S157: 12 | T157: - | U157: 10
L158: to | M158: 3 | N158: 8 | O158: 1956 | P158: Ylistaron Kilpa-Veljet | Q158: - | R158: Loimaan Palloilijat | S158: 8 | T158: - | U158: 7 | V158: 250
L159: to | M159: 3 | N159: 8 | O159: 1956 | P159: Lännen Pallo, Turku | Q159: - | R159: Nokian Urheilijat | S159: 0 | T159: - | U159: 1
L160: su | M160: 6 | N160: 8 | O160: 1956 | P160: Alajärven Ankkurit | Q160: - | R160: Toijalan Pallo-Veikot | S160: 5 | T160: - | U160: 2 | V160: 300
L161: su | M161: 6 | N161: 8 | O161: 1956 | P161: Seinäjoen Maila-Jussit | Q161: - | R161: Loimaan Palloilijat | S161: 2 | T161: - | U161: 2 | V161: 300
L162: la | M162: 11 | N162: 8 | O162: 1956 | P162: Lännen Pallo, Turku | Q162: - | R162: Seinäjoen Maila-Jussit | S162: 2 | T162: - | U162: 2
L163: su | M163: 12 | N163: 8 | O163: 1956 | P163: Loimaan Leisku | Q163: - | R163: Seinäjoen Maila-Jussit | S163: 7 | T163: - | U163: 3
L164: su | M164: 12 | N164: 8 | O164: 1956 | P164: Vaasan Maila | Q164: - | R164: Alajärven Ankkurit | S164: 2 | T164: - | U164: 3
L165: su | M165: 12 | N165: 8 | O165: 1956 | P165: Toijalan Pallo-Veikot | Q165: - | R165: Harjavallan Jymy | S165: 5 | T165: - | U165: 10
L166: su | M166: 19 | N166: 8 | O166: 1956 | P166: Harjavallan Jymy | Q166: - | R166: Nokian Urheilijat | S166: 11 | T166: - | U166: 2 | V166: 500
L167: su | M167: 19 | N167: 8 | O167: 1956 | P167: Toijalan Pallo-Veikot | Q167: - | R167: Loimaan Leisku | S167: 11 | T167: - | U167: 7
L168: su | M168: 19 | N168: 8 | O168: 1956 | P168: Loimaan Palloilijat | Q168: - | R168: Kauhajoen Karhu | S168: 8 | T168: - | U168: 1
L169: su | M169: 19 | N169: 8 | O169: 1956 | P169: Ylistaron Kilpa-Veljet | Q169: - | R169: Vaasan Maila | S169: 4 | T169: - | U169: 6 | V169: 200
L170: su | M170: 26 | N170: 8 | O170: 1956 | P170: Nokian Urheilijat | Q170: - | R170: Loimaan Leisku | S170: 10 | T170: - | U170: 2
L171: su | M171: 26 | N171: 8 | O171: 1956 | P171: Kauhajoen Karhu | Q171: - | R171: Ylistaron Kilpa-Veljet | S171: 6 | T171: - | U171: 2 | V171: 200
L172: su | M172: 26 | N172: 8 | O172: 1956 | P172: Vaasan Maila | Q172: - | R172: Harjavallan Jymy | S172: 2 | T172: - | U172: 0
L173: su | M173: 26 | N173: 8 | O173: 1956 | P173: Loimaan Palloilijat | Q173: - | R173: Toijalan Pallo-Veikot | S173: 11 | T173: - | U173: 3
L174: la | M174: 1 | N174: 9 | O174: 1956 | P174: Alajärven Ankkurit | Q174: - | R174: Lännen Pallo, Turku | S174: 2 | T174: - | U174: 0
L175: su | M175: 2 | N175: 9 | O175: 1956 | P175: Seinäjoen Maila-Jussit | Q175: - | R175: Nokian Urheilijat | S175: 10 | T175: - | U175: 2
L176: su | M176: 2 | N176: 9 | O176: 1956 | P176: Harjavallan Jymy | Q176: - | R176: Kauhajoen Karhu | S176: 3 | T176: - | U176: 3 | V176: 400
L177: su | M177: 2 | N177: 9 | O177: 1956 | P177: Ylistaron Kilpa-Veljet | Q177: - | R177: Lännen Pallo, Turku | S177: 5 | T177: - | U177: 1 | V177: 300
L178: su | M178: 16 | N178: 9 | O178: 1956 | P178: Kauhajoen Karhu | Q178: - | R178: Vaasan Maila | S178: 16 | T178: - | U178: 1 | V178: 250
L179: su | M179: 16 | N179: 9 | O179: 1956 | P179: Loimaan Leisku | Q179: - | R179: Ylistaron Kilpa-Veljet | S179: 3 | T179: - | U179: 7
L180: su | M180: 16 | N180: 9 | O180: 1956 | P180: Alajärven Ankkurit | Q180: - | R180: Seinäjoen Maila-Jussit | S180: 0 | T180: - | U180: 2 | V180: 800
S181: =SUM(S126:S180) -> 358 | T181: - | U181: =SUM(U126:U180) -> 197
N182: =COUNT(S126:S180) -> 55 | R182: Keskiarvo | S182: =PRODUCT(S181/N182) -> 6.5 | T182: - | U182: =PRODUCT(U181/N182) -> 3.6
B185: POHJOISLOHKO 1956 | C185: O | D185: V | E185: T | F185: H | G185: TJ | H185: - | I185: AJ | J185: PIST | P185: POHJOISLOHKO 1956 | X185: Muhoksen Urheilijat | AC185: Oulun Lippo | AH185: Sotkamon Jymy | AM185: Ristijärven Pyry | AR185: Ylivieskan Kuulan Maila | AW185: Paavolan Kisa | BB185: Haapajärven Kiilat | BG185: Lapin Veikot, Sodankylä
A186: 1 | B186: Muhoksen Urheilijat | C186: 7 | D186: 7 | E186: 0 | F186: 0 | G186: 81 | H186: - | I186: 15 | J186: 14 | L186: su | M186: 27 | N186: 5 | O186: 1956 | P186: Haapajärven Kiilat | Q186: - | R186: Sotkamon Jymy | S186: 3 | T186: - | U186: 9 | X186: Pentti Kerttula | AC186: Kaino Aho | AH186: Jarmo Hakkarainen | AM186: Eino Keränen | AR186: Jorma Kivioja | AW186: Paavo Aho | BB186: Mikko Hietakangas | BG186: Viljo Hinkkanen
A187: 2 | B187: Oulun Lippo | C187: 7 | D187: 6 | E187: 0 | F187: 1 | G187: 72 | H187: - | I187: 27 | J187: 12 | L187: su | M187: 27 | N187: 5 | O187: 1956 | P187: Paavolan Kisa | Q187: - | R187: Ylivieskan Kuulan Maila | S187: 6 | T187: - | U187: 9 | X187: Kaarlo Kolehmainen | AC187: Kalevi Alatalo | AH187: Martti Keskitalo | AM187: Jouko Heikkinen | AR187: Paavo Lavander | AW187: Risto Haapala | BB187: Sulo Isokangas | BG187: Reijo Ilola
A188: 3 | B188: Sotkamon Jymy | C188: 7 | D188: 4 | E188: 0 | F188: 3 | G188: 33 | H188: - | I188: 31 | J188: 8 | L188: su | M188: 27 | N188: 5 | O188: 1956 | P188: Ristijärven Pyry | Q188: - | R188: Oulun Lippo | S188: 3 | T188: - | U188: 7 | V188: 250 | X188: Kaj-Erik Lindfors | AC188: Seppo Alatalo | AH188: Martti A Korhonen | AM188: Tauno Keränen | AR188: Hannu Latvala | AW188: Jorma Kallinen | BB188: Aarne Kumpulainen | BG188: Ilmari Kumpuniemi
A189: 4 | B189: Ristijärven Pyry | C189: 7 | D189: 3 | E189: 0 | F189: 4 | G189: 35 | H189: - | I189: 46 | J189: 6 | L189: su | M189: 3 | N189: 6 | O189: 1956 | P189: Lapin Veikot, Sodankylä | Q189: - | R189: Paavolan Kisa | S189: 1 | T189: - | U189: 10 | V189: 200 | X189: Lej-Lasse Lindfors | AC189: Erkki Arponen | AH189: Martti J Korhonen | AM189: Eemil Rautiainen | AR189: Veikko Leppilampi | AW189: Mauno Leskinen | BB189: Alpo Kähkönen | BG189: Jouko Mäkelä
A190: 5 | B190: Ylivieskan Kuulan Maila | C190: 7 | D190: 3 | E190: 0 | F190: 4 | G190: 36 | H190: - | I190: 48 | J190: 6 | L190: su | M190: 3 | N190: 6 | O190: 1956 | P190: Sotkamon Jymy | Q190: - | R190: Ristijärven Pyry | S190: 6 | T190: - | U190: 2 | V190: 250 | X190: Olavi Maaninen | AC190: Erkki Hedman | AH190: Seppo Korhonen | AM190: Jorma Raitala | AR190: Tauno Niemonen | AW190: Martti Mainio | BB190: Urho Mikkola | BG190: X Ollila
A191: 6 | B191: Paavolan Kisa | C191: 7 | D191: 2 | E191: 0 | F191: 5 | G191: 34 | H191: - | I191: 40 | J191: 4 | L191: su | M191: 10 | N191: 6 | O191: 1956 | P191: Muhoksen Urheilijat | Q191: - | R191: Oulun Lippo | S191: 5 | T191: - | U191: 4 | V191: 600 | X191: Matti Piippo | AC191: Paavo Junttila | AH191: Tauno Korhonen | AM191: Erkki Möttönen | AR191: Paavo Nousiainen | AW191: Pentti Mainio | BB191: Yrjö Mikkola | BG191: Erkki Onnela
A192: 7 | B192: Haapajärven Kiilat | C192: 7 | D192: 2 | E192: 0 | F192: 5 | G192: 34 | H192: - | I192: 61 | J192: 4 | L192: su | M192: 10 | N192: 6 | O192: 1956 | P192: Ylivieskan Kuulan Maila | Q192: - | R192: Haapajärven Kiilat | S192: 9 | T192: - | U192: 8 | V192: 800 | X192: Kalevi Plaketti | AC192: Antti Keränen | AH192: Elja Liimatta | AM192: Eero Keränen | AR192: Raimo Ovaska | AW192: Yrjö Ranta | BB192: Kosti Parkkinen | BG192: Esko Raappana
A193: 8 | B193: Lapin Veikot, Sodankylä | C193: 7 | D193: 1 | E193: 0 | F193: 6 | G193: 15 | H193: - | I193: 72 | J193: 2 | L193: la | M193: 16 | N193: 6 | O193: 1956 | P193: Oulun Lippo | Q193: - | R193: Sotkamon Jymy | S193: 15 | T193: - | U193: 1 | V193: 550 | X193: Kalevi Rantakangas | AC193: Aimo Miilumäki | AH193: Oiva Meriläinen | AM193: Matti Oikarainen | AR193: Pekka Sipilä | AW193: Tauno Teräväinen | BB193: Pekka Pasanen | BG193: Mauno Suopanki
C194: =SUM(C186:C193) -> 56 | D194: =SUM(D186:D193) -> 28 | E194: =SUM(E186:E193) -> 0 | F194: =SUM(F186:F193) -> 28 | G194: =SUM(G186:G193) -> 340 | H194: - | I194: =SUM(I186:I193) -> 340 | J194: =SUM(J186:J193) -> 56 | L194: la | M194: 16 | N194: 6 | O194: 1956 | P194: Ylivieskan Kuulan Maila | Q194: - | R194: Lapin Veikot, Sodankylä | S194: 6 | T194: - | U194: 3 | X194: Juhani Yli-Pekka | AC194: Pentti Mäntynen | AH194: Seppo Mustonen | AM194: Veikko Tolonen | AR194: Kalle Virtanen | AW194: Pentti Vilmusenaho | BB194: Lauri Hyvärinen | BG194: Pentti Turku
L195: su | M195: 17 | N195: 6 | O195: 1956 | P195: Haapajärven Kiilat | Q195: - | R195: Lapin Veikot, Sodankylä | S195: 11 | T195: - | U195: 6 | X195: Seppo Kerttula | AC195: Veijo Saariaho | AH195: Mauno Riekki | AR195: Aimo Kankaanpää | AW195: Yrjö Salo | BB195: Simo Jaakonaho | BG195: Kalevi Haverinen
B196: Veitsiluodon Vastuksen ottelut mitätöitiin | L196: su | M196: 17 | N196: 6 | O196: 1956 | P196: Muhoksen Urheilijat | Q196: - | R196: Ristijärven Pyry | S196: 19 | T196: - | U196: 1 | AC196: Matti Karppinen | AW196: Mauno Autio | BB196: Erkki Savusalo
B197: Muhoksen Urheilijat mestaruussarjaan | L197: su | M197: 17 | N197: 6 | O197: 1956 | P197: Paavolan Kisa | Q197: - | R197: Sotkamon Jymy | S197: 3 | T197: - | U197: 7 | AC197: Kauko Okkonen | BB197: Seppo Törmälä
L198: su | M198: 5 | N198: 8 | O198: 1956 | P198: Lapin Veikot, Sodankylä | Q198: - | R198: Oulun Lippo | S198: 2 | T198: - | U198: 17 | AC198: Jorma Ollanketo | BB198: Kaarlo Savolainen
L199: su | M199: 5 | N199: 8 | O199: 1956 | P199: Ristijärven Pyry | Q199: - | R199: Paavolan Kisa | S199: 3 | T199: - | U199: 6 | V199: 250 | AC199: Ahti Wunsch
L200: su | M200: 5 | N200: 8 | O200: 1956 | P200: Sotkamon Jymy | Q200: - | R200: Muhoksen Urheilijat | S200: 4 | T200: - | U200: 5 | V200: 300
L201: su | M201: 12 | N201: 8 | O201: 1956 | P201: Paavolan Kisa | Q201: - | R201: Haapajärven Kiilat | S201: 1 | T201: - | U201: 2
L202: su | M202: 12 | N202: 8 | O202: 1956 | P202: Muhoksen Urheilijat | Q202: - | R202: Lapin Veikot, Sodankylä | S202: 19 | T202: - | U202: 0
L203: la | M203: 18 | N203: 8 | O203: 1956 | P203: Ristijärven Pyry | Q203: - | R203: Ylivieskan Kuulan Maila | S203: 5 | T203: - | U203: 4
L204: su | M204: 19 | N204: 8 | O204: 1956 | P204: Sotkamon Jymy | Q204: - | R204: Ylivieskan Kuulan Maila | S204: 6 | T204: - | U204: 2 | V204: 300
L205: su | M205: 19 | N205: 8 | O205: 1956 | P205: Oulun Lippo | Q205: - | R205: Paavolan Kisa | S205: 11 | T205: - | U205: 3
L206: su | M206: 19 | N206: 8 | O206: 1956 | P206: Haapajärven Kiilat | Q206: - | R206: Muhoksen Urheilijat | S206: 0 | T206: - | U206: 12
L207: su | M207: 26 | N207: 8 | O207: 1956 | P207: Haapajärven Kiilat | Q207: - | R207: Oulun Lippo | S207: 8 | T207: - | U207: 12
... 3270 more rows

Sheet 1970-1980
B1: SUOMENSARJA 1970 - 1980
B2: Vuosina 1970-1980 runkosarjojen voittajat nousivat SM-sarjaan.
B3: Vinolla merkityt joukkueet putosivat suomensarjasta.
B5: ITÄLOHKO 1970 | C5: O | D5: V | E5: T | F5: H | G5: TJ | H5: - | I5: AJ | J5: PIST | O5: ITÄLOHKO 1970
A6: 1 | B6: Imatran Pallo-Veikot | C6: 18 | D6: 16 | E6: 1 | F6: 1 | G6: 189 | H6: - | I6: 77 | J6: 33 | K6: to | L6: 7 | M6: 5 | N6: 1970 | O6: Imatran Pallo-Veikot | P6: - | Q6: Nurmeksen Sepot | R6: 15 | S6: - | T6: 7
A7: 2 | B7: Ilomantsin Urheilijat | C7: 18 | D7: 10 | E7: 2 | F7: 6 | G7: 166 | H7: - | I7: 128 | J7: 22 | K7: to | L7: 7 | M7: 5 | N7: 1970 | O7: Jyväskylän Lohi | P7: - | Q7: Ilomantsin Urheilijat | R7: 7 | S7: - | T7: 2
A8: 3 | B8: Sotkamon Jymy | C8: 18 | D8: 11 | E8: 0 | F8: 7 | G8: 149 | H8: - | I8: 124 | J8: 22 | K8: to | L8: 7 | M8: 5 | N8: 1970 | O8: Karjalan Maila | P8: - | Q8: Maaningan Mahti | R8: 7 | S8: - | T8: 1
A9: 4 | B9: Jyväskylän Lohi | C9: 18 | D9: 10 | E9: 0 | F9: 8 | G9: 143 | H9: - | I9: 99 | J9: 20 | K9: to | L9: 7 | M9: 5 | N9: 1970 | O9: Kiteen Urheilijat | P9: - | Q9: Sotkamon Jymy | R9: 7 | S9: - | T9: 6
A10: 5 | B10: Kiteen Urheilijat | C10: 18 | D10: 9 | E10: 1 | F10: 8 | G10: 154 | H10: - | I10: 120 | J10: 19 | K10: to | L10: 7 | M10: 5 | N10: 1970 | O10: Tainionkosken Tähti | P10: - | Q10: Outokummun Partio | R10: 3 | S10: - | T10: 6
A11: 6 | B11: Tainionkosken Tähti | C11: 18 | D11: 7 | E11: 2 | F11: 9 | G11: 130 | H11: - | I11: 127 | J11: 16 | K11: su | L11: 10 | M11: 5 | N11: 1970 | O11: Ilomantsin Urheilijat | P11: - | Q11: Nurmeksen Sepot | R11: 26 | S11: - | T11: 6
A12: 7 | B12: Karjalan Maila | C12: 18 | D12: 7 | E12: 0 | F12: 11 | G12: 125 | H12: - | I12: 153 | J12: 14 | K12: su | L12: 10 | M12: 5 | N12: 1970 | O12: Imatran Pallo-Veikot | P12: - | Q12: Karjalan Maila | R12: 17 | S12: - | T12: 0
A13: 8 | B13: Outokummun Partio | C13: 18 | D13: 6 | E13: 1 | F13: 11 | G13: 93 | H13: - | I13: 138 | J13: 13 | K13: su | L13: 10 | M13: 5 | N13: 1970 | O13: Maaningan Mahti | P13: - | Q13: Kiteen Urheilijat | R13: 8 | S13: - | T13: 7
A14: 9 | B14: Nurmeksen Sepot | C14: 18 | D14: 6 | E14: 0 | F14: 12 | G14: 143 | H14: - | I14: 240 | J14: 12 | K14: su | L14: 10 | M14: 5 | N14: 1970 | O14: Outokummun Partio | P14: - | Q14: Jyväskylän Lohi | R14: 5 | S14: - | T14: 15
A15: 10 | B15: Maaningan Mahti | C15: 18 | D15: 4 | E15: 1 | F15: 13 | G15: 85 | H15: - | I15: 171 | J15: 9 | K15: su | L15: 10 | M15: 5 | N15: 1970 | O15: Sotkamon Jymy | P15: - | Q15: Tainionkosken Tähti | R15: 8 | S15: - | T15: 9
B16: Yhteensä | C16: =SUM(C6:C15) -> 180 | D16: =SUM(D6:D15) -> 86 | E16: =SUM(E6:E15) -> 8 | F16: =SUM(F6:F15) -> 86 | G16: =SUM(G6:G15) -> 1377 | H16: - | I16: =SUM(I6:I15) -> 1377 | J16: =SUM(J6:J15) -> 180 | K16: ma | L16: 18 | M16: 5 | N16: 1970 | O16: Imatran Pallo-Veikot | P16: - | Q16: Ilomantsin Urheilijat | R16: 11 | S16: - | T16: 4
K17: ma | L17: 18 | M17: 5 | N17: 1970 | O17: Jyväskylän Lohi | P17: - | Q17: Sotkamon Jymy | R17: 8 | S17: - | T17: 2
B18: Imatran Pallo-Veikot mestaruussarjaan | K18: ma | L18: 18 | M18: 5 | N18: 1970 | O18: Kiteen Urheilijat | P18: - | Q18: Karjalan Maila | R18: 13 | S18: - | T18: 3
K19: ma | L19: 18 | M19: 5 | N19: 1970 | O19: Nurmeksen Sepot | P19: - | Q19: Tainionkosken Tähti | R19: 12 | S19: - | T19: 9
K20: ma | L20: 18 | M20: 5 | N20: 1970 | O20: Outokummun Partio | P20: - | Q20: Maaningan Mahti | R20: 6 | S20: - | T20: 2
K21: su | L21: 24 | M21: 5 | N21: 1970 | O21: Ilomantsin Urheilijat | P21: - | Q21: Outokummun Partio | R21: 7 | S21: - | T21: 2
K22: su | L22: 24 | M22: 5 | N22: 1970 | O22: Jyväskylän Lohi | P22: - | Q22: Kiteen Urheilijat | R22: 16 | S22: - | T22: 4
K23: su | L23: 24 | M23: 5 | N23: 1970 | O23: Karjalan Maila | P23: - | Q23: Nurmeksen Sepot | R23: 19 | S23: - | T23: 8
K24: su | L24: 24 | M24: 5 | N24: 1970 | O24: Sotkamon Jymy | P24: - | Q24: Imatran Pallo-Veikot | R24: 2 | S24: - | T24: 10
K25: su | L25: 24 | M25: 5 | N25: 1970 | O25: Tainionkosken Tähti | P25: - | Q25: Maaningan Mahti | R25: 5 | S25: - | T25: 8
K26: su | L26: 31 | M26: 5 | N26: 1970 | O26: Kiteen Urheilijat | P26: - | Q26: Imatran Pallo-Veikot | R26: 2 | S26: - | T26: 11
K27: su | L27: 31 | M27: 5 | N27: 1970 | O27: Maaningan Mahti | P27: - | Q27: Ilomantsin Urheilijat | R27: 8 | S27: - | T27: 8
K28: su | L28: 31 | M28: 5 | N28: 1970 | O28: Nurmeksen Sepot | P28: - | Q28: Jyväskylän Lohi | R28: 8 | S28: - | T28: 17
K29: su | L29: 31 | M29: 5 | N29: 1970 | O29: Outokummun Partio | P29: - | Q29: Sotkamon Jymy | R29: 7 | S29: - | T29: 15
K30: su | L30: 31 | M30: 5 | N30: 1970 | O30: Tainionkosken Tähti | P30: - | Q30: Karjalan Maila | R30: 7 | S30: - | T30: 2
K31: su | L31: 7 | M31: 6 | N31: 1970 | O31: Imatran Pallo-Veikot | P31: - | Q31: Outokummun Partio | R31: 13 | S31: - | T31: 8
K32: su | L32: 7 | M32: 6 | N32: 1970 | O32: Jyväskylän Lohi | P32: - | Q32: Tainionkosken Tähti | R32: 10 | S32: - | T32: 2
K33: su | L33: 7 | M33: 6 | N33: 1970 | O33: Karjalan Maila | P33: - | Q33: Ilomantsin Urheilijat | R33: 8 | S33: - | T33: 15
K34: su | L34: 7 | M34: 6 | N34: 1970 | O34: Kiteen Urheilijat | P34: - | Q34: Nurmeksen Sepot | R34: 16 | S34: - | T34: 4
K35: su | L35: 7 | M35: 6 | N35: 1970 | O35: Sotkamon Jymy | P35: - | Q35: Maaningan Mahti | R35: 21 | S35: - | T35: 10
K36: su | L36: 14 | M36: 6 | N36: 1970 | O36: Ilomantsin Urheilijat | P36: - | Q36: Sotkamon Jymy | R36: 5 | S36: - | T36: 6
K37: su | L37: 14 | M37: 6 | N37: 1970 | O37: Karjalan Maila | P37: - | Q37: Jyväskylän Lohi | R37: 5 | S37: - | T37: 13
K38: su | L38: 14 | M38: 6 | N38: 1970 | O38: Maaningan Mahti | P38: - | Q38: Imatran Pallo-Veikot | R38: 2 | S38: - | T38: 5
K39: su | L39: 14 | M39: 6 | N39: 1970 | O39: Nurmeksen Sepot | P39: - | Q39: Outokummun Partio | R39: 9 | S39: - | T39: 4
K40: su | L40: 14 | M40: 6 | N40: 1970 | O40: Tainionkosken Tähti | P40: - | Q40: Kiteen Urheilijat | R40: 4 | S40: - | T40: 8
K41: ti | L41: 23 | M41: 6 | N41: 1970 | O41: Ilomantsin Urheilijat | P41: - | Q41: Kiteen Urheilijat | R41: 10 | S41: - | T41: 10
K42: ti | L42: 23 | M42: 6 | N42: 1970 | O42: Imatran Pallo-Veikot | P42: - | Q42: Tainionkosken Tähti | R42: 5 | S42: - | T42: 2
K43: ti | L43: 23 | M43: 6 | N43: 1970 | O43: Maaningan Mahti | P43: - | Q43: Jyväskylän Lohi | R43: 3 | S43: - | T43: 5
K44: ti | L44: 23 | M44: 6 | N44: 1970 | O44: Outokummun Partio | P44: - | Q44: Karjalan Maila | R44: 5 | S44: - | T44: 11
K45: ti | L45: 23 | M45: 6 | N45: 1970 | O45: Sotkamon Jymy | P45: - | Q45: Nurmeksen Sepot | R45: 11 | S45: - | T45: 5
K46: su | L46: 28 | M46: 6 | N46: 1970 | O46: Jyväskylän Lohi | P46: - | Q46: Imatran Pallo-Veikot | R46: 5 | S46: - | T46: 10
K47: su | L47: 28 | M47: 6 | N47: 1970 | O47: Karjalan Maila | P47: - | Q47: Sotkamon Jymy | R47: 4 | S47: - | T47: 7
K48: su | L48: 28 | M48: 6 | N48: 1970 | O48: Kiteen Urheilijat | P48: - | Q48: Outokummun Partio | R48: 7 | S48: - | T48: 3
K49: su | L49: 28 | M49: 6 | N49: 1970 | O49: Nurmeksen Sepot | P49: - | Q49: Maaningan Mahti | R49: 15 | S49: - | T49: 8
K50: su | L50: 28 | M50: 6 | N50: 1970 | O50: Tainionkosken Tähti | P50: - | Q50: Ilomantsin Urheilijat | R50: 6 | S50: - | T50: 9
K51: su | L51: 5 | M51: 7 | N51: 1970 | O51: Ilomantsin Urheilijat | P51: - | Q51: Imatran Pallo-Veikot | R51: 5 | S51: - | T51: 10
K52: su | L52: 5 | M52: 7 | N52: 1970 | O52: Karjalan Maila | P52: - | Q52: Kiteen Urheilijat | R52: 8 | S52: - | T52: 5
K53: su | L53: 5 | M53: 7 | N53: 1970 | O53: Maaningan Mahti | P53: - | Q53: Outokummun Partio | R53: 4 | S53: - | T53: 8
K54: su | L54: 5 | M54: 7 | N54: 1970 | O54: Sotkamon Jymy | P54: - | Q54: Jyväskylän Lohi | R54: 4 | S54: - | T54: 3
K55: su | L55: 5 | M55: 7 | N55: 1970 | O55: Tainionkosken Tähti | P55: - | Q55: Nurmeksen Sepot | R55: 28 | S55: - | T55: 2
K56: su | L56: 12 | M56: 7 | N56: 1970 | O56: Imatran Pallo-Veikot | P56: - | Q56: Sotkamon Jymy | R56: 8 | S56: - | T56: 2
K57: su | L57: 12 | M57: 7 | N57: 1970 | O57: Kiteen Urheilijat | P57: - | Q57: Jyväskylän Lohi | R57: 10 | S57: - | T57: 4
K58: su | L58: 12 | M58: 7 | N58: 1970 | O58: Maaningan Mahti | P58: - | Q58: Tainionkosken Tähti | R58: 10 | S58: - | T58: 4
K59: su | L59: 12 | M59: 7 | N59: 1970 | O59: Nurmeksen Sepot | P59: - | Q59: Karjalan Maila | R59: 7 | S59: - | T59: 12
K60: su | L60: 12 | M60: 7 | N60: 1970 | O60: Outokummun Partio | P60: - | Q60: Ilomantsin Urheilijat | R60: 3 | S60: - | T60: 8
K61: su | L61: 2 | M61: 8 | N61: 1970 | O61: Ilomantsin Urheilijat | P61: - | Q61: Maaningan Mahti | R61: 5 | S61: - | T61: 3
K62: su | L62: 2 | M62: 8 | N62: 1970 | O62: Imatran Pallo-Veikot | P62: - | Q62: Kiteen Urheilijat | R62: 8 | S62: - | T62: 6
K63: su | L63: 2 | M63: 8 | N63: 1970 | O63: Jyväskylän Lohi | P63: - | Q63: Nurmeksen Sepot | R63: 12 | S63: - | T63: 3
K64: su | L64: 2 | M64: 8 | N64: 1970 | O64: Karjalan Maila | P64: - | Q64: Tainionkosken Tähti | R64: 2 | S64: - | T64: 6
K65: su | L65: 2 | M65: 8 | N65: 1970 | O65: Sotkamon Jymy | P65: - | Q65: Outokummun Partio | R65: 9 | S65: - | T65: 4
K66: su | L66: 9 | M66: 8 | N66: 1970 | O66: Ilomantsin Urheilijat | P66: - | Q66: Karjalan Maila | R66: 9 | S66: - | T66: 6
K67: su | L67: 9 | M67: 8 | N67: 1970 | O67: Maaningan Mahti | P67: - | Q67: Sotkamon Jymy | R67: 2 | S67: - | T67: 13
K68: su | L68: 9 | M68: 8 | N68: 1970 | O68: Nurmeksen Sepot | P68: - | Q68: Kiteen Urheilijat | R68: 2 | S68: - | T68: 18
K69: su | L69: 9 | M69: 8 | N69: 1970 | O69: Outokummun Partio | P69: - | Q69: Imatran Pallo-Veikot | R69: 1 | S69: - | T69: 7
K70: su | L70: 9 | M70: 8 | N70: 1970 | O70: Tainionkosken Tähti | P70: - | Q70: Jyväskylän Lohi | R70: 4 | S70: - | T70: 3
K71: ti | L71: 11 | M71: 8 | N71: 1970 | O71: Jyväskylän Lohi | P71: - | Q71: Maaningan Mahti | R71: 8 | S71: - | T71: 0
K72: ti | L72: 11 | M72: 8 | N72: 1970 | O72: Karjalan Maila | P72: - | Q72: Outokummun Partio | R72: 3 | S72: - | T72: 6
K73: ti | L73: 11 | M73: 8 | N73: 1970 | O73: Kiteen Urheilijat | P73: - | Q73: Ilomantsin Urheilijat | R73: 11 | S73: - | T73: 8
K74: ti | L74: 11 | M74: 8 | N74: 1970 | O74: Nurmeksen Sepot | P74: - | Q74: Sotkamon Jymy | R74: 10 | S74: - | T74: 5
K75: ti | L75: 11 | M75: 8 | N75: 1970 | O75: Tainionkosken Tähti | P75: - | Q75: Imatran Pallo-Veikot | R75: 9 | S75: - | T75: 9
K76: su | L76: 16 | M76: 8 | N76: 1970 | O76: Imatran Pallo-Veikot | P76: - | Q76: Maaningan Mahti | R76: 22 | S76: - | T76: 1
K77: su | L77: 16 | M77: 8 | N77: 1970 | O77: Jyväskylän Lohi | P77: - | Q77: Karjalan Maila | R77: 8 | S77: - | T77: 11
K78: su | L78: 16 | M78: 8 | N78: 1970 | O78: Kiteen Urheilijat | P78: - | Q78: Tainionkosken Tähti | R78: 10 | S78: - | T78: 11
K79: su | L79: 16 | M79: 8 | N79: 1970 | O79: Outokummun Partio | P79: - | Q79: Nurmeksen Sepot | R79: 8 | S79: - | T79: 17
K80: su | L80: 16 | M80: 8 | N80: 1970 | O80: Sotkamon Jymy | P80: - | Q80: Ilomantsin Urheilijat | R80: 13 | S80: - | T80: 9
K81: su | L81: 23 | M81: 8 | N81: 1970 | O81: Ilomantsin Urheilijat | P81: - | Q81: Tainionkosken Tähti | R81: 11 | S81: - | T81: 5
K82: su | L82: 23 | M82: 8 | N82: 1970 | O82: Imatran Pallo-Veikot | P82: - | Q82: Jyväskylän Lohi | R82: 4 | S82: - | T82: 1
K83: su | L83: 23 | M83: 8 | N83: 1970 | O83: Maaningan Mahti | P83: - | Q83: Nurmeksen Sepot | R83: 7 | S83: - | T83: 14
K84: su | L84: 23 | M84: 8 | N84: 1970 | O84: Outokummun Partio | P84: - | Q84: Kiteen Urheilijat | R84: 5 | S84: - | T84: 2
K85: su | L85: 23 | M85: 8 | N85: 1970 | O85: Sotkamon Jymy | P85: - | Q85: Karjalan Maila | R85: 9 | S85: - | T85: 5
K86: su | L86: 30 | M86: 8 | N86: 1970 | O86: Jyväskylän Lohi | P86: - | Q86: Outokummun Partio | R86: 3 | S86: - | T86: 9
K87: su | L87: 30 | M87: 8 | N87: 1970 | O87: Karjalan Maila | P87: - | Q87: Imatran Pallo-Veikot | R87: 14 | S87: - | T87: 11
K88: su | L88: 30 | M88: 8 | N88: 1970 | O88: Kiteen Urheilijat | P88: - | Q88: Maaningan Mahti | R88: 13 | S88: - | T88: 2
K89: su | L89: 30 | M89: 8 | N89: 1970 | O89: Nurmeksen Sepot | P89: - | Q89: Ilomantsin Urheilijat | R89: 8 | S89: - | T89: 12
K90: su | L90: 30 | M90: 8 | N90: 1970 | O90: Tainionkosken Tähti | P90: - | Q90: Sotkamon Jymy | R90: 13 | S90: - | T90: 9
K91: su | L91: 13 | M91: 9 | N91: 1970 | O91: Ilomantsin Urheilijat | P91: - | Q91: Jyväskylän Lohi | R91: 13 | S91: - | T91: 5
K92: su | L92: 13 | M92: 9 | N92: 1970 | O92: Maaningan Mahti | P92: - | Q92: Karjalan Maila | R92: 6 | S92: - | T92: 5
K93: su | L93: 13 | M93: 9 | N93: 1970 | O93: Nurmeksen Sepot | P93: - | Q93: Imatran Pallo-Veikot | R93: 6 | S93: - | T93: 13
K94: su | L94: 13 | M94: 9 | N94: 1970 | O94: Outokummun Partio | P94: - | Q94: Tainionkosken Tähti | R94: 3 | S94: - | T94: 3
K95: su | L95: 13 | M95: 9 | N95: 1970 | O95: Sotkamon Jymy | P95: - | Q95: Kiteen Urheilijat | R95: 7 | S95: - | T95: 5
Q96: Yhteensä | R96: =SUM(R6:R95) -> 763 | S96: - | T96: =SUM(T6:T95) -> 614
M97: =COUNT(R6:R95) -> 90 | Q97: Keskiarvo | R97: =PRODUCT(R96/M97) -> 8.5 | S97: - | T97: =PRODUCT(T96/M97) -> 6.8
B100: LÄNSILOHKO 1970 | C100: O | D100: V | E100: T | F100: H | G100: TJ | H100: - | I100: AJ | J100: PIST | O100: LÄNSILOHKO 1970
A101: 1 | B101: Ilmajoen Kisailijat | C101: 18 | D101: 15 | E101: 1 | F101: 2 | G101: 173 | H101: - | I101: 83 | J101: 31 | K101: ti | L101: 5 | M101: 5 | N101: 1970 | O101: Tyrnävän Tempaus | P101: - | Q101: Jyväskylän Kiri | R101: 9 | S101: - | T101: 9
A102: 2 | B102: Iin Urheilijat | C102: 18 | D102: 12 | E102: 1 | F102: 5 | G102: 157 | H102: - | I102: 98 | J102: 25 | K102: to | L102: 7 | M102: 5 | N102: 1970 | O102: Jyväskylän Kiri | P102: - | Q102: Rantsilan Raikas | R102: 12 | S102: - | T102: 2
A103: 3 | B103: Jyväskylän Kiri | C103: 18 | D103: 11 | E103: 2 | F103: 5 | G103: 138 | H103: - | I103: 113 | J103: 24 | K103: to | L103: 7 | M103: 5 | N103: 1970 | O103: Kokkolan Kiri | P103: - | Q103: Ilmajoen Kisailijat | R103: 2 | S103: - | T103: 4
A104: 4 | B104: Alajärven Ankkurit | C104: 18 | D104: 9 | E104: 1 | F104: 8 | G104: 164 | H104: - | I104: 145 | J104: 19 | K104: to | L104: 7 | M104: 5 | N104: 1970 | O104: Kuortaneen Kunto | P104: - | Q104: Iin Urheilijat | R104: 4 | S104: - | T104: 6
A105: 5 | B105: Tyrnävän Tempaus | C105: 18 | D105: 8 | E105: 1 | F105: 9 | G105: 163 | H105: - | I105: 147 | J105: 17 | K105: to | L105: 7 | M105: 5 | N105: 1970 | O105: Tyrnävän Tempaus | P105: - | Q105: Keljon Viesti | R105: 7 | S105: - | T105: 0
A106: 6 | B106: Kuortaneen Kunto | C106: 18 | D106: 7 | E106: 3 | F106: 8 | G106: 129 | H106: - | I106: 137 | J106: 17 | K106: to | L106: 7 | M106: 5 | N106: 1970 | O106: Ylihärmän Junkkarit | P106: - | Q106: Alajärven Ankkurit | R106: 7 | S106: - | T106: 10
A107: 7 | B107: Ylihärmän Junkkarit | C107: 18 | D107: 7 | E107: 1 | F107: 10 | G107: 109 | H107: - | I107: 168 | J107: 15 | K107: su | L107: 10 | M107: 5 | N107: 1970 | O107: Alajärven Ankkurit | P107: - | Q107: Tyrnävän Tempaus | R107: 11 | S107: - | T107: 3
A108: 8 | B108: Rantsilan Raikas | C108: 18 | D108: 6 | E108: 2 | F108: 10 | G108: 129 | H108: - | I108: 169 | J108: 14 | K108: su | L108: 10 | M108: 5 | N108: 1970 | O108: Iin Urheilijat | P108: - | Q108: Jyväskylän Kiri | R108: 16 | S108: - | T108: 1
A109: 9 | B109: Kokkolan Kiri | C109: 18 | D109: 6 | E109: 2 | F109: 10 | G109: 153 | H109: - | I109: 142 | J109: 14 | K109: su | L109: 10 | M109: 5 | N109: 1970 | O109: Ilmajoen Kisailijat | P109: - | Q109: Kuortaneen Kunto | R109: 6 | S109: - | T109: 4
A110: 10 | B110: Keljon Viesti | C110: 18 | D110: 1 | E110: 2 | F110: 15 | G110: 81 | H110: - | I110: 194 | J110: 4 | K110: su | L110: 10 | M110: 5 | N110: 1970 | O110: Keljon Viesti | P110: - | Q110: Kokkolan Kiri | R110: 4 | S110: - | T110: 7
B111: Yhteensä | C111: =SUM(C101:C110) -> 180 | D111: =SUM(D101:D110) -> 82 | E111: =SUM(E101:E110) -> 16 | F111: =SUM(F101:F110) -> 82 | G111: =SUM(G101:G110) -> 1396 | H111: - | I111: =SUM(I101:I110) -> 1396 | J111: =SUM(J101:J110) -> 180 | K111: su | L111: 10 | M111: 5 | N111: 1970 | O111: Rantsilan Raikas | P111: - | Q111: Ylihärmän Junkkarit | R111: 8 | S111: - | T111: 5
K112: su | L112: 17 | M112: 5 | N112: 1970 | O112: Keljon Viesti | P112: - | Q112: Rantsilan Raikas | R112: 8 | S112: - | T112: 10
B113: Uusintaottelu: Kokkolan Kiri - Rantsilan Raikas | K113: ma | L113: 18 | M113: 5 | N113: 1970 | O113: Iin Urheilijat | P113: - | Q113: Ilmajoen Kisailijat | R113: 6 | S113: - | T113: 11
B114: Ilmajoen Kisailijat mestaruussarjaan | K114: ma | L114: 18 | M114: 5 | N114: 1970 | O114: Kokkolan Kiri | P114: - | Q114: Alajärven Ankkurit | R114: 8 | S114: - | T114: 11
B115: Kokkolan Kiri maakuntasarjaan | K115: ma | L115: 18 | M115: 5 | N115: 1970 | O115: Kuortaneen Kunto | P115: - | Q115: Tyrnävän Tempaus | R115: 11 | S115: - | T115: 9
K116: ma | L116: 18 | M116: 5 | N116: 1970 | O116: Ylihärmän Junkkarit | P116: - | Q116: Jyväskylän Kiri | R116: 3 | S116: - | T116: 4
K117: la | L117: 23 | M117: 5 | N117: 1970 | O117: Jyväskylän Kiri | P117: - | Q117: Kuortaneen Kunto | R117: 4 | S117: - | T117: 5
K118: su | L118: 24 | M118: 5 | N118: 1970 | O118: Alajärven Ankkurit | P118: - | Q118: Iin Urheilijat | R118: 10 | S118: - | T118: 4
K119: su | L119: 24 | M119: 5 | N119: 1970 | O119: Ilmajoen Kisailijat | P119: - | Q119: Keljon Viesti | R119: 13 | S119: - | T119: 3
K120: su | L120: 24 | M120: 5 | N120: 1970 | O120: Kokkolan Kiri | P120: - | Q120: Ylihärmän Junkkarit | R120: 15 | S120: - | T120: 2
K121: su | L121: 24 | M121: 5 | N121: 1970 | O121: Tyrnävän Tempaus | P121: - | Q121: Rantsilan Raikas | R121: 8 | S121: - | T121: 6
K122: su | L122: 31 | M122: 5 | N122: 1970 | O122: Keljon Viesti | P122: - | Q122: Alajärven Ankkurit | R122: 10 | S122: - | T122: 9
K123: su | L123: 31 | M123: 5 | N123: 1970 | O123: Kuortaneen Kunto | P123: - | Q123: Kokkolan Kiri | R123: 11 | S123: - | T123: 16
K124: su | L124: 31 | M124: 5 | N124: 1970 | O124: Rantsilan Raikas | P124: - | Q124: Ilmajoen Kisailijat | R124: 3 | S124: - | T124: 11
K125: su | L125: 31 | M125: 5 | N125: 1970 | O125: Ylihärmän Junkkarit | P125: - | Q125: Iin Urheilijat | R125: 3 | S125: - | T125: 2
K126: la | L126: 6 | M126: 6 | N126: 1970 | O126: Jyväskylän Kiri | P126: - | Q126: Ilmajoen Kisailijat | R126: 9 | S126: - | T126: 5
K127: su | L127: 7 | M127: 6 | N127: 1970 | O127: Iin Urheilijat | P127: - | Q127: Keljon Viesti | R127: 12 | S127: - | T127: 4
K128: su | L128: 7 | M128: 6 | N128: 1970 | O128: Kokkolan Kiri | P128: - | Q128: Tyrnävän Tempaus | R128: 14 | S128: - | T128: 2
K129: su | L129: 7 | M129: 6 | N129: 1970 | O129: Ylihärmän Junkkarit | P129: - | Q129: Kuortaneen Kunto | R129: 4 | S129: - | T129: 8
K130: ke | L130: 10 | M130: 6 | N130: 1970 | O130: Alajärven Ankkurit | P130: - | Q130: Rantsilan Raikas | R130: 21 | S130: - | T130: 7
K131: la | L131: 13 | M131: 6 | N131: 1970 | O131: Rantsilan Raikas | P131: - | Q131: Iin Urheilijat | R131: 1 | S131: - | T131: 11
K132: su | L132: 14 | M132: 6 | N132: 1970 | O132: Ilmajoen Kisailijat | P132: - | Q132: Alajärven Ankkurit | R132: 13 | S132: - | T132: 6
K133: su | L133: 14 | M133: 6 | N133: 1970 | O133: Jyväskylän Kiri | P133: - | Q133: Kokkolan Kiri | R133: 11 | S133: - | T133: 9
K134: su | L134: 14 | M134: 6 | N134: 1970 | O134: Kuortaneen Kunto | P134: - | Q134: Keljon Viesti | R134: 9 | S134: - | T134: 2
K135: su | L135: 14 | M135: 6 | N135: 1970 | O135: Tyrnävän Tempaus | P135: - | Q135: Ylihärmän Junkkarit | R135: 30 | S135: - | T135: 3
K136: ti | L136: 23 | M136: 6 | N136: 1970 | O136: Alajärven Ankkurit | P136: - | Q136: Kuortaneen Kunto | R136: 8 | S136: - | T136: 7
K137: ti | L137: 23 | M137: 6 | N137: 1970 | O137: Iin Urheilijat | P137: - | Q137: Tyrnävän Tempaus | R137: 11 | S137: - | T137: 7
K138: ti | L138: 23 | M138: 6 | N138: 1970 | O138: Ilmajoen Kisailijat | P138: - | Q138: Ylihärmän Junkkarit | R138: 10 | S138: - | T138: 6
K139: ti | L139: 23 | M139: 6 | N139: 1970 | O139: Keljon Viesti | P139: - | Q139: Jyväskylän Kiri | R139: 3 | S139: - | T139: 5
K140: ti | L140: 23 | M140: 6 | N140: 1970 | O140: Rantsilan Raikas | P140: - | Q140: Kokkolan Kiri | R140: 18 | S140: - | T140: 5
K141: su | L141: 28 | M141: 6 | N141: 1970 | O141: Jyväskylän Kiri | P141: - | Q141: Alajärven Ankkurit | R141: 18 | S141: - | T141: 4
K142: su | L142: 28 | M142: 6 | N142: 1970 | O142: Kokkolan Kiri | P142: - | Q142: Iin Urheilijat | R142: 5 | S142: - | T142: 10
K143: su | L143: 28 | M143: 6 | N143: 1970 | O143: Kuortaneen Kunto | P143: - | Q143: Rantsilan Raikas | R143: 10 | S143: - | T143: 6
K144: su | L144: 28 | M144: 6 | N144: 1970 | O144: Tyrnävän Tempaus | P144: - | Q144: Ilmajoen Kisailijat | R144: 5 | S144: - | T144: 14
K145: su | L145: 28 | M145: 6 | N145: 1970 | O145: Ylihärmän Junkkarit | P145: - | Q145: Keljon Viesti | R145: 12 | S145: - | T145: 7
K146: la | L146: 4 | M146: 7 | N146: 1970 | O146: Jyväskylän Kiri | P146: - | Q146: Ylihärmän Junkkarit | R146: 17 | S146: - | T146: 4
K147: su | L147: 5 | M147: 7 | N147: 1970 | O147: Alajärven Ankkurit | P147: - | Q147: Kokkolan Kiri | R147: 4 | S147: - | T147: 2
K148: su | L148: 5 | M148: 7 | N148: 1970 | O148: Ilmajoen Kisailijat | P148: - | Q148: Iin Urheilijat | R148: 17 | S148: - | T148: 10
K149: su | L149: 5 | M149: 7 | N149: 1970 | O149: Rantsilan Raikas | P149: - | Q149: Keljon Viesti | R149: 9 | S149: - | T149: 9
K150: su | L150: 5 | M150: 7 | N150: 1970 | O150: Tyrnävän Tempaus | P150: - | Q150: Kuortaneen Kunto | R150: 13 | S150: - | T150: 5
K151: la | L151: 11 | M151: 7 | N151: 1970 | O151: Keljon Viesti | P151: - | Q151: Ilmajoen Kisailijat | R151: 0 | S151: - | T151: 8
K152: su | L152: 12 | M152: 7 | N152: 1970 | O152: Iin Urheilijat | P152: - | Q152: Alajärven Ankkurit | R152: 6 | S152: - | T152: 4
K153: su | L153: 12 | M153: 7 | N153: 1970 | O153: Kuortaneen Kunto | P153: - | Q153: Jyväskylän Kiri | R153: 8 | S153: - | T153: 1
K154: su | L154: 12 | M154: 7 | N154: 1970 | O154: Rantsilan Raikas | P154: - | Q154: Tyrnävän Tempaus | R154: 4 | S154: - | T154: 8
K155: su | L155: 12 | M155: 7 | N155: 1970 | O155: Ylihärmän Junkkarit | P155: - | Q155: Kokkolan Kiri | R155: 10 | S155: - | T155: 5
K156: su | L156: 2 | M156: 8 | N156: 1970 | O156: Alajärven Ankkurit | P156: - | Q156: Keljon Viesti | R156: 17 | S156: - | T156: 10
K157: su | L157: 2 | M157: 8 | N157: 1970 | O157: Iin Urheilijat | P157: - | Q157: Ylihärmän Junkkarit | R157: 7 | S157: - | T157: 2
K158: su | L158: 2 | M158: 8 | N158: 1970 | O158: Ilmajoen Kisailijat | P158: - | Q158: Rantsilan Raikas | R158: 14 | S158: - | T158: 5
K159: su | L159: 2 | M159: 8 | N159: 1970 | O159: Jyväskylän Kiri | P159: - | Q159: Tyrnävän Tempaus | R159: 11 | S159: - | T159: 6
K160: su | L160: 2 | M160: 8 | N160: 1970 | O160: Kokkolan Kiri | P160: - | Q160: Kuortaneen Kunto | R160: 5 | S160: - | T160: 5
K161: su | L161: 9 | M161: 8 | N161: 1970 | O161: Ilmajoen Kisailijat | P161: - | Q161: Jyväskylän Kiri | R161: 11 | S161: - | T161: 3
K162: su | L162: 9 | M162: 8 | N162: 1970 | O162: Keljon Viesti | P162: - | Q162: Iin Urheilijat | R162: 1 | S162: - | T162: 8
K163: su | L163: 9 | M163: 8 | N163: 1970 | O163: Kuortaneen Kunto | P163: - | Q163: Ylihärmän Junkkarit | R163: 6 | S163: - | T163: 8
K164: su | L164: 9 | M164: 8 | N164: 1970 | O164: Rantsilan Raikas | P164: - | Q164: Alajärven Ankkurit | R164: 7 | S164: - | T164: 3
K165: su | L165: 9 | M165: 8 | N165: 1970 | O165: Tyrnävän Tempaus | P165: - | Q165: Kokkolan Kiri | R165: 15 | S165: - | T165: 9
K166: ti | L166: 11 | M166: 8 | N166: 1970 | O166: Jyväskylän Kiri | P166: - | Q166: Keljon Viesti | R166: 5 | S166: - | T166: 3
K167: ti | L167: 11 | M167: 8 | N167: 1970 | O167: Kokkolan Kiri | P167: - | Q167: Rantsilan Raikas | R167: 12 | S167: - | T167: 13
K168: ti | L168: 11 | M168: 8 | N168: 1970 | O168: Kuortaneen Kunto | P168: - | Q168: Alajärven Ankkurit | R168: 9 | S168: - | T168: 9
K169: ti | L169: 11 | M169: 8 | N169: 1970 | O169: Tyrnävän Tempaus | P169: - | Q169: Iin Urheilijat | R169: 2 | S169: - | T169: 5
K170: su | L170: 16 | M170: 8 | N170: 1970 | O170: Alajärven Ankkurit | P170: - | Q170: Ilmajoen Kisailijat | R170: 1 | S170: - | T170: 6
K171: su | L171: 16 | M171: 8 | N171: 1970 | O171: Iin Urheilijat | P171: - | Q171: Rantsilan Raikas | R171: 15 | S171: - | T171: 8
K172: su | L172: 16 | M172: 8 | N172: 1970 | O172: Keljon Viesti | P172: - | Q172: Kuortaneen Kunto | R172: 3 | S172: - | T172: 11
K173: su | L173: 16 | M173: 8 | N173: 1970 | O173: Kokkolan Kiri | P173: - | Q173: Jyväskylän Kiri | R173: 10 | S173: - | T173: 5
K174: su | L174: 16 | M174: 8 | N174: 1970 | O174: Ylihärmän Junkkarit | P174: - | Q174: Tyrnävän Tempaus | R174: 8 | S174: - | T174: 4
K175: la | L175: 22 | M175: 8 | N175: 1970 | O175: Ylihärmän Junkkarit | P175: - | Q175: Ilmajoen Kisailijat | R175: 8 | S175: - | T175: 7
K176: su | L176: 23 | M176: 8 | N176: 1970 | O176: Alajärven Ankkurit | P176: - | Q176: Ylihärmän Junkkarit | R176: 19 | S176: - | T176: 0
K177: su | L177: 23 | M177: 8 | N177: 1970 | O177: Iin Urheilijat | P177: - | Q177: Kuortaneen Kunto | R177: 16 | S177: - | T177: 4
K178: su | L178: 23 | M178: 8 | N178: 1970 | O178: Ilmajoen Kisailijat | P178: - | Q178: Kokkolan Kiri | R178: 7 | S178: - | T178: 0
K179: su | L179: 23 | M179: 8 | N179: 1970 | O179: Keljon Viesti | P179: - | Q179: Tyrnävän Tempaus | R179: 7 | S179: - | T179: 11
K180: su | L180: 23 | M180: 8 | N180: 1970 | O180: Rantsilan Raikas | P180: - | Q180: Jyväskylän Kiri | R180: 6 | S180: - | T180: 10
K181: su | L181: 30 | M181: 8 | N181: 1970 | O181: Jyväskylän Kiri | P181: - | Q181: Iin Urheilijat | R181: 7 | S181: - | T181: 5
K182: su | L182: 30 | M182: 8 | N182: 1970 | O182: Kokkolan Kiri | P182: - | Q182: Keljon Viesti | R182: 22 | S182: - | T182: 3
K183: su | L183: 30 | M183: 8 | N183: 1970 | O183: Kuortaneen Kunto | P183: - | Q183: Ilmajoen Kisailijat | R183: 10 | S183: - | T183: 10
K184: su | L184: 30 | M184: 8 | N184: 1970 | O184: Tyrnävän Tempaus | P184: - | Q184: Alajärven Ankkurit | R184: 22 | S184: - | T184: 13
K185: su | L185: 30 | M185: 8 | N185: 1970 | O185: Ylihärmän Junkkarit | P185: - | Q185: Rantsilan Raikas | R185: 5 | S185: - | T185: 5
K186: su | L186: 13 | M186: 9 | N186: 1970 | O186: Alajärven Ankkurit | P186: - | Q186: Jyväskylän Kiri | R186: 4 | S186: - | T186: 6
K187: su | L187: 13 | M187: 9 | N187: 1970 | O187: Iin Urheilijat | P187: - | Q187: Kokkolan Kiri | R187: 7 | S187: - | T187: 7
K188: su | L188: 13 | M188: 9 | N188: 1970 | O188: Ilmajoen Kisailijat | P188: - | Q188: Tyrnävän Tempaus | R188: 6 | S188: - | T188: 2
K189: su | L189: 13 | M189: 9 | N189: 1970 | O189: Keljon Viesti | P189: - | Q189: Ylihärmän Junkkarit | R189: 4 | S189: - | T189: 19
K190: su | L190: 13 | M190: 9 | N190: 1970 | O190: Rantsilan Raikas | P190: - | Q190: Kuortaneen Kunto | R190: 11 | S190: - | T190: 2
Q191: Yhteensä | R191: =SUM(R101:R190) -> 831 | S191: - | T191: =SUM(T101:T190) -> 565
M192: =COUNT(R101:R190) -> 90 | Q192: Keskiarvo | R192: =PRODUCT(R191/M192) -> 9.2 | S192: - | T192: =PRODUCT(T191/M192) -> 6.3
O194: UUSINTA SÄILYMISESTÄ
K195: su | L195: 20 | M195: 9 | N195: 1970 | O195: Kokkolan Kiri | P195: - | Q195: Rantsilan Raikas
B198: ETELÄLOHKO 1970 | C198: O | D198: V | E198: T | F198: H | G198: TJ | H198: - | I198: AJ | J198: PIST | O198: ETELÄLOHKO 1970
A199: 1 | B199: Riihimäen Pallonlyöjät | C199: 18 | D199: 17 | E199: 0 | F199: 1 | G199: 297 | H199: - | I199: 72 | J199: 34 | K199: to | L199: 7 | M199: 5 | N199: 1970 | O199: Heinolan Maila-Pojat | P199: - | Q199: Herttoniemen Urheilijat | R199: 1 | S199: - | T199: 13
A200: 2 | B200: Lahden Mailaveikot | C200: 18 | D200: 16 | E200: 0 | F200: 2 | G200: 280 | H200: - | I200: 127 | J200: 32 | K200: to | L200: 7 | M200: 5 | N200: 1970 | O200: Janakkalan Jana | P200: - | Q200: Riihimäen Pallonlyöjät | R200: 3 | S200: - | T200: 18
A201: 3 | B201: Jokioisten Koetus | C201: 18 | D201: 11 | E201: 1 | F201: 6 | G201: 156 | H201: - | I201: 104 | J201: 23 | K201: to | L201: 7 | M201: 5 | N201: 1970 | O201: Jokiosten Koetus | P201: - | Q201: Lahden Mailaveikot | R201: 5 | S201: - | T201: 6
A202: 4 | B202: Herttoniemen Urheilijat | C202: 18 | D202: 9 | E202: 0 | F202: 9 | G202: 191 | H202: - | I202: 167 | J202: 18 | K202: to | L202: 7 | M202: 5 | N202: 1970 | O202: Tervakosken Pato | P202: - | Q202: Loimaan Palloilijat | R202: 4 | S202: - | T202: 5
A203: 5 | B203: Keravan Pallokerho | C203: 18 | D203: 7 | E203: 2 | F203: 9 | G203: 158 | H203: - | I203: 146 | J203: 16 | K203: to | L203: 7 | M203: 5 | N203: 1970 | O203: Työväen Maila-Pojat | P203: - | Q203: Keravan Pallokerho | R203: 10 | S203: - | T203: 9
A204: 6 | B204: Heinolan Maila-Pojat | C204: 18 | D204: 7 | E204: 0 | F204: 11 | G204: 171 | H204: - | I204: 158 | J204: 14 | K204: su | L204: 10 | M204: 5 | N204: 1970 | O204: Herttoniemen Urheilijat | P204: - | Q204: Janakkalan Jana | R204: 31 | S204: - | T204: 4
A205: 7 | B205: Tervakosken Pato | C205: 18 | D205: 7 | E205: 0 | F205: 11 | G205: 135 | H205: - | I205: 205 | J205: 14 | K205: su | L205: 10 | M205: 5 | N205: 1970 | O205: Keravan Pallokerho | P205: - | Q205: Tervakosken Pato | R205: 17 | S205: - | T205: 1
A206: 8 | B206: Loimaan Palloilijat | C206: 18 | D206: 7 | E206: 0 | F206: 11 | G206: 128 | H206: - | I206: 239 | J206: 14 | K206: su | L206: 10 | M206: 5 | N206: 1970 | O206: Lahden Mailaveikot | P206: - | Q206: Työväen Maila-Pojat | R206: 26 | S206: - | T206: 7
... 2874 more rows

Sheet 1981-1994
B1: SUOMENSARJA 1981 - 1994
B2: Vuodesta 1981 lähtien suomensarja on ollut kolmanneksi korkein sarjataso
B3: Vinolla merkityt joukkueet putosivat maakuntasarjaan
B5: ITÄLOHKO 1981 | C5: O | D5: V | E5: T | F5: H | G5: TJ | H5: - | I5: AJ | J5: PIST | O5: ITÄLOHKO 1981
A6: 1 | B6: Imatran Pallo-Veikot 2 | C6: 18 | D6: 12 | E6: 3 | F6: 3 | G6: 137 | H6: - | I6: 90 | J6: 27 | L6: 10 | M6: 5 | N6: 1981 | O6: Heinolan Maila-Pojat | P6: - | Q6: Saaren Urheilijat | R6: 16 | S6: - | T6: 20
A7: 2 | B7: Tohmajärven Urheilijat | C7: 18 | D7: 12 | E7: 2 | F7: 4 | G7: 155 | H7: - | I7: 91 | J7: 26 | L7: 10 | M7: 5 | N7: 1981 | O7: Imatran Pallo-Veikot 2 | P7: - | Q7: Haminan Palloilijat 2 | R7: 5 | S7: - | T7: 1
A8: 3 | B8: Saaren Urheilijat | C8: 18 | D8: 11 | E8: 1 | F8: 6 | G8: 184 | H8: - | I8: 139 | J8: 23 | L8: 10 | M8: 5 | N8: 1981 | O8: Karjalan Maila | P8: - | Q8: Ilomantsin Urheilijat | R8: 7 | S8: - | T8: 2
A9: 4 | B9: Ilomantsin Urheilijat | C9: 18 | D9: 10 | E9: 2 | F9: 6 | G9: 159 | H9: - | I9: 111 | J9: 22 | L9: 10 | M9: 5 | N9: 1981 | O9: Porvoon Kumuri | P9: - | Q9: Kouvolan Pallonlyöjät 2 | R9: 9 | S9: - | T9: 7
A10: 5 | B10: Haminan Palloilijat 2 | C10: 18 | D10: 10 | E10: 1 | F10: 7 | G10: 158 | H10: - | I10: 113 | J10: 21 | L10: 10 | M10: 5 | N10: 1981 | O10: Tohmajärven Urheilijat | P10: - | Q10: Outokummun Partio | R10: 18 | S10: - | T10: 0
A11: 6 | B11: Karjalan Maila | C11: 18 | D11: 9 | E11: 1 | F11: 8 | G11: 122 | H11: - | I11: 106 | J11: 19 | L11: 17 | M11: 5 | N11: 1981 | O11: Haminan Palloilijat 2 | P11: - | Q11: Tohmajärven Urheilijat | R11: 10 | S11: - | T11: 9
A12: 7 | B12: Porvoon Kumuri | C12: 18 | D12: 9 | E12: 0 | F12: 9 | G12: 149 | H12: - | I12: 157 | J12: 18 | L12: 17 | M12: 5 | N12: 1981 | O12: Ilomantsin Urheilijat | P12: - | Q12: Heinolan Maila-Pojat | R12: 17 | S12: - | T12: 9
A13: 8 | B13: Kouvolan Pallonlyöjät 2 | C13: 18 | D13: 7 | E13: 1 | F13: 10 | G13: 135 | H13: - | I13: 179 | J13: 15 | L13: 17 | M13: 5 | N13: 1981 | O13: Kouvolan Pallonlyöjät 2 | P13: - | Q13: Karjalan Maila | R13: 3 | S13: - | T13: 1
A14: 9 | B14: Heinolan Maila-Pojat | C14: 18 | D14: 4 | E14: 1 | F14: 13 | G14: 136 | H14: - | I14: 175 | J14: 9 | L14: 17 | M14: 5 | N14: 1981 | O14: Outokummun Partio | P14: - | Q14: Porvoon Kumuri | R14: 6 | S14: - | T14: 17
A15: 10 | B15: Outokummun Partio | C15: 18 | D15: 0 | E15: 0 | F15: 18 | G15: 70 | H15: - | I15: 244 | J15: 0 | L15: 17 | M15: 5 | N15: 1981 | O15: Saaren Urheilijat | P15: - | Q15: Imatran Pallo-Veikot 2 | R15: 3 | S15: - | T15: 6
C16: =SUM(C6:C15) -> 180 | D16: =SUM(D6:D15) -> 84 | E16: =SUM(E6:E15) -> 12 | F16: =SUM(F6:F15) -> 84 | G16: =SUM(G6:G15) -> 1405 | H16: - | I16: =SUM(I6:I15) -> 1405 | J16: =SUM(J6:J15) -> 180 | L16: 19 | M16: 5 | N16: 1981 | O16: Heinolan Maila-Pojat | P16: - | Q16: Kouvolan Pallonlyöjät 2 | R16: 14 | S16: - | T16: 14
L17: 19 | M17: 5 | N17: 1981 | O17: Karjalan Maila | P17: - | Q17: Outokummun Partio | R17: 13 | S17: - | T17: 3
B18: Imatran Pallo-Veikot 2 ykkössarjaan | L18: 19 | M18: 5 | N18: 1981 | O18: Porvoon Kumuri | P18: - | Q18: Haminan Palloilijat 2 | R18: 4 | S18: - | T18: 20
L19: 19 | M19: 5 | N19: 1981 | O19: Saaren Urheilijat | P19: - | Q19: Ilomantsin Urheilijat | R19: 13 | S19: - | T19: 10
L20: 19 | M20: 5 | N20: 1981 | O20: Tohmajärven Urheilijat | P20: - | Q20: Imatran Pallo-Veikot 2 | R20: 4 | S20: - | T20: 4
L21: 24 | M21: 5 | N21: 1981 | O21: Haminan Palloilijat 2 | P21: - | Q21: Karjalan Maila | R21: 16 | S21: - | T21: 3
L22: 24 | M22: 5 | N22: 1981 | O22: Imatran Pallo-Veikot 2 | P22: - | Q22: Ilomantsin Urheilijat | R22: 9 | S22: - | T22: 9
L23: 24 | M23: 5 | N23: 1981 | O23: Kouvolan Pallonlyöjät 2 | P23: - | Q23: Saaren Urheilijat | R23: 4 | S23: - | T23: 15
L24: 24 | M24: 5 | N24: 1981 | O24: Tohmajärven Urheilijat | P24: - | Q24: Porvoon Kumuri | R24: 8 | S24: - | T24: 4
L25: 26 | M25: 5 | N25: 1981 | O25: Heinolan Maila-Pojat | P25: - | Q25: Haminan Palloilijat 2 | R25: 4 | S25: - | T25: 8
L26: 26 | M26: 5 | N26: 1981 | O26: Karjalan Maila | P26: - | Q26: Tohmajärven Urheilijat | R26: 4 | S26: - | T26: 4
L27: 27 | M27: 5 | N27: 1981 | O27: Porvoon Kumuri | P27: - | Q27: Imatran Pallo-Veikot 2 | R27: 6 | S27: - | T27: 7
L28: 26 | M28: 5 | N28: 1981 | O28: Saaren Urheilijat | P28: - | Q28: Outokummun Partio | R28: 16 | S28: - | T28: 4
L29: 30 | M29: 5 | N29: 1981 | O29: Outokummun Partio | P29: - | Q29: Heinolan Maila-Pojat | R29: 5 | S29: - | T29: 22
L30: 31 | M30: 5 | N30: 1981 | O30: Haminan Palloilijat 2 | P30: - | Q30: Saaren Urheilijat | R30: 10 | S30: - | T30: 16
L31: 31 | M31: 5 | N31: 1981 | O31: Ilomantsin Urheilijat | P31: - | Q31: Kouvolan Pallonlyöjät 2 | R31: 15 | S31: - | T31: 1
L32: 31 | M32: 5 | N32: 1981 | O32: Porvoon Kumuri | P32: - | Q32: Karjalan Maila | R32: 11 | S32: - | T32: 7
L33: 31 | M33: 5 | N33: 1981 | O33: Tohmajärven Urheilijat | P33: - | Q33: Heinolan Maila-Pojat | R33: 12 | S33: - | T33: 6
L34: 2 | M34: 6 | N34: 1981 | O34: Imatran Pallo-Veikot 2 | P34: - | Q34: Kouvolan Pallonlyöjät 2 | R34: 8 | S34: - | T34: 4
L35: 2 | M35: 6 | N35: 1981 | O35: Outokummun Partio | P35: - | Q35: Ilomantsin Urheilijat | R35: 3 | S35: - | T35: 11
L36: 7 | M36: 6 | N36: 1981 | O36: Heinolan Maila-Pojat | P36: - | Q36: Porvoon Kumuri | R36: 1 | S36: - | T36: 3
L37: 7 | M37: 6 | N37: 1981 | O37: Ilomantsin Urheilijat | P37: - | Q37: Haminan Palloilijat 2 | R37: 6 | S37: - | T37: 6
L38: 7 | M38: 6 | N38: 1981 | O38: Karjalan Maila | P38: - | Q38: Imatran Pallo-Veikot 2 | R38: 8 | S38: - | T38: 4
L39: 7 | M39: 6 | N39: 1981 | O39: Kouvolan Pallonlyöjät 2 | P39: - | Q39: Outokummun Partio | R39: 7 | S39: - | T39: 6
L40: 7 | M40: 6 | N40: 1981 | O40: Saaren Urheilijat | P40: - | Q40: Tohmajärven Urheilijat | R40: 6 | S40: - | T40: 8
L41: 13 | M41: 6 | N41: 1981 | O41: Imatran Pallo-Veikot 2 | P41: - | Q41: Outokummun Partio | R41: 14 | S41: - | T41: 4
L42: 14 | M42: 6 | N42: 1981 | O42: Haminan Palloilijat 2 | P42: - | Q42: Kouvolan Pallonlyöjät 2 | R42: 16 | S42: - | T42: 3
L43: 14 | M43: 6 | N43: 1981 | O43: Karjalan Maila | P43: - | Q43: Heinolan Maila-Pojat | R43: 5 | S43: - | T43: 4
L44: 14 | M44: 6 | N44: 1981 | O44: Porvoon Kumuri | P44: - | Q44: Saaren Urheilijat | R44: 9 | S44: - | T44: 11
L45: 14 | M45: 6 | N45: 1981 | O45: Tohmajärven Urheilijat | P45: - | Q45: Ilomantsin Urheilijat | R45: 5 | S45: - | T45: 4
N46: 1981 | O46: Heinolan Maila-Pojat | P46: - | Q46: Imatran Pallo-Veikot 2 | R46: 14 | S46: - | T46: 4
L47: 5 | M47: 7 | N47: 1981 | O47: Ilomantsin Urheilijat | P47: - | Q47: Porvoon Kumuri | R47: 11 | S47: - | T47: 7
L48: 5 | M48: 7 | N48: 1981 | O48: Kouvolan Pallonlyöjät 2 | P48: - | Q48: Tohmajärven Urheilijat | R48: 4 | S48: - | T48: 5
L49: 5 | M49: 7 | N49: 1981 | O49: Outokummun Partio | P49: - | Q49: Haminan Palloilijat 2 | R49: 4 | S49: - | T49: 12
L50: 5 | M50: 7 | N50: 1981 | O50: Saaren Urheilijat | P50: - | Q50: Karjalan Maila | R50: 10 | S50: - | T50: 11
L51: 9 | M51: 7 | N51: 1981 | O51: Ilomantsin Urheilijat | P51: - | Q51: Karjalan Maila | R51: 10 | S51: - | T51: 3
L52: 9 | M52: 7 | N52: 1981 | O52: Kouvolan Pallonlyöjät 2 | P52: - | Q52: Porvoon Kumuri | R52: 19 | S52: - | T52: 7
L53: 12 | M53: 7 | N53: 1981 | O53: Haminan Palloilijat 2 | P53: - | Q53: Imatran Pallo-Veikot 2 | R53: 12 | S53: - | T53: 7
L54: 12 | M54: 7 | N54: 1981 | O54: Karjalan Maila | P54: - | Q54: Kouvolan Pallonlyöjät 2 | R54: 8 | S54: - | T54: 4
L55: 12 | M55: 7 | N55: 1981 | O55: Outokummun Partio | P55: - | Q55: Tohmajärven Urheilijat | R55: 5 | S55: - | T55: 21
L56: 12 | M56: 7 | N56: 1981 | O56: Saaren Urheilijat | P56: - | Q56: Heinolan Maila-Pojat | R56: 10 | S56: - | T56: 1
L57: 18 | M57: 7 | N57: 1981 | O57: Kouvolan Pallonlyöjät 2 | P57: - | Q57: Ilomantsin Urheilijat | R57: 7 | S57: - | T57: 6
L58: 18 | M58: 7 | N58: 1981 | O58: Tohmajärven Urheilijat | P58: - | Q58: Haminan Palloilijat 2 | R58: 9 | S58: - | T58: 4
L59: 19 | M59: 7 | N59: 1981 | O59: Heinolan Maila-Pojat | P59: - | Q59: Ilomantsin Urheilijat | R59: 9 | S59: - | T59: 2
L60: 19 | M60: 7 | N60: 1981 | O60: Imatran Pallo-Veikot 2 | P60: - | Q60: Saaren Urheilijat | R60: 3 | S60: - | T60: 3
L61: 19 | M61: 7 | N61: 1981 | O61: Porvoon Kumuri | P61: - | Q61: Outokummun Partio | R61: 18 | S61: - | T61: 7
L62: 21 | M62: 7 | N62: 1981 | O62: Haminan Palloilijat 2 | P62: - | Q62: Porvoon Kumuri | R62: 2 | S62: - | T62: 4
L63: 21 | M63: 7 | N63: 1981 | O63: Ilomantsin Urheilijat | P63: - | Q63: Saaren Urheilijat | R63: 12 | S63: - | T63: 6
L64: 21 | M64: 7 | N64: 1981 | O64: Imatran Pallo-Veikot 2 | P64: - | Q64: Tohmajärven Urheilijat | R64: 14 | S64: - | T64: 5
L65: 21 | M65: 7 | N65: 1981 | O65: Kouvolan Pallonlyöjät 2 | P65: - | Q65: Heinolan Maila-Pojat | R65: 20 | S65: - | T65: 5
L66: 21 | M66: 7 | N66: 1981 | O66: Outokummun Partio | P66: - | Q66: Karjalan Maila | R66: 0 | S66: - | T66: 13
L67: 26 | M67: 7 | N67: 1981 | O67: Heinolan Maila-Pojat | P67: - | Q67: Outokummun Partio | R67: 7 | S67: - | T67: 3
L68: 26 | M68: 7 | N68: 1981 | O68: Ilomantsin Urheilijat | P68: - | Q68: Imatran Pallo-Veikot 2 | R68: 9 | S68: - | T68: 3
L69: 26 | M69: 7 | N69: 1981 | O69: Karjalan Maila | P69: - | Q69: Haminan Palloilijat 2 | R69: 2 | S69: - | T69: 3
L70: 26 | M70: 7 | N70: 1981 | O70: Porvoon Kumuri | P70: - | Q70: Tohmajärven Urheilijat | R70: 6 | S70: - | T70: 3
L71: 26 | M71: 7 | N71: 1981 | O71: Saaren Urheilijat | P71: - | Q71: Kouvolan Pallonlyöjät 2 | R71: 12 | S71: - | T71: 3
L72: 28 | M72: 7 | N72: 1981 | O72: Haminan Palloilijat 2 | P72: - | Q72: Heinolan Maila-Pojat | R72: 11 | S72: - | T72: 4
L73: 28 | M73: 7 | N73: 1981 | O73: Imatran Pallo-Veikot 2 | P73: - | Q73: Porvoon Kumuri | R73: 14 | S73: - | T73: 3
L74: 28 | M74: 7 | N74: 1981 | O74: Tohmajärven Urheilijat | P74: - | Q74: Karjalan Maila | R74: 7 | S74: - | T74: 5
L75: 2 | M75: 8 | N75: 1981 | O75: Heinolan Maila-Pojat | P75: - | Q75: Tohmajärven Urheilijat | R75: 3 | S75: - | T75: 4
L76: 2 | M76: 8 | N76: 1981 | O76: Ilomantsin Urheilijat | P76: - | Q76: Outokummun Partio | R76: 11 | S76: - | T76: 2
L77: 2 | M77: 8 | N77: 1981 | O77: Karjalan Maila | P77: - | Q77: Porvoon Kumuri | R77: 12 | S77: - | T77: 4
L78: 2 | M78: 8 | N78: 1981 | O78: Saaren Urheilijat | P78: - | Q78: Haminan Palloilijat 2 | R78: 7 | S78: - | T78: 4
L79: 4 | M79: 8 | N79: 1981 | O79: Kouvolan Pallonlyöjät 2 | P79: - | Q79: Imatran Pallo-Veikot 2 | R79: 7 | S79: - | T79: 19
L80: 6 | M80: 8 | N80: 1981 | O80: Outokummun Partio | P80: - | Q80: Saaren Urheilijat | R80: 6 | S80: - | T80: 13
L81: 16 | M81: 8 | N81: 1981 | O81: Haminan Palloilijat 2 | P81: - | Q81: Ilomantsin Urheilijat | R81: 9 | S81: - | T81: 11
L82: 16 | M82: 8 | N82: 1981 | O82: Imatran Pallo-Veikot 2 | P82: - | Q82: Karjalan Maila | R82: 6 | S82: - | T82: 4
L83: 16 | M83: 8 | N83: 1981 | O83: Outokummun Partio | P83: - | Q83: Kouvolan Pallonlyöjät 2 | R83: 8 | S83: - | T83: 12
L84: 16 | M84: 8 | N84: 1981 | O84: Porvoon Kumuri | P84: - | Q84: Heinolan Maila-Pojat | R84: 14 | S84: - | T84: 4
L85: 16 | M85: 8 | N85: 1981 | O85: Tohmajärven Urheilijat | P85: - | Q85: Saaren Urheilijat | R85: 6 | S85: - | T85: 3
L86: 23 | M86: 8 | N86: 1981 | O86: Heinolan Maila-Pojat | P86: - | Q86: Karjalan Maila | R86: 9 | S86: - | T86: 11
L87: 23 | M87: 8 | N87: 1981 | O87: Ilomantsin Urheilijat | P87: - | Q87: Tohmajärven Urheilijat | R87: 9 | S87: - | T87: 5
L88: 23 | M88: 8 | N88: 1981 | O88: Kouvolan Pallonlyöjät 2 | P88: - | Q88: Haminan Palloilijat 2 | R88: 12 | S88: - | T88: 3
L89: 23 | M89: 8 | N89: 1981 | O89: Outokummun Partio | P89: - | Q89: Imatran Pallo-Veikot 2 | R89: 1 | S89: - | T89: 8
L90: 23 | M90: 8 | N90: 1981 | O90: Saaren Urheilijat | P90: - | Q90: Porvoon Kumuri | R90: 14 | S90: - | T90: 6
L91: 30 | M91: 8 | N91: 1981 | O91: Haminan Palloilijat 2 | P91: - | Q91: Outokummun Partio | R91: 11 | S91: - | T91: 3
L92: 30 | M92: 8 | N92: 1981 | O92: Imatran Pallo-Veikot 2 | P92: - | Q92: Heinolan Maila-Pojat | R92: 12 | S92: - | T92: 4
L93: 30 | M93: 8 | N93: 1981 | O93: Karjalan Maila | P93: - | Q93: Saaren Urheilijat | R93: 5 | S93: - | T93: 6
L94: 30 | M94: 8 | N94: 1981 | O94: Porvoon Kumuri | P94: - | Q94: Ilomantsin Urheilijat | R94: 7 | S94: - | T94: 4
L95: 30 | M95: 8 | N95: 1981 | O95: Tohmajärven Urheilijat | P95: - | Q95: Kouvolan Pallonlyöjät 2 | R95: 22 | S95: - | T95: 4
Q96: Yhteensä | R96: =SUM(R6:R95) -> 810 | S96: - | T96: =SUM(T6:T95) -> 595
L97: =COUNT(R6:R95) -> 90 | Q97: Keskiarvo | R97: =PRODUCT(R96/L97) -> 9.0 | S97: - | T97: =PRODUCT(T96/L97) -> 6.6
A100: * | B100: LÄNSILOHKO 1981 | C100: O | D100: V | E100: T | F100: H | G100: TJ | H100: - | I100: AJ | J100: PIST | O100: LÄNSILOHKO 1981
A101: 1 | B101: Sotkamon Jymy | C101: 18 | D101: 15 | E101: 1 | F101: 2 | G101: 201 | H101: - | I101: 63 | J101: 31 | L101: 7 | M101: 5 | N101: 1981 | O101: Sotkamon Jymy | P101: - | Q101: Kempeleen Kiri | R101: 17 | S101: - | T101: 5
A102: 2 | B102: Halsuan Toivo | C102: 18 | D102: 13 | E102: 2 | F102: 3 | G102: 203 | H102: - | I102: 80 | J102: 28 | L102: 7 | M102: 5 | N102: 1981 | O102: Vetelin Urheilijat | P102: - | Q102: Halsuan Toivo | R102: 3 | S102: - | T102: 8
A103: 3 | B103: Kempeleen Kiri | C103: 18 | D103: 10 | E103: 2 | F103: 6 | G103: 136 | H103: - | I103: 152 | J103: 22 | L103: 7 | M103: 5 | N103: 1981 | O103: Ylivieskan Kuula | P103: - | Q103: Tyrnävän Tempaus | R103: 12 | S103: - | T103: 1
A104: 4 | B104: Muhoksen Pallo-Salamat | C104: 18 | D104: 10 | E104: 1 | F104: 7 | G104: 186 | H104: - | I104: 126 | J104: 21 | L104: 10 | M104: 5 | N104: 1981 | O104: Kempeleen Kiri | P104: - | Q104: Muhoksen Pallo-Salamat | R104: 6 | S104: - | T104: 3
A105: 5 | B105: Ylivieskan Kuula | C105: 18 | D105: 9 | E105: 2 | F105: 7 | G105: 118 | H105: - | I105: 100 | J105: 20 | L105: 10 | M105: 5 | N105: 1981 | O105: Sotkamon Jymy | P105: - | Q105: Lapin Lukko, Rovaniemi | R105: 17 | S105: - | T105: 2
A106: 6 | B106: Vetelin Urheilijat | C106: 18 | D106: 7 | E106: 2 | F106: 9 | G106: 143 | H106: - | I106: 157 | J106: 16 | L106: 10 | M106: 5 | N106: 1981 | O106: Tyrnävän Tempaus | P106: - | Q106: Halsuan Toivo | R106: 3 | S106: - | T106: 8
A107: 7 | B107: Kajaanin Pallokerho | C107: 18 | D107: 6 | E107: 4 | F107: 8 | G107: 129 | H107: - | I107: 132 | J107: 16 | L107: 10 | M107: 5 | N107: 1981 | O107: Vetelin Urheilijat | P107: - | Q107: Alajärven Ankkurit 2 | R107: 7 | S107: - | T107: 6
A108: 8 | B108: Alajärven Ankkurit 2 | C108: 18 | D108: 7 | E108: 0 | F108: 11 | G108: 152 | H108: - | I108: 182 | J108: 14 | L108: 10 | M108: 5 | N108: 1981 | O108: Ylivieskan Kuula | P108: - | Q108: Kajaanin Pallokerho | R108: 4 | S108: - | T108: 4
A109: 9 | B109: Lapin Lukko, Rovaniemi | C109: 18 | D109: 3 | E109: 0 | F109: 15 | G109: 82 | H109: - | I109: 226 | J109: 6 | L109: 17 | M109: 5 | N109: 1981 | O109: Alajärven Ankkurit 2 | P109: - | Q109: Tyrnävän Tempaus | R109: 15 | S109: - | T109: 4
A110: 10 | B110: Tyrnävän Tempaus | C110: 18 | D110: 3 | E110: 0 | F110: 15 | G110: 76 | H110: - | I110: 208 | J110: 6 | L110: 17 | M110: 5 | N110: 1981 | O110: Halsuan Toivo | P110: - | Q110: Kempeleen Kiri | R110: 16 | S110: - | T110: 6
C111: =SUM(C101:C110) -> 180 | D111: =SUM(D101:D110) -> 83 | E111: =SUM(E101:E110) -> 14 | F111: =SUM(F101:F110) -> 83 | G111: =SUM(G101:G110) -> 1426 | H111: - | I111: =SUM(I101:I110) -> 1426 | J111: =SUM(J101:J110) -> 180 | L111: 17 | M111: 5 | N111: 1981 | O111: Kajaanin Pallokerho | P111: - | Q111: Vetelin Urheilijat | R111: 6 | S111: - | T111: 10
L112: 17 | M112: 5 | N112: 1981 | O112: Lapin Lukko, Rovaniemi | P112: - | Q112: Ylivieskan Kuula | R112: 0 | S112: - | T112: 10
B113: Sotkamon Jymy ykkössarjaan | L113: 17 | M113: 5 | N113: 1981 | O113: Muhoksen Pallo-Salamat | P113: - | Q113: Sotkamon Jymy | R113: 5 | S113: - | T113: 8
L114: 22 | M114: 5 | N114: 1981 | O114: Kempeleen Kiri | P114: - | Q114: Alajärven Ankkurit 2 | R114: 10 | S114: - | T114: 9
L115: 23 | M115: 5 | N115: 1981 | O115: Vetelin Urheilijat | P115: - | Q115: Lapin Lukko, Rovaniemi | R115: 20 | S115: - | T115: 6
L116: 24 | M116: 5 | N116: 1981 | O116: Alajärven Ankkurit 2 | P116: - | Q116: Lapin Lukko, Rovaniemi | R116: 15 | S116: - | T116: 6
L117: 24 | M117: 5 | N117: 1981 | O117: Sotkamon Jymy | P117: - | Q117: Halsuan Toivo | R117: 1 | S117: - | T117: 5
L118: 24 | M118: 5 | N118: 1981 | O118: Tyrnävän Tempaus | P118: - | Q118: Kajaanin Pallokerho | R118: 9 | S118: - | T118: 7
L119: 24 | M119: 5 | N119: 1981 | O119: Ylivieskan Kuula | P119: - | Q119: Muhoksen Pallo-Salamat | R119: 10 | S119: - | T119: 4
L120: 31 | M120: 5 | N120: 1981 | O120: Alajärven Ankkurit 2 | P120: - | Q120: Sotkamon Jymy | R120: 5 | S120: - | T120: 7
L121: 31 | M121: 5 | N121: 1981 | O121: Halsuan Toivo | P121: - | Q121: Ylivieskan Kuula | R121: 19 | S121: - | T121: 7
L122: 31 | M122: 5 | N122: 1981 | O122: Kajaanin Pallokerho | P122: - | Q122: Kempeleen Kiri | R122: 9 | S122: - | T122: 14
L123: 31 | M123: 5 | N123: 1981 | O123: Lapin Lukko, Rovaniemi | P123: - | Q123: Tyrnävän Tempaus | R123: 5 | S123: - | T123: 4
L124: 31 | M124: 5 | N124: 1981 | O124: Muhoksen Pallo-Salamat | P124: - | Q124: Vetelin Urheilijat | R124: 13 | S124: - | T124: 8
L125: 2 | M125: 6 | N125: 1981 | O125: Halsuan Toivo | P125: - | Q125: Muhoksen Pallo-Salamat | R125: 8 | S125: - | T125: 12
L126: 2 | M126: 6 | N126: 1981 | O126: Kempeleen Kiri | P126: - | Q126: Ylivieskan Kuula | R126: 2 | S126: - | T126: 11
L127: 2 | M127: 6 | N127: 1981 | O127: Sotkamon Jymy | P127: - | Q127: Kajaanin Pallokerho | R127: 15 | S127: - | T127: 5
L128: 2 | M128: 6 | N128: 1981 | O128: Tyrnävän Tempaus | P128: - | Q128: Vetelin Urheilijat | R128: 10 | S128: - | T128: 5
L129: 7 | M129: 6 | N129: 1981 | O129: Lapin Lukko, Rovaniemi | P129: - | Q129: Kajaanin Pallokerho | R129: 3 | S129: - | T129: 4
L130: 7 | M130: 6 | N130: 1981 | O130: Muhoksen Pallo-Salamat | P130: - | Q130: Alajärven Ankkurit 2 | R130: 25 | S130: - | T130: 3
L131: 9 | M131: 6 | N131: 1981 | O131: Alajärven Ankkurit 2 | P131: - | Q131: Halsuan Toivo | R131: 7 | S131: - | T131: 17
L132: 9 | M132: 6 | N132: 1981 | O132: Kajaanin Pallokerho | P132: - | Q132: Muhoksen Pallo-Salamat | R132: 9 | S132: - | T132: 4
L133: 9 | M133: 6 | N133: 1981 | O133: Kempeleen Kiri | P133: - | Q133: Lapin Lukko, Rovaniemi | R133: 15 | S133: - | T133: 1
L134: 9 | M134: 6 | N134: 1981 | O134: Tyrnävän Tempaus | P134: - | Q134: Sotkamon Jymy | R134: 2 | S134: - | T134: 7
L135: 9 | M135: 6 | N135: 1981 | O135: Vetelin Urheilijat | P135: - | Q135: Ylivieskan Kuula | R135: 10 | S135: - | T135: 3
L136: 14 | M136: 6 | N136: 1981 | O136: Halsuan Toivo | P136: - | Q136: Kajaanin Pallokerho | R136: 20 | S136: - | T136: 3
L137: 14 | M137: 6 | N137: 1981 | O137: Kempeleen Kiri | P137: - | Q137: Tyrnävän Tempaus | R137: 8 | S137: - | T137: 5
L138: 14 | M138: 6 | N138: 1981 | O138: Muhoksen Pallo-Salamat | P138: - | Q138: Lapin Lukko, Rovaniemi | R138: 10 | S138: - | T138: 1
L139: 14 | M139: 6 | N139: 1981 | O139: Sotkamon Jymy | P139: - | Q139: Vetelin Urheilijat | R139: 4 | S139: - | T139: 6
L140: 14 | M140: 6 | N140: 1981 | O140: Ylivieskan Kuula | P140: - | Q140: Alajärven Ankkurit 2 | R140: 6 | S140: - | T140: 3
L141: 5 | M141: 7 | N141: 1981 | O141: Kajaanin Pallokerho | P141: - | Q141: Alajärven Ankkurit 2 | R141: 20 | S141: - | T141: 5
L142: 5 | M142: 7 | N142: 1981 | O142: Lapin Lukko, Rovaniemi | P142: - | Q142: Halsuan Toivo | R142: 5 | S142: - | T142: 21
L143: 5 | M143: 7 | N143: 1981 | O143: Tyrnävän Tempaus | P143: - | Q143: Muhoksen Pallo-Salamat | R143: 5 | S143: - | T143: 15
N144: 1981 | O144: Vetelin Urheilijat | P144: - | Q144: Kempeleen Kiri | R144: 4 | S144: - | T144: 4
L145: 5 | M145: 7 | N145: 1981 | O145: Ylivieskan Kuula | P145: - | Q145: Sotkamon Jymy | R145: 1 | S145: - | T145: 4
L146: 12 | M146: 7 | N146: 1981 | O146: Alajärven Ankkurit 2 | P146: - | Q146: Muhoksen Pallo-Salamat | R146: 14 | S146: - | T146: 21
L147: 12 | M147: 7 | N147: 1981 | O147: Halsuan Toivo | P147: - | Q147: Vetelin Urheilijat | R147: 12 | S147: - | T147: 2
L148: 12 | M148: 7 | N148: 1981 | O148: Kajaanin Pallokerho | P148: - | Q148: Lapin Lukko, Rovaniemi | R148: 19 | S148: - | T148: 4
L149: 12 | M149: 7 | N149: 1981 | O149: Kempeleen Kiri | P149: - | Q149: Sotkamon Jymy | R149: 2 | S149: - | T149: 14
L150: 12 | M150: 7 | N150: 1981 | O150: Tyrnävän Tempaus | P150: - | Q150: Ylivieskan Kuula | R150: 0 | S150: - | T150: 9
L151: 14 | M151: 7 | N151: 1981 | O151: Halsuan Toivo | P151: - | Q151: Alajärven Ankkurit 2 | R151: 11 | S151: - | T151: 0
L152: 14 | M152: 7 | N152: 1981 | O152: Lapin Lukko, Rovaniemi | P152: - | Q152: Kempeleen Kiri | R152: 16 | S152: - | T152: 19
L153: 14 | M153: 7 | N153: 1981 | O153: Muhoksen Pallo-Salamat | P153: - | Q153: Kajaanin Pallokerho | R153: 4 | S153: - | T153: 4
L154: 14 | M154: 7 | N154: 1981 | O154: Sotkamon Jymy | P154: - | Q154: Tyrnävän Tempaus | R154: 25 | S154: - | T154: 5
L155: 14 | M155: 7 | N155: 1981 | O155: Ylivieskan Kuula | P155: - | Q155: Vetelin Urheilijat | R155: 10 | S155: - | T155: 7
L156: 19 | M156: 7 | N156: 1981 | O156: Alajärven Ankkurit 2 | P156: - | Q156: Ylivieskan Kuula | R156: 8 | S156: - | T156: 6
L157: 19 | M157: 7 | N157: 1981 | O157: Kajaanin Pallokerho | P157: - | Q157: Halsuan Toivo | R157: 7 | S157: - | T157: 1
L158: 19 | M158: 7 | N158: 1981 | O158: Lapin Lukko, Rovaniemi | P158: - | Q158: Muhoksen Pallo-Salamat | R158: 14 | S158: - | T158: 7
L159: 19 | M159: 7 | N159: 1981 | O159: Tyrnävän Tempaus | P159: - | Q159: Kempeleen Kiri | R159: 5 | S159: - | T159: 8
L160: 19 | M160: 7 | N160: 1981 | O160: Vetelin Urheilijat | P160: - | Q160: Sotkamon Jymy | R160: 1 | S160: - | T160: 16
L161: 26 | M161: 7 | N161: 1981 | O161: Alajärven Ankkurit 2 | P161: - | Q161: Kajaanin Pallokerho | R161: 5 | S161: - | T161: 8
L162: 26 | M162: 7 | N162: 1981 | O162: Halsuan Toivo | P162: - | Q162: Lapin Lukko, Rovaniemi | R162: 7 | S162: - | T162: 0
L163: 26 | M163: 7 | N163: 1981 | O163: Kempeleen Kiri | P163: - | Q163: Vetelin Urheilijat | R163: 6 | S163: - | T163: 5
L164: 26 | M164: 7 | N164: 1981 | O164: Muhoksen Pallo-Salamat | P164: - | Q164: Tyrnävän Tempaus | R164: 18 | S164: - | T164: 8
L165: 26 | M165: 7 | N165: 1981 | O165: Sotkamon Jymy | P165: - | Q165: Ylivieskan Kuula | R165: 16 | S165: - | T165: 4
L166: 9 | M166: 8 | N166: 1981 | O166: Muhoksen Pallo-Salamat | P166: - | Q166: Halsuan Toivo | R166: 2 | S166: - | T166: 3
L167: 28 | M167: 7 | N167: 1981 | O167: Vetelin Urheilijat | P167: - | Q167: Tyrnävän Tempaus | R167: 14 | S167: - | T167: 2
L168: 28 | M168: 7 | N168: 1981 | O168: Ylivieskan Kuula | P168: - | Q168: Kempeleen Kiri | R168: 2 | S168: - | T168: 4
L169: 2 | M169: 8 | N169: 1981 | O169: Kempeleen Kiri | P169: - | Q169: Kajaanin Pallokerho | R169: 4 | S169: - | T169: 4
L170: 2 | M170: 8 | N170: 1981 | O170: Sotkamon Jymy | P170: - | Q170: Alajärven Ankkurit 2 | R170: 19 | S170: - | T170: 5
L171: 2 | M171: 8 | N171: 1981 | O171: Tyrnävän Tempaus | P171: - | Q171: Lapin Lukko, Rovaniemi | R171: 4 | S171: - | T171: 8
L172: 2 | M172: 8 | N172: 1981 | O172: Vetelin Urheilijat | P172: - | Q172: Muhoksen Pallo-Salamat | R172: 6 | S172: - | T172: 16
L173: 2 | M173: 8 | N173: 1981 | O173: Ylivieskan Kuula | P173: - | Q173: Halsuan Toivo | R173: 5 | S173: - | T173: 5
L174: 8 | M174: 8 | N174: 1981 | O174: Lapin Lukko, Rovaniemi | P174: - | Q174: Alajärven Ankkurit 2 | R174: 3 | S174: - | T174: 16
L175: 16 | M175: 8 | N175: 1981 | O175: Alajärven Ankkurit 2 | P175: - | Q175: Kempeleen Kiri | R175: 11 | S175: - | T175: 2
L176: 16 | M176: 8 | N176: 1981 | O176: Halsuan Toivo | P176: - | Q176: Sotkamon Jymy | R176: 4 | S176: - | T176: 4
L177: 16 | M177: 8 | N177: 1981 | O177: Kajaanin Pallokerho | P177: - | Q177: Tyrnävän Tempaus | R177: 6 | S177: - | T177: 7
L178: 16 | M178: 8 | N178: 1981 | O178: Lapin Lukko, Rovaniemi | P178: - | Q178: Vetelin Urheilijat | R178: 8 | S178: - | T178: 14
L179: 16 | M179: 8 | N179: 1981 | O179: Muhoksen Pallo-Salamat | P179: - | Q179: Ylivieskan Kuula | R179: 12 | S179: - | T179: 2
L180: 23 | M180: 8 | N180: 1981 | O180: Kempeleen Kiri | P180: - | Q180: Halsuan Toivo | R180: 11 | S180: - | T180: 9
L181: 23 | M181: 8 | N181: 1981 | O181: Sotkamon Jymy | P181: - | Q181: Muhoksen Pallo-Salamat | R181: 7 | S181: - | T181: 4
L182: 23 | M182: 8 | N182: 1981 | O182: Tyrnävän Tempaus | P182: - | Q182: Alajärven Ankkurit 2 | R182: 0 | S182: - | T182: 9
L183: 23 | M183: 8 | N183: 1981 | O183: Vetelin Urheilijat | P183: - | Q183: Kajaanin Pallokerho | R183: 11 | S183: - | T183: 11
L184: 23 | M184: 8 | N184: 1981 | O184: Ylivieskan Kuula | P184: - | Q184: Lapin Lukko, Rovaniemi | R184: 12 | S184: - | T184: 0
L185: 28 | M185: 8 | N185: 1981 | O185: Kajaanin Pallokerho | P185: - | Q185: Sotkamon Jymy | R185: 2 | S185: - | T185: 8
L186: 30 | M186: 8 | N186: 1981 | O186: Alajärven Ankkurit 2 | P186: - | Q186: Vetelin Urheilijat | R186: 16 | S186: - | T186: 10
L187: 30 | M187: 8 | N187: 1981 | O187: Halsuan Toivo | P187: - | Q187: Tyrnävän Tempaus | R187: 29 | S187: - | T187: 2
L188: 30 | M188: 8 | N188: 1981 | O188: Kajaanin Pallokerho | P188: - | Q188: Ylivieskan Kuula | R188: 1 | S188: - | T188: 4
L189: 30 | M189: 8 | N189: 1981 | O189: Lapin Lukko, Rovaniemi | P189: - | Q189: Sotkamon Jymy | R189: 0 | S189: - | T189: 12
L190: 30 | M190: 8 | N190: 1981 | O190: Muhoksen Pallo-Salamat | P190: - | Q190: Kempeleen Kiri | R190: 11 | S190: - | T190: 10
Q191: Yhteensä | R191: =SUM(R101:R190) -> 816 | S191: - | T191: =SUM(T101:T190) -> 610
L192: =COUNT(R101:R190) -> 90 | Q192: Keskiarvo | R192: =PRODUCT(R191/L192) -> 9.1 | S192: - | T192: =PRODUCT(T191/L192) -> 6.8
A195: * | B195: ETELÄLOHKO 1981 | C195: O | D195: V | E195: T | F195: H | G195: TJ | H195: - | I195: AJ | J195: PIST | O195: ETELÄLOHKO 1981
A196: 1 | B196: Ulvilan Pesä-Veikot | C196: 18 | D196: 14 | E196: 2 | F196: 2 | G196: 199 | H196: - | I196: 85 | J196: 30 | L196: 10 | M196: 5 | N196: 1981 | O196: Ilkan Pallo, Ilmajoki | P196: - | Q196: Seinäjoen Maila-Jussit 2 | R196: 6 | S196: - | T196: 3
A197: 2 | B197: Ilkan Pallo, Ilmajoki | C197: 18 | D197: 11 | E197: 1 | F197: 6 | G197: 153 | H197: - | I197: 128 | J197: 23 | L197: 10 | M197: 5 | N197: 1981 | O197: Lammin Luja | P197: - | Q197: Kankaanpään Maila 2 | R197: 3 | S197: - | T197: 9
A198: 3 | B198: Jokioisten Koetus | C198: 18 | D198: 11 | E198: 0 | F198: 7 | G198: 168 | H198: - | I198: 109 | J198: 22 | L198: 10 | M198: 5 | N198: 1981 | O198: Mynämäen Vesa | P198: - | Q198: Ulvilan Pesä-Veikot | R198: 0 | S198: - | T198: 18
A199: 4 | B199: Kankaanpään Maila 2 | C199: 18 | D199: 10 | E199: 1 | F199: 7 | G199: 164 | H199: - | I199: 127 | J199: 21 | L199: 10 | M199: 5 | N199: 1981 | O199: Ulasoorin Karhut | P199: - | Q199: Jokioisten Koetus | R199: 3 | S199: - | T199: 12
A200: 5 | B200: Helsinki-Pesis | C200: 18 | D200: 9 | E200: 2 | F200: 7 | G200: 158 | H200: - | I200: 130 | J200: 20 | L200: 10 | M200: 5 | N200: 1981 | O200: Vähänkyrön Viesti | P200: - | Q200: Helsinki-Pesis | R200: 4 | S200: - | T200: 4
A201: 6 | B201: Vähänkyrön Viesti | C201: 18 | D201: 9 | E201: 2 | F201: 7 | G201: 133 | H201: - | I201: 128 | J201: 20 | L201: 17 | M201: 5 | N201: 1981 | O201: Helsinki-Pesis | P201: - | Q201: Lammin Luja | R201: 10 | S201: - | T201: 2
A202: 7 | B202: Lammin Luja | C202: 18 | D202: 9 | E202: 1 | F202: 8 | G202: 184 | H202: - | I202: 129 | J202: 19 | L202: 17 | M202: 5 | N202: 1981 | O202: Jokioisten Koetus | P202: - | Q202: Ilkan Pallo, Ilmajoki | R202: 13 | S202: - | T202: 5
A203: 8 | B203: Seinäjoen Maila-Jussit 2 | C203: 18 | D203: 8 | E203: 1 | F203: 9 | G203: 109 | H203: - | I203: 125 | J203: 17 | L203: 17 | M203: 5 | N203: 1981 | O203: Kankaanpään Maila 2 | P203: - | Q203: Ulasoorin Karhut | R203: 13 | S203: - | T203: 7
A204: 9 | B204: Mynämäen Vesa | C204: 18 | D204: 2 | E204: 2 | F204: 14 | G204: 65 | H204: - | I204: 198 | J204: 6 | L204: 17 | M204: 5 | N204: 1981 | O204: Seinäjoen Maila-Jussit 2 | P204: - | Q204: Mynämäen Vesa | R204: 12 | S204: - | T204: 7
A205: 10 | B205: Ulasoorin Karhut | C205: 18 | D205: 1 | E205: 0 | F205: 17 | G205: 107 | H205: - | I205: 281 | J205: 2 | L205: 17 | M205: 5 | N205: 1981 | O205: Ulvilan Pesä-Veikot | P205: - | Q205: Vähänkyrön Viesti | R205: 5 | S205: - | T205: 5
... 4929 more rows

Sheet 1995-2009
B1: SUOMENSARJA 1995 - 2009
B2: 1995 alkoi suomensarjassa jaksopelin aikakausi
B4: ITÄLOHKO 1995 | C4: O | D4: 3 | E4: 2 | F4: 1 | G4: 0 | H4: TJ | I4: - | J4: AJ | K4: PIST | P4: ITÄLOHKO 1995
A5: 1 | B5: Sotkamon Jymy 2 | C5: 22 | D5: 16 | E5: 2 | F5: 3 | G5: 1 | H5: 233 | I5: - | J5: 103 | K5: 55 | M5: 6 | N5: 5 | O5: 1995 | P5: Jyväskylän Lohi | Q5: - | R5: Joensuun Maila | S5: 0 | T5: - | U5: 0 | V5: (3-3, 1-1, 0-0) | X5: 4 | Y5: - | Z5: 4
A6: 2 | B6: Puurtilan Kisa-Pojat | C6: 22 | D6: 14 | E6: 5 | F6: 0 | G6: 3 | H6: 201 | I6: - | J6: 104 | K6: 52 | M6: 7 | N6: 5 | O6: 1995 | P6: Kulhon Kunto | Q6: - | R6: Haka-Pesis | S6: 0 | T6: - | U6: 2 | V6: (3-4, 4-14) | X6: 7 | Y6: - | Z6: 18
A7: 3 | B7: Joensuun Maila | C7: 22 | D7: 13 | E7: 0 | F7: 6 | G7: 3 | H7: 195 | I7: - | J7: 94 | K7: 45 | M7: 7 | N7: 5 | O7: 1995 | P7: Nurmeksen Sepot | Q7: - | R7: Imatran Pallo-Veikot 2 | S7: 0 | T7: - | U7: 1 | V7: (1-4, 3-3) | X7: 4 | Y7: - | Z7: 7
A8: 4 | B8: Saaren Urheilijat | C8: 22 | D8: 10 | E8: 3 | F8: 5 | G8: 4 | H8: 137 | I8: - | J8: 109 | K8: 41 | M8: 7 | N8: 5 | O8: 1995 | P8: Puurtilan Kisa-Pojat | Q8: - | R8: Sotkamon Jymy 2 | S8: 1 | T8: - | U8: 0 | V8: (1-1, 1-1, 4-3) | X8: 6 | Y8: - | Z8: 5
A9: 5 | B9: Jyväskylän Lohi | C9: 22 | D9: 9 | E9: 1 | F9: 3 | G9: 9 | H9: 147 | I9: - | J9: 113 | K9: 32 | M9: 7 | N9: 5 | O9: 1995 | P9: Saaren Urheilijat | Q9: - | R9: Kuopion Kelta-Mustat | S9: 1 | T9: - | U9: 0 | V9: (3-2, 3-3) | X9: 6 | Y9: - | Z9: 5
A10: 6 | B10: Siilinjärven Pesis 2 | C10: 22 | D10: 7 | E10: 2 | F10: 7 | G10: 6 | H10: 180 | I10: - | J10: 156 | K10: 32 | M10: 13 | N10: 5 | O10: 1995 | P10: Imatran Pallo-Veikot 2 | Q10: - | R10: Jyväskylän Lohi | T10: - | Y10: -
A11: 7 | B11: Kiteen Pallo-90 2 | C11: 22 | D11: 9 | E11: 0 | F11: 5 | G11: 8 | H11: 164 | I11: - | J11: 144 | K11: 32 | M11: 13 | N11: 5 | O11: 1995 | P11: Sotkamon Jymy 2 | Q11: - | R11: Saaren Urheilijat | T11: - | Y11: -
A12: 8 | B12: Imatran Pallo-Veikot 2 | C12: 22 | D12: 6 | E12: 4 | F12: 4 | G12: 8 | H12: 135 | I12: - | J12: 173 | K12: 30 | M12: 14 | N12: 5 | O12: 1995 | P12: Joensuun Maila | Q12: - | R12: Siilinjärven Pesis 2 | S12: 1 | T12: - | U12: 1 | V12: (2-1, 3-5, 0-0) | X12: 5 | Y12: - | Z12: 6
A13: 9 | B13: Haka-Pesis | C13: 22 | D13: 7 | E13: 0 | F13: 4 | G13: 11 | H13: 116 | I13: - | J13: 220 | K13: 25 | M13: 14 | N13: 5 | O13: 1995 | P13: Kuopion Kelta-Mustat | Q13: - | R13: Puurtilan Kisa-Pojat | T13: - | V13: siirto | Y13: -
A14: 10 | B14: Kuopion Kelta-Mustat | C14: 22 | D14: 6 | E14: 2 | F14: 2 | G14: 12 | H14: 138 | I14: - | J14: 170 | K14: 24 | L14: La | M14: 20 | N14: 5 | O14: 1995 | P14: Haka-Pesis | Q14: - | R14: Nurmeksen Sepot | S14: 1 | T14: - | U14: 0 | V14: (8-1, 0-0) | X14: 8 | Y14: - | Z14: 1
A15: 11 | B15: Nurmeksen Sepot | C15: 22 | D15: 1 | E15: 1 | F15: 3 | G15: 17 | H15: 67 | I15: - | J15: 170 | K15: 8 | M15: 20 | N15: 5 | O15: 1995 | P15: Siilinjärven Pesis 2 | Q15: - | R15: Saaren Urheilijat | S15: 1 | T15: - | U15: 2 | V15: (3-7, 2-1, 0-1) | X15: 5 | Y15: - | Z15: 9
A16: 12 | B16: Kulhon Kunto | C16: 22 | D16: 0 | E16: 1 | F16: 5 | G16: 16 | H16: 98 | I16: - | J16: 255 | K16: 7 | M16: 21 | N16: 5 | O16: 1995 | P16: Jyväskylän Lohi | Q16: - | R16: Haka-Pesis | S16: 2 | T16: - | U16: 0 | V16: (8-1, 4-0) | X16: 12 | Y16: - | Z16: 1
C17: =SUM(C5:C16) -> 264 | D17: =SUM(D5:D16) -> 98 | E17: =SUM(E5:E16) -> 21 | F17: =SUM(F5:F16) -> 47 | G17: =SUM(G5:G16) -> 98 | H17: =SUM(H5:H16) -> 1811 | I17: - | J17: =SUM(J5:J16) -> 1811 | K17: =SUM(K5:K16) -> 383 | M17: 21 | N17: 5 | O17: 1995 | P17: Joensuun Maila | Q17: - | R17: Kuopion Kelta-Mustat | S17: 2 | T17: - | U17: 0 | V17: (5-1, 1-0) | X17: 6 | Y17: - | Z17: 1
M18: 21 | N18: 5 | O18: 1995 | P18: Puurtilan Kisa-Pojat | Q18: - | R18: Kulhon Kunto | S18: 2 | T18: - | U18: 0 | V18: (11-1, 8-0) | X18: 19 | Y18: - | Z18: 1
B19: 1 - 4 sijoittuneet nousukarsintoihin | M19: 21 | N19: 5 | O19: 1995 | P19: Sotkamon Jymy 2 | Q19: - | R19: Imatran Pallo-Veikot 2 | S19: 2 | T19: - | U19: 0 | V19: (6-3, 6-0) | X19: 12 | Y19: - | Z19: 3
B20: 8 - 11 sijoittuneet putoamiskarsintoihin | M20: 23 | N20: 5 | O20: 1995 | P20: Kuopion Kelta-Mustat | Q20: - | R20: Nurmeksen Sepot | T20: - | Y20: -
B21: Kulhon Kunto maakuntasarjaan | M21: 23 | N21: 5 | O21: 1995 | P21: Siilinjärven Pesis 2 | Q21: - | R21: Sotkamon Jymy 2 | S21: 0 | T21: - | U21: 2 | V21: (4-7, 2-6) | X21: 6 | Y21: - | Z21: 13
M22: 25 | N22: 5 | O22: 1995 | P22: Kulhon Kunto | Q22: - | R22: Joensuun Maila | T22: - | Y22: -
M23: 25 | N23: 5 | O23: 1995 | P23: Puurtilan Kisa-Pojat | Q23: - | R23: Imatran Pallo-Veikot 2 | T23: - | Y23: -
M24: 25 | N24: 5 | O24: 1995 | P24: Saaren Urheilijat | Q24: - | R24: Haka-Pesis | T24: - | Y24: -
M25: 28 | N25: 5 | O25: 1995 | P25: Haka-Pesis | Q25: - | R25: Siilinjärven Pesis 2 | T25: - | Y25: -
M26: 28 | N26: 5 | O26: 1995 | P26: Kulhon Kunto | Q26: - | R26: Kuopion Kelta-Mustat | T26: - | Y26: -
M27: 28 | N27: 5 | O27: 1995 | P27: Nurmeksen Sepot | Q27: - | R27: Jyväskylän Lohi | T27: - | Y27: -
M28: 28 | N28: 5 | O28: 1995 | P28: Saaren Urheilijat | Q28: - | R28: Puurtilan Kisa-Pojat | T28: - | Y28: -
M29: 28 | N29: 5 | O29: 1995 | P29: Sotkamon Jymy 2 | Q29: - | R29: Joensuun Maila | T29: - | Y29: -
M30: 31 | N30: 5 | O30: 1995 | P30: Imatran Pallo-Veikot 2 | Q30: - | R30: Haka-Pesis | T30: - | Y30: -
M31: 31 | N31: 5 | O31: 1995 | P31: Jyväskylän Lohi | Q31: - | R31: Kuopion Kelta-Mustat | T31: - | Y31: -
M32: 31 | N32: 5 | O32: 1995 | P32: Sotkamon Jymy 2 | Q32: - | R32: Kulhon Kunto | T32: - | Y32: -
M33: 1 | N33: 6 | O33: 1995 | P33: Joensuun Maila | Q33: - | R33: Saaren Urheilijat | T33: - | Y33: -
M34: 1 | N34: 6 | O34: 1995 | P34: Siilinjärven Pesis 2 | Q34: - | R34: Nurmeksen Sepot | T34: - | Y34: -
M35: 4 | N35: 6 | O35: 1995 | P35: Haka-Pesis | Q35: - | R35: Sotkamon Jymy 2 | T35: - | Y35: -
M36: 4 | N36: 6 | O36: 1995 | P36: Kuopion Kelta-Mustat | Q36: - | R36: Imatran Pallo-Veikot 2 | T36: - | Y36: -
M37: 4 | N37: 6 | O37: 1995 | P37: Kulhon Kunto | Q37: - | R37: Siilinjärven Pesis 2 | T37: - | Y37: -
M38: 4 | N38: 6 | O38: 1995 | P38: Puurtilan Kisa-Pojat | Q38: - | R38: Nurmeksen Sepot | T38: - | Y38: -
M39: 4 | N39: 6 | O39: 1995 | P39: Saaren Urheilijat | Q39: - | R39: Jyväskylän Lohi | T39: - | Y39: -
M40: 6 | N40: 6 | O40: 1995 | P40: Haka-Pesis | Q40: - | R40: Joensuun Maila | T40: - | Y40: -
M41: 7 | N41: 6 | O41: 1995 | P41: Nurmeksen Sepot | Q41: - | R41: Kulhon Kunto | T41: - | Y41: -
M42: 7 | N42: 6 | O42: 1995 | P42: Siilinjärven Pesis 2 | Q42: - | R42: Kuopion Kelta-Mustat | T42: - | Y42: -
M43: 8 | N43: 6 | O43: 1995 | P43: Imatran Pallo-Veikot 2 | Q43: - | R43: Saaren Urheilijat | T43: - | Y43: -
M44: 8 | N44: 6 | O44: 1995 | P44: Puurtilan Kisa-Pojat | Q44: - | R44: Jyväskylän Lohi | T44: - | Y44: -
M45: 10 | N45: 6 | O45: 1995 | P45: Jyväskylän Lohi | Q45: - | R45: Kulhon Kunto | T45: - | Y45: -
M46: 11 | N46: 6 | O46: 1995 | P46: Imatran Pallo-Veikot 2 | Q46: - | R46: Siilinjärven Pesis 2 | T46: - | Y46: -
M47: 11 | N47: 6 | O47: 1995 | P47: Joensuun Maila | Q47: - | R47: Puurtilan Kisa-Pojat | T47: - | Y47: -
M48: 11 | N48: 6 | O48: 1995 | P48: Kuopion Kelta-Mustat | Q48: - | R48: Sotkamon Jymy 2 | T48: - | Y48: -
M49: 11 | N49: 6 | O49: 1995 | P49: Saaren Urheilijat | Q49: - | R49: Nurmeksen Sepot | T49: - | Y49: -
M50: 14 | N50: 6 | O50: 1995 | P50: Kulhon Kunto | Q50: - | R50: Saaren Urheilijat | T50: - | Y50: -
M51: 14 | N51: 6 | O51: 1995 | P51: Nurmeksen Sepot | Q51: - | R51: Sotkamon Jymy 2 | T51: - | Y51: -
M52: 15 | N52: 6 | O52: 1995 | P52: Haka-Pesis | Q52: - | R52: Puurtilan Kisa-Pojat | T52: - | Y52: -
M53: 15 | N53: 6 | O53: 1995 | P53: Joensuun Maila | Q53: - | R53: Imatran Pallo-Veikot 2 | T53: - | Y53: -
M54: 15 | N54: 6 | O54: 1995 | P54: Jyväskylän Lohi | Q54: - | R54: Siilinjärven Pesis 2 | T54: - | Y54: -
M55: 18 | N55: 6 | O55: 1995 | P55: Imatran Pallo-Veikot 2 | Q55: - | R55: Kulhon Kunto | T55: - | Y55: -
M56: 18 | N56: 6 | O56: 1995 | P56: Kuopion Kelta-Mustat | Q56: - | R56: Haka-Pesis | T56: - | Y56: -
M57: 18 | N57: 6 | O57: 1995 | P57: Nurmeksen Sepot | Q57: - | R57: Joensuun Maila | T57: - | Y57: -
M58: 18 | N58: 6 | O58: 1995 | P58: Puurtilan Kisa-Pojat | Q58: - | R58: Siilinjärven Pesis 2 | T58: - | Y58: -
M59: 18 | N59: 6 | O59: 1995 | P59: Sotkamon Jymy 2 | Q59: - | R59: Jyväskylän Lohi | T59: - | Y59: -
M60: 29 | N60: 6 | O60: 1995 | P60: Imatran Pallo-Veikot 2 | Q60: - | R60: Joensuun Maila | T60: - | Y60: -
M61: 1 | N61: 7 | O61: 1995 | P61: Sotkamon Jymy 2 | Q61: - | R61: Kuopion Kelta-Mustat | T61: - | Y61: -
M62: 1 | N62: 7 | O62: 1995 | P62: Siilinjärven Pesis 2 | Q62: - | R62: Imatran Pallo-Veikot 2 | T62: - | Y62: -
M63: 2 | N63: 7 | O63: 1995 | P63: Joensuun Maila | Q63: - | R63: Nurmeksen Sepot | T63: - | Y63: -
M64: 2 | N64: 7 | O64: 1995 | P64: Kulhon Kunto | Q64: - | R64: Puurtilan Kisa-Pojat | T64: - | Y64: -
M65: 2 | N65: 7 | O65: 1995 | P65: Haka-Pesis | Q65: - | R65: Jyväskylän Lohi | T65: - | Y65: -
M66: 4 | N66: 7 | O66: 1995 | P66: Haka-Pesis | Q66: - | R66: Imatran Pallo-Veikot 2 | T66: - | Y66: -
M67: 5 | N67: 7 | O67: 1995 | P67: Kulhon Kunto | Q67: - | R67: Sotkamon Jymy 2 | T67: - | Y67: -
M68: 5 | N68: 7 | O68: 1995 | P68: Nurmeksen Sepot | Q68: - | R68: Siilinjärven Pesis 2 | T68: - | Y68: -
M69: 6 | N69: 7 | O69: 1995 | P69: Saaren Urheilijat | Q69: - | R69: Joensuun Maila | T69: - | Y69: -
M70: 6 | N70: 7 | O70: 1995 | P70: Jyväskylän Lohi | Q70: - | R70: Puurtilan Kisa-Pojat | T70: - | Y70: -
M71: 8 | N71: 7 | O71: 1995 | P71: Jyväskylän Lohi | Q71: - | R71: Saaren Urheilijat | T71: - | Y71: -
M72: 9 | N72: 7 | O72: 1995 | P72: Puurtilan Kisa-Pojat | Q72: - | R72: Joensuun Maila | T72: - | Y72: -
M73: 9 | N73: 7 | O73: 1995 | P73: Kuopion Kelta-Mustat | Q73: - | R73: Kulhon Kunto | T73: - | Y73: -
M74: 9 | N74: 7 | O74: 1995 | P74: Imatran Pallo-Veikot 2 | Q74: - | R74: Sotkamon Jymy 2 | T74: - | Y74: -
M75: 12 | N75: 7 | O75: 1995 | P75: Nurmeksen Sepot | Q75: - | R75: Kuopion Kelta-Mustat | T75: - | Y75: -
M76: 13 | N76: 7 | O76: 1995 | P76: Puurtilan Kisa-Pojat | Q76: - | R76: Haka-Pesis | T76: - | Y76: -
M77: 13 | N77: 7 | O77: 1995 | P77: Saaren Urheilijat | Q77: - | R77: Kulhon Kunto | T77: - | Y77: -
M78: 13 | N78: 7 | O78: 1995 | P78: Siilinjärven Pesis 2 | Q78: - | R78: Jyväskylän Lohi | T78: - | Y78: -
M79: 19 | N79: 7 | O79: 1995 | P79: Sotkamon Jymy 2 | Q79: - | R79: Nurmeksen Sepot | T79: - | Y79: -
M80: 19 | N80: 7 | O80: 1995 | P80: Imatran Pallo-Veikot 2 | Q80: - | R80: Puurtilan Kisa-Pojat | T80: - | Y80: -
M81: 20 | N81: 7 | O81: 1995 | P81: Joensuun Maila | Q81: - | R81: Kulhon Kunto | T81: - | Y81: -
M82: 20 | N82: 7 | O82: 1995 | P82: Kuopion Kelta-Mustat | Q82: - | R82: Siilinjärven Pesis 2 | T82: - | Y82: -
M83: 20 | N83: 7 | O83: 1995 | P83: Haka-Pesis | Q83: - | R83: Saaren Urheilijat | T83: - | Y83: -
M84: 23 | N84: 7 | O84: 1995 | P84: Joensuun Maila | Q84: - | R84: Sotkamon Jymy 2 | T84: - | Y84: -
M85: 23 | N85: 7 | O85: 1995 | P85: Saaren Urheilijat | Q85: - | R85: Siilinjärven Pesis 2 | T85: - | Y85: -
M86: 23 | N86: 7 | O86: 1995 | P86: Kulhon Kunto | Q86: - | R86: Jyväskylän Lohi | T86: - | Y86: -
M87: 23 | N87: 7 | O87: 1995 | P87: Nurmeksen Sepot | Q87: - | R87: Puurtilan Kisa-Pojat | T87: - | Y87: -
M88: 23 | N88: 7 | O88: 1995 | P88: Imatran Pallo-Veikot 2 | Q88: - | R88: Kuopion Kelta-Mustat | T88: - | Y88: -
M89: 29 | N89: 7 | O89: 1995 | P89: Jyväskylän Lohi | Q89: - | R89: Nurmeksen Sepot | T89: - | Y89: -
M90: 29 | N90: 7 | O90: 1995 | P90: Siilinjärven Pesis 2 | Q90: - | R90: Kulhon Kunto | T90: - | Y90: -
M91: 30 | N91: 7 | O91: 1995 | P91: Puurtilan Kisa-Pojat | Q91: - | R91: Saaren Urheilijat | T91: - | Y91: -
M92: 30 | N92: 7 | O92: 1995 | P92: Sotkamon Jymy 2 | Q92: - | R92: Haka-Pesis | T92: - | Y92: -
M93: 30 | N93: 7 | O93: 1995 | P93: Kuopion Kelta-Mustat | Q93: - | R93: Joensuun Maila | T93: - | Y93: -
M94: 1 | N94: 8 | O94: 1995 | P94: Kuopion Kelta-Mustat | Q94: - | R94: Jyväskylän Lohi | T94: - | Y94: -
M95: 2 | N95: 8 | O95: 1995 | P95: Kulhon Kunto | Q95: - | R95: Nurmeksen Sepot | T95: - | Y95: -
M96: 3 | N96: 8 | O96: 1995 | P96: Joensuun Maila | Q96: - | R96: Haka-Pesis | T96: - | Y96: -
M97: 3 | N97: 8 | O97: 1995 | P97: Saaren Urheilijat | Q97: - | R97: Imatran Pallo-Veikot 2 | T97: - | Y97: -
M98: 3 | N98: 8 | O98: 1995 | P98: Sotkamon Jymy 2 | Q98: - | R98: Siilinjärven Pesis 2 | T98: - | Y98: -
M99: 5 | N99: 8 | O99: 1995 | P99: Jyväskylän Lohi | Q99: - | R99: Sotkamon Jymy 2 | T99: - | Y99: -
M100: 5 | N100: 8 | O100: 1995 | P100: Siilinjärven Pesis 2 | Q100: - | R100: Puurtilan Kisa-Pojat | T100: - | Y100: -
M101: 6 | N101: 8 | O101: 1995 | P101: Kulhon Kunto | Q101: - | R101: Imatran Pallo-Veikot 2 | T101: - | Y101: -
M102: 6 | N102: 8 | O102: 1995 | P102: Nurmeksen Sepot | Q102: - | R102: Saaren Urheilijat | T102: - | Y102: -
M103: 6 | N103: 8 | O103: 1995 | P103: Haka-Pesis | Q103: - | R103: Kuopion Kelta-Mustat | T103: - | Y103: -
M104: 10 | N104: 8 | O104: 1995 | P104: Siilinjärven Pesis 2 | Q104: - | R104: Haka-Pesis | T104: - | Y104: -
M105: 13 | N105: 8 | O105: 1995 | P105: Sotkamon Jymy 2 | Q105: - | R105: Puurtilan Kisa-Pojat | T105: - | Y105: -
M106: 13 | N106: 8 | O106: 1995 | P106: Joensuun Maila | Q106: - | R106: Jyväskylän Lohi | T106: - | Y106: -
M107: 13 | N107: 8 | O107: 1995 | P107: Kuopion Kelta-Mustat | Q107: - | R107: Saaren Urheilijat | T107: - | Y107: -
M108: 13 | N108: 8 | O108: 1995 | P108: Haka-Pesis | Q108: - | R108: Kulhon Kunto | T108: - | Y108: -
M109: 13 | N109: 8 | O109: 1995 | P109: Imatran Pallo-Veikot 2 | Q109: - | R109: Nurmeksen Sepot | T109: - | Y109: -
M110: 20 | N110: 8 | O110: 1995 | P110: Puurtilan Kisa-Pojat | Q110: - | R110: Kuopion Kelta-Mustat | T110: - | Y110: -
M111: 20 | N111: 8 | O111: 1995 | P111: Saaren Urheilijat | Q111: - | R111: Sotkamon Jymy 2 | T111: - | Y111: -
M112: 20 | N112: 8 | O112: 1995 | P112: Jyväskylän Lohi | Q112: - | R112: Imatran Pallo-Veikot 2 | T112: - | Y112: -
M113: 20 | N113: 8 | O113: 1995 | P113: Siilinjärven Pesis 2 | Q113: - | R113: Joensuun Maila | T113: - | Y113: -
M114: 20 | N114: 8 | O114: 1995 | P114: Nurmeksen Sepot | Q114: - | R114: Haka-Pesis | T114: - | Y114: -
O115: 1995 | P115: Kiteen Pallo-90 2 | Q115: - | R115: Sotkamon Jymy 2 | T115: - | Y115: -
O116: 1995 | P116: Kiteen Pallo-90 2 | Q116: - | R116: Puurtilan Kisa-Pojat | T116: - | Y116: -
O117: 1995 | P117: Kiteen Pallo-90 2 | Q117: - | R117: Joensuun Maila | T117: - | Y117: -
O118: 1995 | P118: Kiteen Pallo-90 2 | Q118: - | R118: Saaren Urheilijat | T118: - | Y118: -
M119: 27 | N119: 5 | O119: 1995 | P119: Kiteen Pallo-90 2 | Q119: - | R119: Jyväskylän Lohi | S119: 1 | T119: - | U119: 1 | V119: (0-2, 6-4, 0-0) | X119: 6 | Y119: - | Z119: 6
O120: 1995 | P120: Kiteen Pallo-90 2 | Q120: - | R120: Siilinjärven Pesis 2 | T120: - | Y120: -
O121: 1995 | P121: Kiteen Pallo-90 2 | Q121: - | R121: Imatran Pallo-Veikot 2 | T121: - | Y121: -
O122: 1995 | P122: Kiteen Pallo-90 2 | Q122: - | R122: Haka-Pesis | T122: - | Y122: -
O123: 1995 | P123: Kiteen Pallo-90 2 | Q123: - | R123: Kuopion Kelta-Mustat | T123: - | Y123: -
O124: 1995 | P124: Kiteen Pallo-90 2 | Q124: - | R124: Nurmeksen Sepot | T124: - | Y124: -
O125: 1995 | P125: Kiteen Pallo-90 2 | Q125: - | R125: Kulhon Kunto | T125: - | Y125: -
O126: 1995 | P126: Sotkamon Jymy 2 | Q126: - | R126: Kiteen Pallo-90 2 | T126: - | Y126: -
O127: 1995 | P127: Puurtilan Kisa-Pojat | Q127: - | R127: Kiteen Pallo-90 2 | T127: - | Y127: -
O128: 1995 | P128: Joensuun Maila | Q128: - | R128: Kiteen Pallo-90 2 | T128: - | Y128: -
O129: 1995 | P129: Saaren Urheilijat | Q129: - | R129: Kiteen Pallo-90 2 | T129: - | Y129: -
O130: 1995 | P130: Jyväskylän Lohi | Q130: - | R130: Kiteen Pallo-90 2 | T130: - | Y130: -
O131: 1995 | P131: Siilinjärven Pesis 2 | Q131: - | R131: Kiteen Pallo-90 2 | T131: - | Y131: -
O132: 1995 | P132: Imatran Pallo-Veikot 2 | Q132: - | R132: Kiteen Pallo-90 2 | T132: - | Y132: -
O133: 1995 | P133: Haka-Pesis | Q133: - | R133: Kiteen Pallo-90 2 | T133: - | Y133: -
O134: 1995 | P134: Kuopion Kelta-Mustat | Q134: - | R134: Kiteen Pallo-90 2 | T134: - | Y134: -
M135: 21 | N135: 5 | O135: 1995 | P135: Nurmeksen Sepot | Q135: - | R135: Kiteen Pallo-90 2 | S135: 0 | T135: - | U135: 2 | V135: (0-3, 1-5) | X135: 1 | Y135: - | Z135: 8
O136: 1995 | P136: Kulhon Kunto | Q136: - | R136: Kiteen Pallo-90 2 | T136: - | Y136: -
R137: Yhteensä | S137: =SUM(S4:S136) -> 14 | T137: - | U137: =SUM(U4:U136) -> 11 | W137: =SUM(W4:W136) -> 0 | X137: =SUM(X4:X136) -> 107 | Y137: - | Z137: =SUM(Z4:Z136) -> 88
N138: =COUNT(S5:S136) -> 15 | R138: Keskiarvo | S138: =PRODUCT(S137/N138) -> 0.9 | T138: - | U138: =PRODUCT(U137/N138) -> 0.7 | W138: =PRODUCT(W137/N138) -> 0 | X138: =PRODUCT(X137/N138) -> 7 | Y138: - | Z138: =PRODUCT(Z137/N138) -> 6
B140: ITÄLOHKON NOUSUKARSINNAT 1995 | P140: ITÄLOHKON NOUSUKARSINNAT 1995
P141: VÄLIERÄT
M142: 23 | N142: 8 | O142: 1995 | P142: Saaren Urheilijat | Q142: - | R142: Sotkamon Jymy 2 | S142: 0 | T142: - | U142: 2 | V142: (1-3, 4-7) | X142: 5 | Y142: - | Z142: 10
B143: Sotkamon Jymy 2 loppuotteluun voitoin 2-0 | M143: 26 | N143: 8 | O143: 1995 | P143: Sotkamon Jymy 2 | Q143: - | R143: Saaren Urheilijat | S143: 2 | T143: - | U143: 0 | V143: (3-2, 4-1) | X143: 7 | Y143: - | Z143: 3
M145: 23 | N145: 8 | O145: 1995 | P145: Joensuun Maila | Q145: - | R145: Puurtilan Kisa-Pojat | S145: 1 | T145: - | U145: 0 | V145: (4-0, 3-3) | X145: 7 | Y145: - | Z145: 3
M146: 26 | N146: 8 | O146: 1995 | P146: Puurtilan Kisa-Pojat | Q146: - | R146: Joensuun Maila | S146: 1 | T146: - | U146: 0 | V146: (1-1, 2-1) | X146: 3 | Y146: - | Z146: 2
B147: Joensuun Maila loppuotteluun voitoin 2-1 | M147: 27 | N147: 8 | O147: 1995 | P147: Puurtilan Kisa-Pojat | Q147: - | R147: Joensuun Maila | S147: 0 | T147: - | U147: 1 | V147: (2-2, 1-5) | X147: 3 | Y147: - | Z147: 7
P149: LOPPUOTTELUT
M150: 3 | N150: 9 | O150: 1995 | P150: Joensuun Maila | Q150: - | R150: Sotkamon Jymy 2 | S150: 2 | T150: - | U150: 0 | V150: (7-3, 3-2) | X150: 10 | Y150: - | Z150: 5
B151: Joensuun Maila nousi Ykköspesikseen voitoin 2-0 | M151: 9 | N151: 9 | O151: 1995 | P151: Sotkamon Jymy 2 | Q151: - | R151: Joensuun Maila | S151: 0 | T151: - | U151: 1 | V151: (3-3, 1-2) | X151: 4 | Y151: - | Z151: 5
R152: Yhteensä | S152: =SUM(S142:S151) -> 6 | T152: - | U152: =SUM(U142:U151) -> 4 | W152: =SUM(W142:W151) -> 0 | X152: =SUM(X142:X151) -> 39 | Y152: - | Z152: =SUM(Z142:Z151) -> 35
N153: =COUNT(S142:S151) -> 7 | R153: Keskiarvo | S153: =PRODUCT(S152/N153) -> 0.9 | T153: - | U153: =PRODUCT(U152/N153) -> 0.6 | W153: =PRODUCT(W152/N153) -> 0 | X153: =PRODUCT(X152/N153) -> 5.6 | Y153: - | Z153: =PRODUCT(Z152/N153) -> 5.0
B156: ITÄLOHKON PUTOAMISKARSINNAT 1995 | P156: ITÄLOHKON PUTOAMISKARSINNAT 1995
B157: Kuopion Kelta-Mustat säilyi suomensarjassa voitoin 2-0 | M157: 27 | N157: 8 | O157: 1995 | P157: Kuopion Kelta-Mustat | Q157: - | R157: Haka-Pesis | S157: 2 | T157: - | U157: 1 | V157: (0-2, 3-2, 1-0) | X157: 4 | Y157: - | Z157: 4
B158: Haka-Pesis putosi maakuntasarjaan | M158: 2 | N158: 9 | O158: 1995 | P158: Haka-Pesis | Q158: - | R158: Kuopion Kelta-Mustat | S158: 0 | T158: - | U158: 2 | V158: (5-7, 0-1) | X158: 5 | Y158: - | Z158: 8
M160: 27 | N160: 8 | O160: 1995 | P160: Nurmeksen Sepot | Q160: - | R160: Imatran Pallo-Veikot 2 | S160: 0 | T160: - | U160: 1 | V160: (3-3, 2-3) | X160: 5 | Y160: - | Z160: 6
B161: Imatran Pallo-Veikot 2 säilyi suomensarjassa voitoin 2-0 | M161: 2 | N161: 9 | O161: 1995 | P161: Imatran Pallo-Veikot 2 | Q161: - | R161: Nurmeksen Sepot | S161: 1 | T161: - | U161: 0 | V161: (0-0, 1-0) | X161: 1 | Y161: - | Z161: 0
B162: Nurmeksen Sepot putosi maakuntasarjaan | R162: Yhteensä | S162: =SUM(S157:S161) -> 3 | T162: - | U162: =SUM(U157:U161) -> 4 | W162: =SUM(W157:W161) -> 0 | X162: =SUM(X157:X161) -> 15 | Y162: - | Z162: =SUM(Z157:Z161) -> 18
N163: =COUNT(S157:S161) -> 4 | R163: Keskiarvo | S163: =PRODUCT(S162/N163) -> 0.8 | T163: - | U163: =PRODUCT(U162/N163) -> 1.0 | W163: =PRODUCT(W162/N163) -> 0 | X163: =PRODUCT(X162/N163) -> 3.8 | Y163: - | Z163: =PRODUCT(Z162/N163) -> 4.5
B166: LÄNSILOHKO 1995 | C166: O | D166: 3 | E166: 2 | F166: 1 | G166: 0 | H166: TJ | I166: - | J166: AJ | K166: PIST | P166: LÄNSILOHKO 1995
A167: 1 | B167: Kouvolan Pallonlyöjät | C167: 22 | D167: 15 | E167: 1 | F167: 5 | G167: 1 | H167: 175 | I167: - | J167: 92 | K167: 52 | M167: 6 | N167: 5 | O167: 1995 | P167: Hämeenlinnan Paukku | Q167: - | R167: Kuusankosken Puhti | S167: 2 | T167: - | U167: 0 | V167: (5-0, 4-1) | X167: 9 | Y167: - | Z167: 1
A168: 2 | B168: Hämeenlinnan Paukku | C168: 22 | D168: 14 | E168: 3 | F168: 1 | G168: 4 | H168: 214 | I168: - | J168: 131 | K168: 49 | M168: 6 | N168: 5 | O168: 1995 | P168: Loimaan Palloilijat 2 | Q168: - | R168: RPL-Riihimäki 2 | S168: 1 | T168: - | U168: 2 | V168: (3-2, 0-8, 1-2) | X168: 4 | Y168: - | Z168: 12
A169: 3 | B169: Hämeen Pesä-Haukat | C169: 22 | D169: 12 | E169: 2 | F169: 3 | G169: 5 | H169: 187 | I169: - | J169: 119 | K169: 43 | M169: 7 | N169: 5 | O169: 1995 | P169: Hämeen Pesä-Haukat | Q169: - | R169: Hyvinkään Tahko 2 | S169: 2 | T169: - | U169: 0 | V169: (9-0, 5-2) | X169: 14 | Y169: - | Z169: 2
A170: 4 | B170: Mäntyharjun Virkistys | C170: 22 | D170: 11 | E170: 1 | F170: 4 | G170: 6 | H170: 163 | I170: - | J170: 158 | K170: 39 | M170: 7 | N170: 5 | O170: 1995 | P170: Kouvolan Pallonlyöjät | Q170: - | R170: Ikaalisten Tarmo | S170: 1 | T170: - | U170: 2 | V170: (4-1, 4-5, 0-2) | X170: 8 | Y170: - | Z170: 8
A171: 5 | B171: Vihdin Pallo | C171: 22 | D171: 9 | E171: 4 | F171: 3 | G171: 6 | H171: 220 | I171: - | J171: 152 | K171: 38 | M171: 7 | N171: 5 | O171: 1995 | P171: Mäntyharjun Virkistys | Q171: - | R171: Ulvilan Pesä-Veikot 2 | S171: 2 | T171: - | U171: 0 | V171: (3-0, 1-0) | X171: 4 | Y171: - | Z171: 0
A172: 6 | B172: RPL-Riihimäki 2 | C172: 22 | D172: 7 | E172: 4 | F172: 3 | G172: 8 | H172: 190 | I172: - | J172: 174 | K172: 32 | M172: 11 | N172: 5 | O172: 1995 | P172: Tempo | Q172: - | R172: Vihdin Pallo | S172: 1 | T172: - | U172: 0 | V172: (3-3, 2-0) | X172: 5 | Y172: - | Z172: 3
A173: 7 | B173: Tempo | C173: 22 | D173: 6 | E173: 3 | F173: 4 | G173: 9 | H173: 186 | I173: - | J173: 167 | K173: 28 | M173: 13 | N173: 5 | O173: 1995 | P173: Hyvinkään Tahko 2 | Q173: - | R173: Hämeenlinnan Paukku | S173: 0 | T173: - | U173: 1 | V173: (0-1, 3-3) | X173: 3 | Y173: - | Z173: 4
A174: 8 | B174: Ikaalisten Tarmo | C174: 22 | D174: 5 | E174: 3 | F174: 5 | G174: 9 | H174: 172 | I174: - | J174: 197 | K174: 26 | M174: 13 | N174: 5 | O174: 1995 | P174: Ikaalisten Tarmo | Q174: - | R174: Tempo | S174: 0 | T174: - | U174: 2 | V174: (2-6, 1-11) | X174: 3 | Y174: - | Z174: 17
A175: 9 | B175: Ulvilan Pesä-Veikot 2 | C175: 22 | D175: 4 | E175: 2 | F175: 5 | G175: 11 | H175: 93 | I175: - | J175: 165 | K175: 21 | M175: 13 | N175: 5 | O175: 1995 | P175: RPL-Riihimäki 2 | Q175: - | R175: Hämeen Pesä-Haukat | S175: 0 | T175: - | U175: 2 | V175: (2-5, 1-8) | X175: 3 | Y175: - | Z175: 13
A176: 10 | B176: Loimaan Palloilijat 2 | C176: 22 | D176: 5 | E176: 0 | F176: 6 | G176: 11 | H176: 95 | I176: - | J176: 216 | K176: 21 | M176: 13 | N176: 5 | O176: 1995 | P176: Ulvilan Pesä-Veikot 2 | Q176: - | R176: Kouvolan Pallonlyöjät | S176: 0 | T176: - | U176: 2 | V176: (1-3, 2-6) | X176: 3 | Y176: - | Z176: 9
A177: 11 | B177: Kuusankosken Puhti | C177: 22 | D177: 3 | E177: 2 | F177: 6 | G177: 11 | H177: 106 | I177: - | J177: 170 | K177: 19 | M177: 14 | N177: 5 | O177: 1995 | P177: Kuusankosken Puhti | Q177: - | R177: Loimaan Palloilijat 2 | T177: - | V177: siirto | Y177: -
A178: 12 | B178: Hyvinkää Tahko 2 | C178: 22 | D178: 4 | E178: 0 | F178: 4 | G178: 14 | H178: 140 | I178: - | J178: 200 | K178: 16 | M178: 16 | N178: 5 | O178: 1995 | P178: Tempo | Q178: - | R178: Hyvinkään Tahko 2 | S178: 0 | T178: - | U178: 2 | V178: (4-7, 3-7) | X178: 7 | Y178: - | Z178: 14
C179: =SUM(C167:C178) -> 264 | D179: =SUM(D167:D178) -> 95 | E179: =SUM(E167:E178) -> 25 | F179: =SUM(F167:F178) -> 49 | G179: =SUM(G167:G178) -> 95 | H179: =SUM(H167:H178) -> 1941 | I179: - | J179: =SUM(J167:J178) -> 1941 | K179: =SUM(K167:K178) -> 384 | M179: 18 | N179: 5 | O179: 1995 | P179: Vihdin Pallo | Q179: - | R179: Mäntyharjun Virkistys | S179: 0 | T179: - | U179: 2 | V179: (1-2, 4-12) | X179: 5 | Y179: - | Z179: 14
M180: 20 | N180: 5 | O180: 1995 | P180: Hyvinkään Tahko 2 | Q180: - | R180: Kuusankosken Puhti | S180: 1 | T180: - | U180: 1 | V180: (3-6, 2-0, 1-1) | X180: 6 | Y180: - | Z180: 7
B181: 1 - 4 sijoittuneet nousukarsintoihin | M181: 20 | N181: 5 | O181: 1995 | P181: Hämeenlinnan Paukku | Q181: - | R181: Ulvilan Pesä-Veikot 2 | T181: - | V181: (2-1, 5-3) | X181: 7 | Y181: - | Z181: 4
B182: 8 - 11 sijoittuneet putoamiskarsintoihin | M182: 20 | N182: 5 | O182: 1995 | P182: Ikaalisten Tarmo | Q182: - | R182: RPL-Riihimäki 2 | S182: 0 | T182: - | U182: 2 | V182: (4-6, 3-4) | X182: 7 | Y182: - | Z182: 10
B183: Hyvinkään Tahko 2 maakuntasarjaan | M183: 20 | N183: 5 | O183: 1995 | P183: Loimaan Palloilijat 2 | Q183: - | R183: Tempo | S183: 1 | T183: - | U183: 0 | V183: (2-2, 4-2) | X183: 6 | Y183: - | Z183: 4
M184: 21 | N184: 5 | O184: 1995 | P184: Kouvolan Pallonlyöjät | Q184: - | R184: Vihdin Pallo | T184: - | Y184: -
M185: 21 | N185: 5 | O185: 1995 | P185: Mäntyharjun Virkistys | Q185: - | R185: Hämeen Pesä-Haukat | T185: - | Y185: -
M186: 25 | N186: 5 | O186: 1995 | P186: Hämeen Pesä-Haukat | Q186: - | R186: Ikaalisten Tarmo | T186: - | Y186: -
M187: 25 | N187: 5 | O187: 1995 | P187: Hämeenlinnan Paukku | Q187: - | R187: Vihdin Pallo | T187: - | Y187: -
M188: 25 | N188: 5 | O188: 1995 | P188: Kuusankosken Puhti | Q188: - | R188: Mäntyharjun Virkistys | T188: - | Y188: -
M189: 25 | N189: 5 | O189: 1995 | P189: RPL-Riihimäki 2 | Q189: - | R189: Kouvolan Pallonlyöjät | T189: - | Y189: -
M190: 25 | N190: 5 | O190: 1995 | P190: Ulvilan Pesä-Veikot 2 | Q190: - | R190: Loimaan Palloilijat 2 | T190: - | Y190: -
M191: 27 | N191: 5 | O191: 1995 | P191: Ikaalisten Tarmo | Q191: - | R191: Hyvinkään Tahko 2 | S191: 1 | T191: - | U191: 1 | V191: (1-2, 7-3, 0-0) | X191: 8 | Y191: - | Z191: 5
M192: 27 | N192: 5 | O192: 1995 | P192: Loimaan Palloilijat 2 | Q192: - | R192: Mäntyharjun Virkistys | S192: 0 | T192: - | U192: 2 | V192: (0-2, 5-6) | X192: 5 | Y192: - | Z192: 7
M193: 27 | N193: 5 | O193: 1995 | P193: RPL-Riihimäki 2 | Q193: - | R193: Ulvilan Pesä-Veikot 2 | S193: 0 | T193: - | U193: 2 | V193: (0-2, 0-2) | X193: 0 | Y193: - | Z193: 4
M194: 27 | N194: 5 | O194: 1995 | P194: Tempo | Q194: - | R194: Hämeenlinnan Paukku | S194: 0 | T194: - | U194: 2 | V194: (2-8, 0-4) | X194: 2 | Y194: - | Z194: 12
M195: 28 | N195: 5 | O195: 1995 | P195: Kouvolan Pallonlyöjät | Q195: - | R195: Hämeen Pesä-Haukat | T195: - | Y195: -
M196: 28 | N196: 5 | O196: 1995 | P196: Vihdin Pallo | Q196: - | R196: Kuusankosken Puhti | T196: - | Y196: -
M197: 31 | N197: 5 | O197: 1995 | P197: Hämeenlinnan Paukku | Q197: - | R197: Loimaan Palloilijat 2 | T197: - | Y197: -
M198: 31 | N198: 5 | O198: 1995 | P198: Ulvilan Pesä-Veikot 2 | Q198: - | R198: Ikaalisten Tarmo | T198: - | Y198: -
M199: 1 | N199: 6 | O199: 1995 | P199: Kuusankosken Puhti | Q199: - | R199: RPL-Riihimäki 2 | T199: - | Y199: -
M200: 1 | N200: 6 | O200: 1995 | P200: Mäntyharjun Virkistys | Q200: - | R200: Hyvinkään Tahko 2 | T200: - | Y200: -
M201: 1 | N201: 6 | O201: 1995 | P201: Tempo | Q201: - | R201: Kouvolan Pallonlyöjät | T201: - | Y201: -
M202: 1 | N202: 6 | O202: 1995 | P202: Vihdin Pallo | Q202: - | R202: Hämeen Pesä-Haukat | T202: - | Y202: -
M203: 4 | N203: 6 | O203: 1995 | P203: Hyvinkään Tahko 2 | Q203: - | R203: Vihdin Pallo | T203: - | Y203: -
M204: 4 | N204: 6 | O204: 1995 | P204: Hämeen Pesä-Haukat | Q204: - | R204: Loimaan Palloilijat 2 | T204: - | Y204: -
M205: 4 | N205: 6 | O205: 1995 | P205: Hämeenlinnan Paukku | Q205: - | R205: Kouvolan Pallonlyöjät | T205: - | Y205: -
M206: 4 | N206: 6 | O206: 1995 | P206: Kuusankosken Puhti | Q206: - | R206: Ulvilan Pesä-Veikot 2 | T206: - | Y206: -
M207: 4 | N207: 6 | O207: 1995 | P207: Mäntyharjun Virkistys | Q207: - | R207: Ikaalisten Tarmo | T207: - | Y207: -
M208: 4 | N208: 6 | O208: 1995 | P208: RPL-Riihimäki 2 | Q208: - | R208: Tempo | T208: - | Y208: -
M209: 7 | N209: 6 | O209: 1995 | P209: Hyvinkään Tahko 2 | Q209: - | R209: RPL-Riihimäki 2 | T209: - | Y209: -
... 5907 more rows

Sheet 2010-2025
B1: SUOMENSARJA 2010 - 2025
B3: ITÄLOHKO 2010 | C3: O | D3: 3 | E3: 2 | F3: 1 | G3: 0 | H3: TJ | I3: - | J3: AJ | K3: PIST | Q3: ITÄLOHKO 2010
A4: 1 | B4: Lievestuoreen Kisa | C4: 16 | D4: 12 | E4: 2 | F4: 1 | G4: 1 | H4: 259 | I4: - | J4: 77 | K4: 41 | N4: 13 | O4: 5 | P4: 2010 | Q4: Kouvolan Pallonlyöjät 2 | R4: - | S4: Lievestuoreen Kisa | T4: 0 | U4: - | V4: 2 | W4: (1-12, 2-11) | X4: 78 | Y4: 3 | Z4: - | AA4: 23
A5: 2 | B5: Jyväskylän Lohi | C5: 16 | D5: 7 | E5: 6 | F5: 0 | G5: 3 | H5: 202 | I5: - | J5: 100 | K5: 33 | N5: 13 | O5: 5 | P5: 2010 | Q5: Jyväskylän Valo | R5: - | S5: Joensuun Maila 2 | T5: 2 | U5: - | V5: 0 | W5: (3-1, 4-1) | X5: 75 | Y5: 7 | Z5: - | AA5: 2
A6: 3 | B6: Kouvolan Pallonlyöjät 2 | C6: 16 | D6: 7 | E6: 4 | F6: 1 | G6: 4 | H6: 197 | I6: - | J6: 143 | K6: 30 | N6: 15 | O6: 5 | P6: 2010 | Q6: Joensuun Maila 2 | R6: - | S6: Jyväskylän Lohi | T6: 0 | U6: - | V6: 2 | W6: (0-5, 0-19) | X6: 39 | Y6: 0 | Z6: - | AA6: 24
A7: 4 | B7: Lahden Mailaveikot | C7: 16 | D7: 8 | E7: 2 | F7: 1 | G7: 5 | H7: 210 | I7: - | J7: 148 | K7: 29 | N7: 15 | O7: 5 | P7: 2010 | Q7: Lahden Mailaveikot | R7: - | S7: Juvan Nuorisopesis | T7: 1 | U7: - | V7: 0 | W7: (5-4, 1-1) | X7: 100 | Y7: 6 | Z7: - | AA7: 5
A8: 5 | B8: Jyväskylän Valo | C8: 16 | D8: 6 | E8: 3 | F8: 0 | G8: 7 | H8: 116 | I8: - | J8: 125 | K8: 24 | N8: 15 | O8: 5 | P8: 2010 | Q8: Mäntyharjun Virkistys | R8: - | S8: Siilinjärven Pesis | T8: 1 | U8: - | V8: 2 | W8: (4-6, 7-2, 1-2) | X8: 114 | Y8: 12 | Z8: - | AA8: 10
A9: 6 | B9: Mäntyharjun Virkistys | C9: 16 | D9: 4 | E9: 2 | F9: 3 | G9: 7 | H9: 150 | I9: - | J9: 218 | K9: 19 | N9: 19 | O9: 5 | P9: 2010 | Q9: Kouvolan Pallonlyöjät 2 | R9: - | S9: Mäntyharjun Virkistys | T9: 1 | U9: - | V9: 0 | W9: (9-3, 15-3) | X9: 101 | Y9: 24 | Z9: - | AA9: 6
A10: 7 | B10: Siilinjärven Pesis | C10: 16 | D10: 2 | E10: 3 | F10: 1 | G10: 10 | H10: 130 | I10: - | J10: 160 | K10: 13 | N10: 20 | O10: 5 | P10: 2010 | Q10: Lievestuoreen Kisa | R10: - | S10: Siilinjärven Pesis | T10: 2 | U10: - | V10: 0 | W10: (4-3, 4-1) | X10: 52 | Y10: 8 | Z10: - | AA10: 4
A11: 8 | B11: Juvan Nuorisopesis | C11: 16 | D11: 0 | E11: 3 | F11: 3 | G11: 10 | H11: 103 | I11: - | J11: 176 | K11: 9 | N11: 22 | O11: 5 | P11: 2010 | Q11: Siilinjärven Pesis | R11: - | S11: Jyväskylän Valo | T11: 0 | U11: - | V11: 1 | W11: (3-8, 6-6) | X11: 63 | Y11: 9 | Z11: - | AA11: 14
A12: 9 | B12: Joensuun Maila 2 | C12: 16 | D12: 1 | E12: 0 | F12: 1 | G12: 14 | H12: 84 | I12: - | J12: 304 | K12: 4 | N12: 22 | O12: 5 | P12: 2010 | Q12: Lievestuoreen Kisa | R12: - | S12: Joensuun Maila 2 | T12: 2 | U12: - | V12: 0 | W12: (17-0, 12-1) | X12: 180 | Y12: 29 | Z12: - | AA12: 1
C13: =SUM(C4:C12) -> 144 | D13: =SUM(D4:D12) -> 47 | E13: =SUM(E4:E12) -> 25 | F13: =SUM(F4:F12) -> 11 | G13: =SUM(G4:G12) -> 61 | H13: =SUM(H4:H12) -> 1451 | I13: - | J13: =SUM(J4:J12) -> 1451 | K13: =SUM(K4:K12) -> 202 | N13: 23 | O13: 5 | P13: 2010 | Q13: Jyväskylän Lohi | R13: - | S13: Lahden Mailaveikot | T13: 1 | U13: - | V13: 0 | W13: (4-4, 15-2) | X13: 158 | Y13: 19 | Z13: - | AA13: 6
N14: 23 | O14: 5 | P14: 2010 | Q14: Juvan Nuorisopesis | R14: - | S14: Mäntyharjun Virkistys | T14: 0 | U14: - | V14: 1 | W14: (2-2, 6-7) | X14: 143 | Y14: 8 | Z14: - | AA14: 9
B15: 1 - 4 sijoittuneet nousukarsintoihin | N15: 25 | O15: 5 | P15: 2010 | Q15: Siilinjärven Pesis | R15: - | S15: Jyväskylän Lohi | T15: 1 | U15: - | V15: 2 | W15: (0-4, 3-1, 0-2) | X15: 67 | Y15: 3 | Z15: - | AA15: 7
B16: Joensuun Maila 2 maakuntasarjaan | N16: 26 | O16: 5 | P16: 2010 | Q16: Lahden Mailaveikot | R16: - | S16: Mäntyharjun Virkistys | T16: 0 | U16: - | V16: 1 | W16: (3-4, 6-6) | X16: 65 | Y16: 9 | Z16: - | AA16: 10
N17: 27 | O17: 5 | P17: 2010 | Q17: Jyväskylän Valo | R17: - | S17: Lievestuoreen Kisa | T17: 0 | U17: - | V17: 2 | W17: (3-5, 0-10) | X17: 70 | Y17: 3 | Z17: - | AA17: 15
B18: SIJOITUKSET | C18: 10 | D18: 09 | E18: 08 | F18: 07 | G18: 06 | N18: 29 | O18: 5 | P18: 2010 | Q18: Jyväskylän Lohi | R18: - | S18: Juvan Nuorisopesis | T18: 2 | U18: - | V18: 1 | W18: (4-1, 1-3, 3-3, 1-0) | X18: 100 | Y18: 8 | Z18: - | AA18: 7
B19: Lievestuoreen Kisa | C19: 1 | D19: 2 | E19: 2 | F19: 2 | G19: 1 | H19: nousi | N19: 29 | O19: 5 | P19: 2010 | Q19: Kouvolan Pallonlyöjät 2 | R19: - | S19: Jyväskylän Valo | T19: 1 | U19: - | V19: 0 | W19: (3-3, 3-1) | X19: 101 | Y19: 6 | Z19: - | AA19: 4
B20: Kouvolan Pallonlyöjät 2 | C20: 2 | D20: 6 | E20: 1 | F20: 3 | G20: 5 | N20: 29 | O20: 5 | P20: 2010 | Q20: Siilinjärven Pesis | R20: - | S20: Lahden Mailaveikot | T20: 0 | U20: - | V20: 2 | W20: (1-7, 4-7) | X20: 74 | Y20: 5 | Z20: - | AA20: 14
B21: Jyväskylän Lohi | C21: 3 | D21: 5 | E21: 1 | F21: 3 | G21: 3 | N21: 30 | O21: 5 | P21: 2010 | Q21: Mäntyharjun Virkistys | R21: - | S21: Joensuun Maila 2 | T21: 2 | U21: - | V21: 0 | W21: (12-4, 8-4) | X21: 135 | Y21: 20 | Z21: - | AA21: 8
B22: Lahden Mailaveikot | C22: 4 | D22: 4 | E22: 5 | F22: 5 | G22: 5 | N22: 2 | O22: 6 | P22: 2010 | Q22: Juvan Nuorisopesis | R22: - | S22: Jyväskylän Valo | T22: 1 | U22: - | V22: 2 | W22: (6-1, 4-6, 0-0, 0-5) | X22: 107 | Y22: 10 | Z22: - | AA22: 7
B23: Jyväskylän Valo | C23: 5 | D23: 1 | E23: 3 | F23: 10 | G23: 10 | N23: 2 | O23: 6 | P23: 2010 | Q23: Jyväskylän Lohi | R23: - | S23: Mäntyharjun Virkistys | T23: 2 | U23: - | V23: 0 | W23: (7-1, 9-0) | X23: 139 | Y23: 16 | Z23: - | AA23: 1
B24: Mäntyharjun Virkistys | C24: 6 | D24: 2 | E24: - | F24: 9 | G24: 3 | N24: 3 | O24: 6 | P24: 2010 | Q24: Kouvolan Pallonlyöjät 2 | R24: - | S24: Joensuun Maila 2 | T24: 2 | U24: - | V24: 0 | W24: (28-2, 7-1) | X24: 67 | Y24: 35 | Z24: - | AA24: 3
B25: Siilinjärven Pesis | C25: 7 | D25: 3 | E25: 4 | F25: 2 | G25: 5 | N25: 6 | O25: 6 | P25: 2010 | Q25: Joensuun Maila 2 | R25: - | S25: Jyväskylän Valo | T25: 0 | U25: - | V25: 2 | W25: (4-8, 2-3) | X25: 25 | Y25: 6 | Z25: - | AA25: 11
B26: Juvan Nuorisopesis | C26: 8 | D26: 7 | E26: 3 | F26: 4 | G26: 2 | N26: 8 | O26: 6 | P26: 2010 | Q26: Joensuun Maila 2 | R26: - | S26: Siilinjärven Pesis | T26: 1 | U26: - | V26: 2 | W26: (3-4, 6-4, 1-2) | X26: 45 | Y26: 10 | Z26: - | AA26: 10
B27: Joensuun Maila 2 | C27: 9 | D27: 4 | E27: 7 | F27: 7 | G27: 4 | N27: 9 | O27: 6 | P27: 2010 | Q27: Mäntyharjun Virkistys | R27: - | S27: Lievestuoreen Kisa | T27: 0 | U27: - | V27: 2 | W27: (4-9, 2-15) | X27: 128 | Y27: 6 | Z27: - | AA27: 24
N28: 9 | O28: 6 | P28: 2010 | Q28: Lahden Mailaveikot | R28: - | S28: Kouvolan Pallonlyöjät 2 | T28: 1 | U28: - | V28: 2 | W28: (3-7, 3-2, 1-2) | X28: 235 | Y28: 7 | Z28: - | AA28: 11
B29: JOUKKUEMÄÄRÄ | C29: 10 | D29: 09 | E29: 08 | F29: 07 | G29: 06 | N29: 10 | O29: 6 | P29: 2010 | Q29: Siilinjärven Pesis | R29: - | S29: Juvan Nuorisopesis | T29: 2 | U29: - | V29: 1 | W29: (4-3, 1-3, 1-0) | X29: 107 | Y29: 6 | Z29: - | AA29: 6
B30: SUPERPESIS | C30: 12 | D30: 11 | E30: 12 | F30: 13 | G30: 12 | N30: 10 | O30: 6 | P30: 2010 | Q30: Jyväskylän Valo | R30: - | S30: Jyväskylän Lohi | T30: 0 | U30: - | V30: 2 | W30: (3-6, 0-8) | X30: 180 | Y30: 3 | Z30: - | AA30: 14
B31: YKKÖSPESIS | C31: 12 | D31: 12 | E31: 12 | F31: 15 | G31: 16 | N31: 12 | O31: 6 | P31: 2010 | Q31: Kouvolan Pallonlyöjät 2 | R31: - | S31: Juvan Nuorisopesis | T31: 2 | U31: - | V31: 0 | W31: (6-3, 4-2) | X31: 86 | Y31: 10 | Z31: - | AA31: 5
B32: SUOMENSARJA | C32: 38 | D32: 37 | E32: 34 | F32: 40 | G32: 39 | N32: 15 | O32: 6 | P32: 2010 | Q32: Jyväskylän Lohi | R32: - | S32: Lievestuoreen Kisa | T32: 0 | U32: - | V32: 1 | W32: (2-2, 0-1) | X32: 242 | Y32: 2 | Z32: - | AA32: 3
B33: Etelälohko | C33: 10 | D33: 8 | E33: 10 | F33: 10 | G33: 9 | N33: 16 | O33: 6 | P33: 2010 | Q33: Juvan Nuorisopesis | R33: - | S33: Joensuun Maila 2 | T33: 1 | U33: - | V33: 0 | W33: (1-1, 1-0) | X33: 93 | Y33: 2 | Z33: - | AA33: 1
B34: Itälohko | C34: 9 | D34: 10 | E34: 8 | F34: 10 | G34: 10 | N34: 16 | O34: 6 | P34: 2010 | Q34: Lahden Mailaveikot | R34: - | S34: Jyväskylän Valo | T34: 2 | U34: - | V34: 0 | W34: (6-3, 3-0) | X34: 150 | Y34: 9 | Z34: - | AA34: 3
B35: Länsilohko | C35: 10 | D35: 10 | E35: 9 | F35: 10 | G35: 10 | N35: 19 | O35: 6 | P35: 2010 | Q35: Lievestuoreen Kisa | R35: - | S35: Juvan Nuorisopesis | T35: 2 | U35: - | V35: 0 | W35: (11-0, 18-0) | X35: 115 | Y35: 29 | Z35: - | AA35: 0
B36: Pohjoislohko | C36: 10 | D36: 9 | E36: 7 | F36: 10 | G36: 10 | N36: 19 | O36: 6 | P36: 2010 | Q36: Joensuun Maila 2 | R36: - | S36: Kouvolan Pallonlyöjät 2 | T36: 0 | U36: - | V36: 2 | W36: (11-13, 1-7) | X36: 25 | Y36: 12 | Z36: - | AA36: 20
N37: 20 | O37: 6 | P37: 2010 | Q37: Joensuun Maila 2 | R37: - | S37: Lahden Mailaveikot | T37: 0 | U37: - | V37: 2 | W37: (0-9, 4-5) | X37: 25 | Y37: 4 | Z37: - | AA37: 14
N38: 20 | O38: 6 | P38: 2010 | Q38: Siilinjärven Pesis | R38: - | S38: Kouvolan Pallonlyöjät 2 | T38: 0 | U38: - | V38: 2 | W38: (3-4, 4-8) | X38: 55 | Y38: 7 | Z38: - | AA38: 12
N39: 20 | O39: 6 | P39: 2010 | Q39: Jyväskylän Valo | R39: - | S39: Mäntyharjun Virkistys | T39: 2 | U39: - | V39: 0 | W39: (8-2, 11-5) | X39: 30 | Y39: 19 | Z39: - | AA39: 7
N40: 22 | O40: 6 | P40: 2010 | Q40: Jyväskylän Lohi | R40: - | S40: Kouvolan Pallonlyöjät 2 | T40: 1 | U40: - | V40: 0 | W40: (2-2, 5-3) | X40: 100 | Y40: 7 | Z40: - | AA40: 5
N41: 10 | O41: 7 | P41: 2010 | Q41: Lahden Mailaveikot | R41: - | S41: Siilinjärven Pesis | T41: 2 | U41: - | V41: 0 | W41: (9-6, 7-4) | X41: 130 | Y41: 16 | Z41: - | AA41: 10
N42: 11 | O42: 7 | P42: 2010 | Q42: Kouvolan Pallonlyöjät 2 | R42: - | S42: Siilinjärven Pesis | T42: 2 | U42: - | V42: 0 | W42: (4-0, 5-4) | X42: 98 | Y42: 9 | Z42: - | AA42: 4
N43: 11 | O43: 7 | P43: 2010 | Q43: Lahden Mailaveikot | R43: - | S43: Joensuun Maila 2 | T43: 2 | U43: - | V43: 0 | W43: (13-1, 13-1) | X43: 148 | Y43: 26 | Z43: - | AA43: 2
N44: 11 | O44: 7 | P44: 2010 | Q44: Juvan Nuorisopesis | R44: - | S44: Lievestuoreen Kisa | T44: 0 | U44: - | V44: 2 | W44: (3-9, 0-1) | X44: 433 | Y44: 3 | Z44: - | AA44: 10
N45: 11 | O45: 7 | P45: 2010 | Q45: Mäntyharjun Virkistys | R45: - | S45: Jyväskylän Valo | T45: 2 | U45: - | V45: 0 | W45: (4-0, 7-4) | X45: 158 | Y45: 11 | Z45: - | AA45: 4
N46: 13 | O46: 7 | P46: 2010 | Q46: Mäntyharjun Virkistys | R46: - | S46: Kouvolan Pallonlyöjät 2 | T46: 1 | U46: - | V46: 2 | W46: (7-2, 8-12, 0-1) | X46: 178 | Y46: 15 | Z46: - | AA46: 15
N47: 14 | O47: 7 | P47: 2010 | Q47: Joensuun Maila 2 | R47: - | S47: Juvan Nuorisopesis | T47: 2 | U47: - | V47: 0 | W47: (6-5, 11-5) | X47: 30 | Y47: 17 | Z47: - | AA47: 10
N48: 14 | O48: 7 | P48: 2010 | Q48: Lievestuoreen Kisa | R48: - | S48: Jyväskylän Lohi | T48: 1 | U48: - | V48: 2 | W48: (7-5, 3-7, 1-1, 1-3) | X48: 238 | Y48: 11 | Z48: - | AA48: 13
N49: 15 | O49: 7 | P49: 2010 | Q49: Jyväskylän Valo | R49: - | S49: Lahden Mailaveikot | T49: 1 | U49: - | V49: 0 | W49: (5-4, 5-5) | X49: 40 | Y49: 10 | Z49: - | AA49: 9
N50: 17 | O50: 7 | P50: 2010 | Q50: Lahden Mailaveikot | R50: - | S50: Lievestuoreen Kisa | T50: 0 | U50: - | V50: 1 | W50: (6-6, 7-8) | X50: 162 | Y50: 13 | Z50: - | AA50: 14
N51: 18 | O51: 7 | P51: 2010 | Q51: Juvan Nuorisopesis | R51: - | S51: Siilinjärven Pesis | T51: 1 | U51: - | V51: 0 | W51: (4-4, 3-0) | X51: 186 | Y51: 7 | Z51: - | AA51: 4
N52: 20 | O52: 7 | P52: 2010 | Q52: Siilinjärven Pesis | R52: - | S52: Joensuun Maila 2 | T52: 2 | U52: - | V52: 0 | W52: (17-1, 12-3) | X52: 105 | Y52: 29 | Z52: - | AA52: 4
N53: 21 | O53: 7 | P53: 2010 | Q53: Kouvolan Pallonlyöjät 2 | R53: - | S53: Lahden Mailaveikot | T53: 1 | U53: - | V53: 2 | W53: (4-9, 6-4, 1-3) | X53: 138 | Y53: 11 | Z53: - | AA53: 16
N54: 21 | O54: 7 | P54: 2010 | Q54: Lievestuoreen Kisa | R54: - | S54: Mäntyharjun Virkistys | T54: 2 | U54: - | V54: 0 | W54: (10-1, 5-0) | X54: 152 | Y54: 15 | Z54: - | AA54: 1
N55: 22 | O55: 7 | P55: 2010 | Q55: Jyväskylän Lohi | R55: - | S55: Jyväskylän Valo | T55: 2 | U55: - | V55: 0 | W55: (5-4, 2-0) | X55: 426 | Y55: 7 | Z55: - | AA55: 4
N56: 23 | O56: 7 | P56: 2010 | Q56: Jyväskylän Valo | R56: - | S56: Juvan Nuorisopesis | T56: 2 | U56: - | V56: 0 | W56: (5-0, 6-5) | X56: 55 | Y56: 11 | Z56: - | AA56: 5
N57: 25 | O57: 7 | P57: 2010 | Q57: Lievestuoreen Kisa | R57: - | S57: Lahden Mailaveikot | T57: 2 | U57: - | V57: 0 | W57: (7-4, 8-2) | X57: 110 | Y57: 15 | Z57: - | AA57: 6
N58: 25 | O58: 7 | P58: 2010 | Q58: Mäntyharjun Virkistys | R58: - | S58: Jyväskylän Lohi | T58: 0 | U58: - | V58: 1 | W58: (1-1, 4-14) | X58: 131 | Y58: 5 | Z58: - | AA58: 15
N59: 27 | O59: 7 | P59: 2010 | Q59: Siilinjärven Pesis | R59: - | S59: Lievestuoreen Kisa | T59: 2 | U59: - | V59: 0 | W59: (5-4, 7-5) | X59: 106 | Y59: 12 | Z59: - | AA59: 9
N60: 29 | O60: 7 | P60: 2010 | Q60: Kouvolan Pallonlyöjät 2 | R60: - | S60: Jyväskylän Lohi | T60: 2 | U60: - | V60: 0 | W60: (12-10, 8-6) | X60: 138 | Y60: 20 | Z60: - | AA60: 16
N61: 31 | O61: 7 | P61: 2010 | Q61: Joensuun Maila 2 | R61: - | S61: Mäntyharjun Virkistys | T61: 0 | U61: - | V61: 2 | W61: (4-8, 4-6) | X61: 41 | Y61: 8 | Z61: - | AA61: 14
N62: 31 | O62: 7 | P62: 2010 | Q62: Jyväskylän Valo | R62: - | S62: Kouvolan Pallonlyöjät 2 | T62: 2 | U62: - | V62: 0 | W62: (6-2, 1-0) | X62: 55 | Y62: 7 | Z62: - | AA62: 2
N63: 1 | O63: 8 | P63: 2010 | Q63: Juvan Nuorisopesis | R63: - | S63: Jyväskylän Lohi | T63: 0 | U63: - | V63: 2 | W63: (4-9, 2-5) | X63: 118 | Y63: 6 | Z63: - | AA63: 14
N64: 3 | O64: 8 | P64: 2010 | Q64: Juvan Nuorisopesis | R64: - | S64: Kouvolan Pallonlyöjät 2 | T64: 0 | U64: - | V64: 1 | W64: (1-1, 1-7) | X64: 130 | Y64: 2 | Z64: - | AA64: 8
N65: 4 | O65: 8 | P65: 2010 | Q65: Lievestuoreen Kisa | R65: - | S65: Jyväskylän Valo | T65: 2 | U65: - | V65: 0 | W65: (6-0, 4-0) | X65: 115 | Y65: 10 | Z65: - | AA65: 0
N66: 4 | O66: 8 | P66: 2010 | Q66: Mäntyharjun Virkistys | R66: - | S66: Lahden Mailaveikot | T66: 0 | U66: - | V66: 2 | W66: (2-7, 1-13) | X66: 108 | Y66: 3 | Z66: - | AA66: 20
N67: 5 | O67: 8 | P67: 2010 | Q67: Jyväskylän Lohi | R67: - | S67: Siilinjärven Pesis | T67: 2 | U67: - | V67: 0 | W67: (6-2, 4-2) | X67: 213 | Y67: 10 | Z67: - | AA67: 4
N68: 7 | O68: 8 | P68: 2010 | Q68: Lahden Mailaveikot | R68: - | S68: Jyväskylän Lohi | T68: 2 | U68: - | V68: 0 | W68: (7-6, 13-6) | X68: 223 | Y68: 20 | Z68: - | AA68: 12
N69: 7 | O69: 8 | P69: 2010 | Q69: Joensuun Maila 2 | R69: - | S69: Lievestuoreen Kisa | T69: 0 | U69: - | V69: 2 | W69: (2-24, 2-11) | X69: 25 | Y69: 4 | Z69: - | AA69: 35
N70: 8 | O70: 8 | P70: 2010 | Q70: Jyväskylän Valo | R70: - | S70: Siilinjärven Pesis | T70: 2 | U70: - | V70: 0 | W70: (6-2, 3-1) | X70: 20 | Y70: 9 | Z70: - | AA70: 3
N71: 8 | O71: 8 | P71: 2010 | Q71: Mäntyharjun Virkistys | R71: - | S71: Juvan Nuorisopesis | T71: 1 | U71: - | V71: 2 | W71: (12-3, 5-9, 0-1) | X71: 145 | Y71: 17 | Z71: - | AA71: 13
N72: 14 | O72: 8 | P72: 2010 | Q72: Juvan Nuorisopesis | R72: - | S72: Lahden Mailaveikot | T72: 0 | U72: - | V72: 2 | W72: (10-14, 4-5) | X72: 70 | Y72: 14 | Z72: - | AA72: 19
N73: 14 | O73: 8 | P73: 2010 | Q73: Lievestuoreen Kisa | R73: - | S73: Kouvolan Pallonlyöjät 2 | T73: 2 | U73: - | V73: 0 | W73: (4-3, 5-3) | X73: 107 | Y73: 9 | Z73: - | AA73: 6
N74: 14 | O74: 8 | P74: 2010 | Q74: Jyväskylän Lohi | R74: - | S74: Joensuun Maila 2 | T74: 2 | U74: - | V74: 0 | W74: (4-2, 14-0) | X74: 105 | Y74: 18 | Z74: - | AA74: 2
N75: 14 | O75: 8 | P75: 2010 | Q75: Siilinjärven Pesis | R75: - | S75: Mäntyharjun Virkistys | T75: 0 | U75: - | V75: 2 | W75: (3-5, 7-8) | X75: 73 | Y75: 10 | Z75: - | AA75: 13
S76: Yhteensä | T76: =SUM(T4:T75) -> 79 | U76: - | V76: =SUM(V4:V75) -> 61 | X76: =SUM(X3:X75) -> 8379 | Y76: =SUM(Y3:Y75) -> 789 | Z76: - | AA76: =SUM(AA3:AA75) -> 662
O77: =COUNT(V4:V75) -> 72 | S77: Keskiarvo | T77: =PRODUCT(T76/O77) -> 1.1 | U77: - | V77: =PRODUCT(V76/O77) -> 0.8 | X77: =PRODUCT(X76/O77) -> 116 | Y77: =PRODUCT(Y76/O77) -> 11.0 | Z77: - | AA77: =PRODUCT(AA76/O77) -> 9.2
B80: ITÄLOHKON NOUSUKARSINNAT 2010 | Q80: ITÄLOHKON NOUSUKARSINNAT 2010
Q81: VÄLIERÄT
N82: 18 | O82: 8 | P82: 2010 | Q82: Lievestuoreen Kisa | R82: - | S82: Lahden Mailaveikot | T82: 2 | U82: - | V82: 1 | W82: (2-5, 5-2, 3-0) | X82: 152 | Y82: 10 | Z82: - | AA82: 7
B83: Lievestuoreen Kisa loppuotteluun voitoin 2-0 | N83: 20 | O83: 8 | P83: 2010 | Q83: Lahden Mailaveikot | R83: - | S83: Lievestuoreen Kisa | T83: 1 | U83: - | V83: 2 | W83: (3-4, 12-11, 1-5) | X83: 265 | Y83: 16 | Z83: - | AA83: 20
N85: 18 | O85: 8 | P85: 2010 | Q85: Jyväskylän Lohi | R85: - | S85: Kouvolan Pallonlyöjät 2 | T85: 1 | U85: - | V85: 2 | W85: (3-2, 1-3, 0-2) | X85: 215 | Y85: 4 | Z85: - | AA85: 7
B86: Kouvolan Pallonlyöjät 2 loppuotteluun voitoin 2-0 | N86: 21 | O86: 8 | P86: 2010 | Q86: Kouvolan Pallonlyöjät 2 | R86: - | S86: Jyväskylän Lohi | T86: 2 | U86: - | V86: 1 | W86: (3-4, 8-2, 4-1) | X86: 235 | Y86: 15 | Z86: - | AA86: 7
Q88: LOPPUOTTELUT
N89: 25 | O89: 8 | P89: 2010 | Q89: Lievestuoreen Kisa | R89: - | S89: Kouvolan Pallonlyöjät 2 | T89: 2 | U89: - | V89: 0 | W89: (3-0, 5-0) | X89: 158 | Y89: 8 | Z89: - | AA89: 0
B90: Lievestuoreen Kisa lohkovoittajien nousukarsintaan voitoin 2-0 | N90: 28 | O90: 8 | P90: 2010 | Q90: Kouvolan Pallonlyöjät 2 | R90: - | S90: Lievestuoreen Kisa | T90: 1 | U90: - | V90: 2 | W90: (5-2, 0-7, 0-1) | X90: 154 | Y90: 5 | Z90: - | AA90: 10
S91: Yhteensä | T91: =SUM(T82:T90) -> 9 | U91: - | V91: =SUM(V82:V90) -> 8 | X91: =SUM(X82:X90) -> 1179 | Y91: =SUM(Y82:Y90) -> 58 | Z91: - | AA91: =SUM(AA82:AA90) -> 51
O92: =COUNT(T82:T90) -> 6 | S92: Keskiarvo | T92: =PRODUCT(T91/O92) -> 1.5 | U92: - | V92: =PRODUCT(V91/O92) -> 1.3 | X92: =PRODUCT(X91/O92) -> 197 | Y92: =PRODUCT(Y91/O92) -> 9.7 | Z92: - | AA92: =PRODUCT(AA91/O92) -> 8.5
B95: LÄNSILOHKO 2010 | C95: O | D95: 3 | E95: 2 | F95: 1 | G95: 0 | H95: TJ | I95: - | J95: AJ | K95: PIST | Q95: LÄNSILOHKO 2010
A96: 1 | B96: Vähänkyrön Viesti | C96: 18 | D96: 10 | E96: 7 | F96: 0 | G96: 1 | H96: 214 | I96: - | J96: 69 | K96: 44 | N96: 15 | O96: 5 | P96: 2010 | Q96: Alajärven Ankkurit 2 | R96: - | S96: Vähänkyrön Viesti | T96: 0 | U96: - | V96: 1 | W96: (1-1, 3-7) | X96: 48 | Y96: 4 | Z96: - | AA96: 8
A97: 2 | B97: Seinäjoen Maila-Jussit | C97: 18 | D97: 9 | E97: 3 | F97: 2 | G97: 4 | H97: 234 | I97: - | J97: 113 | K97: 35 | N97: 15 | O97: 5 | P97: 2010 | Q97: Halsua-Veteli Pesis | R97: - | S97: Ulvilan Pesä-Veikot 2 | T97: 2 | U97: - | V97: 1 | W97: (3-2, 2-4, 1-0) | X97: 74 | Y97: 6 | Z97: - | AA97: 6
A98: 3 | B98: Vimpelin Veto 2 | C98: 18 | D98: 9 | E98: 2 | F98: 2 | G98: 5 | H98: 163 | I98: - | J98: 115 | K98: 33 | N98: 15 | O98: 5 | P98: 2010 | Q98: Kauhajoen Karhu | R98: - | S98: Nurmon Jymy 2 | T98: 2 | U98: - | V98: 0 | W98: (6-4, 3-1) | X98: 169 | Y98: 9 | Z98: - | AA98: 5
A99: 4 | B99: Halsua-Veteli Pesis | C99: 18 | D99: 7 | E99: 4 | F99: 2 | G99: 5 | H99: 169 | I99: - | J99: 155 | K99: 31 | N99: 15 | O99: 5 | P99: 2010 | Q99: Vimpelin Veto 2 | R99: - | S99: Ikaalisten Tarmo | T99: 2 | U99: - | V99: 1 | W99: (0-2, 6-5, 1-0) | X99: 69 | Y99: 7 | Z99: - | AA99: 7
A100: 5 | B100: Ulvilan Pesä-Veikot 2 | C100: 18 | D100: 8 | E100: 2 | F100: 2 | G100: 6 | H100: 225 | I100: - | J100: 153 | K100: 30 | N100: 16 | O100: 5 | P100: 2010 | Q100: Seinäjoen Maila-Jussit | R100: - | S100: Koskenkorvan Urheilijat 2 | T100: 1 | U100: - | V100: 2 | W100: (3-2, 2-3, 1-2) | X100: 112 | Y100: 6 | Z100: - | AA100: 7
A101: 6 | B101: Ikaalisten Tarmo | C101: 18 | D101: 7 | E101: 2 | F101: 4 | G101: 5 | H101: 227 | I101: - | J101: 152 | K101: 29 | N101: 22 | O101: 5 | P101: 2010 | Q101: Vähänkyrön Viesti | R101: - | S101: Kauhajoen Karhu | T101: 2 | U101: - | V101: 0 | W101: (11-3, 8-1) | X101: 128 | Y101: 19 | Z101: - | AA101: 4
A102: 7 | B102: Koskenkorvan Urheilijat 2 | C102: 18 | D102: 4 | E102: 3 | F102: 1 | G102: 10 | H102: 139 | I102: - | J102: 186 | K102: 19 | N102: 22 | O102: 5 | P102: 2010 | Q102: Ulvilan Pesä-Veikot 2 | R102: - | S102: Alajärven Ankkurit 2 | T102: 2 | U102: - | V102: 0 | W102: (7-2, 3-0) | X102: 57 | Y102: 10 | Z102: - | AA102: 2
A103: 8 | B103: Kauhajoen Karhu | C103: 18 | D103: 4 | E103: 3 | F103: 1 | G103: 10 | H103: 149 | I103: - | J103: 224 | K103: 19 | N103: 22 | O103: 5 | P103: 2010 | Q103: Koskenkorvan Urheilijat 2 | R103: - | S103: Vimpelin Veto 2 | T103: 0 | U103: - | V103: 2 | W103: (2-6, 0-1) | X103: 21 | Y103: 2 | Z103: - | AA103: 7
A104: 9 | B104: Alajärven Ankkurit 2 | C104: 18 | D104: 3 | E104: 2 | F104: 2 | G104: 11 | H104: 148 | I104: - | J104: 223 | K104: 15 | N104: 22 | O104: 5 | P104: 2010 | Q104: Ikaalisten Tarmo | R104: - | S104: Halsua-Veteli Pesis | T104: 1 | U104: - | V104: 0 | W104: (3-3, 7-1) | X104: 150 | Y104: 10 | Z104: - | AA104: 4
A105: 10 | B105: Nurmon Jymy 2 | C105: 18 | D105: 0 | E105: 1 | F105: 3 | G105: 14 | H105: 80 | I105: - | J105: 358 | K105: 5 | N105: 22 | O105: 5 | P105: 2010 | Q105: Nurmon Jymy 2 | R105: - | S105: Seinäjoen Maila-Jussit | T105: 0 | U105: - | V105: 2 | W105: (0-6, 4-7) | X105: 53 | Y105: 4 | Z105: - | AA105: 13
C106: =SUM(C96:C105) -> 180 | D106: =SUM(D96:D105) -> 61 | E106: =SUM(E96:E105) -> 29 | F106: =SUM(F96:F105) -> 19 | G106: =SUM(G96:G105) -> 71 | H106: =SUM(H96:H105) -> 1748 | I106: - | J106: =SUM(J96:J105) -> 1748 | K106: =SUM(K96:K105) -> 260 | N106: 25 | O106: 5 | P106: 2010 | Q106: Vimpelin Veto 2 | R106: - | S106: Nurmon Jymy 2 | T106: 2 | U106: - | V106: 1 | W106: (3-1, 3-4, 1-0) | X106: 69 | Y106: 7 | Z106: - | AA106: 5
N107: 26 | O107: 5 | P107: 2010 | Q107: Alajärven Ankkurit 2 | R107: - | S107: Halsua-Veteli Pesis | T107: 2 | U107: - | V107: 0 | W107: (6-1, 6-3) | X107: 48 | Y107: 12 | Z107: - | AA107: 4
B108: 1 - 4 sijoittuneet nousukarsintoihin | N108: 26 | O108: 5 | P108: 2010 | Q108: Kauhajoen Karhu | R108: - | S108: Ulvilan Pesä-Veikot 2 | T108: 1 | U108: - | V108: 0 | W108: (4-4, 4-1) | X108: 137 | Y108: 8 | Z108: - | AA108: 5
B109: Alajärven Ankkurit 2 ja Nurmon Jymy 2 maakuntasarjaan | N109: 26 | O109: 5 | P109: 2010 | Q109: Koskenkorvan Urheilijat 2 | R109: - | S109: Ikaalisten Tarmo | T109: 2 | U109: - | V109: 0 | W109: (11-4, 1-0) | X109: 23 | Y109: 12 | Z109: - | AA109: 4
N110: 27 | O110: 5 | P110: 2010 | Q110: Seinäjoen Maila-Jussit | R110: - | S110: Vähänkyrön Viesti | T110: 0 | U110: - | V110: 1 | W110: (2-4, 3-3) | X110: 73 | Y110: 5 | Z110: - | AA110: 7
N111: 29 | O111: 5 | P111: 2010 | Q111: Vähänkyrön Viesti | R111: - | S111: Vimpelin Veto 2 | T111: 1 | U111: - | V111: 0 | W111: (3-2, 4-4) | X111: 138 | Y111: 7 | Z111: - | AA111: 6
B112: SIJOITUKSET | C112: 10 | D112: 09 | E112: 08 | F112: 07 | G112: 06 | N112: 29 | O112: 5 | P112: 2010 | Q112: Nurmon Jymy 2 | R112: - | S112: Koskenkorvan Urheilijat 2 | T112: 1 | U112: - | V112: 2 | W112: (5-2, 0-5, 1-2) | X112: 72 | Y112: 6 | Z112: - | AA112: 9
B113: Seinäjoen Maila-Jussit | C113: 1 | D113: 9 | E113: 10 | F113: 11 | G113: 1 | N113: 29 | O113: 5 | P113: 2010 | Q113: Halsua-Veteli Pesis | R113: - | S113: Kauhajoen Karhu | T113: 2 | U113: - | V113: 1 | W113: (4-3, 2-3, 1-0) | X113: 54 | Y113: 7 | Z113: - | AA113: 6
B114: Halsua-Veteli Pesis | C114: 2 | D114: 5 | E114: 5 | F114: 4 | G114: 6 | N114: 29 | O114: 5 | P114: 2010 | Q114: Ikaalisten Tarmo | R114: - | S114: Alajärven Ankkurit 2 | T114: 2 | U114: - | V114: 0 | W114: (15-7, 8-0) | X114: 68 | Y114: 23 | Z114: - | AA114: 7
B115: Vähänkyrön Viesti | C115: 3 | D115: 2 | E115: 1 | F115: 2 | G115: 4 | N115: 30 | O115: 5 | P115: 2010 | Q115: Ulvilan Pesä-Veikot 2 | R115: - | S115: Seinäjoen Maila-Jussit | T115: 2 | U115: - | V115: 0 | W115: (4-2, 8-3) | X115: 173 | Y115: 12 | Z115: - | AA115: 5
B116: Vimpelin Veto 2 | C116: 4 | D116: 7 | E116: 8 | F116: 7 | G116: 6 | N116: 2 | O116: 6 | P116: 2010 | Q116: Kauhajoen Karhu | R116: - | S116: Alajärven Ankkurit 2 | T116: 0 | U116: - | V116: 2 | W116: (3-4, 5-6) | X116: 192 | Y116: 8 | Z116: - | AA116: 10
B117: Ulvilan Pesä-Veikot 2 | C117: 5 | D117: 1 | E117: 6 | F117: 6 | G117: 1 | N117: 2 | O117: 6 | P117: 2010 | Q117: Vimpelin Veto 2 | R117: - | S117: Ulvilan Pesä-Veikot 2 | T117: 2 | U117: - | V117: 0 | W117: (14-10, 6-5) | X117: 69 | Y117: 20 | Z117: - | AA117: 15
B118: Ikaalisten Tarmo | C118: 6 | D118: 4 | E118: 1 | F118: 2 | G118: 10 | N118: 2 | O118: 6 | P118: 2010 | Q118: Koskenkorvan Urheilijat 2 | R118: - | S118: Vähänkyrön Viesti | T118: 0 | U118: - | V118: 2 | W118: (1-2, 5-10) | X118: 39 | Y118: 6 | Z118: - | AA118: 12
B119: Koskenkorvan Urheilijat 2 | C119: 7 | D119: 6 | E119: 3 | F119: 8 | G119: 7 | N119: 3 | O119: 6 | P119: 2010 | Q119: Nurmon Jymy 2 | R119: - | S119: Ikaalisten Tarmo | T119: 0 | U119: - | V119: 2 | W119: (5-13, 0-8) | X119: 60 | Y119: 5 | Z119: - | AA119: 21
B120: Kauhajoen Karhu | C120: 8 | D120: 1 | E120: 4 | F120: 9 | G120: 11 | N120: 3 | O120: 6 | P120: 2010 | Q120: Seinäjoen Maila-Jussit | R120: - | S120: Halsua-Veteli Pesis | T120: 2 | U120: - | V120: 1 | W120: (4-5, 15-1, 2-1) | X120: 81 | Y120: 21 | Z120: - | AA120: 7
B121: Alajärven Ankkurit 2 | C121: 9 | D121: 10 | E121: 3 | F121: 1 | G121: 9 | N121: 8 | O121: 6 | P121: 2010 | Q121: Alajärven Ankkurit 2 | R121: - | S121: Seinäjoen Maila-Jussit | T121: 0 | U121: - | V121: 2 | W121: (1-9, 3-16) | X121: 77 | Y121: 4 | Z121: - | AA121: 25
B122: Nurmon Jymy 2 | C122: 10 | D122: 8 | E122: 2 | F122: 1 | G122: 3 | N122: 9 | O122: 6 | P122: 2010 | Q122: Halsua-Veteli Pesis | R122: - | S122: Vimpelin Veto 2 | T122: 0 | U122: - | V122: 2 | W122: (2-5, 1-3) | X122: 75 | Y122: 3 | Z122: - | AA122: 8
N123: 9 | O123: 6 | P123: 2010 | Q123: Kauhajoen Karhu | R123: - | S123: Ikaalisten Tarmo | T123: 2 | U123: - | V123: 1 | W123: (5-6, 7-2, 0-0, 1-0) | X123: 123 | Y123: 12 | Z123: - | AA123: 8
B124: JOUKKUEMÄÄRÄ | C124: 10 | D124: 09 | E124: 08 | F124: 07 | G124: 06 | N124: 9 | O124: 6 | P124: 2010 | Q124: Ulvilan Pesä-Veikot 2 | R124: - | S124: Koskenkorvan Urheilijat 2 | T124: 0 | U124: - | V124: 1 | W124: (6-6, 1-4) | X124: 58 | Y124: 7 | Z124: - | AA124: 10
B125: SUPERPESIS | C125: 12 | D125: 11 | E125: 12 | F125: 13 | G125: 12 | N125: 10 | O125: 6 | P125: 2010 | Q125: Nurmon Jymy 2 | R125: - | S125: Vähänkyrön Viesti | T125: 0 | U125: - | V125: 2 | W125: (0-14, 2-10) | X125: 76 | Y125: 2 | Z125: - | AA125: 24
B126: YKKÖSPESIS | C126: 12 | D126: 12 | E126: 12 | F126: 15 | G126: 16 | N126: 12 | O126: 6 | P126: 2010 | Q126: Ulvilan Pesä-Veikot 2 | R126: - | S126: Nurmon Jymy 2 | T126: 2 | U126: - | V126: 1 | W126: (14-1, 4-5, 1-0) | X126: 61 | Y126: 19 | Z126: - | AA126: 6
B127: SUOMENSARJA | C127: 38 | D127: 37 | E127: 34 | F127: 40 | G127: 39 | N127: 12 | O127: 6 | P127: 2010 | Q127: Ikaalisten Tarmo | R127: - | S127: Vähänkyrön Viesti | T127: 1 | U127: - | V127: 2 | W127: (4-5, 3-2, 0-1) | X127: 65 | Y127: 7 | Z127: - | AA127: 8
B128: Etelälohko | C128: 10 | D128: 8 | E128: 10 | F128: 10 | G128: 9 | N128: 12 | O128: 6 | P128: 2010 | Q128: Vimpelin Veto 2 | R128: - | S128: Alajärven Ankkurit 2 | T128: 2 | U128: - | V128: 0 | W128: (8-1, 6-2) | X128: 69 | Y128: 14 | Z128: - | AA128: 3
B129: Itälohko | C129: 9 | D129: 10 | E129: 8 | F129: 10 | G129: 10 | N129: 16 | O129: 6 | P129: 2010 | Q129: Halsua-Veteli Pesis | R129: - | S129: Nurmon Jymy 2 | T129: 2 | U129: - | V129: 0 | W129: (15-0, 7-3) | X129: 73 | Y129: 22 | Z129: - | AA129: 3
B130: Länsilohko | C130: 10 | D130: 10 | E130: 9 | F130: 10 | G130: 10 | N130: 16 | O130: 6 | P130: 2010 | Q130: Alajärven Ankkurit 2 | R130: - | S130: Koskenkorvan Urheilijat 2 | T130: 1 | U130: - | V130: 0 | W130: (12-7, 3-3) | X130: 31 | Y130: 15 | Z130: - | AA130: 10
B131: Pohjoislohko | C131: 10 | D131: 9 | E131: 7 | F131: 10 | G131: 10 | N131: 16 | O131: 6 | P131: 2010 | Q131: Kauhajoen Karhu | R131: - | S131: Vimpelin Veto 2 | T131: 2 | U131: - | V131: 0 | W131: (4-1, 7-2) | X131: 183 | Y131: 11 | Z131: - | AA131: 3
N132: 16 | O132: 6 | P132: 2010 | Q132: Seinäjoen Maila-Jussit | R132: - | S132: Ikaalisten Tarmo | T132: 2 | U132: - | V132: 0 | W132: (8-1, 8-2) | Y132: 16 | Z132: - | AA132: 3
N133: 16 | O133: 6 | P133: 2010 | Q133: Ulvilan Pesä-Veikot 2 | R133: - | S133: Vähänkyrön Viesti | T133: 1 | U133: - | V133: 2 | W133: (1-3, 2-1, 0-1) | X133: 86 | Y133: 3 | Z133: - | AA133: 5
N134: 19 | O134: 6 | P134: 2010 | Q134: Vähänkyrön Viesti | R134: - | S134: Halsua-Veteli Pesis | T134: 2 | U134: - | V134: 0 | W134: (5-0, 5-1) | X134: 85 | Y134: 10 | Z134: - | AA134: 1
N135: 19 | O135: 6 | P135: 2010 | Q135: Koskenkorvan Urheilijat 2 | R135: - | S135: Kauhajoen Karhu | T135: 1 | U135: - | V135: 2 | W135: (4-5, 4-3, 0-1) | X135: 63 | Y135: 8 | Z135: - | AA135: 9
N136: 30 | O136: 6 | P136: 2010 | Q136: Nurmon Jymy 2 | R136: - | S136: Alajärven Ankkurit 2 | T136: 2 | U136: - | V136: 1 | W136: (11-4, 4-13, 1-0) | X136: 60 | Y136: 16 | Z136: - | AA136: 17
N137: 19 | O137: 6 | P137: 2010 | Q137: Ikaalisten Tarmo | R137: - | S137: Ulvilan Pesä-Veikot 2 | T137: 1 | U137: - | V137: 0 | W137: (17-1, 2-2) | X137: 87 | Y137: 19 | Z137: - | AA137: 3
N138: 7 | O138: 7 | P138: 2010 | Q138: Koskenkorvan Urheilijat 2 | R138: - | S138: Halsua-Veteli Pesis | T138: 0 | U138: - | V138: 1 | W138: (3-3, 2-9) | X138: 42 | Y138: 5 | Z138: - | AA138: 12
N139: 7 | O139: 7 | P139: 2010 | Q139: Vimpelin Veto 2 | R139: - | S139: Seinäjoen Maila-Jussit | T139: 0 | U139: - | V139: 2 | W139: (1-5, 2-10) | X139: 69 | Y139: 3 | Z139: - | AA139: 15
N140: 10 | O140: 7 | P140: 2010 | Q140: Ulvilan Pesä-Veikot 2 | R140: - | S140: Ikaalisten Tarmo | T140: 2 | U140: - | V140: 1 | W140: (5-8, 12-8, 9-1) | X140: 78 | Y140: 26 | Z140: - | AA140: 17
N141: 10 | O141: 7 | P141: 2010 | Q141: Kauhajoen Karhu | R141: - | S141: Koskenkorvan Urheilijat 2 | T141: 0 | U141: - | V141: 2 | W141: (1-6, 4-5) | X141: 149 | Y141: 5 | Z141: - | AA141: 11
N142: 10 | O142: 7 | P142: 2010 | Q142: Halsua-Veteli Pesis | R142: - | S142: Vähänkyrön Viesti | T142: 1 | U142: - | V142: 2 | W142: (5-1, 4-5, 0-2) | X142: 112 | Y142: 9 | Z142: - | AA142: 8
N143: 11 | O143: 7 | P143: 2010 | Q143: Alajärven Ankkurit 2 | R143: - | S143: Nurmon Jymy 2 | T143: 2 | U143: - | V143: 0 | W143: (8-7, 22-0) | X143: 23 | Y143: 30 | Z143: - | AA143: 7
N144: 11 | O144: 7 | P144: 2010 | Q144: Seinäjoen Maila-Jussit | R144: - | S144: Vimpelin Veto 2 | T144: 2 | U144: - | V144: 0 | W144: (1-0, 5-4) | X144: 82 | Y144: 6 | Z144: - | AA144: 4
N145: 14 | O145: 7 | P145: 2010 | Q145: Nurmon Jymy 2 | R145: - | S145: Halsua-Veteli Pesis | T145: 0 | U145: - | V145: 2 | W145: (0-16, 5-19) | X145: 84 | Y145: 5 | Z145: - | AA145: 35
N146: 14 | O146: 7 | P146: 2010 | Q146: Koskenkorvan Urheilijat 2 | R146: - | S146: Alajärven Ankkurit 2 | T146: 2 | U146: - | V146: 0 | W146: (5-4, 6-2) | X146: 43 | Y146: 11 | Z146: - | AA146: 6
N147: 14 | O147: 7 | P147: 2010 | Q147: Vimpelin Veto 2 | R147: - | S147: Kauhajoen Karhu | T147: 2 | U147: - | V147: 0 | W147: (9-1, 10-3) | X147: 30 | Y147: 19 | Z147: - | AA147: 4
N148: 15 | O148: 7 | P148: 2010 | Q148: Ikaalisten Tarmo | R148: - | S148: Seinäjoen Maila-Jussit | T148: 0 | U148: - | V148: 2 | W148: (1-4, 3-5) | X148: 145 | Y148: 4 | Z148: - | AA148: 9
N149: 15 | O149: 7 | P149: 2010 | Q149: Vähänkyrön Viesti | R149: - | S149: Ulvilan Pesä-Veikot 2 | T149: 2 | U149: - | V149: 0 | W149: (6-5, 7-1) | X149: 211 | Y149: 13 | Z149: - | AA149: 6
N150: 17 | O150: 7 | P150: 2010 | Q150: Vähänkyrön Viesti | R150: - | S150: Ikaalisten Tarmo | T150: 2 | U150: - | V150: 0 | W150: (9-0, 9-2) | X150: 191 | Y150: 18 | Z150: - | AA150: 2
N151: 17 | O151: 7 | P151: 2010 | Q151: Halsua-Veteli Pesis | R151: - | S151: Koskenkorvan Urheilijat 2 | T151: 2 | U151: - | V151: 0 | W151: (5-0, 8-5) | X151: 68 | Y151: 13 | Z151: - | AA151: 5
N152: 17 | O152: 7 | P152: 2010 | Q152: Nurmon Jymy 2 | R152: - | S152: Ulvilan Pesä-Veikot 2 | T152: 0 | U152: - | V152: 2 | W152: (0-9, 1-15) | X152: 20 | Y152: 1 | Z152: - | AA152: 24
N153: 17 | O153: 7 | P153: 2010 | Q153: Kauhajoen Karhu | R153: - | S153: Seinäjoen Maila-Jussit | T153: 0 | U153: - | V153: 1 | W153: (2-2, 1-4) | X153: 173 | Y153: 3 | Z153: - | AA153: 6
N154: 18 | O154: 7 | P154: 2010 | Q154: Alajärven Ankkurit 2 | R154: - | S154: Vimpelin Veto 2 | T154: 2 | U154: - | V154: 1 | W154: (3-0, 0-13, 1-0) | X154: 43 | Y154: 4 | Z154: - | AA154: 13
N155: 20 | O155: 7 | P155: 2010 | Q155: Koskenkorvan Urheilijat 2 | R155: - | S155: Ulvilan Pesä-Veikot 2 | T155: 0 | U155: - | V155: 2 | W155: (6-11, 1-6) | X155: 52 | Y155: 7 | Z155: - | AA155: 17
N156: 21 | O156: 7 | P156: 2010 | Q156: Ikaalisten Tarmo | R156: - | S156: Kauhajoen Karhu | T156: 2 | U156: - | V156: 0 | W156: (22-10, 15-1) | X156: 180 | Y156: 37 | Z156: - | AA156: 11
N157: 21 | O157: 7 | P157: 2010 | Q157: Vimpelin Veto 2 | R157: - | S157: Halsua-Veteli Pesis | T157: 1 | U157: - | V157: 2 | W157: (2-5, 4-1, 0-1) | X157: 69 | Y157: 6 | Z157: - | AA157: 7
N158: 21 | O158: 7 | P158: 2010 | Q158: Vähänkyrön Viesti | R158: - | S158: Nurmon Jymy 2 | T158: 2 | U158: - | V158: 0 | W158: (11-0, 13-0) | X158: 166 | Y158: 24 | Z158: - | AA158: 0
N159: 22 | O159: 7 | P159: 2010 | Q159: Seinäjoen Maila-Jussit | R159: - | S159: Alajärven Ankkurit 2 | T159: 2 | U159: - | V159: 1 | W159: (4-7, 15-2, 1-1, 2-1) | X159: 122 | Y159: 20 | Z159: - | AA159: 10
N160: 24 | O160: 7 | P160: 2010 | Q160: Ulvilan Pesä-Veikot 2 | R160: - | S160: Vimpelin Veto 2 | T160: 0 | U160: - | V160: 2 | W160: (1-10, 1-6) | X160: 63 | Y160: 2 | Z160: - | AA160: 16
N161: 24 | O161: 7 | P161: 2010 | Q161: Ikaalisten Tarmo | R161: - | S161: Nurmon Jymy 2 | T161: 2 | U161: - | V161: 0 | W161: (9-0, 12-4) | X161: 162 | Y161: 21 | Z161: - | AA161: 4
N162: 25 | O162: 7 | P162: 2010 | Q162: Alajärven Ankkurit 2 | R162: - | S162: Kauhajoen Karhu | T162: 0 | U162: - | V162: 2 | W162: (3-4, 7-8) | X162: 65 | Y162: 10 | Z162: - | AA162: 12
N163: 26 | O163: 7 | P163: 2010 | Q163: Vähänkyrön Viesti | R163: - | S163: Koskenkorvan Urheilijat 2 | T163: 2 | U163: - | V163: 0 | W163: (10-1, 6-1) | X163: 196 | Y163: 16 | Z163: - | AA163: 2
N164: 29 | O164: 7 | P164: 2010 | Q164: Halsua-Veteli Pesis | R164: - | S164: Seinäjoen Maila-Jussit | T164: 2 | U164: - | V164: 0 | W164: (8-4, 3-2) | X164: 120 | Y164: 11 | Z164: - | AA164: 6
N165: 29 | O165: 7 | P165: 2010 | Q165: Vimpelin Veto 2 | R165: - | S165: Vähänkyrön Viesti | T165: 2 | U165: - | V165: 0 | W165: (3-2, 1-0) | X165: 69 | Y165: 4 | Z165: - | AA165: 2
N166: 31 | O166: 7 | P166: 2010 | Q166: Alajärven Ankkurit 2 | R166: - | S166: Ikaalisten Tarmo | T166: 0 | U166: - | V166: 2 | W166: (1-2, 0-6) | X166: 7 | Y166: 1 | Z166: - | AA166: 8
N167: 31 | O167: 7 | P167: 2010 | Q167: Koskenkorvan Urheilijat 2 | R167: - | S167: Nurmon Jymy 2 | T167: 2 | U167: - | V167: 0 | W167: (7-1, 8-1) | X167: 42 | Y167: 15 | Z167: - | AA167: 2
N168: 31 | O168: 7 | P168: 2010 | Q168: Kauhajoen Karhu | R168: - | S168: Halsua-Veteli Pesis | T168: 0 | U168: - | V168: 2 | W168: (0-1, 5-7) | X168: 135 | Y168: 5 | Z168: - | AA168: 8
N169: 1 | O169: 8 | P169: 2010 | Q169: Seinäjoen Maila-Jussit | R169: - | S169: Ulvilan Pesä-Veikot 2 | T169: 0 | U169: - | V169: 2 | W169: (3-4, 2-6) | X169: 108 | Y169: 5 | Z169: - | AA169: 10
N170: 4 | O170: 8 | P170: 2010 | Q170: Halsua-Veteli Pesis | R170: - | S170: Alajärven Ankkurit 2 | T170: 2 | U170: - | V170: 0 | W170: (6-5, 5-3) | X170: 78 | Y170: 11 | Z170: - | AA170: 8
N171: 4 | O171: 8 | P171: 2010 | Q171: Ikaalisten Tarmo | R171: - | S171: Koskenkorvan Urheilijat 2 | T171: 2 | U171: - | V171: 0 | W171: (12-3, 7-0) | X171: 165 | Y171: 19 | Z171: - | AA171: 3
N172: 4 | O172: 8 | P172: 2010 | Q172: Ulvilan Pesä-Veikot 2 | R172: - | S172: Kauhajoen Karhu | T172: 2 | U172: - | V172: 0 | W172: (10-0, 3-2) | X172: 25 | Y172: 13 | Z172: - | AA172: 2
N173: 4 | O173: 8 | P173: 2010 | Q173: Nurmon Jymy 2 | R173: - | S173: Vimpelin Veto 2 | T173: 0 | U173: - | V173: 2 | W173: (0-10, 0-4) | X173: 44 | Y173: 0 | Z173: - | AA173: 14
N174: 5 | O174: 8 | P174: 2010 | Q174: Vähänkyrön Viesti | R174: - | S174: Seinäjoen Maila-Jussit | T174: 2 | U174: - | V174: 1 | W174: (6-3, 0-2, 2-0) | X174: 250 | Y174: 8 | Z174: - | AA174: 5
N175: 7 | O175: 8 | P175: 2010 | Q175: Halsua-Veteli Pesis | R175: - | S175: Ikaalisten Tarmo | T175: 1 | U175: - | V175: 0 | W175: (1-0, 1-0) | X175: 94 | Y175: 2 | Z175: - | AA175: 0
N176: 7 | O176: 8 | P176: 2010 | Q176: Kauhajoen Karhu | R176: - | S176: Vähänkyrön Viesti | T176: 0 | U176: - | V176: 2 | W176: (1-13, 1-5) | Y176: 2 | Z176: - | AA176: 18
N177: 7 | O177: 8 | P177: 2010 | Q177: Vimpelin Veto 2 | R177: - | S177: Koskenkorvan Urheilijat 2 | T177: 2 | U177: - | V177: 0 | W177: (5-3, 3-2) | X177: 40 | Y177: 8 | Z177: - | AA177: 5
N178: 8 | O178: 8 | P178: 2010 | Q178: Seinäjoen Maila-Jussit | R178: - | S178: Nurmon Jymy 2 | T178: 2 | U178: - | V178: 0 | W178: (9-2, 10-0) | X178: 93 | Y178: 19 | Z178: - | AA178: 2
N179: 8 | O179: 8 | P179: 2010 | Q179: Alajärven Ankkurit 2 | R179: - | S179: Ulvilan Pesä-Veikot 2 | T179: 0 | U179: - | V179: 2 | W179: (3-11, 1-5) | X179: 44 | Y179: 4 | Z179: - | AA179: 16
N180: 11 | O180: 8 | P180: 2010 | Q180: Seinäjoen Maila-Jussit | R180: - | S180: Kauhajoen Karhu | T180: 2 | U180: - | V180: 0 | W180: (12-3, 18-0) | X180: 84 | Y180: 30 | Z180: - | AA180: 3
N181: 14 | O181: 8 | P181: 2010 | Q181: Ulvilan Pesä-Veikot 2 | R181: - | S181: Halsua-Veteli Pesis | T181: 2 | U181: - | V181: 0 | W181: (12-6, 19-1) | X181: 52 | Y181: 31 | Z181: - | AA181: 7
N182: 14 | O182: 8 | P182: 2010 | Q182: Vähänkyrön Viesti | R182: - | S182: Alajärven Ankkurit 2 | T182: 2 | U182: - | V182: 0 | W182: (4-1, 3-0) | X182: 169 | Y182: 7 | Z182: - | AA182: 1
N183: 14 | O183: 8 | P183: 2010 | Q183: Nurmon Jymy 2 | R183: - | S183: Kauhajoen Karhu | T183: 0 | U183: - | V183: 2 | W183: (4-16, 3-19) | X183: 26 | Y183: 7 | Z183: - | AA183: 35
N184: 14 | O184: 8 | P184: 2010 | Q184: Koskenkorvan Urheilijat 2 | R184: - | S184: Seinäjoen Maila-Jussit | T184: 0 | U184: - | V184: 2 | W184: (4-7, 7-15) | X184: 42 | Y184: 11 | Z184: - | AA184: 22
N185: 14 | O185: 8 | P185: 2010 | Q185: Ikaalisten Tarmo | R185: - | S185: Vimpelin Veto 2 | T185: 2 | U185: - | V185: 0 | W185: (5-3, 12-1) | X185: 170 | Y185: 17 | Z185: - | AA185: 4
S186: Yhteensä | T186: =SUM(T95:T185) -> 109 | U186: - | V186: =SUM(V95:V185) -> 79 | X186: =SUM(X96:X185) -> 7944 | Y186: =SUM(Y95:Y185) -> 972 | Z186: - | AA186: =SUM(AA95:AA185) -> 776
O187: =COUNT(T96:T185) -> 90 | S187: Keskiarvo | T187: =PRODUCT(T186/O187) -> 1.2 | U187: - | V187: =PRODUCT(V186/O187) -> 0.9 | X187: =PRODUCT(X186/O187) -> 88 | Y187: =PRODUCT(Y186/O187) -> 10.8 | Z187: - | AA187: =PRODUCT(AA186/O187) -> 8.6
B190: LÄNSILOHKON NOUSUKARSINNAT 2010 | Q190: LÄNSILOHKON NOUSUKARSINNAT 2010
Q191: VÄLIERÄT
N192: 18 | O192: 8 | P192: 2010 | Q192: Vähänkyrön Viesti | R192: - | S192: Halsua-Veteli Pesis | T192: 0 | U192: - | V192: 1 | W192: (4-4, 3-5) | X192: 188 | Y192: 7 | Z192: - | AA192: 9
B193: Halsua-Veteli Pesis loppuotteluun voitoin 2-0 | N193: 21 | O193: 8 | P193: 2010 | Q193: Halsua-Veteli Pesis | R193: - | S193: Vähänkyrön Viesti | T193: 2 | U193: - | V193: 1 | W193: (5-6, 4-1, 1-0) | X193: 186 | Y193: 10 | Z193: - | AA193: 7
N195: 18 | O195: 8 | P195: 2010 | Q195: Seinäjoen Maila-Jussit | R195: - | S195: Vimpelin Veto 2 | T195: 2 | U195: - | V195: 0 | W195: (3-0, 5-2) | X195: 286 | Y195: 8 | Z195: - | AA195: 2
B196: Seinäjoen Maila-Jussit loppuotteluun voitoin 2-0 | N196: 21 | O196: 8 | P196: 2010 | Q196: Vimpelin Veto 2 | R196: - | S196: Seinäjoen Maila-Jussit | T196: 0 | U196: - | V196: 1 | W196: (2-2, 1-4) | X196: 100 | Y196: 3 | Z196: - | AA196: 6
Q198: LOPPUOTTELUT
N199: 25 | O199: 8 | P199: 2010 | Q199: Seinäjoen Maila-Jussit | R199: - | S199: Halsua-Veteli Pesis | T199: 1 | U199: - | V199: 2 | W199: (1-0, 0-1, 0-0, 0-1) | X199: 356 | Y199: 1 | Z199: - | AA199: 1
N200: 28 | O200: 8 | P200: 2010 | Q200: Halsua-Veteli Pesis | R200: - | S200: Seinäjoen Maila-Jussit | T200: 0 | U200: - | V200: 2 | W200: (3-4, 0-1) | X200: 207 | Y200: 3 | Z200: - | AA200: 5
B201: Seinäjoen Maila-Jussit lohkovoittajien nousukarsintaan voitoin 2-1 | N201: 29 | O201: 8 | P201: 2010 | Q201: Seinäjoen Maila-Jussit | R201: - | S201: Halsua-Veteli Pesis | T201: 2 | U201: - | V201: 0 | W201: (7-2, 7-0) | X201: 314 | Y201: 14 | Z201: - | AA201: 2
S202: Yhteensä | T202: =SUM(T192:T201) -> 7 | U202: - | V202: =SUM(V192:V201) -> 7 | X202: =SUM(X192:X201) -> 1637 | Y202: =SUM(Y192:Y201) -> 46 | Z202: - | AA202: =SUM(AA192:AA201) -> 32
O203: =COUNT(T192:T201) -> 7 | S203: Keskiarvo | T203: =PRODUCT(T202/O203) -> 1.0 | U203: - | V203: =PRODUCT(V202/O203) -> 1.0 | X203: =PRODUCT(X202/O203) -> 234 | Y203: =PRODUCT(Y202/O203) -> 6.6 | Z203: - | AA203: =PRODUCT(AA202/O203) -> 4.6
B206: POHJOISLOHKO 2010 | C206: O | D206: 3 | E206: 2 | F206: 1 | G206: 0 | H206: TJ | I206: - | J206: AJ | K206: PIST | Q206: POHJOISLOHKO 2010
A207: 1 | B207: Iin Urheilijat | C207: 18 | D207: 8 | E207: 5 | F207: 2 | G207: 3 | H207: 157 | I207: - | J207: 85 | K207: 36 | N207: 15 | O207: 5 | P207: 2010 | Q207: Haapajärven Pesä-Kiilat 2 | R207: - | S207: Oulujoen Kiekko | T207: 0 | U207: - | V207: 2 | W207: (2-5, 1-6) | X207: 88 | Y207: 3 | Z207: - | AA207: 11
A208: 2 | B208: Oulujoen Kiekko | C208: 18 | D208: 7 | E208: 6 | F208: 2 | G208: 3 | H208: 149 | I208: - | J208: 127 | K208: 35 | N208: 15 | O208: 5 | P208: 2010 | Q208: Kempeleen Kiri 2 | R208: - | S208: Lestijoen Pesis | T208: 0 | U208: - | V208: 2 | W208: (2-5, 4-7) | X208: 50 | Y208: 6 | Z208: - | AA208: 12
A209: 3 | B209: Sotkamon Jymy 2 | C209: 18 | D209: 8 | E209: 2 | F209: 6 | G209: 2 | H209: 183 | I209: - | J209: 104 | K209: 34 | N209: 15 | O209: 5 | P209: 2010 | Q209: Iin Urheilijat | R209: - | S209: Pattijoen Urheilijat 2 | T209: 1 | U209: - | V209: 2 | W209: (1-0, 1-2, 1-1, 0-2) | X209: 0 | Y209: 3 | Z209: - | AA209: 3
A210: 4 | B210: Pattijoen Urheilijat 2 | C210: 18 | D210: 5 | E210: 8 | F210: 1 | G210: 4 | H210: 185 | I210: - | J210: 140 | K210: 32 | N210: 15 | O210: 5 | P210: 2010 | Q210: Sotkamon Jymy 2 | R210: - | S210: Muhoksen Pallo-Salamat | T210: 2 | U210: - | V210: 0 | W210: (2-1, 4-1) | X210: 109 | Y210: 6 | Z210: - | AA210: 2
A211: 5 | B211: Muhoksen Pallo-Salamat | C211: 18 | D211: 6 | E211: 4 | F211: 5 | G211: 3 | H211: 166 | I211: - | J211: 93 | K211: 31 | N211: 15 | O211: 5 | P211: 2010 | Q211: Kiimingin Urheilijat | R211: - | S211: Kajaanin Spartak | T211: 0 | U211: - | V211: 1 | W211: (5-10, 1-1) | X211: 68 | Y211: 6 | Z211: - | AA211: 11
A212: 6 | B212: Lestijoen Pesis | C212: 18 | D212: 4 | E212: 4 | F212: 7 | G212: 3 | H212: 136 | I212: - | J212: 123 | K212: 27 | N212: 22 | O212: 5 | P212: 2010 | Q212: Lestijoen Pesis | R212: - | S212: Sotkamon Jymy 2 | T212: 2 | U212: - | V212: 1 | W212: (2-6, 2-1, 1-1, 5-0) | X212: 127 | Y212: 5 | Z212: - | AA212: 8
A213: 7 | B213: Kiimingin Urheilijat | C213: 18 | D213: 3 | E213: 4 | F213: 2 | G213: 9 | H213: 129 | I213: - | J213: 179 | K213: 19 | N213: 22 | O213: 5 | P213: 2010 | Q213: Oulujoen Kiekko | R213: - | S213: Iin Urheilijat | T213: 1 | U213: - | V213: 2 | W213: (2-1, 2-4, 0-4) | X213: 129 | Y213: 4 | Z213: - | AA213: 9
... 4036 more rows
